Workbook

Sheet MENU GENERAL
B13: =SUM(B9:B12) -> 0
E22: Report Sept | H22: =B8 -> 0
H23: =SUM(H18:H22) -> 0
L41: =H23 -> 0
J48: =SUM(J42:J47) -> 0 | K48: =SUM(K42:K47) -> 0 | L48: =SUM(L41:L47) -> 0

Sheet Liste élèves
A1: Année scolaire : | B1: 2018-2019
B3: Liste élèves
A4: NOM | B4: PRENOM | C4: Section | D4: NUM ORDRE
A5: AKKURT | B5: Addin | C5: Classe 10 | D5: 1
A6: BARBET | B6: Gaetan | C6: Classe JB | D6: 2
A7: BARROU | B7: Othman | C7: Classe 7 | D7: 3
A8: BAUDOUX | B8: Shana | C8: Classe MB | D8: 4
A9: BAURAIN | B9: Ludovic | C9: Classe FB | D9: 5
A10: BAUWENS | B10: Jimmy | C10: Classe PA | D10: 6
A11: BEAURY | B11: Conrad | C11: Classe PB | D11: 7
A12: BEHETSK | B12: Kelly | C12: Classe PC | D12: 8
A13: BEHETSP | B13: Pascal | C13: Classe FB | D13: 9
A14: BELLENS | B14: Manola | C14: Classe 5 | D14: 10
A15: BERTINOTTI | B15: Synthia | C15: Classe 4 | D15: 11
A16: BERTRANDB | B16: Brandon | C16: Classe FB | D16: 12
A17: BERTRANDd | B17: Daisy | C17: Classe PB | D17: 13
A18: BIZET | B18: Dylan | C18: Classe PB | D18: 14
A19: BOBOUCH | B19: Leila | C19: Classe 5 | D19: 15
A20: BOEMBEKE | B20: Emilie | C20: Classe MC | D20: 16
A21: BOSSU | B21: Océane | C21: Classe 5 | D21: 17
A22: BOUAOUDA | B22: Anass | C22: Classe PB | D22: 18
A23: BOUAROUROU | B23: Sofian | C23: Classe FB | D23: 19
A24: BOUAYACHE | B24: Nouheila | C24: Classe 2 | D24: 20
A25: BUYS | B25: Tom | C25: Classe 11 | D25: 21
A26: CAMBRON | B26: Sullivan | C26: Classe 8 | D26: 22
A27: CARBONNELLE | B27: Cheyenne | C27: Classe MB | D27: 23
A28: CHAVATTE | B28: Nicolas | C28: Classe PC | D28: 24
A29: CHOMEZ | B29: Logan | C29: Classe MC | D29: 25
A30: CLAESSENS | B30: Océane | C30: Classe PA | D30: 26
A31: COUILLARD | B31: Valentin | C31: Classe MA | D31: 27
A32: CWIKLA | B32: Morgan | C32: Classe MC | D32: 28
A33: DAMBROSIO | B33: Nadine | C33: Classe MC | D33: 29
A34: DAHMANI | B34: Abdelkrim | C34: Classe 4 | D34: 30
A35: DAMIEN | B35: Hélène | C35: Classe MC | D35: 31
A36: DASPREMONT | B36: Kimberley | C36: Classe MB | D36: 32
A37: DAU | B37: Qani | C37: Classe 2 | D37: 33
A38: DEBOCK | B38: Ophélie | C38: Classa 4 | D38: 34
A39: DEGEYTERE | B39: Emilie | C39: Classe PA | D39: 35
A40: DESANTOSMIGUEL | B40: Julian | C40: Classe 3 | D40: 36
A41: DEVLEESCHAUWER | B41: Manon | C41: Classe PC | D41: 37
A42: DEWEVER | B42: Bryan | C42: Classe PA | D42: 38
A43: DEBESSELLE | B43: Manon | C43: Classe MB | D43: 39
A44: DEGANDT | B44: Thomas | C44: Classe 10 | D44: 40
A45: DEGANDMJ | B45: Marry-Jhones | C45: Classe PA | D45: 41
A46: DEHBI | B46: Yassin | C46: Classe AA | D46: 42
A47: DEHOUX | B47: Ilona | C47: Classe 1 | D47: 43
A48: DELDUCA | B48: Juliano | C48: Classe AA | D48: 44
A49: DELFABBRO | B49: Savanna | C49: Classe 2 | D49: 45
A50: DELCROIX | B50: Gaëtan | C50: Classe JB | D50: 46
A51: DELIGNE | B51: Laurie | C51: Classe 5 | D51: 47
A52: DELMARCHE | B52: Etan | C52: Classe 3 | D52: 48
A53: DENIES | B53: Jason | C53: Classe 8 | D53: 49
A54: DENIS | B54: Bryan | C54: Classe 12 | D54: 50
A55: DENISTYQ | B55: Quentin | C55: Classe 10 | D55: 51
A56: DENISTYA | B56: Arthur | C56: Classe MC | D56: 52
A57: DETROGH | B57: Miky | C57: Classe JB | D57: 53
A58: DISANTO | B58: Anthony | C58: Classe AA | D58: 54
A59: DIKER | B59: Adem | C59: Classe JB | D59: 55
A60: DONCA | B60: Ionita Alex | C60: Classe 6 | D60: 56
A61: DRIESSENS | B61: Pierre | C61: Classe 3 | D61: 57
A62: DURANT | B62: Morgane | C62: Classe 11 | D62: 58
A63: DUVALA | B63: Anna | C63: Classe MA | D63: 59
A64: DUVALG | B64: Gabriel | C64: Classe FB | D64: 60
A65: ELYAMANI | B65: Billal | C65: Classe PC | D65: 61
A66: ERYIGITI | B66: Ilhan | C66: Classe 2 | D66: 62
A67: ERYIGITS | B67: Sinan | C67: Classe 11 | D67: 63
A68: FAIETAJ | B68: Jodie | C68: Classe JB | D68: 64
A69: FAKIR | B69: Yassin | C69: Classe 1 | D69: 65
A70: FALANGA | B70: Tony | C70: Classe 9 | D70: 66
A71: FARCI | B71: Jimmy | C71: Classe FB | D71: 67
A72: FAROOQ | B72: Ramish | C72: Classe 7 | D72: 68
A73: FERRI | B73: Vitoria | C73: Classe 5 | D73: 69
A74: FUMIERE | B74: Aurélie | C74: Classe 2 | D74: 70
A75: GEORGE | B75: Gwendal | C75: Classe 6 | D75: 71
A76: GHERDAOUI | B76: Ines | C76: Classe 4 | D76: 72
A77: GILLE | B77: Mickaël | C77: Classe FB | D77: 73
A78: GRETZERD | B78: Dylan | C78: Classe 6 | D78: 74
A79: GRETZERV | B79: Victoria | C79: Classe PA | D79: 75
A80: GUECIOEUR | B80: Hamza | C80: Classe PB | D80: 76
A81: HAINAUT | B81: Dylan | C81: Classe 4 | D81: 77
A82: HARVANEK | B82: Aaron | C82: Classe JB | D82: 78
A83: HECQUET | B83: Alicia | C83: Classe MC | D83: 79
A84: HEMBISE | B84: Vanessa | C84: Classe 11 | D84: 80
A85: HOUART | B85: Logan | C85: Classe 11 | D85: 81
A86: HUBLETG | B86: Giuseppe | C86: Classe PA | D86: 82
A87: HUBLETO | B87: Ornella | C87: Classe 2 | D87: 83
A88: HUYBRECHTS | B88: Antoine | C88: Classe 1 | D88: 84
A89: IBOMA | B89: Elie | C89: Classe 9 | D89: 85
A90: IBRAHIMOVIC | B90: Tarik | C90: Classe 4 | D90: 86
A91: IMPENSJamie | B91: Jamie | C91: Classe 11 | D91: 87
A92: IMPENSJason | B92: Jason | C92: Classe 3 | D92: 88
A93: ITERBEKE | B93: Obryan | C93: Classe PC | D93: 89
A94: JACOBS | B94: Jordy | C94: Classe JB | D94: 90
A95: JAMMES | B95: Maverick | C95: Classe AA | D95: 91
A96: JAQUBIAK | B96: Youri | C96: Classe 9 | D96: 92
A97: JEZIERSKI | B97: Marine | C97: Classe 1 | D97: 93
A98: JOCHMANS | B98: Emma | C98: Classe 9 | D98: 94
A99: KADRI | B99: Mohammed | C99: Classe 6 | D99: 95
A100: KONE | B100: Anthony | C100: Classe 8 | D100: 96
A101: KUYS | B101: Océane | C101: Classe MA | D101: 97
A102: LACROIXB | B102: Brandon | C102: Classe 7 | D102: 98
A103: LACROIXM | B103: Marina | C103: Classe PA | D103: 99
A104: LAMY | B104: Alexandre | C104: Classe 8 | D104: 100
A105: LARDINOIS | B105: Enola | C105: Classe MA | D105: 101
A106: LATLASSI | B106: Samia | C106: Classe 12 | D106: 102
A107: LESSIRE | B107: Océane | C107: Classe AA | D107: 103
A108: LOMBARDO | B108: Sébastien | C108: Classe 1 | D108: 104
A109: LORSE | B109: Vincent | C109: Classe JB | D109: 105
A110: MALFROIDT | B110: Laura | C110: Classe MC | D110: 106
A111: MANTEAU | B111: Christopher | C111: Classe FB | D111: 107
A112: MARECHALBRY | B112: Bryan | C112: Classe 7 | D112: 108
A113: MARECHALBRE | B113: Brendan | C113: Classe 6 | D113: 109
A114: MARGUERITE | B114: Laurent | C114: Classe 7 | D114: 110
A115: MARYF | B115: Fiona | C115: Classe 12 | D115: 111
A116: MARYG | B116: Gwendoline | C116: Classe MA | D116: 112
A117: MASSART | B117: Lorenzo | C117: Classe PC | D117: 113
A118: MASSON | B118: Noah | C118: Classe 10 | D118: 114
A119: MINNAERTA | B119: Alexandra | C119: Classe 4 | D119: 115
A120: MINNAERTC | B120: Cassandra | C120: Classe MA | D120: 116
A121: MINNAERTG | B121: Grégory | C121: Classe 8 | D121: 117
A122: MISEUR | B122: Thomas | C122: Classe JB | D122: 118
A123: MONSIEUR | B123: Manuel | C123: Classe FB | D123: 119
A124: MONTEMITRO | B124: Samuel | C124: Classe PC | D124: 120
A125: MORTELETTE | B125: Lucas | C125: Classe MC | D125: 121
A126: MOULIN | B126: Christopher | C126: Classe 6 | D126: 122
A127: MOYERSOON | B127: Laure | C127: Classe 5 | D127: 123
A128: NICAISE | B128: Bryan | C128: Classe MA | D128: 124
A129: OIKONOMAKIS | B129: Iosif | C129: Classe 3 | D129: 125
A130: OULADBENTAYED | B130: Nadir | C130: Classe 10 | D130: 126
A131: OULJIHATE | B131: Wassin | C131: Classe 12 | D131: 127
A132: OZMEN | B132: Furkan | C132: Classe 6 | D132: 128
A133: PAULUS | B133: Kévin | C133: Classe PC | D133: 129
A134: PAYEN | B134: Dorian | C134: Classe 12 | D134: 130
A135: PENSIS | B135: Loris | C135: Classe PA | D135: 131
A136: PERRONE | B136: Luigi | C136: Classe AA | D136: 132
A137: PIEDFORTG | B137: Gauthier | C137: Classe MA | D137: 133
A138: PIERRE | B138: Valentin | C138: Classe 9 | D138: 134
A139: PIERROT | B139: Fabrice | C139: Classe PB | D139: 135
A140: PONCIN | B140: Stéphanie | C140: Classe PB | D140: 136
A141: POTTEAU | B141: Noah | C141: Classe MC | D141: 137
A142: POUSSEUR | B142: Noah | C142: Classe 11 | D142: 138
A143: PRINCIVALLID | B143: Dylan | C143: Classe 6 | D143: 139
A144: PRINCIVALLIY | B144: Yohan | C144: Classe 8 | D144: 140
A145: RAFFAELE | B145: Alessia | C145: Classe MA | D145: 141
A146: RENDERS | B146: Benoît | C146: Classe 12 | D146: 142
A147: RINCHARD | B147: Esteban | C147: Classe AA | D147: 143
A148: SAGHROU | B148: Zakariya | C148: Classe 3 | D148: 144
A149: SAUTEUR | B149: Nolan | C149: Classe MB | D149: 145
A150: SAYE | B150: Gwendoline | C150: Classe MC | D150: 146
A151: SCHOBERT | B151: Noémie | C151: Classe 5 | D151: 147
A152: SERDAR | B152: Huda | C152: Classe 9 | D152: 148
A153: SIGISMONDI | B153: Lhoïk | C153: Classe 7 | D153: 149
A154: SISSOKO | B154: Djimeta | C154: Classe 10 | D154: 150
A155: SOUFFRIAU | B155: Jordy | C155: Classe 3 | D155: 151
A156: SPREUTELS | B156: Nicolas | C156: Classe 3 | D156: 152
A157: STEEGMANS | B157: Bryan | C157: Classe 7 | D157: 153
A158: STEVENS | B158: Rémy | C158: Classe JB | D158: 154
A159: TAMBOUR | B159: Samuel | C159: Classe MA | D159: 155
A160: TEMSAMANI | B160: Moad Nail | C160: Classe FB | D160: 156
A161: TERASSE | B161: Florian | C161: Classe MB | D161: 157
A162: TILMAN | B162: Leslie | C162: Classe 5 | D162: 158
A163: TYVAERT | B163: Kayrrigan | C163: Classe 12 | D163: 159
A164: VANDAELE | B164: Steven | C164: Classe 10 | D164: 160
A165: VANBELLINGHEN | B165: Adeline | C165: Classe MB | D165: 161
A166: VANDEPONTSELE | B166: Mélinda | C166: Classe 5 | D166: 162
A167: VANDENNOORGATE | B167: Loredana | C167: Classe 2 | D167: 163
A168: VANDERHAEGEN | B168: Tim | C168: Classe 1 | D168: 164
A169: VANHAELEWIJN | B169: Quentin | C169: Classe PC | D169: 165
A170: VANHUMBEECK | B170: Mickael | C170: Classe FB | D170: 166
A171: VINCITORIO | B171: Dorian | C171: Classe AA | D171: 167
A172: VOICU | B172: Ionut Cristian | C172: Classe 1 | D172: 168
A173: VULLO | B173: Massimo | C173: Classe 2 | D173: 169
A174: WATHY | B174: Scott | C174: Classe 11 | D174: 170
A175: WILLEMS | B175: Killian | C175: Classe 3 | D175: 171
A176: ZEROUALI | B176: Mohamed | C176: Classe 8 | D176: 172
A177: ZOULOUFOS | B177: Nicolas | C177: Classe 4 | D177: 173

Sheet Récapitulatif
A1: 18/19 | G1: total = report +recette -depenses
B3: Récapitulatif | L3: a rembourser de 16/17 | N3: 154.77
E4: =BARBET!E16 -> Situation fin décembre | H4: =BARBET!I39 -> Situation fin juin | K4: A RBSER | M4: A FACTURER | N4: ODR163/17 | O4: vérif L50 | P4: vérif L52
A5: NOM | B5: Prénom | C5: Classe | D5: report | E5: Recettes | F5: Dépenses | G5: Total | H5: Recettes | I5: Dépenses | J5: Total
A6: =' Liste élèves'!A5 -> AKKURT | B6: =' Liste élèves'!B5 -> Addin | C6: =' Liste élèves'!C5 -> Classe 10 | D6: =INDIRECT($A6&"!$B$8") -> 0
A7: =' Liste élèves'!A6 -> BARBET | B7: =' Liste élèves'!B6 -> Gaetan | C7: =' Liste élèves'!C6 -> Classe JB | D7: =INDIRECT($A7&"!$B$8") -> 37.5 | E7: =INDIRECT($A7&"!$F$23") -> 0 | F7: =INDIRECT($A7&"!$G$23") -> 0 | G7: =INDIRECT($A7&"!$H$23") -> 37.5 | H7: =INDIRECT($A7&"!$J$48") -> 0 | I7: =INDIRECT($A7&"!$K$48") -> 0 | J7: =INDIRECT($A7&"!$L$48") -> 37.5 | O7: =INDIRECT($A7&"!$L$50") -> 37.5 | P7: =INDIRECT($A7&"!$L$52") -> 37.5
A8: =' Liste élèves'!A7 -> BARROU | B8: =' Liste élèves'!B7 -> Othman | C8: =' Liste élèves'!C7 -> Classe 7 | D8: 0 | E8: 0 | F8: =INDIRECT($A8&"!$G$23") -> 0 | G8: =INDIRECT($A8&"!$H$23") -> 0 | H8: =INDIRECT($A8&"!$J$48") -> 0 | I8: =INDIRECT($A8&"!$K$48") -> 0 | J8: =INDIRECT($A8&"!$L$48") -> 0 | O8: =INDIRECT($A8&"!$L$50") -> 0 | P8: =INDIRECT($A8&"!$L$52") -> 0
A9: =' Liste élèves'!A8 -> BAUDOUX | B9: =' Liste élèves'!B8 -> Shana | C9: =' Liste élèves'!C8 -> Classe MB | D9: 0 | E9: 0 | F9: 0 | G9: 0 | H9: 0 | I9: 0 | J9: 0 | O9: 0 | P9: 0
A10: =' Liste élèves'!A9 -> BAURAIN | B10: =' Liste élèves'!B9 -> Ludovic | C10: =' Liste élèves'!C9 -> Classe FB | D10: 50.6 | E10: 0 | F10: 0 | G10: 50.6 | H10: 0 | I10: 0 | J10: 50.6 | O10: 50.6 | P10: 50.6
A11: =' Liste élèves'!A10 -> BAUWENS | B11: =' Liste élèves'!B10 -> Jimmy | C11: =' Liste élèves'!C10 -> Classe PA | D11: =INDIRECT($A11&"!$B$8") -> 0 | E11: 0 | F11: 0 | G11: 0 | H11: 0 | I11: 0 | J11: 0 | O11: 0 | P11: 0
A12: =' Liste élèves'!A11 -> BEAURY | B12: =' Liste élèves'!B11 -> Conrad | C12: =' Liste élèves'!C11 -> Classe PB | D12: 0 | E12: 0 | F12: 0 | G12: 0 | H12: 0 | I12: 0 | J12: 0 | O12: 0 | P12: 0
A13: =' Liste élèves'!A12 -> BEHETSK | B13: =' Liste élèves'!B12 -> Kelly | C13: =' Liste élèves'!C12 -> Classe PC | D13: 39 | E13: 0 | F13: 0 | G13: 39 | H13: 0 | I13: 0 | J13: 39 | O13: 39 | P13: 39
A14: =' Liste élèves'!A13 -> BEHETSP | B14: =' Liste élèves'!B13 -> Pascal | C14: =' Liste élèves'!C13 -> Classe FB | D14: 38 | E14: 0 | F14: 0 | G14: 38 | H14: 0 | I14: 0 | J14: 38 | O14: 38 | P14: 38
A15: =' Liste élèves'!A14 -> BELLENS | B15: =' Liste élèves'!B14 -> Manola | C15: =' Liste élèves'!C14 -> Classe 5 | D15: 0 | E15: 0 | F15: 0 | G15: 0 | H15: 0 | I15: 0 | J15: 0 | O15: 0 | P15: 0
A16: =' Liste élèves'!A15 -> BERTINOTTI | B16: =' Liste élèves'!B15 -> Synthia | C16: =' Liste élèves'!C15 -> Classe 4 | D16: 67 | E16: 0 | F16: 0 | G16: 67 | H16: 0 | I16: 0 | J16: 67 | O16: 67 | P16: 67
A17: =' Liste élèves'!A16 -> BERTRANDB | B17: =' Liste élèves'!B16 -> Brandon | C17: =' Liste élèves'!C16 -> Classe FB | D17: -12 | E17: 0 | F17: 0 | G17: -12 | H17: 0 | I17: 0 | J17: -12 | O17: -12 | P17: -12
A18: =' Liste élèves'!A17 -> BERTRANDd | B18: =' Liste élèves'!B17 -> Daisy | C18: =' Liste élèves'!C17 -> Classe PB | D18: -3 | E18: 0 | F18: 0 | G18: -3 | H18: 0 | I18: 0 | J18: -3 | O18: -3 | P18: -3
A19: =' Liste élèves'!A18 -> BIZET | B19: =' Liste élèves'!B18 -> Dylan | C19: =' Liste élèves'!C18 -> Classe PB | D19: -10.5 | E19: 0 | F19: 0 | G19: -10.5 | H19: 0 | I19: 0 | J19: -10.5 | O19: -10.5 | P19: -10.5
A20: =' Liste élèves'!A19 -> BOBOUCH | B20: =' Liste élèves'!B19 -> Leila | C20: =' Liste élèves'!C19 -> Classe 5 | D20: 18.03 | E20: 0 | F20: 0 | G20: 18.03 | H20: 0 | I20: 0 | J20: 18.03 | O20: 18.03 | P20: 18.03
A21: =' Liste élèves'!A20 -> BOEMBEKE | B21: =' Liste élèves'!B20 -> Emilie | C21: =' Liste élèves'!C20 -> Classe MC | D21: 51.6 | E21: 0 | F21: 0 | G21: 51.6 | H21: 0 | I21: 0 | J21: 51.6 | O21: 51.6 | P21: 51.6
A22: =' Liste élèves'!A21 -> BOSSU | B22: =' Liste élèves'!B21 -> Océane | C22: =' Liste élèves'!C21 -> Classe 5 | D22: 54.5 | E22: 0 | F22: 0 | G22: 54.5 | H22: 0 | I22: 0 | J22: 54.5 | O22: 54.5 | P22: 54.5
A23: =' Liste élèves'!A22 -> BOUAOUDA | B23: =' Liste élèves'!B22 -> Anass | C23: =' Liste élèves'!C22 -> Classe PB | D23: 0.5 | E23: 0 | F23: 0 | G23: 0.5 | H23: 0 | I23: 0 | J23: 0.5 | O23: 0.5 | P23: 0.5
A24: =' Liste élèves'!A23 -> BOUAROUROU | B24: =' Liste élèves'!B23 -> Sofian | C24: =' Liste élèves'!C23 -> Classe FB | D24: 23 | E24: 0 | F24: 0 | G24: 23 | H24: 0 | I24: 0 | J24: 23 | O24: 23 | P24: 23
A25: =' Liste élèves'!A24 -> BOUAYACHE | B25: =' Liste élèves'!B24 -> Nouheila | C25: =' Liste élèves'!C24 -> Classe 2 | D25: 0 | E25: 0 | F25: 0 | G25: 0 | H25: 0 | I25: 0 | J25: 0 | O25: 0 | P25: 0
A26: =' Liste élèves'!A25 -> BUYS | B26: =' Liste élèves'!B25 -> Tom | C26: =' Liste élèves'!C25 -> Classe 11 | D26: 72 | E26: 0 | F26: 0 | G26: 72 | H26: 0 | I26: 0 | J26: 72 | O26: 72 | P26: 72
A27: =' Liste élèves'!A26 -> CAMBRON | B27: =' Liste élèves'!B26 -> Sullivan | C27: =' Liste élèves'!C26 -> Classe 8 | D27: -6 | E27: 0 | F27: 0 | G27: -6 | H27: 0 | I27: 0 | J27: -6 | O27: -6 | P27: -6
A28: =' Liste élèves'!A27 -> CARBONNELLE | B28: =' Liste élèves'!B27 -> Cheyenne | C28: =' Liste élèves'!C27 -> Classe MB | D28: 39.5 | E28: 0 | F28: 0 | G28: 39.5 | H28: 0 | I28: 0 | J28: 39.5 | O28: 39.5 | P28: 39.5
A29: =' Liste élèves'!A28 -> CHAVATTE | B29: =' Liste élèves'!B28 -> Nicolas | C29: =' Liste élèves'!C28 -> Classe PC | D29: 36 | E29: 0 | F29: 0 | G29: 36 | H29: 0 | I29: 0 | J29: 36 | O29: 36 | P29: 36
A30: =' Liste élèves'!A29 -> CHOMEZ | B30: =' Liste élèves'!B29 -> Logan | C30: =' Liste élèves'!C29 -> Classe MC | D30: 55 | E30: 0 | F30: 0 | G30: 55 | H30: 0 | I30: 0 | J30: 55 | O30: 55 | P30: 55
A31: =' Liste élèves'!A30 -> CLAESSENS | B31: =' Liste élèves'!B30 -> Océane | C31: =' Liste élèves'!C30 -> Classe PA | D31: 37.5 | E31: 0 | F31: 0 | G31: 37.5 | H31: 0 | I31: 0 | J31: 37.5 | O31: 37.5 | P31: 37.5
A32: =' Liste élèves'!A31 -> COUILLARD | B32: =' Liste élèves'!B31 -> Valentin | C32: =' Liste élèves'!C31 -> Classe MA | D32: 37.5 | E32: 0 | F32: 0 | G32: 37.5 | H32: 0 | I32: 0 | J32: 37.5 | O32: 37.5 | P32: 37.5
A33: =' Liste élèves'!A32 -> CWIKLA | B33: =' Liste élèves'!B32 -> Morgan | C33: =' Liste élèves'!C32 -> Classe MC | D33: 61.06 | E33: 0 | F33: 0 | G33: 61.06 | H33: 0 | I33: 0 | J33: 61.06 | O33: 61.06 | P33: 61.06
A34: =' Liste élèves'!A33 -> DAMBROSIO | B34: =' Liste élèves'!B33 -> Nadine | C34: =' Liste élèves'!C33 -> Classe MC | D34: 128.5 | E34: 0 | F34: =INDIRECT($A34&"!$G$23") -> 0 | G34: 128.5 | H34: 0 | I34: 0 | J34: 128.5 | O34: 128.5 | P34: 128.5
A35: =' Liste élèves'!A34 -> DAHMANI | B35: =' Liste élèves'!B34 -> Abdelkrim | C35: =' Liste élèves'!C34 -> Classe 4 | D35: 40.7 | E35: 0 | F35: 0 | G35: 40.7 | H35: 0 | I35: 0 | J35: 40.7 | O35: 40.7 | P35: 40.7
A36: =' Liste élèves'!A35 -> DAMIEN | B36: =' Liste élèves'!B35 -> Hélène | C36: =' Liste élèves'!C35 -> Classe MC | D36: 43.7 | E36: 0 | F36: 0 | G36: 43.7 | H36: 0 | I36: 0 | J36: 43.7 | O36: 43.7 | P36: 43.7
A37: =' Liste élèves'!A36 -> DASPREMONT | B37: =' Liste élèves'!B36 -> Kimberley | C37: =' Liste élèves'!C36 -> Classe MB | D37: 36 | E37: 0 | F37: 0 | G37: 36 | H37: 0 | I37: 0 | J37: 36 | O37: 36 | P37: 36
A38: =' Liste élèves'!A37 -> DAU | B38: =' Liste élèves'!B37 -> Qani | C38: =' Liste élèves'!C37 -> Classe 2 | D38: 0 | E38: 0 | F38: 0 | G38: 0 | H38: 0 | I38: 0 | J38: 0 | O38: 0 | P38: 0
A39: =' Liste élèves'!A38 -> DEBOCK | B39: =' Liste élèves'!B38 -> Ophélie | C39: =' Liste élèves'!C38 -> Classa 4 | D39: 0 | E39: 0 | F39: 0 | G39: 0 | H39: 0 | I39: 0 | J39: 0 | O39: 0 | P39: 0
A40: =' Liste élèves'!A39 -> DEGEYTERE | B40: =' Liste élèves'!B39 -> Emilie | C40: =' Liste élèves'!C39 -> Classe PA | D40: 0 | E40: 0 | F40: 0 | G40: 0 | H40: 0 | I40: 0 | J40: 0 | O40: 0 | P40: 0
A41: =' Liste élèves'!A40 -> DESANTOSMIGUEL | B41: =' Liste élèves'!B40 -> Julian | C41: =' Liste élèves'!C40 -> Classe 3 | D41: 38 | E41: 0 | F41: 0 | G41: 38 | H41: 0 | I41: 0 | J41: 38 | O41: 38 | P41: 38
A42: =' Liste élèves'!A41 -> DEVLEESCHAUWER | B42: =' Liste élèves'!B41 -> Manon | C42: =' Liste élèves'!C41 -> Classe PC | D42: 55.5 | E42: 0 | F42: 0 | G42: 55.5 | H42: 0 | I42: 0 | J42: 55.5 | O42: 55.5 | P42: 55.5
A43: =' Liste élèves'!A42 -> DEWEVER | B43: =' Liste élèves'!B42 -> Bryan | C43: =' Liste élèves'!C42 -> Classe PA | D43: 0 | E43: 0 | F43: 0 | G43: 0 | H43: 0 | I43: 0 | J43: 0 | O43: 0 | P43: 0
A44: =' Liste élèves'!A43 -> DEBESSELLE | B44: =' Liste élèves'!B43 -> Manon | C44: =' Liste élèves'!C43 -> Classe MB | D44: -2.5 | E44: 0 | F44: 0 | G44: -2.5 | H44: 0 | I44: 0 | J44: -2.5 | O44: -2.5 | P44: -2.5
A45: =' Liste élèves'!A44 -> DEGANDT | B45: =' Liste élèves'!B44 -> Thomas | C45: =' Liste élèves'!C44 -> Classe 10 | D45: -49.1 | E45: 0 | F45: 0 | G45: -49.1 | H45: 0 | I45: 0 | J45: -49.1 | O45: -49.1 | P45: -49.1
A46: =' Liste élèves'!A45 -> DEGANDMJ | B46: =' Liste élèves'!B45 -> Marry-Jhones | C46: =' Liste élèves'!C45 -> Classe PA | D46: 0 | E46: 0 | F46: 0 | G46: 0 | H46: 0 | I46: 0 | J46: 0 | O46: 0 | P46: 0
A47: =' Liste élèves'!A46 -> DEHBI | B47: =' Liste élèves'!B46 -> Yassin | C47: =' Liste élèves'!C46 -> Classe AA | D47: 0 | E47: 0 | F47: 0 | G47: 0 | H47: 0 | I47: 0 | J47: 0 | O47: 0 | P47: 0
A48: =' Liste élèves'!A47 -> DEHOUX | B48: =' Liste élèves'!B47 -> Ilona | C48: =' Liste élèves'!C47 -> Classe 1 | D48: 48.7 | E48: 0 | F48: 0 | G48: 48.7 | H48: 0 | I48: 0 | J48: 48.7 | O48: 48.7 | P48: 48.7
A49: =' Liste élèves'!A48 -> DELDUCA | B49: =' Liste élèves'!B48 -> Juliano | C49: =' Liste élèves'!C48 -> Classe AA | D49: 79.55 | E49: 0 | F49: 0 | G49: 79.55 | H49: 0 | I49: 0 | J49: 79.55 | O49: 79.55 | P49: 79.55
A50: =' Liste élèves'!A49 -> DELFABBRO | B50: =' Liste élèves'!B49 -> Savanna | C50: =' Liste élèves'!C49 -> Classe 2 | D50: 56 | E50: 0 | F50: 0 | G50: 56 | H50: 0 | I50: 0 | J50: 56 | O50: 56 | P50: 56
A51: =' Liste élèves'!A50 -> DELCROIX | B51: =' Liste élèves'!B50 -> Gaëtan | C51: =' Liste élèves'!C50 -> Classe JB | D51: 43.5 | E51: 0 | F51: 0 | G51: 43.5 | H51: 0 | I51: 0 | J51: 43.5 | O51: 43.5 | P51: 43.5
A52: =' Liste élèves'!A51 -> DELIGNE | B52: =' Liste élèves'!B51 -> Laurie | C52: =' Liste élèves'!C51 -> Classe 5 | D52: 39.52 | E52: 0 | F52: 0 | G52: 39.52 | H52: 0 | I52: 0 | J52: 39.52 | O52: 39.52 | P52: 39.52
A53: =' Liste élèves'!A52 -> DELMARCHE | B53: =' Liste élèves'!B52 -> Etan | C53: =' Liste élèves'!C52 -> Classe 3 | D53: 52.03 | E53: 0 | F53: 0 | G53: 52.03 | H53: 0 | I53: 0 | J53: 52.03 | O53: 52.03 | P53: 52.03
A54: =' Liste élèves'!A53 -> DENIES | B54: =' Liste élèves'!B53 -> Jason | C54: =' Liste élèves'!C53 -> Classe 8 | D54: 30.77 | E54: 0 | F54: 0 | G54: 30.77 | H54: 0 | I54: 0 | J54: 30.77 | O54: 30.77 | P54: 30.77
A55: =' Liste élèves'!A54 -> DENIS | B55: =' Liste élèves'!B54 -> Bryan | C55: =' Liste élèves'!C54 -> Classe 12 | D55: 0 | E55: 0 | F55: 0 | G55: 0 | H55: 0 | I55: 0 | J55: 0 | O55: 0 | P55: 0
A56: =' Liste élèves'!A55 -> DENISTYQ | B56: =' Liste élèves'!B55 -> Quentin | C56: =' Liste élèves'!C55 -> Classe 10 | D56: 27.9 | E56: 0 | F56: 0 | G56: 27.9 | H56: 0 | I56: 0 | J56: 27.9 | O56: 27.9 | P56: 27.9
A57: =' Liste élèves'!A56 -> DENISTYA | B57: =' Liste élèves'!B56 -> Arthur | C57: =' Liste élèves'!C56 -> Classe MC | D57: 43.1 | E57: 0 | F57: 0 | G57: 43.1 | H57: 0 | I57: 0 | J57: 43.1 | O57: 43.1 | P57: 43.1
A58: =' Liste élèves'!A57 -> DETROGH | B58: =' Liste élèves'!B57 -> Miky | C58: =' Liste élèves'!C57 -> Classe JB | D58: 42 | E58: 0 | F58: 0 | G58: 42 | H58: 0 | I58: 0 | J58: 42 | O58: 42 | P58: 42
A59: =' Liste élèves'!A58 -> DISANTO | B59: =' Liste élèves'!B58 -> Anthony | C59: =' Liste élèves'!C58 -> Classe AA | D59: 52.5 | E59: 0 | F59: 0 | G59: 52.5 | H59: 0 | I59: 0 | J59: 52.5 | O59: 52.5 | P59: 52.5
A60: =' Liste élèves'!A59 -> DIKER | B60: =' Liste élèves'!B59 -> Adem | C60: =' Liste élèves'!C59 -> Classe JB | D60: 40.5 | E60: 0 | F60: 0 | G60: 40.5 | H60: 0 | I60: 0 | J60: 40.5 | O60: 40.5 | P60: 40.5
A61: =' Liste élèves'!A60 -> DONCA | B61: =' Liste élèves'!B60 -> Ionita Alex | C61: =' Liste élèves'!C60 -> Classe 6 | D61: 41.93 | E61: =INDIRECT($A61&"!$F$23") -> 0 | F61: =INDIRECT($A61&"!$G$23") -> 0 | G61: =INDIRECT($A61&"!$H$23") -> 41.93 | H61: =INDIRECT($A61&"!$J$48") -> 0 | I61: =INDIRECT($A61&"!$K$48") -> 0 | J61: =INDIRECT($A61&"!$L$48") -> 41.93 | O61: =INDIRECT($A61&"!$L$50") -> 41.93 | P61: =INDIRECT($A61&"!$L$52") -> 41.93
A62: =' Liste élèves'!A61 -> DRIESSENS | B62: =' Liste élèves'!B61 -> Pierre | C62: =' Liste élèves'!C61 -> Classe 3 | D62: 60 | E62: 0 | F62: 0 | G62: 60 | H62: 0 | I62: 0 | J62: 60 | O62: 60 | P62: 60
A63: =' Liste élèves'!A62 -> DURANT | B63: =' Liste élèves'!B62 -> Morgane | C63: =' Liste élèves'!C62 -> Classe 11 | D63: 56 | E63: 0 | F63: 0 | G63: 56 | H63: 0 | I63: 0 | J63: 56 | O63: 56 | P63: 56
A64: =' Liste élèves'!A63 -> DUVALA | B64: =' Liste élèves'!B63 -> Anna | C64: =' Liste élèves'!C63 -> Classe MA | D64: 40.24 | E64: 0 | F64: 0 | G64: 40.24 | H64: 0 | I64: 0 | J64: 40.24 | O64: 40.24 | P64: 40.24
A65: =' Liste élèves'!A64 -> DUVALG | B65: =' Liste élèves'!B64 -> Gabriel | C65: =' Liste élèves'!C64 -> Classe FB | D65: 45.5 | E65: 0 | F65: 0 | G65: 45.5 | H65: 0 | I65: 0 | J65: 45.5 | O65: 45.5 | P65: 45.5
A66: =' Liste élèves'!A65 -> ELYAMANI | B66: =' Liste élèves'!B65 -> Billal | C66: =' Liste élèves'!C65 -> Classe PC | D66: 74 | E66: 0 | F66: 0 | G66: 74 | H66: 0 | I66: 0 | J66: 74 | O66: 74 | P66: 74
A67: =' Liste élèves'!A66 -> ERYIGITI | B67: =' Liste élèves'!B66 -> Ilhan | C67: =' Liste élèves'!C66 -> Classe 2 | D67: 55.5 | E67: 0 | F67: 0 | G67: 55.5 | H67: 0 | I67: 0 | J67: 55.5 | O67: 55.5 | P67: 55.5
A68: =' Liste élèves'!A67 -> ERYIGITS | B68: =' Liste élèves'!B67 -> Sinan | C68: =' Liste élèves'!C67 -> Classe 11 | D68: -6 | E68: 0 | F68: 0 | G68: -6 | H68: 0 | I68: 0 | J68: -6 | O68: -6 | P68: -6
A69: =' Liste élèves'!A68 -> FAIETAJ | B69: =' Liste élèves'!B68 -> Jodie | C69: =' Liste élèves'!C68 -> Classe JB | D69: 29.13 | E69: 0 | F69: 0 | G69: 29.13 | H69: 0 | I69: 0 | J69: 29.13 | O69: 29.13 | P69: 29.13
A70: =' Liste élèves'!A69 -> FAKIR | B70: =' Liste élèves'!B69 -> Yassin | C70: =' Liste élèves'!C69 -> Classe 1 | D70: 0.52 | E70: 0 | F70: 0 | G70: 0.52 | H70: 0 | I70: 0 | J70: 0.52 | O70: 0.52 | P70: 0.52
A71: =' Liste élèves'!A70 -> FALANGA | B71: =' Liste élèves'!B70 -> Tony | C71: =' Liste élèves'!C70 -> Classe 9 | D71: =INDIRECT($A71&"!$B$8") -> 56 | E71: 0 | F71: 0 | G71: 56 | H71: 0 | I71: 0 | J71: 56 | O71: 56 | P71: 56
A72: =' Liste élèves'!A71 -> FARCI | B72: =' Liste élèves'!B71 -> Jimmy | C72: =' Liste élèves'!C71 -> Classe FB | D72: 51.5 | E72: 0 | F72: 0 | G72: 51.5 | H72: 0 | I72: 0 | J72: 51.5 | O72: 51.5 | P72: 51.5
A73: =' Liste élèves'!A72 -> FAROOQ | B73: =' Liste élèves'!B72 -> Ramish | C73: =' Liste élèves'!C72 -> Classe 7 | D73: 62.1 | E73: 0 | F73: 0 | G73: 62.1 | H73: 0 | I73: 0 | J73: 62.1 | O73: 62.1 | P73: 62.1
A74: =' Liste élèves'!A73 -> FERRI | B74: =' Liste élèves'!B73 -> Vitoria | C74: =' Liste élèves'!C73 -> Classe 5 | D74: 23.4 | E74: 0 | F74: 0 | G74: 23.4 | H74: 0 | I74: 0 | J74: 23.4 | O74: 23.4 | P74: 23.4
A75: =' Liste élèves'!A74 -> FUMIERE | B75: =' Liste élèves'!B74 -> Aurélie | C75: =' Liste élèves'!C74 -> Classe 2 | D75: 47.5 | E75: 0 | F75: 0 | G75: 47.5 | H75: 0 | I75: 0 | J75: 47.5 | O75: 47.5 | P75: 47.5
A76: =' Liste élèves'!A75 -> GEORGE | B76: =' Liste élèves'!B75 -> Gwendal | C76: =' Liste élèves'!C75 -> Classe 6 | D76: 58.53 | E76: 0 | F76: 0 | G76: 58.53 | H76: 0 | I76: 0 | J76: 58.53 | O76: 58.53 | P76: 58.53
A77: =' Liste élèves'!A76 -> GHERDAOUI | B77: =' Liste élèves'!B76 -> Ines | C77: =' Liste élèves'!C76 -> Classe 4 | D77: 38.38 | E77: 0 | F77: 0 | G77: 38.38 | H77: 0 | I77: 0 | J77: 38.38 | M77: =J77 -> 38.38 | O77: 38.38 | P77: 38.38
A78: =' Liste élèves'!A77 -> GILLE | B78: =' Liste élèves'!B77 -> Mickaël | C78: =' Liste élèves'!C77 -> Classe FB | D78: 45.5 | E78: 0 | F78: 0 | G78: 45.5 | H78: 0 | I78: 0 | J78: 45.5 | O78: 45.5 | P78: 45.5
A79: =' Liste élèves'!A78 -> GRETZERD | B79: =' Liste élèves'!B78 -> Dylan | C79: =' Liste élèves'!C78 -> Classe 6 | D79: -2.5 | E79: 0 | F79: 0 | G79: -2.5 | H79: 0 | I79: 0 | J79: -2.5 | O79: -2.5 | P79: -2.5
A80: =' Liste élèves'!A79 -> GRETZERV | B80: =' Liste élèves'!B79 -> Victoria | C80: =' Liste élèves'!C79 -> Classe PA | D80: -10.5 | E80: 0 | F80: 0 | G80: -10.5 | H80: 0 | I80: 0 | J80: -10.5 | O80: -10.5 | P80: -10.5
A81: =' Liste élèves'!A80 -> GUECIOEUR | B81: =' Liste élèves'!B80 -> Hamza | C81: =' Liste élèves'!C80 -> Classe PB | D81: 0 | E81: 0 | F81: 0 | G81: 0 | H81: 0 | I81: 0 | J81: 0 | O81: 0 | P81: 0
A82: =' Liste élèves'!A81 -> HAINAUT | B82: =' Liste élèves'!B81 -> Dylan | C82: =' Liste élèves'!C81 -> Classe 4 | D82: 38 | E82: 0 | F82: 0 | G82: 38 | H82: 0 | I82: 0 | J82: 38 | O82: 38 | P82: 38
A83: =' Liste élèves'!A82 -> HARVANEK | B83: =' Liste élèves'!B82 -> Aaron | C83: =' Liste élèves'!C82 -> Classe JB | D83: 0.55 | E83: 0 | F83: 0 | G83: 0.55 | H83: 0 | I83: 0 | J83: 0.55 | O83: 0.55 | P83: 0.55
A84: =' Liste élèves'!A83 -> HECQUET | B84: =' Liste élèves'!B83 -> Alicia | C84: =' Liste élèves'!C83 -> Classe MC | D84: 41.02 | E84: 0 | F84: 0 | G84: 41.02 | H84: 0 | I84: 0 | J84: 41.02 | O84: 41.02 | P84: 41.02
A85: =' Liste élèves'!A84 -> HEMBISE | B85: =' Liste élèves'!B84 -> Vanessa | C85: =' Liste élèves'!C84 -> Classe 11 | D85: 60 | E85: 0 | F85: 0 | G85: 60 | H85: 0 | I85: 0 | J85: 60 | O85: 60 | P85: 60
A86: =' Liste élèves'!A85 -> HOUART | B86: =' Liste élèves'!B85 -> Logan | C86: =' Liste élèves'!C85 -> Classe 11 | D86: 48.71 | E86: 0 | F86: 0 | G86: 48.71 | H86: 0 | I86: 0 | J86: 48.71 | O86: 48.71 | P86: 48.71
A87: =' Liste élèves'!A86 -> HUBLETG | B87: =' Liste élèves'!B86 -> Giuseppe | C87: =' Liste élèves'!C86 -> Classe PA | D87: 0 | E87: 0 | F87: 0 | G87: 0 | H87: 0 | I87: 0 | J87: 0 | O87: 0 | P87: 0
A88: =' Liste élèves'!A87 -> HUBLETO | B88: =' Liste élèves'!B87 -> Ornella | C88: =' Liste élèves'!C87 -> Classe 2 | D88: 36.42 | E88: 0 | F88: 0 | G88: 36.42 | H88: 0 | I88: 0 | J88: 36.42 | O88: 36.42 | P88: 36.42
A89: =' Liste élèves'!A88 -> HUYBRECHTS | B89: =' Liste élèves'!B88 -> Antoine | C89: =' Liste élèves'!C88 -> Classe 1 | D89: 25.32 | E89: 0 | F89: 0 | G89: 25.32 | H89: 0 | I89: 0 | J89: 25.32 | O89: 25.32 | P89: 25.32
A90: =' Liste élèves'!A89 -> IBOMA | B90: =' Liste élèves'!B89 -> Elie | C90: =' Liste élèves'!C89 -> Classe 9 | D90: -32.8 | E90: 0 | F90: 0 | G90: -32.8 | H90: 0 | I90: 0 | J90: -32.8 | O90: -32.8 | P90: -32.8
A91: =' Liste élèves'!A90 -> IBRAHIMOVIC | B91: =' Liste élèves'!B90 -> Tarik | C91: =' Liste élèves'!C90 -> Classe 4 | D91: 43.03 | E91: 0 | F91: 0 | G91: 43.03 | H91: 0 | I91: 0 | J91: 43.03 | O91: 43.03 | P91: 43.03
A92: =' Liste élèves'!A91 -> IMPENSJamie | B92: =' Liste élèves'!B91 -> Jamie | C92: =' Liste élèves'!C91 -> Classe 11 | D92: 54.46 | E92: 0 | F92: 0 | G92: 54.46 | H92: 0 | I92: 0 | J92: 54.46 | O92: 54.46 | P92: 54.46
A93: =' Liste élèves'!A92 -> IMPENSJason | B93: =' Liste élèves'!B92 -> Jason | C93: =' Liste élèves'!C92 -> Classe 3 | D93: 38 | E93: 0 | F93: 0 | G93: 38 | H93: 0 | I93: 0 | J93: 38 | O93: 38 | P93: 38
A94: =' Liste élèves'!A93 -> ITERBEKE | B94: =' Liste élèves'!B93 -> Obryan | C94: =' Liste élèves'!C93 -> Classe PC | D94: 81 | E94: 0 | F94: 0 | G94: 81 | H94: 0 | I94: 0 | J94: 81 | O94: 81 | P94: 81
A95: =' Liste élèves'!A94 -> JACOBS | B95: =' Liste élèves'!B94 -> Jordy | C95: =' Liste élèves'!C94 -> Classe JB | D95: -1.5 | E95: 0 | F95: 0 | G95: -1.5 | H95: 0 | I95: 0 | J95: -1.5 | O95: -1.5 | P95: -1.5
A96: =' Liste élèves'!A95 -> JAMMES | B96: =' Liste élèves'!B95 -> Maverick | C96: =' Liste élèves'!C95 -> Classe AA | D96: 55.5 | E96: 0 | F96: 0 | G96: 55.5 | H96: 0 | I96: 0 | J96: 55.5 | O96: 55.5 | P96: 55.5
A97: =' Liste élèves'!A96 -> JAQUBIAK | B97: =' Liste élèves'!B96 -> Youri | C97: =' Liste élèves'!C96 -> Classe 9 | D97: 32.3 | E97: 0 | F97: 0 | G97: 32.3 | H97: 0 | I97: 0 | J97: 32.3 | O97: 32.3 | P97: 32.3
A98: =' Liste élèves'!A97 -> JEZIERSKI | B98: =' Liste élèves'!B97 -> Marine | C98: =' Liste élèves'!C97 -> Classe 1 | D98: 0 | E98: 0 | F98: 0 | G98: 0 | H98: 0 | I98: 0 | J98: 0 | O98: 0 | P98: 0
A99: =' Liste élèves'!A98 -> JOCHMANS | B99: =' Liste élèves'!B98 -> Emma | C99: =' Liste élèves'!C98 -> Classe 9 | D99: 0 | E99: 0 | F99: 0 | G99: 0 | H99: 0 | I99: 0 | J99: 0 | O99: 0 | P99: 0
A100: =' Liste élèves'!A99 -> KADRI | B100: =' Liste élèves'!B99 -> Mohammed | C100: =' Liste élèves'!C99 -> Classe 6 | D100: 28.5 | E100: 0 | F100: 0 | G100: 28.5 | H100: 0 | I100: 0 | J100: 28.5 | O100: 28.5 | P100: 28.5
A101: =' Liste élèves'!A100 -> KONE | B101: =' Liste élèves'!B100 -> Anthony | C101: =' Liste élèves'!C100 -> Classe 8 | D101: 30.14 | E101: 0 | F101: 0 | G101: 30.14 | H101: 0 | I101: 0 | J101: 30.14 | O101: 30.14 | P101: 30.14
A102: =' Liste élèves'!A101 -> KUYS | B102: =' Liste élèves'!B101 -> Océane | C102: =' Liste élèves'!C101 -> Classe MA | D102: 43.5 | E102: 0 | F102: 0 | G102: 43.5 | H102: 0 | I102: 0 | J102: 43.5 | O102: 43.5 | P102: 43.5
A103: =' Liste élèves'!A102 -> LACROIXB | B103: =' Liste élèves'!B102 -> Brandon | C103: =' Liste élèves'!C102 -> Classe 7 | D103: 56.9 | E103: 0 | F103: 0 | G103: 56.9 | H103: 0 | I103: 0 | J103: 56.9 | O103: 56.9 | P103: 56.9
A104: =' Liste élèves'!A103 -> LACROIXM | B104: =' Liste élèves'!B103 -> Marina | C104: =' Liste élèves'!C103 -> Classe PA | D104: -7.5 | E104: 0 | F104: 0 | G104: -7.5 | H104: 0 | I104: 0 | J104: -7.5 | O104: -7.5 | P104: -7.5
A105: =' Liste élèves'!A104 -> LAMY | B105: =' Liste élèves'!B104 -> Alexandre | C105: =' Liste élèves'!C104 -> Classe 8 | D105: 19.01 | E105: 0 | F105: 0 | G105: 19.01 | H105: 0 | I105: 0 | J105: 19.01 | O105: 19.01 | P105: 19.01
A106: =' Liste élèves'!A105 -> LARDINOIS | B106: =' Liste élèves'!B105 -> Enola | C106: =' Liste élèves'!C105 -> Classe MA | D106: 0.5 | E106: 0 | F106: 0 | G106: 0.5 | H106: 0 | I106: 0 | J106: 0.5 | O106: 0.5 | P106: 0.5
A107: =' Liste élèves'!A106 -> LATLASSI | B107: =' Liste élèves'!B106 -> Samia | C107: =' Liste élèves'!C106 -> Classe 12 | D107: 0 | E107: 0 | F107: 0 | G107: 0 | H107: 0 | I107: 0 | J107: 0 | O107: 0 | P107: 0
A108: =' Liste élèves'!A107 -> LESSIRE | B108: =' Liste élèves'!B107 -> Océane | C108: =' Liste élèves'!C107 -> Classe AA | D108: 40 | E108: 0 | F108: 0 | G108: 40 | H108: 0 | I108: 0 | J108: 40 | O108: 40 | P108: 40
A109: =' Liste élèves'!A108 -> LOMBARDO | B109: =' Liste élèves'!B108 -> Sébastien | C109: =' Liste élèves'!C108 -> Classe 1 | D109: 31.72 | E109: =INDIRECT($A109&"!$F$23") -> 0 | F109: =INDIRECT($A109&"!$G$23") -> 0 | G109: =INDIRECT($A109&"!$H$23") -> 31.72 | H109: =INDIRECT($A109&"!$J$48") -> 0 | I109: =INDIRECT($A109&"!$K$48") -> 0 | J109: =INDIRECT($A109&"!$L$48") -> 31.72 | O109: =INDIRECT($A109&"!$L$50") -> 31.72 | P109: =INDIRECT($A109&"!$L$52") -> 31.72
A110: =' Liste élèves'!A109 -> LORSE | B110: =' Liste élèves'!B109 -> Vincent | C110: =' Liste élèves'!C109 -> Classe JB | D110: 32.35 | E110: 0 | F110: 0 | G110: 32.35 | H110: 0 | I110: 0 | J110: 32.35 | O110: 32.35 | P110: 32.35
A111: =' Liste élèves'!A110 -> MALFROIDT | B111: =' Liste élèves'!B110 -> Laura | C111: =' Liste élèves'!C110 -> Classe MC | D111: -1.8 | E111: 0 | F111: 0 | G111: -1.8 | H111: 0 | I111: 0 | J111: -1.8 | O111: -1.8 | P111: -1.8
A112: =' Liste élèves'!A111 -> MANTEAU | B112: =' Liste élèves'!B111 -> Christopher | C112: =' Liste élèves'!C111 -> Classe FB | D112: 39 | E112: 0 | F112: 0 | G112: 39 | H112: 0 | I112: 0 | J112: 39 | O112: 39 | P112: 39
A113: =' Liste élèves'!A112 -> MARECHALBRY | B113: =' Liste élèves'!B112 -> Bryan | C113: =' Liste élèves'!C112 -> Classe 7 | D113: 57.2 | E113: 0 | F113: 0 | G113: 57.2 | H113: 0 | I113: 0 | J113: 57.2 | O113: 57.2 | P113: 57.2
A114: =' Liste élèves'!A113 -> MARECHALBRE | B114: =' Liste élèves'!B113 -> Brendan | C114: =' Liste élèves'!C113 -> Classe 6 | D114: 59.53 | E114: 0 | F114: 0 | G114: 59.53 | H114: 0 | I114: 0 | J114: 59.53 | O114: 59.53 | P114: 59.53
A115: =' Liste élèves'!A114 -> MARGUERITE | B115: =' Liste élèves'!B114 -> Laurent | C115: =' Liste élèves'!C114 -> Classe 7 | D115: 31.2 | E115: 0 | F115: 0 | G115: 31.2 | H115: 0 | I115: 0 | J115: 31.2 | O115: 31.2 | P115: 31.2
A116: =' Liste élèves'!A115 -> MARYF | B116: =' Liste élèves'!B115 -> Fiona | C116: =' Liste élèves'!C115 -> Classe 12 | D116: 0 | E116: 0 | F116: 0 | G116: 0 | H116: 0 | I116: 0 | J116: 0 | O116: 0 | P116: 0
A117: =' Liste élèves'!A116 -> MARYG | B117: =' Liste élèves'!B116 -> Gwendoline | C117: =' Liste élèves'!C116 -> Classe MA | D117: -3 | E117: 0 | F117: 0 | G117: -3 | H117: 0 | I117: 0 | J117: -3 | O117: -3 | P117: -3
A118: =' Liste élèves'!A117 -> MASSART | B118: =' Liste élèves'!B117 -> Lorenzo | C118: =' Liste élèves'!C117 -> Classe PC | D118: -6 | E118: 0 | F118: 0 | G118: -6 | H118: 0 | I118: 0 | J118: -6 | O118: -6 | P118: -6
A119: =' Liste élèves'!A118 -> MASSON | B119: =' Liste élèves'!B118 -> Noah | C119: =' Liste élèves'!C118 -> Classe 10 | D119: 33.9 | E119: 0 | F119: 0 | G119: 33.9 | H119: 0 | I119: 0 | J119: 33.9 | O119: 33.9 | P119: 33.9
A120: =' Liste élèves'!A119 -> MINNAERTA | B120: =' Liste élèves'!B119 -> Alexandra | C120: =' Liste élèves'!C119 -> Classe 4 | D120: 45.5 | E120: 0 | F120: 0 | G120: 45.5 | H120: 0 | I120: 0 | J120: 45.5 | O120: 45.5 | P120: 45.5
A121: =' Liste élèves'!A120 -> MINNAERTC | B121: =' Liste élèves'!B120 -> Cassandra | C121: =' Liste élèves'!C120 -> Classe MA | D121: 49.5 | E121: 0 | F121: 0 | G121: 49.5 | H121: 0 | I121: 0 | J121: 49.5 | O121: 49.5 | P121: 49.5
A122: =' Liste élèves'!A121 -> MINNAERTG | B122: =' Liste élèves'!B121 -> Grégory | C122: =' Liste élèves'!C121 -> Classe 8 | D122: 28.74 | E122: 0 | F122: 0 | G122: 28.74 | H122: 0 | I122: 0 | J122: 28.74 | O122: 28.74 | P122: 28.74
A123: =' Liste élèves'!A122 -> MISEUR | B123: =' Liste élèves'!B122 -> Thomas | C123: =' Liste élèves'!C122 -> Classe JB | D123: 39.05 | E123: 0 | F123: 0 | G123: 39.05 | H123: 0 | I123: 0 | J123: 39.05 | O123: 39.05 | P123: 39.05
A124: =' Liste élèves'!A123 -> MONSIEUR | B124: =' Liste élèves'!B123 -> Manuel | C124: =' Liste élèves'!C123 -> Classe FB | D124: 31.4 | E124: 0 | F124: 0 | G124: 31.4 | H124: 0 | I124: 0 | J124: 31.4 | O124: 31.4 | P124: 31.4
A125: =' Liste élèves'!A124 -> MONTEMITRO | B125: =' Liste élèves'!B124 -> Samuel | C125: =' Liste élèves'!C124 -> Classe PC | D125: 16 | E125: 0 | F125: 0 | G125: 16 | H125: 0 | I125: 0 | J125: 16 | O125: 16 | P125: 16
A126: =' Liste élèves'!A125 -> MORTELETTE | B126: =' Liste élèves'!B125 -> Lucas | C126: =' Liste élèves'!C125 -> Classe MC | D126: 36 | E126: 0 | F126: 0 | G126: 36 | H126: 0 | I126: 0 | J126: 36 | O126: 36 | P126: 36
A127: =' Liste élèves'!A126 -> MOULIN | B127: =' Liste élèves'!B126 -> Christopher | C127: =' Liste élèves'!C126 -> Classe 6 | D127: 58.03 | E127: 0 | F127: 0 | G127: 58.03 | H127: 0 | I127: 0 | J127: 58.03 | O127: 58.03 | P127: 58.03
A128: =' Liste élèves'!A127 -> MOYERSOON | B128: =' Liste élèves'!B127 -> Laure | C128: =' Liste élèves'!C127 -> Classe 5 | D128: 0 | E128: 0 | F128: 0 | G128: 0 | H128: 0 | I128: 0 | J128: 0 | O128: 0 | P128: 0
A129: =' Liste élèves'!A128 -> NICAISE | B129: =' Liste élèves'!B128 -> Bryan | C129: =' Liste élèves'!C128 -> Classe MA | D129: 200 | E129: 0 | F129: 0 | G129: 200 | H129: 0 | I129: 0 | J129: 200 | O129: 200 | P129: 200
A130: =' Liste élèves'!A129 -> OIKONOMAKIS | B130: =' Liste élèves'!B129 -> Iosif | C130: =' Liste élèves'!C129 -> Classe 3 | D130: 94.5 | E130: 0 | F130: 0 | G130: 94.5 | H130: 0 | I130: 0 | J130: 94.5 | O130: 94.5 | P130: 94.5
A131: =' Liste élèves'!A130 -> OULADBENTAYED | B131: =' Liste élèves'!B130 -> Nadir | C131: =' Liste élèves'!C130 -> Classe 10 | D131: 32.9 | E131: 0 | F131: 0 | G131: 32.9 | H131: 0 | I131: 0 | J131: 32.9 | O131: 32.9 | P131: 32.9
A132: =' Liste élèves'!A131 -> OULJIHATE | B132: =' Liste élèves'!B131 -> Wassin | C132: =' Liste élèves'!C131 -> Classe 12 | D132: 114.5 | E132: 0 | F132: 0 | G132: 114.5 | H132: 0 | I132: 0 | J132: 114.5 | O132: 114.5 | P132: 114.5
A133: =' Liste élèves'!A132 -> OZMEN | B133: =' Liste élèves'!B132 -> Furkan | C133: =' Liste élèves'!C132 -> Classe 6 | D133: 60.03 | E133: 0 | F133: 0 | G133: 60.03 | H133: 0 | I133: 0 | J133: 60.03 | O133: 60.03 | P133: 60.03
A134: =' Liste élèves'!A133 -> PAULUS | B134: =' Liste élèves'!B133 -> Kévin | C134: =' Liste élèves'!C133 -> Classe PC | D134: 35 | E134: 0 | F134: 0 | G134: 35 | H134: 0 | I134: 0 | J134: 35 | O134: 35 | P134: 35
A135: =' Liste élèves'!A134 -> PAYEN | B135: =' Liste élèves'!B134 -> Dorian | C135: =' Liste élèves'!C134 -> Classe 12 | D135: =INDIRECT($A135&"!$B$8") -> 0 | E135: 0 | F135: 0 | G135: 0 | H135: 0 | I135: 0 | J135: 0 | O135: 0 | P135: 0
A136: =' Liste élèves'!A135 -> PENSIS | B136: =' Liste élèves'!B135 -> Loris | C136: =' Liste élèves'!C135 -> Classe PA | D136: 52.5 | E136: 0 | F136: 0 | G136: 52.5 | H136: 0 | I136: 0 | J136: 52.5 | O136: 52.5 | P136: 52.5
A137: =' Liste élèves'!A136 -> PERRONE | B137: =' Liste élèves'!B136 -> Luigi | C137: =' Liste élèves'!C136 -> Classe AA | D137: 50 | E137: 0 | F137: 0 | G137: 50 | H137: 0 | I137: 0 | J137: 50 | O137: 50 | P137: 50
A138: =' Liste élèves'!A137 -> PIEDFORTG | B138: =' Liste élèves'!B137 -> Gauthier | C138: =' Liste élèves'!C137 -> Classe MA | D138: 49 | E138: 0 | F138: 0 | G138: 49 | H138: 0 | I138: 0 | J138: 49 | O138: 49 | P138: 49
A139: =' Liste élèves'!A138 -> PIERRE | B139: =' Liste élèves'!B138 -> Valentin | C139: =' Liste élèves'!C138 -> Classe 9 | D139: 21.3 | E139: 0 | F139: 0 | G139: 21.3 | H139: 0 | I139: 0 | J139: 21.3 | O139: 21.3 | P139: 21.3
A140: =' Liste élèves'!A139 -> PIERROT | B140: =' Liste élèves'!B139 -> Fabrice | C140: =' Liste élèves'!C139 -> Classe PB | D140: 0 | E140: 0 | F140: 0 | G140: 0 | H140: 0 | I140: 0 | J140: 0 | O140: 0 | P140: 0
A141: =' Liste élèves'!A140 -> PONCIN | B141: =' Liste élèves'!B140 -> Stéphanie | C141: =' Liste élèves'!C140 -> Classe PB | D141: 48.5 | E141: 0 | F141: 0 | G141: 48.5 | H141: 0 | I141: 0 | J141: 48.5 | O141: 48.5 | P141: 48.5
A142: =' Liste élèves'!A141 -> POTTEAU | B142: =' Liste élèves'!B141 -> Noah | C142: =' Liste élèves'!C141 -> Classe MC | D142: 58 | E142: 0 | F142: 0 | G142: 58 | H142: 0 | I142: 0 | J142: 58 | O142: 58 | P142: 58
A143: =' Liste élèves'!A142 -> POUSSEUR | B143: =' Liste élèves'!B142 -> Noah | C143: =' Liste élèves'!C142 -> Classe 11 | D143: 50.9 | E143: 0 | F143: 0 | G143: 50.9 | H143: 0 | I143: 0 | J143: 50.9 | O143: 50.9 | P143: 50.9
A144: =' Liste élèves'!A143 -> PRINCIVALLID | B144: =' Liste élèves'!B143 -> Dylan | C144: =' Liste élèves'!C143 -> Classe 6 | D144: 59.53 | E144: 0 | F144: 0 | G144: 59.53 | H144: 0 | I144: 0 | J144: 59.53 | O144: 59.53 | P144: 59.53
A145: =' Liste élèves'!A144 -> PRINCIVALLIY | B145: =' Liste élèves'!B144 -> Yohan | C145: =' Liste élèves'!C144 -> Classe 8 | D145: 40.2 | E145: 0 | F145: 0 | G145: 40.2 | H145: 0 | I145: 0 | J145: 40.2 | O145: 40.2 | P145: 40.2
A146: =' Liste élèves'!A145 -> RAFFAELE | B146: =' Liste élèves'!B145 -> Alessia | C146: =' Liste élèves'!C145 -> Classe MA | D146: -5.5 | E146: 0 | F146: 0 | G146: -5.5 | H146: 0 | I146: 0 | J146: -5.5 | O146: -5.5 | P146: -5.5
A147: =' Liste élèves'!A146 -> RENDERS | B147: =' Liste élèves'!B146 -> Benoît | C147: =' Liste élèves'!C146 -> Classe 12 | D147: 38 | E147: 0 | F147: 0 | G147: 38 | H147: 0 | I147: 0 | J147: 38 | O147: 38 | P147: 38
A148: =' Liste élèves'!A147 -> RINCHARD | B148: =' Liste élèves'!B147 -> Esteban | C148: =' Liste élèves'!C147 -> Classe AA | D148: -3 | E148: 0 | F148: 0 | G148: -3 | H148: 0 | I148: 0 | J148: -3 | O148: -3 | P148: -3
A149: =' Liste élèves'!A148 -> SAGHROU | B149: =' Liste élèves'!B148 -> Zakariya | C149: =' Liste élèves'!C148 -> Classe 3 | D149: 38 | E149: 0 | F149: 0 | G149: 38 | H149: 0 | I149: 0 | J149: 38 | O149: 38 | P149: 38
A150: =' Liste élèves'!A149 -> SAUTEUR | B150: =' Liste élèves'!B149 -> Nolan | C150: =' Liste élèves'!C149 -> Classe MB | D150: 0 | E150: 32 | F150: 0 | G150: 32 | H150: 0 | I150: 0 | J150: 32 | O150: 32 | P150: 32
A151: =' Liste élèves'!A150 -> SAYE | B151: =' Liste élèves'!B150 -> Gwendoline | C151: =' Liste élèves'!C150 -> Classe MC | D151: 14.1 | E151: 0 | F151: 0 | G151: 14.1 | H151: 0 | I151: 0 | J151: 14.1 | O151: 14.1 | P151: 14.1
A152: =' Liste élèves'!A151 -> SCHOBERT | B152: =' Liste élèves'!B151 -> Noémie | C152: =' Liste élèves'!C151 -> Classe 5 | D152: 38.02 | E152: 0 | F152: 0 | G152: 38.02 | H152: 0 | I152: 0 | J152: 38.02 | O152: 38.02 | P152: 38.02
A153: =' Liste élèves'!A152 -> SERDAR | B153: =' Liste élèves'!B152 -> Huda | C153: =' Liste élèves'!C152 -> Classe 9 | D153: 42.5 | E153: =INDIRECT($A153&"!$F$23") -> 0 | F153: =INDIRECT($A153&"!$G$23") -> 0 | G153: =INDIRECT($A153&"!$H$23") -> 42.5 | H153: =INDIRECT($A153&"!$J$48") -> 0 | I153: =INDIRECT($A153&"!$K$48") -> 0 | J153: =INDIRECT($A153&"!$L$48") -> 42.5 | O153: =INDIRECT($A153&"!$L$50") -> 42.5 | P153: =INDIRECT($A153&"!$L$52") -> 42.5
A154: =' Liste élèves'!A153 -> SIGISMONDI | B154: =' Liste élèves'!B153 -> Lhoïk | C154: =' Liste élèves'!C153 -> Classe 7 | D154: 0 | E154: 0 | F154: 0 | G154: 0 | H154: 0 | I154: 0 | J154: 0 | O154: 0 | P154: 0
A155: =' Liste élèves'!A154 -> SISSOKO | B155: =' Liste élèves'!B154 -> Djimeta | C155: =' Liste élèves'!C154 -> Classe 10 | D155: 0 | E155: 0 | F155: 0 | G155: 0 | H155: 0 | I155: 0 | J155: 0 | O155: 0 | P155: 0
A156: =' Liste élèves'!A155 -> SOUFFRIAU | B156: =' Liste élèves'!B155 -> Jordy | C156: =' Liste élèves'!C155 -> Classe 3 | D156: 0 | E156: 0 | F156: 0 | G156: 0 | H156: 0 | I156: 0 | J156: 0 | O156: 0 | P156: =INDIRECT($A156&"!$L$52") -> 0
A157: =' Liste élèves'!A156 -> SPREUTELS | B157: =' Liste élèves'!B156 -> Nicolas | C157: =' Liste élèves'!C156 -> Classe 3 | D157: 0
A158: =' Liste élèves'!A157 -> STEEGMANS | B158: =' Liste élèves'!B157 -> Bryan | C158: =' Liste élèves'!C157 -> Classe 7 | D158: 0
A159: =' Liste élèves'!A158 -> STEVENS | B159: =' Liste élèves'!B158 -> Rémy | C159: =' Liste élèves'!C158 -> Classe JB | D159: 0
A160: =' Liste élèves'!A159 -> TAMBOUR | B160: =' Liste élèves'!B159 -> Samuel | C160: =' Liste élèves'!C159 -> Classe MA | D160: 0
A161: =' Liste élèves'!A160 -> TEMSAMANI | B161: =' Liste élèves'!B160 -> Moad Nail | C161: =' Liste élèves'!C160 -> Classe FB | D161: 0
A162: =' Liste élèves'!A161 -> TERASSE | B162: =' Liste élèves'!B161 -> Florian | C162: =' Liste élèves'!C161 -> Classe MB | D162: 0
A163: =' Liste élèves'!A162 -> TILMAN | B163: =' Liste élèves'!B162 -> Leslie | C163: =' Liste élèves'!C162 -> Classe 5 | D163: 0
A164: =' Liste élèves'!A163 -> TYVAERT | B164: =' Liste élèves'!B163 -> Kayrrigan | C164: =' Liste élèves'!C163 -> Classe 12 | D164: 0
A165: =' Liste élèves'!A164 -> VANDAELE | B165: =' Liste élèves'!B164 -> Steven | C165: =' Liste élèves'!C164 -> Classe 10 | D165: 0
A166: =' Liste élèves'!A165 -> VANBELLINGHEN | B166: =' Liste élèves'!B165 -> Adeline | C166: =' Liste élèves'!C165 -> Classe MB | D166: 0
A167: =' Liste élèves'!A166 -> VANDEPONTSELE | B167: =' Liste élèves'!B166 -> Mélinda | C167: =' Liste élèves'!C166 -> Classe 5 | D167: 0
A168: =' Liste élèves'!A167 -> VANDENNOORGATE | B168: =' Liste élèves'!B167 -> Loredana | C168: =' Liste élèves'!C167 -> Classe 2 | D168: 0
A169: =' Liste élèves'!A168 -> VANDERHAEGEN | B169: =' Liste élèves'!B168 -> Tim | C169: =' Liste élèves'!C168 -> Classe 1 | D169: 0
A170: =' Liste élèves'!A169 -> VANHAELEWIJN | B170: =' Liste élèves'!B169 -> Quentin | C170: =' Liste élèves'!C169 -> Classe PC | D170: 0
A171: =' Liste élèves'!A170 -> VANHUMBEECK | B171: =' Liste élèves'!B170 -> Mickael | C171: =' Liste élèves'!C170 -> Classe FB | D171: 0
A172: =' Liste élèves'!A171 -> VINCITORIO | B172: =' Liste élèves'!B171 -> Dorian | C172: =' Liste élèves'!C171 -> Classe AA | D172: 0
A173: =' Liste élèves'!A172 -> VOICU | B173: =' Liste élèves'!B172 -> Ionut Cristian | C173: =' Liste élèves'!C172 -> Classe 1 | D173: 0
A174: =' Liste élèves'!A173 -> VULLO | B174: =' Liste élèves'!B173 -> Massimo | C174: =' Liste élèves'!C173 -> Classe 2 | D174: 0
A175: =' Liste élèves'!A174 -> WATHY | B175: =' Liste élèves'!B174 -> Scott | C175: =' Liste élèves'!C174 -> Classe 11 | D175: 0
A176: =' Liste élèves'!A175 -> WILLEMS | B176: =' Liste élèves'!B175 -> Killian | C176: =' Liste élèves'!C175 -> Classe 3 | D176: 0
A177: =' Liste élèves'!A176 -> ZEROUALI | B177: =' Liste élèves'!B176 -> Mohamed | C177: =' Liste élèves'!C176 -> Classe 8 | D177: 0
A178: =' Liste élèves'!A177 -> ZOULOUFOS | B178: =' Liste élèves'!B177 -> Nicolas | C178: =' Liste élèves'!C177 -> Classe 4 | D178: 0

Sheet Dépenses
A1: Date | B1: INTITULE FACTURE | C1: MONTANT FRE compta | D1: MONTANT / PROV | E1: NBRE PARTICIPANT | F1: COUT UNITAIRE | G1: cellule | H1: verif | I1: DIFF entre vérif et montantprov
A2: 2017-10-02 | B2: HELIOS SEPT 17 AC11016/17 | C2: 205.5 | D2: 205.5 | E2: 137 | F2: =D2/E2 -> 1.5 | G2: D8 | H2: =SUM(BARBET:ZOULOUFOS!D8) -> 0 | I2: =D2-H2 -> 205.5
A3: 2018-02-27 | B3: IPSMALYMPIADESDEXC191/18 | C3: 87 | D3: 69 | F3: =D3/E3 ->  | G3: D30 | H3: =SUM(BARBET:ZOULOUFOS!D30) -> 0 | I3: =D3-H3 -> 69
B4: FLEURUS SEPT17 AC1 1030/17 | C4: 30.6 | D4: 30.6 | E4: 17 | F4: 1.8 | G4: D10 | H4: =SUM(BARBET:ZOULOUFOS!D10) -> 0 | I4: 30.6
B5: HELIOS OCT 17 AC1 1174/17 | C5: 247.5 | D5: 247.5 | E5: 169 | F5: 1.5 | G5: H8 | H5: =SUM(BARBET:ZOULOUFOS!H8) -> 0 | I5: 247.5
B6: HELIOS NOV 17 AC1 1295/17 | C6: 121.5 | D6: 121.5 | E6: 81 | F6: 1.5 | G6: L8 | H6: =SUM(BARBET:ZOULOUFOS!L8) -> 0 | I6: 121.5
I7: 0
I8: 0
A9: JANVIER | B9: PATINOIRE DU 8 AU 19/01/18 (171,5€ +241,50€) | D9: 413 | E9: 118 | F9: 3.5 | G9: L20 | H9: =SUM(BARBET:ZOULOUFOS!L20) -> 0 | I9: 413
I10: 0
B11: PATINOIRE DEC17 CAI 6,36/17 | C11: 206.5 | D11: 206.5 | E11: 59 | F11: 3.5 | G11: D22 | H11: =SUM(BARBET:ZOULOUFOS!D22) -> 0 | I11: 206.5
B12: voir les suppressions ( docs farde marilyn) | I12: 0
B13: PISCINE MONTIGNIES SEPT17 AC1 1163/17 | C13: 16.2 | D13: 16.2 | E13: 27 | F13: 0.6 | G13: D9 | H13: =SUM(BARBET:ZOULOUFOS!D9) -> 0 | I13: 16.2
B14: FLEURUS OCT17 AC1 1173/17 | C14: 16.2 | D14: 16.2 | E14: 9 | F14: 1.8 | G14: H10 | H14: =SUM(BARBET:ZOULOUFOS!H10) -> 0 | I14: 16.2
B15: FLEURUS NOV17 AC1 1399/17 | C15: 16.2 | D15: 16.2 | E15: 9 | F15: 1.8 | G15: L10 | H15: =SUM(BARBET:ZOULOUFOS!L10) -> 0 | I15: 16.2
B16: MONTIGNIES AC1 1436/17 - OCTOBRE | C16: 42 | D16: 42 | E16: 70 | F16: 0.6 | G16: H9 | H16: =SUM(BARBET:ZOULOUFOS!H9) -> 0 | I16: 42
B17: MUSCU NOV DEC17 CAI 604/17 | C17: 65 | D17: 65 | E17: 26 | F17: 2.5 | G17: D23 + L12 | H17: =SUM(BARBET:ZOULOUFOS!D23)+SUM(BARBET:ZOULOUFOS!L12) -> 0 | I17: 65
B18: MARCHE NOEL NAMUR CAI 637/17 | C18: 104.72 | D18: 104.72 | E18: 14 | F18: 7.48 | G18: D21 | H18: =SUM(BARBET:ZOULOUFOS!D21) -> 0 | I18: 104.72
A19: 2018-02-19 | B19: FLEURUS AC1128/18 JANVIER 2018 | C19: 19.8 | D19: 19.8 | E19: 11 | F19: 1.8 | G19: L22 | H19: =SUM(BARBET:ZOULOUFOS!L22) -> 0 | I19: 19.8
B20: HELIOS JANV18 AC1 130/18 | C20: 36 | D20: 36 | E20: 24 | F20: 1.5 | G20: L21 | H20: =SUM(BARBET:ZOULOUFOS!L21) -> 0 | I20: 36
A21: 2018-03-20 | B21: HELIOS FEV18 AC1203/18 | C21: 217.5 | D21: 217.5 | E21: 145 | F21: 1.5 | G21: D32 | H21: =SUM(BARBET:ZOULOUFOS!D32) -> 0 | I21: 217.5
A22: 2018-03-15 | B22: FLEURUS AC1228/18 FEVRIER 18 | C22: 5.4 | D22: 5.4 | E22: 3 | F22: 1.8 | G22: D33 | H22: =SUM(BARBET:ZOULOUFOS!D33) -> 0 | I22: 5.4
I23: 0
B24: MONTIGNIES PISC NOV17 AC1298/18 | C24: 43.2 | D24: 43.2 | E24: 72 | F24: 0.6 | G24: L9 | H24: =SUM(BARBET:ZOULOUFOS!L9) -> 0 | I24: 43.2
B25: MONTIGNIES DEC17 AC1367/18 | C25: 20.4 | D25: 20.4 | E25: 34 | F25: 0.6 | G25: D19 | H25: =SUM(BARBET:ZOULOUFOS!D19) -> 0 | I25: 20.4
B26: MONTIGNIES JANV18 AC1 368/18 | C26: 45.6 | D26: 45.6 | E26: 76 | F26: 0.6 | G26: L19 | H26: =SUM(BARBET:ZOULOUFOS!L19) -> 0 | I26: 45.6
A27: 2018-04-17 | B27: MONTIGNIES FEV18 AC1 370/18 | C27: 27 | D27: 27 | E27: 45 | F27: 0.6 | G27: D31 | H27: =SUM(BARBET:ZOULOUFOS!D31) -> 0 | I27: 27
A28: 2018-04-09 | B28: FLEURUS AC1 376/18 MARS | C28: 16.2 | D28: 16.2 | E28: 9 | F28: 1.8 | G28: H33 | H28: =SUM(BARBET:ZOULOUFOS!H33) -> 0 | I28: 16.2
B29: HELIOS MARS 18 AC1 385/18 | C29: 72 | D29: 72 | E29: 48 | F29: 1.5 | G29: H31 | H29: =SUM(BARBET:ZOULOUFOS!H31) -> 0 | I29: 72
B30: MONTIGNIES MARS18 AC1 430/18 | C30: 25.2 | D30: 25.2 | E30: 42 | F30: 0.6 | G30: H30 | H30: =SUM(BARBET:ZOULOUFOS!H30) -> 0 | I30: 25.2
A31: 2018-05-16 | B31: HELIOS AVRIL 18 AC1 477/18 | C31: 15 | D31: 15 | E31: 10 | F31: 1.5 | G31: L30 | H31: =SUM(BARBET:ZOULOUFOS!L30) -> 0 | I31: 15
A32: 2018-05-30 | B32: MAISON DE L'ADOLESCENT | C32: 5 | D32: 5 | E32: 1 | F32: 5 | G32: D43 | H32: =SUM(BARBET:ZOULOUFOS!D43)-NICAISE!D43 -> 0 | I32: 5
A33: 2018-05-22 | B33: REMBOURSEMENT ROCHET SORTI DOC 883 | C33: 46 | D33: 46 | E33: 1 | F33: 46 | G33: D46 | H33: =SUM(BARBET:ZOULOUFOS!D46)-#REF! -> 
A34: 2018-05-24 | B34: WALIBI | C34: 135 | D34: 135 | E34: 27 | F34: 5 | G34: D44 | H34: =SUM(BARBET:ZOULOUFOS!D44) -> 0 | I34: 135
A35: 2018-01-17 | B35: FLEURUS DECEMBRE 2017 | D35: 5.4 | E35: 3 | F35: 1.8 | G35: D20 | H35: =SUM(BARBET:ZOULOUFOS!D20) -> 0 | I35: 5.4
B36: REMBOURSEMENT DEPREZ SORTI | C36: 28.03 | D36: 28.03 | G36: D46 | H36: =#REF! -> 
I37: 0
I38: 0
A39: 2018-06-01 | B39: Transfert ticket nicaise du 31/05/18 | D39: 17.5 | E39: 1 | F39: 17.5 | G39: D43 | H39: =NICAISE!D43 -> 0 | I39: 17.5
A40: 2018-01-26 | B40: PATINOIRE 26/01 | D40: 49 | E40: 14 | F40: 3.5 | G40: L23 | H40: =SUM(BARBET:ZOULOUFOS!L23) -> 0 | I40: 49
A41: 2018-02-01 | B41: PATINOIRE 01/02 classe 8 | D41: 28 | E41: 8 | F41: 3.5 | G41: D34 | H41: =SUM(BARBET:ZOULOUFOS!D34) -> 0 | I41: 28
A42: 2018-06-11 | B42: MONTIGNIES AVRIL 2018 | D42: 13.8 | E42: 23 | F42: 0.6 | G42: L31 | H42: =SUM(BARBET:ZOULOUFOS!L31) -> 0 | I42: 13.8
A43: 2018-06-12 | B43: MONTIGNIES MAI 2018 | D43: 26.4 | E43: 44 | F43: 0.6 | G43: D42 | H43: =SUM(BARBET:ZOULOUFOS!D42) -> 0 | I43: 26.4
A44: 2018-06-12 | B44: HELIOS MAI 2018 | D44: 27 | E44: 18 | F44: 1.5 | G44: D45 | H44: =SUM(BARBET:ZOULOUFOS!D45) -> 0 | I44: 27
B45: HELIOS JUIN 2018 | C45: 28.5 | D45: 28.5 | E45: 19 | F45: 1.5 | G45: H46 | H45: =SUM(BARBET:ZOULOUFOS!H46) -> 0
B46: MONTIGNIES S/S JUIN 2018 | C46: 9 | D46: 9 | E46: 15 | F46: 0.6 | G46: H45 | H46: =SUM(BARBET:ZOULOUFOS!H45) -> 0
B47: OCEADE 26 juin 2018 (DELAITE) | D47: 61.3 | E47: 5 | F47: 12.26 | G47: H43 | H47: =SUM(BARBET:ZOULOUFOS!H43) -> 0 | I47: =D47-H47 -> 61.3
B48: JOURNEE SPORTIVE QUERTEMONT DORIAN | D48: 3.5 | E48: 1 | F48: 3.5 | G48: H44 | H48: =SUM(BARBET:ZOULOUFOS!H44) -> 0
B49: Voir lettre accord Direction du 28/06/18
B51: total | D51: =SUM(D2:D50) -> 2580.65 | H51: =SUM(H2:H50) ->  | I51: =SUM(I2:I50) -> 

Sheet AKKURT
J1: Année scolaire : | L1: =' Liste élèves'!B1 -> 2018-2019
A3: NOM : | B3: =+' Liste élèves'!A5 -> AKKURT | D3: PRENOM: | E3: =+' Liste élèves'!B5 -> Addin | H3: CLASSE : | I3: =+' Liste élèves'!C5 -> Classe 10
A5: SEPTEMBRE | E5: OCTOBRE | I5: NOVEMBRE
A6: RECETTES | C6: DEPENSES | E6: RECETTES | G6: DEPENSES | I6: RECETTES | K6: DEPENSES
A7: Dates | B7: Montant | C7: Activités | D7: Montant | E7: Dates | F7: Montant | G7: Activités | H7: Montant | I7: Dates | J7: Montant | K7: Activités | L7: Montant
A8: Report juin
B13: =SUM(B9:B12) -> 0 | D13: =SUM(D8:D12) -> 0 | F13: =SUM(F8:F12) -> 0 | H13: =SUM(H8:H12) -> 0 | J13: =SUM(J8:J12) -> 0 | L13: =SUM(L8:L12) -> 0
A14: Récap 30/09 | D14: =+B13-D13 -> 0 | E14: Récap 31/10 | H14: =+F13-H13 -> 0 | I14: Récap 30/11 | L14: =+J13-L13 -> 0
A16: DÉCEMBRE | E16: Situation fin décembre | I16: JANVIER
A17: RECETTES | C17: DEPENSES | F17: Recettes | G17: Dépenses | H17: Total | I17: RECETTES | K17: DEPENSES
A18: Dates | B18: Montant | C18: Activités | D18: Montant | E18: =A14 -> Récap 30/09 | F18: =B13 -> 0 | G18: =D13 -> 0 | H18: =D14 -> 0 | I18: Dates | J18: Montant | K18: Activités | L18: Montant
E19: =E14 -> Récap 31/10 | F19: =F13 -> 0 | G19: =H13 -> 0 | H19: =H14 -> 0
E20: =I14 -> Récap 30/11 | F20: =J13 -> 0 | G20: =L13 -> 0 | H20: =L14 -> 0
E21: =A25 -> Récap 31/12 | F21: =B24 -> 0 | G21: =D24 -> 0 | H21: =D25 -> 0
E22: Report Sept | H22: =B8 -> 0
E23: Situation 31/12 | F23: =SUM(F18:F22) -> 0 | G23: =SUM(G18:G22) -> 0 | H23: =SUM(H18:H22) -> 0
B24: =SUM(B19:B23) -> 0 | D24: =SUM(D19:D23) -> 0 | J24: =SUM(J19:J23) -> 0 | L24: =SUM(L19:L23) -> 0
A25: Récap 31/12 | D25: =+B24-D24 -> 0 | I25: Récap 31/01 | L25: =+J24-L24 -> 0
A27: FÉVRIER | E27: MARS | I27: AVRIL
A28: RECETTES | C28: DEPENSES | E28: RECETTES | G28: DEPENSES | I28: RECETTES | K28: DEPENSES
A29: Dates | B29: Montant | C29: Activités | D29: Montant | E29: Dates | F29: Montant | G29: Activités | H29: Montant | I29: Dates | J29: Montant | K29: Activités | L29: Montant
B35: =SUM(B30:B34) -> 0 | D35: =SUM(D30:D34) -> 0 | F35: =SUM(F30:F34) -> 0 | H35: =SUM(H30:H34) -> 0 | J35: =SUM(J30:J34) -> 0 | L35: =SUM(L30:L34) -> 0
A36: Récap 28/02 | D36: =+B35-D35 -> 0 | E36: Récap 31/03 | H36: =+F35-H35 -> 0 | I36: Récap 30/04 | L36: =+J35-L35 -> 0
A39: MAI | E39: JUIN | I39: Situation fin juin
A40: RECETTES | C40: DEPENSES | E40: RECETTES | G40: DEPENSES | J40: Recettes | K40: Dépenses | L40: Total
A41: Dates | B41: Montant | C41: Activités | D41: Montant | E41: Dates | F41: Montant | G41: Activités | H41: Montant | I41: =E23 -> Situation 31/12 | L41: =H23 -> 0
I42: =I25 -> Récap 31/01 | J42: =J24 -> 0 | K42: =L24 -> 0 | L42: =L25 -> 0
I43: =A36 -> Récap 28/02 | J43: =B35 -> 0 | K43: =D35 -> 0 | L43: =D36 -> 0
I44: =E36 -> Récap 31/03 | J44: =F35 -> 0 | K44: =H35 -> 0 | L44: =H36 -> 0
I45: =I36 -> Récap 30/04 | J45: =J35 -> 0 | K45: =L35 -> 0 | L45: =L36 -> 0
I46: =A48 -> Récap 31/05 | J46: =B47 -> 0 | K46: =D47 -> 0 | L46: =D48 -> 0
B47: =SUM(B42:B46) -> 0 | D47: =SUM(D42:D46) -> 0 | F47: =SUM(F42:F46) -> 0 | H47: =SUM(H42:H46) -> 0 | I47: =E48 -> Récap 30/06 | J47: =F47 -> 0 | K47: =H47 -> 0 | L47: =H48 -> 0
A48: Récap 31/05 | D48: =+B47-D47 -> 0 | E48: Récap 30/06 | H48: =+F47-H47 -> 0 | I48: Situation 30/06 | J48: =SUM(J42:J47) -> 0 | K48: =SUM(K42:K47) -> 0 | L48: =SUM(L41:L47) -> 0
L50: =F23+J48-G23-K48+B8 -> 0
J52: =B13+F13+J13+B24+J24+B35+F35+J35+B47+F47 -> 0 | K52: =D13+H13+L13+D24+L24+D35+H35+L35+D47+H47 -> 0 | L52: =B8+J52-K52 -> 0

Sheet BARBET
J1: Année scolaire : | L1: =' Liste élèves'!B1 -> 2018-2019
A3: NOM : | B3: =+' Liste élèves'!A6 -> BARBET | D3: PRENOM: | E3: =+' Liste élèves'!B6 -> Gaetan | H3: CLASSE : | I3: =+' Liste élèves'!C6 -> Classe JB
A5: SEPTEMBRE | E5: OCTOBRE | I5: NOVEMBRE
A6: RECETTES | C6: DEPENSES | E6: RECETTES | G6: DEPENSES | I6: RECETTES | K6: DEPENSES
A7: Dates | B7: Montant | C7: Activités | D7: Montant | E7: Dates | F7: Montant | G7: Activités | H7: Montant | I7: Dates | J7: Montant | K7: Activités | L7: Montant
A8: Report juin | B8: 37.5
B13: =SUM(B9:B12) -> 0 | D13: =SUM(D8:D12) -> 0 | F13: =SUM(F8:F12) -> 0 | H13: =SUM(H8:H12) -> 0 | J13: =SUM(J8:J12) -> 0 | L13: =SUM(L8:L12) -> 0
A14: Récap 30/09 | D14: =+B13-D13 -> 0 | E14: Récap 31/10 | H14: =+F13-H13 -> 0 | I14: Récap 30/11 | L14: =+J13-L13 -> 0
A16: DÉCEMBRE | E16: Situation fin décembre | I16: JANVIER
A17: RECETTES | C17: DEPENSES | F17: Recettes | G17: Dépenses | H17: Total | I17: RECETTES | K17: DEPENSES
A18: Dates | B18: Montant | C18: Activités | D18: Montant | E18: =A14 -> Récap 30/09 | F18: =B13 -> 0 | G18: =D13 -> 0 | H18: =D14 -> 0 | I18: Dates | J18: Montant | K18: Activités | L18: Montant
E19: =E14 -> Récap 31/10 | F19: =F13 -> 0 | G19: =H13 -> 0 | H19: =H14 -> 0
E20: =I14 -> Récap 30/11 | F20: =J13 -> 0 | G20: =L13 -> 0 | H20: =L14 -> 0
E21: =A25 -> Récap 31/12 | F21: =B24 -> 0 | G21: =D24 -> 0 | H21: =D25 -> 0
E22: Report Sept | H22: =B8 -> 37.5
E23: Situation 31/12 | F23: =SUM(F18:F22) -> 0 | G23: =SUM(G18:G22) -> 0 | H23: =SUM(H18:H22) -> 37.5
B24: =SUM(B19:B23) -> 0 | D24: =SUM(D19:D23) -> 0 | J24: =SUM(J19:J23) -> 0 | L24: =SUM(L19:L23) -> 0
A25: Récap 31/12 | D25: =+B24-D24 -> 0 | I25: Récap 31/01 | L25: =+J24-L24 -> 0
A27: FÉVRIER | E27: MARS | I27: AVRIL
A28: RECETTES | C28: DEPENSES | E28: RECETTES | G28: DEPENSES | I28: RECETTES | K28: DEPENSES
A29: Dates | B29: Montant | C29: Activités | D29: Montant | E29: Dates | F29: Montant | G29: Activités | H29: Montant | I29: Dates | J29: Montant | K29: Activités | L29: Montant
B35: =SUM(B30:B34) -> 0 | D35: =SUM(D30:D34) -> 0 | F35: =SUM(F30:F34) -> 0 | H35: =SUM(H30:H34) -> 0 | J35: =SUM(J30:J34) -> 0 | L35: =SUM(L30:L34) -> 0
A36: Récap 28/02 | D36: =+B35-D35 -> 0 | E36: Récap 31/03 | H36: =+F35-H35 -> 0 | I36: Récap 30/04 | L36: =+J35-L35 -> 0
A39: MAI | E39: JUIN | I39: Situation fin juin
A40: RECETTES | C40: DEPENSES | E40: RECETTES | G40: DEPENSES | J40: Recettes | K40: Dépenses | L40: Total
A41: Dates | B41: Montant | C41: Activités | D41: Montant | E41: Dates | F41: Montant | G41: Activités | H41: Montant | I41: =E23 -> Situation 31/12 | L41: =H23 -> 37.5
I42: =I25 -> Récap 31/01 | J42: =J24 -> 0 | K42: =L24 -> 0 | L42: =L25 -> 0
I43: =A36 -> Récap 28/02 | J43: =B35 -> 0 | K43: =D35 -> 0 | L43: =D36 -> 0
I44: =E36 -> Récap 31/03 | J44: =F35 -> 0 | K44: =H35 -> 0 | L44: =H36 -> 0
I45: =I36 -> Récap 30/04 | J45: =J35 -> 0 | K45: =L35 -> 0 | L45: =L36 -> 0
I46: =A48 -> Récap 31/05 | J46: =B47 -> 0 | K46: =D47 -> 0 | L46: =D48 -> 0
B47: =SUM(B42:B46) -> 0 | D47: =SUM(D42:D46) -> 0 | F47: =SUM(F42:F46) -> 0 | H47: =SUM(H42:H46) -> 0 | I47: =E48 -> Récap 30/06 | J47: =F47 -> 0 | K47: =H47 -> 0 | L47: =H48 -> 0
A48: Récap 31/05 | D48: =+B47-D47 -> 0 | E48: Récap 30/06 | H48: =+F47-H47 -> 0 | I48: Situation 30/06 | J48: =SUM(J42:J47) -> 0 | K48: =SUM(K42:K47) -> 0 | L48: =SUM(L41:L47) -> 37.5
L50: =F23+J48-G23-K48+B8 -> 37.5
J52: =B13+F13+J13+B24+J24+B35+F35+J35+B47+F47 -> 0 | K52: =D13+H13+L13+D24+L24+D35+H35+L35+D47+H47 -> 0 | L52: =B8+J52-K52 -> 37.5

Sheet BARROU
J1: Année scolaire : | L1: =' Liste élèves'!B1 -> 2018-2019
A3: NOM : | B3: =+' Liste élèves'!A7 -> BARROU | D3: PRENOM: | E3: =+' Liste élèves'!B7 -> Othman | H3: CLASSE : | I3: =+' Liste élèves'!C7 -> Classe 7
A5: SEPTEMBRE | E5: OCTOBRE | I5: NOVEMBRE
A6: RECETTES | C6: DEPENSES | E6: RECETTES | G6: DEPENSES | I6: RECETTES | K6: DEPENSES
A7: Dates | B7: Montant | C7: Activités | D7: Montant | E7: Dates | F7: Montant | G7: Activités | H7: Montant | I7: Dates | J7: Montant | K7: Activités | L7: Montant
A8: Report juin
B13: =SUM(B9:B12) -> 0 | D13: =SUM(D8:D12) -> 0 | F13: =SUM(F8:F12) -> 0 | H13: =SUM(H8:H12) -> 0 | J13: =SUM(J8:J12) -> 0 | L13: =SUM(L8:L12) -> 0
A14: Récap 30/09 | D14: =+B13-D13 -> 0 | E14: Récap 31/10 | H14: =+F13-H13 -> 0 | I14: Récap 30/11 | L14: =+J13-L13 -> 0
A16: DÉCEMBRE | E16: Situation fin décembre | I16: JANVIER
A17: RECETTES | C17: DEPENSES | F17: Recettes | G17: Dépenses | H17: Total | I17: RECETTES | K17: DEPENSES
A18: Dates | B18: Montant | C18: Activités | D18: Montant | E18: =A14 -> Récap 30/09 | F18: =B13 -> 0 | G18: =D13 -> 0 | H18: =D14 -> 0 | I18: Dates | J18: Montant | K18: Activités | L18: Montant
E19: =E14 -> Récap 31/10 | F19: =F13 -> 0 | G19: =H13 -> 0 | H19: =H14 -> 0
E20: =I14 -> Récap 30/11 | F20: =J13 -> 0 | G20: =L13 -> 0 | H20: =L14 -> 0
E21: =A25 -> Récap 31/12 | F21: =B24 -> 0 | G21: =D24 -> 0 | H21: =D25 -> 0
E22: Report Sept | H22: =B8 -> 0
E23: Situation 31/12 | F23: =SUM(F18:F22) -> 0 | G23: =SUM(G18:G22) -> 0 | H23: =SUM(H18:H22) -> 0
B24: =SUM(B19:B23) -> 0 | D24: =SUM(D19:D23) -> 0 | J24: =SUM(J19:J23) -> 0 | L24: =SUM(L19:L23) -> 0
A25: Récap 31/12 | D25: =+B24-D24 -> 0 | I25: Récap 31/01 | L25: =+J24-L24 -> 0
A27: FÉVRIER | E27: MARS | I27: AVRIL
A28: RECETTES | C28: DEPENSES | E28: RECETTES | G28: DEPENSES | I28: RECETTES | K28: DEPENSES
A29: Dates | B29: Montant | C29: Activités | D29: Montant | E29: Dates | F29: Montant | G29: Activités | H29: Montant | I29: Dates | J29: Montant | K29: Activités | L29: Montant
B35: =SUM(B30:B34) -> 0 | D35: =SUM(D30:D34) -> 0 | F35: =SUM(F30:F34) -> 0 | H35: =SUM(H30:H34) -> 0 | J35: =SUM(J30:J34) -> 0 | L35: =SUM(L30:L34) -> 0
A36: Récap 28/02 | D36: =+B35-D35 -> 0 | E36: Récap 31/03 | H36: =+F35-H35 -> 0 | I36: Récap 30/04 | L36: =+J35-L35 -> 0
A39: MAI | E39: JUIN | I39: Situation fin juin
A40: RECETTES | C40: DEPENSES | E40: RECETTES | G40: DEPENSES | J40: Recettes | K40: Dépenses | L40: Total
A41: Dates | B41: Montant | C41: Activités | D41: Montant | E41: Dates | F41: Montant | G41: Activités | H41: Montant | I41: =E23 -> Situation 31/12 | L41: =H23 -> 0
I42: =I25 -> Récap 31/01 | J42: =J24 -> 0 | K42: =L24 -> 0 | L42: =L25 -> 0
I43: =A36 -> Récap 28/02 | J43: =B35 -> 0 | K43: =D35 -> 0 | L43: =D36 -> 0
I44: =E36 -> Récap 31/03 | J44: =F35 -> 0 | K44: =H35 -> 0 | L44: =H36 -> 0
I45: =I36 -> Récap 30/04 | J45: =J35 -> 0 | K45: =L35 -> 0 | L45: =L36 -> 0
I46: =A48 -> Récap 31/05 | J46: =B47 -> 0 | K46: =D47 -> 0 | L46: =D48 -> 0
B47: =SUM(B42:B46) -> 0 | D47: =SUM(D42:D46) -> 0 | F47: =SUM(F42:F46) -> 0 | H47: =SUM(H42:H46) -> 0 | I47: =E48 -> Récap 30/06 | J47: =F47 -> 0 | K47: =H47 -> 0 | L47: =H48 -> 0
A48: Récap 31/05 | D48: =+B47-D47 -> 0 | E48: Récap 30/06 | H48: =+F47-H47 -> 0 | I48: Situation 30/06 | J48: =SUM(J42:J47) -> 0 | K48: =SUM(K42:K47) -> 0 | L48: =SUM(L41:L47) -> 0
L50: =F23+J48-G23-K48+B8 -> 0
J52: =B13+F13+J13+B24+J24+B35+F35+J35+B47+F47 -> 0 | K52: =D13+H13+L13+D24+L24+D35+H35+L35+D47+H47 -> 0 | L52: =B8+J52-K52 -> 0

Sheet BAUDOUX
J1: Année scolaire : | L1: =' Liste élèves'!B1 -> 2018-2019
A3: NOM : | B3: =+' Liste élèves'!A8 -> BAUDOUX | D3: PRENOM: | E3: =+' Liste élèves'!B8 -> Shana | H3: CLASSE : | I3: =+' Liste élèves'!C8 -> Classe MB
A5: SEPTEMBRE | E5: OCTOBRE | I5: NOVEMBRE
A6: RECETTES | C6: DEPENSES | E6: RECETTES | G6: DEPENSES | I6: RECETTES | K6: DEPENSES
A7: Dates | B7: Montant | C7: Activités | D7: Montant | E7: Dates | F7: Montant | G7: Activités | H7: Montant | I7: Dates | J7: Montant | K7: Activités | L7: Montant
A8: Report juin
B13: =SUM(B9:B12) -> 0 | D13: =SUM(D8:D12) -> 0 | F13: =SUM(F8:F12) -> 0 | H13: =SUM(H8:H12) -> 0 | J13: =SUM(J8:J12) -> 0 | L13: =SUM(L8:L12) -> 0
A14: Récap 30/09 | D14: =+B13-D13 -> 0 | E14: Récap 31/10 | H14: =+F13-H13 -> 0 | I14: Récap 30/11 | L14: =+J13-L13 -> 0
A16: DÉCEMBRE | E16: Situation fin décembre | I16: JANVIER
A17: RECETTES | C17: DEPENSES | F17: Recettes | G17: Dépenses | H17: Total | I17: RECETTES | K17: DEPENSES
A18: Dates | B18: Montant | C18: Activités | D18: Montant | E18: =A14 -> Récap 30/09 | F18: =B13 -> 0 | G18: =D13 -> 0 | H18: =D14 -> 0 | I18: Dates | J18: Montant | K18: Activités | L18: Montant
E19: =E14 -> Récap 31/10 | F19: =F13 -> 0 | G19: =H13 -> 0 | H19: =H14 -> 0
E20: =I14 -> Récap 30/11 | F20: =J13 -> 0 | G20: =L13 -> 0 | H20: =L14 -> 0
E21: =A25 -> Récap 31/12 | F21: =B24 -> 0 | G21: =D24 -> 0 | H21: =D25 -> 0
E22: Report Sept | H22: =B8 -> 0
E23: Situation 31/12 | F23: =SUM(F18:F22) -> 0 | G23: =SUM(G18:G22) -> 0 | H23: =SUM(H18:H22) -> 0
B24: =SUM(B19:B23) -> 0 | D24: =SUM(D19:D23) -> 0 | J24: =SUM(J19:J23) -> 0 | L24: =SUM(L19:L23) -> 0
A25: Récap 31/12 | D25: =+B24-D24 -> 0 | I25: Récap 31/01 | L25: =+J24-L24 -> 0
A27: FÉVRIER | E27: MARS | I27: AVRIL
A28: RECETTES | C28: DEPENSES | E28: RECETTES | G28: DEPENSES | I28: RECETTES | K28: DEPENSES
A29: Dates | B29: Montant | C29: Activités | D29: Montant | E29: Dates | F29: Montant | G29: Activités | H29: Montant | I29: Dates | J29: Montant | K29: Activités | L29: Montant
B35: =SUM(B30:B34) -> 0 | D35: =SUM(D30:D34) -> 0 | F35: =SUM(F30:F34) -> 0 | H35: =SUM(H30:H34) -> 0 | J35: =SUM(J30:J34) -> 0 | L35: =SUM(L30:L34) -> 0
A36: Récap 28/02 | D36: =+B35-D35 -> 0 | E36: Récap 31/03 | H36: =+F35-H35 -> 0 | I36: Récap 30/04 | L36: =+J35-L35 -> 0
A39: MAI | E39: JUIN | I39: Situation fin juin
A40: RECETTES | C40: DEPENSES | E40: RECETTES | G40: DEPENSES | J40: Recettes | K40: Dépenses | L40: Total
A41: Dates | B41: Montant | C41: Activités | D41: Montant | E41: Dates | F41: Montant | G41: Activités | H41: Montant | I41: =E23 -> Situation 31/12 | L41: =H23 -> 0
I42: =I25 -> Récap 31/01 | J42: =J24 -> 0 | K42: =L24 -> 0 | L42: =L25 -> 0
I43: =A36 -> Récap 28/02 | J43: =B35 -> 0 | K43: =D35 -> 0 | L43: =D36 -> 0
I44: =E36 -> Récap 31/03 | J44: =F35 -> 0 | K44: =H35 -> 0 | L44: =H36 -> 0
I45: =I36 -> Récap 30/04 | J45: =J35 -> 0 | K45: =L35 -> 0 | L45: =L36 -> 0
I46: =A48 -> Récap 31/05 | J46: =B47 -> 0 | K46: =D47 -> 0 | L46: =D48 -> 0
B47: =SUM(B42:B46) -> 0 | D47: =SUM(D42:D46) -> 0 | F47: =SUM(F42:F46) -> 0 | H47: =SUM(H42:H46) -> 0 | I47: =E48 -> Récap 30/06 | J47: =F47 -> 0 | K47: =H47 -> 0 | L47: =H48 -> 0
A48: Récap 31/05 | D48: =+B47-D47 -> 0 | E48: Récap 30/06 | H48: =+F47-H47 -> 0 | I48: Situation 30/06 | J48: =SUM(J42:J47) -> 0 | K48: =SUM(K42:K47) -> 0 | L48: =SUM(L41:L47) -> 0
L50: =F23+J48-G23-K48+B8 -> 0
J52: =B13+F13+J13+B24+J24+B35+F35+J35+B47+F47 -> 0 | K52: =D13+H13+L13+D24+L24+D35+H35+L35+D47+H47 -> 0 | L52: =B8+J52-K52 -> 0

Sheet BAURAIN
J1: Année scolaire : | L1: =' Liste élèves'!B1 -> 2018-2019
A3: NOM : | B3: =' Liste élèves'!A9 -> BAURAIN | D3: PRENOM: | E3: =' Liste élèves'!B9 -> Ludovic | H3: CLASSE : | I3: =' Liste élèves'!C9 -> Classe FB
A5: SEPTEMBRE | E5: OCTOBRE | I5: NOVEMBRE
A6: RECETTES | C6: DEPENSES | E6: RECETTES | G6: DEPENSES | I6: RECETTES | K6: DEPENSES
A7: Dates | B7: Montant | C7: Activités | D7: Montant | E7: Dates | F7: Montant | G7: Activités | H7: Montant | I7: Dates | J7: Montant | K7: Activités | L7: Montant
A8: Report juin | B8: 50.6
B13: =SUM(B9:B12) -> 0 | D13: =SUM(D8:D12) -> 0 | F13: =SUM(F8:F12) -> 0 | H13: =SUM(H8:H12) -> 0 | J13: =SUM(J8:J12) -> 0 | L13: =SUM(L8:L12) -> 0
A14: Récap 30/09 | D14: =+B13-D13 -> 0 | E14: Récap 31/10 | H14: =+F13-H13 -> 0 | I14: Récap 30/11 | L14: =+J13-L13 -> 0
A16: DÉCEMBRE | E16: Situation fin décembre | I16: JANVIER
A17: RECETTES | C17: DEPENSES | F17: Recettes | G17: Dépenses | H17: Total | I17: RECETTES | K17: DEPENSES
A18: Dates | B18: Montant | C18: Activités | D18: Montant | E18: =A14 -> Récap 30/09 | F18: =B13 -> 0 | G18: =D13 -> 0 | H18: =D14 -> 0 | J18: Montant | K18: Activités | L18: Montant
F19: =F13 -> 0 | G19: =H13 -> 0 | H19: =H14 -> 0
E20: =I14 -> Récap 30/11 | F20: =J13 -> 0 | G20: =L13 -> 0 | H20: =L14 -> 0
E21: =A25 -> Récap 31/12 | F21: =B24 -> 0 | G21: =D24 -> 0 | H21: =D25 -> 0
E22: Report Sept | H22: =B8 -> 50.6
E23: Situation 31/12 | F23: =SUM(F18:F22) -> 0 | G23: =SUM(G18:G22) -> 0 | H23: =SUM(H18:H22) -> 50.6
B24: =SUM(B19:B23) -> 0 | D24: =SUM(D19:D23) -> 0 | J24: =SUM(J19:J23) -> 0 | L24: =SUM(L19:L23) -> 0
A25: Récap 31/12 | D25: =+B24-D24 -> 0 | I25: Récap 31/01 | L25: =+J24-L24 -> 0
A27: FÉVRIER | E27: MARS | I27: AVRIL
A28: RECETTES | C28: DEPENSES | E28: RECETTES | G28: DEPENSES | I28: RECETTES | K28: DEPENSES
A29: Dates | B29: Montant | C29: Activités | D29: Montant | E29: Dates | F29: Montant | G29: Activités | H29: Montant | I29: Dates | J29: Montant | K29: Activités | L29: Montant
B35: =SUM(B30:B34) -> 0 | D35: =SUM(D30:D34) -> 0 | F35: =SUM(F30:F34) -> 0 | H35: =SUM(H30:H34) -> 0 | J35: =SUM(J30:J34) -> 0 | L35: =SUM(L30:L34) -> 0
A36: Récap 28/02 | D36: =+B35-D35 -> 0 | E36: Récap 31/03 | H36: =+F35-H35 -> 0 | I36: Récap 30/04 | L36: =+J35-L35 -> 0
A39: MAI | E39: JUIN | I39: Situation fin juin
A40: RECETTES | C40: DEPENSES | E40: RECETTES | G40: DEPENSES | J40: Recettes | K40: Dépenses | L40: Total
A41: Dates | B41: Montant | C41: Activités | D41: Montant | E41: Dates | F41: Montant | G41: Activités | H41: Montant | I41: =E23 -> Situation 31/12 | L41: =H23 -> 50.6
I42: =I25 -> Récap 31/01 | J42: =J24 -> 0 | K42: =L24 -> 0 | L42: =L25 -> 0
I43: =A36 -> Récap 28/02 | J43: =B35 -> 0 | K43: =D35 -> 0 | L43: =D36 -> 0
I44: =E36 -> Récap 31/03 | J44: =F35 -> 0 | K44: =H35 -> 0 | L44: =H36 -> 0
I45: =I36 -> Récap 30/04 | J45: =J35 -> 0 | K45: =L35 -> 0 | L45: =L36 -> 0
I46: =A48 -> Récap 31/05 | J46: =B47 -> 0 | K46: =D47 -> 0 | L46: =D48 -> 0
B47: =SUM(B42:B46) -> 0 | D47: =SUM(D42:D46) -> 0 | F47: =SUM(F42:F46) -> 0 | H47: =SUM(H42:H46) -> 0 | I47: =E48 -> Récap 30/06 | J47: =F47 -> 0 | K47: =H47 -> 0 | L47: =H48 -> 0
A48: Récap 31/05 | D48: =+B47-D47 -> 0 | E48: Récap 30/06 | H48: =+F47-H47 -> 0 | I48: Situation 30/06 | J48: =SUM(J42:J47) -> 0 | K48: =SUM(K42:K47) -> 0 | L48: =SUM(L41:L47) -> 50.6
L50: =F23+J48-G23-K48+B8 -> 50.6
J52: =B13+F13+J13+B24+J24+B35+F35+J35+B47+F47 -> 0 | K52: =D13+H13+L13+D24+L24+D35+H35+L35+D47+H47 -> 0 | L52: =B8+J52-K52 -> 50.6

Sheet BAUWENS
J1: Année scolaire : | L1: =' Liste élèves'!B1 -> 2018-2019
A3: NOM : | B3: =' Liste élèves'!A10 -> BAUWENS | D3: PRENOM: | E3: =' Liste élèves'!B10 -> Jimmy | H3: CLASSE : | I3: =' Liste élèves'!C10 -> Classe PA
A5: SEPTEMBRE | E5: OCTOBRE | I5: NOVEMBRE
A6: RECETTES | C6: DEPENSES | E6: RECETTES | G6: DEPENSES | I6: RECETTES | K6: DEPENSES
A7: Dates | B7: Montant | C7: Activités | D7: Montant | E7: Dates | F7: Montant | G7: Activités | H7: Montant | I7: Dates | J7: Montant | K7: Activités | L7: Montant
A8: Report juin
B13: =SUM(B9:B12) -> 0 | D13: =SUM(D8:D12) -> 0 | F13: =SUM(F8:F12) -> 0 | H13: =SUM(H8:H12) -> 0 | J13: =SUM(J8:J12) -> 0 | L13: =SUM(L8:L12) -> 0
A14: Récap 30/09 | D14: =+B13-D13 -> 0 | E14: Récap 31/10 | H14: =+F13-H13 -> 0 | I14: Récap 30/11 | L14: =+J13-L13 -> 0
A16: DÉCEMBRE | E16: Situation fin décembre | I16: JANVIER
A17: RECETTES | C17: DEPENSES | F17: Recettes | G17: Dépenses | H17: Total | I17: RECETTES | K17: DEPENSES
A18: Dates | B18: Montant | C18: Activités | D18: Montant | E18: =A14 -> Récap 30/09 | F18: =B13 -> 0 | G18: =D13 -> 0 | H18: =D14 -> 0 | J18: Montant | K18: Activités | L18: Montant
F19: =F13 -> 0 | G19: =H13 -> 0 | H19: =H14 -> 0
E20: =I14 -> Récap 30/11 | F20: =J13 -> 0 | G20: =L13 -> 0 | H20: =L14 -> 0
E21: =A25 -> Récap 31/12 | F21: =B24 -> 0 | G21: =D24 -> 0 | H21: =D25 -> 0
E22: Report Sept | H22: =B8 -> 0
E23: Situation 31/12 | F23: =SUM(F18:F22) -> 0 | G23: =SUM(G18:G22) -> 0 | H23: =SUM(H18:H22) -> 0
B24: =SUM(B19:B23) -> 0 | D24: =SUM(D19:D23) -> 0 | J24: =SUM(J19:J23) -> 0 | L24: =SUM(L19:L23) -> 0
A25: Récap 31/12 | D25: =+B24-D24 -> 0 | I25: Récap 31/01 | L25: =+J24-L24 -> 0
A27: FÉVRIER | E27: MARS | I27: AVRIL
A28: RECETTES | C28: DEPENSES | E28: RECETTES | G28: DEPENSES | I28: RECETTES | K28: DEPENSES
A29: Dates | B29: Montant | C29: Activités | D29: Montant | E29: Dates | F29: Montant | G29: Activités | H29: Montant | I29: Dates | J29: Montant | K29: Activités | L29: Montant
B35: =SUM(B30:B34) -> 0 | D35: =SUM(D30:D34) -> 0 | F35: =SUM(F30:F34) -> 0 | H35: =SUM(H30:H34) -> 0 | J35: =SUM(J30:J34) -> 0 | L35: =SUM(L30:L34) -> 0
A36: Récap 28/02 | D36: =+B35-D35 -> 0 | E36: Récap 31/03 | H36: =+F35-H35 -> 0 | I36: Récap 30/04 | L36: =+J35-L35 -> 0
A39: MAI | E39: JUIN | I39: Situation fin juin
A40: RECETTES | C40: DEPENSES | E40: RECETTES | G40: DEPENSES | J40: Recettes | K40: Dépenses | L40: Total
A41: Dates | B41: Montant | C41: Activités | D41: Montant | E41: Dates | F41: Montant | G41: Activités | H41: Montant | I41: =E23 -> Situation 31/12 | L41: =H23 -> 0
I42: =I25 -> Récap 31/01 | J42: =J24 -> 0 | K42: =L24 -> 0 | L42: =L25 -> 0
I43: =A36 -> Récap 28/02 | J43: =B35 -> 0 | K43: =D35 -> 0 | L43: =D36 -> 0
I44: =E36 -> Récap 31/03 | J44: =F35 -> 0 | K44: =H35 -> 0 | L44: =H36 -> 0
I45: =I36 -> Récap 30/04 | J45: =J35 -> 0 | K45: =L35 -> 0 | L45: =L36 -> 0
I46: =A48 -> Récap 31/05 | J46: =B47 -> 0 | K46: =D47 -> 0 | L46: =D48 -> 0
B47: =SUM(B42:B46) -> 0 | D47: =SUM(D42:D46) -> 0 | F47: =SUM(F42:F46) -> 0 | H47: =SUM(H42:H46) -> 0 | I47: =E48 -> Récap 30/06 | J47: =F47 -> 0 | K47: =H47 -> 0 | L47: =H48 -> 0
A48: Récap 31/05 | D48: =+B47-D47 -> 0 | E48: Récap 30/06 | H48: =+F47-H47 -> 0 | I48: Situation 30/06 | J48: =SUM(J42:J47) -> 0 | K48: =SUM(K42:K47) -> 0 | L48: =SUM(L41:L47) -> 0
L50: =F23+J48-G23-K48+B8 -> 0
J52: =B13+F13+J13+B24+J24+B35+F35+J35+B47+F47 -> 0 | K52: =D13+H13+L13+D24+L24+D35+H35+L35+D47+H47 -> 0 | L52: =B8+J52-K52 -> 0

Sheet BEAURY
J1: Année scolaire : | L1: =' Liste élèves'!B1 -> 2018-2019
A3: NOM : | B3: =' Liste élèves'!A11 -> BEAURY | D3: PRENOM: | E3: =' Liste élèves'!B11 -> Conrad | H3: CLASSE : | I3: =' Liste élèves'!C11 -> Classe PB
A5: SEPTEMBRE | E5: OCTOBRE | I5: NOVEMBRE
A6: RECETTES | C6: DEPENSES | E6: RECETTES | G6: DEPENSES | I6: RECETTES | K6: DEPENSES
A7: Dates | B7: Montant | C7: Activités | D7: Montant | E7: Dates | F7: Montant | G7: Activités | H7: Montant | I7: Dates | J7: Montant | K7: Activités | L7: Montant
A8: Report juin
B13: =SUM(B9:B12) -> 0 | D13: =SUM(D8:D12) -> 0 | F13: =SUM(F8:F12) -> 0 | H13: =SUM(H8:H12) -> 0 | J13: =SUM(J8:J12) -> 0 | L13: =SUM(L8:L12) -> 0
A14: Récap 30/09 | D14: =+B13-D13 -> 0 | E14: Récap 31/10 | H14: =+F13-H13 -> 0 | I14: Récap 30/11 | L14: =+J13-L13 -> 0
A16: DÉCEMBRE | E16: Situation fin décembre | I16: JANVIER
A17: RECETTES | C17: DEPENSES | F17: Recettes | G17: Dépenses | H17: Total | I17: RECETTES | K17: DEPENSES
A18: Dates | B18: Montant | C18: Activités | D18: Montant | E18: =A14 -> Récap 30/09 | F18: =B13 -> 0 | G18: =D13 -> 0 | H18: =D14 -> 0 | J18: Montant | K18: Activités | L18: Montant
F19: =F13 -> 0 | G19: =H13 -> 0 | H19: =H14 -> 0
E20: =I14 -> Récap 30/11 | F20: =J13 -> 0 | G20: =L13 -> 0 | H20: =L14 -> 0
E21: =A25 -> Récap 31/12 | F21: =B24 -> 0 | G21: =D24 -> 0 | H21: =D25 -> 0
E22: Report Sept | H22: =B8 -> 0
E23: Situation 31/12 | F23: =SUM(F18:F22) -> 0 | G23: =SUM(G18:G22) -> 0 | H23: =SUM(H18:H22) -> 0
B24: =SUM(B19:B23) -> 0 | D24: =SUM(D19:D23) -> 0 | J24: =SUM(J19:J23) -> 0 | L24: =SUM(L19:L23) -> 0
A25: Récap 31/12 | D25: =+B24-D24 -> 0 | I25: Récap 31/01 | L25: =+J24-L24 -> 0
A27: FÉVRIER | E27: MARS | I27: AVRIL
A28: RECETTES | C28: DEPENSES | E28: RECETTES | G28: DEPENSES | I28: RECETTES | K28: DEPENSES
A29: Dates | B29: Montant | C29: Activités | D29: Montant | E29: Dates | F29: Montant | G29: Activités | H29: Montant | I29: Dates | J29: Montant | K29: Activités | L29: Montant
B35: =SUM(B30:B34) -> 0 | D35: =SUM(D30:D34) -> 0 | F35: =SUM(F30:F34) -> 0 | H35: =SUM(H30:H34) -> 0 | J35: =SUM(J30:J34) -> 0 | L35: =SUM(L30:L34) -> 0
A36: Récap 28/02 | D36: =+B35-D35 -> 0 | E36: Récap 31/03 | H36: =+F35-H35 -> 0 | I36: Récap 30/04 | L36: =+J35-L35 -> 0
A39: MAI | E39: JUIN | I39: Situation fin juin
A40: RECETTES | C40: DEPENSES | E40: RECETTES | G40: DEPENSES | J40: Recettes | K40: Dépenses | L40: Total
A41: Dates | B41: Montant | C41: Activités | D41: Montant | E41: Dates | F41: Montant | G41: Activités | H41: Montant | I41: =E23 -> Situation 31/12 | L41: =H23 -> 0
I42: =I25 -> Récap 31/01 | J42: =J24 -> 0 | K42: =L24 -> 0 | L42: =L25 -> 0
I43: =A36 -> Récap 28/02 | J43: =B35 -> 0 | K43: =D35 -> 0 | L43: =D36 -> 0
I44: =E36 -> Récap 31/03 | J44: =F35 -> 0 | K44: =H35 -> 0 | L44: =H36 -> 0
I45: =I36 -> Récap 30/04 | J45: =J35 -> 0 | K45: =L35 -> 0 | L45: =L36 -> 0
I46: =A48 -> Récap 31/05 | J46: =B47 -> 0 | K46: =D47 -> 0 | L46: =D48 -> 0
B47: =SUM(B42:B46) -> 0 | D47: =SUM(D42:D46) -> 0 | F47: =SUM(F42:F46) -> 0 | H47: =SUM(H42:H46) -> 0 | I47: =E48 -> Récap 30/06 | J47: =F47 -> 0 | K47: =H47 -> 0 | L47: =H48 -> 0
A48: Récap 31/05 | D48: =+B47-D47 -> 0 | E48: Récap 30/06 | H48: =+F47-H47 -> 0 | I48: Situation 30/06 | J48: =SUM(J42:J47) -> 0 | K48: =SUM(K42:K47) -> 0 | L48: =SUM(L41:L47) -> 0
L50: =F23+J48-G23-K48+B8 -> 0
J52: =B13+F13+J13+B24+J24+B35+F35+J35+B47+F47 -> 0 | K52: =D13+H13+L13+D24+L24+D35+H35+L35+D47+H47 -> 0 | L52: =B8+J52-K52 -> 0

Sheet BEHETSK
J1: Année scolaire : | L1: =' Liste élèves'!B1 -> 2018-2019
A3: NOM : | B3: =' Liste élèves'!A12 -> BEHETSK | D3: PRENOM: | E3: =' Liste élèves'!B12 -> Kelly | H3: CLASSE : | I3: =' Liste élèves'!C12 -> Classe PC
A5: SEPTEMBRE | E5: OCTOBRE | I5: NOVEMBRE
A6: RECETTES | C6: DEPENSES | E6: RECETTES | G6: DEPENSES | I6: RECETTES | K6: DEPENSES
A7: Dates | B7: Montant | C7: Activités | D7: Montant | E7: Dates | F7: Montant | G7: Activités | H7: Montant | I7: Dates | J7: Montant | K7: Activités | L7: Montant
A8: Report juin | B8: 39
B13: =SUM(B9:B12) -> 0 | D13: =SUM(D8:D12) -> 0 | F13: =SUM(F8:F12) -> 0 | H13: =SUM(H8:H12) -> 0 | J13: =SUM(J8:J12) -> 0 | L13: =SUM(L8:L12) -> 0
A14: Récap 30/09 | D14: =+B13-D13 -> 0 | E14: Récap 31/10 | H14: =+F13-H13 -> 0 | I14: Récap 30/11 | L14: =+J13-L13 -> 0
A16: DÉCEMBRE | E16: Situation fin décembre | I16: JANVIER
A17: RECETTES | C17: DEPENSES | F17: Recettes | G17: Dépenses | H17: Total | I17: RECETTES | K17: DEPENSES
A18: Dates | B18: Montant | C18: Activités | D18: Montant | E18: =A14 -> Récap 30/09 | F18: =B13 -> 0 | G18: =D13 -> 0 | H18: =D14 -> 0 | I18: Dates | J18: Montant | K18: Activités | L18: Montant
E19: =E14 -> Récap 31/10 | F19: =F13 -> 0 | G19: =H13 -> 0 | H19: =H14 -> 0
E20: =I14 -> Récap 30/11 | F20: =J13 -> 0 | G20: =L13 -> 0 | H20: =L14 -> 0
E21: =A25 -> Récap 31/12 | F21: =B24 -> 0 | G21: =D24 -> 0 | H21: =D25 -> 0
E22: Report Sept | H22: =B8 -> 39
E23: Situation 31/12 | F23: =SUM(F18:F22) -> 0 | G23: =SUM(G18:G22) -> 0 | H23: =SUM(H18:H22) -> 39
B24: =SUM(B19:B23) -> 0 | D24: =SUM(D19:D23) -> 0 | J24: =SUM(J19:J23) -> 0 | L24: =SUM(L19:L23) -> 0
A25: Récap 31/12 | D25: =+B24-D24 -> 0 | I25: Récap 31/01 | L25: =+J24-L24 -> 0
A27: FÉVRIER | E27: MARS | I27: AVRIL
A28: RECETTES | C28: DEPENSES | E28: RECETTES | G28: DEPENSES | I28: RECETTES | K28: DEPENSES
A29: Dates | B29: Montant | C29: Activités | D29: Montant | E29: Dates | F29: Montant | G29: Activités | H29: Montant | I29: Dates | J29: Montant | K29: Activités | L29: Montant
B35: =SUM(B30:B34) -> 0 | D35: =SUM(D30:D34) -> 0 | F35: =SUM(F30:F34) -> 0 | H35: =SUM(H30:H34) -> 0 | J35: =SUM(J30:J34) -> 0 | L35: =SUM(L30:L34) -> 0
A36: Récap 28/02 | D36: =+B35-D35 -> 0 | E36: Récap 31/03 | H36: =+F35-H35 -> 0 | I36: Récap 30/04 | L36: =+J35-L35 -> 0
A39: MAI | E39: JUIN | I39: Situation fin juin
A40: RECETTES | C40: DEPENSES | E40: RECETTES | G40: DEPENSES | J40: Recettes | K40: Dépenses | L40: Total
A41: Dates | B41: Montant | C41: Activités | D41: Montant | E41: Dates | F41: Montant | G41: Activités | H41: Montant | I41: =E23 -> Situation 31/12 | L41: =H23 -> 39
I42: =I25 -> Récap 31/01 | J42: =J24 -> 0 | K42: =L24 -> 0 | L42: =L25 -> 0
I43: =A36 -> Récap 28/02 | J43: =B35 -> 0 | K43: =D35 -> 0 | L43: =D36 -> 0
I44: =E36 -> Récap 31/03 | J44: =F35 -> 0 | K44: =H35 -> 0 | L44: =H36 -> 0
I45: =I36 -> Récap 30/04 | J45: =J35 -> 0 | K45: =L35 -> 0 | L45: =L36 -> 0
I46: =A48 -> Récap 31/05 | J46: =B47 -> 0 | K46: =D47 -> 0 | L46: =D48 -> 0
B47: =SUM(B42:B46) -> 0 | D47: =SUM(D42:D46) -> 0 | F47: =SUM(F42:F46) -> 0 | H47: =SUM(H42:H46) -> 0 | I47: =E48 -> Récap 30/06 | J47: =F47 -> 0 | K47: =H47 -> 0 | L47: =H48 -> 0
A48: Récap 31/05 | D48: =+B47-D47 -> 0 | E48: Récap 30/06 | H48: =+F47-H47 -> 0 | I48: Situation 30/06 | J48: =SUM(J42:J47) -> 0 | K48: =SUM(K42:K47) -> 0 | L48: =SUM(L41:L47) -> 39
L50: =F23+J48-G23-K48+B8 -> 39
J52: =B13+F13+J13+B24+J24+B35+F35+J35+B47+F47 -> 0 | K52: =D13+H13+L13+D24+L24+D35+H35+L35+D47+H47 -> 0 | L52: =B8+J52-K52 -> 39

Sheet BEHETSP
J1: Année scolaire : | L1: =' Liste élèves'!B1 -> 2018-2019
A3: NOM : | B3: =' Liste élèves'!A13 -> BEHETSP | D3: PRENOM: | E3: =' Liste élèves'!B13 -> Pascal | H3: CLASSE : | I3: =' Liste élèves'!C13 -> Classe FB
A5: SEPTEMBRE | E5: OCTOBRE | I5: NOVEMBRE
A6: RECETTES | C6: DEPENSES | E6: RECETTES | G6: DEPENSES | I6: RECETTES | K6: DEPENSES
A7: Dates | B7: Montant | C7: Activités | D7: Montant | E7: Dates | F7: Montant | G7: Activités | H7: Montant | I7: Dates | J7: Montant | K7: Activités | L7: Montant
A8: Report juin | B8: 38
B13: =SUM(B9:B12) -> 0 | D13: =SUM(D8:D12) -> 0 | F13: =SUM(F8:F12) -> 0 | H13: =SUM(H8:H12) -> 0 | J13: =SUM(J8:J12) -> 0 | L13: =SUM(L8:L12) -> 0
A14: Récap 30/09 | D14: =+B13-D13 -> 0 | E14: Récap 31/10 | H14: =+F13-H13 -> 0 | I14: Récap 30/11 | L14: =+J13-L13 -> 0
A16: DÉCEMBRE | E16: Situation fin décembre | I16: JANVIER
A17: RECETTES | C17: DEPENSES | F17: Recettes | G17: Dépenses | H17: Total | I17: RECETTES | K17: DEPENSES
A18: Dates | B18: Montant | C18: Activités | D18: Montant | E18: =A14 -> Récap 30/09 | F18: =B13 -> 0 | G18: =D13 -> 0 | H18: =D14 -> 0 | I18: Dates | J18: Montant | K18: Activités | L18: Montant
E19: =E14 -> Récap 31/10 | F19: =F13 -> 0 | G19: =H13 -> 0 | H19: =H14 -> 0
E20: =I14 -> Récap 30/11 | F20: =J13 -> 0 | G20: =L13 -> 0 | H20: =L14 -> 0
E21: =A25 -> Récap 31/12 | F21: =B24 -> 0 | G21: =D24 -> 0 | H21: =D25 -> 0
E22: Report Sept | H22: =B8 -> 38
E23: Situation 31/12 | F23: =SUM(F18:F22) -> 0 | G23: =SUM(G18:G22) -> 0 | H23: =SUM(H18:H22) -> 38
B24: =SUM(B19:B23) -> 0 | D24: =SUM(D19:D23) -> 0 | J24: =SUM(J19:J23) -> 0 | L24: =SUM(L19:L23) -> 0
A25: Récap 31/12 | D25: =+B24-D24 -> 0 | I25: Récap 31/01 | L25: =+J24-L24 -> 0
A27: FÉVRIER | E27: MARS | I27: AVRIL
A28: RECETTES | C28: DEPENSES | E28: RECETTES | G28: DEPENSES | I28: RECETTES | K28: DEPENSES
A29: Dates | B29: Montant | C29: Activités | D29: Montant | E29: Dates | F29: Montant | G29: Activités | H29: Montant | I29: Dates | J29: Montant | K29: Activités | L29: Montant
B35: =SUM(B30:B34) -> 0 | D35: =SUM(D30:D34) -> 0 | F35: =SUM(F30:F34) -> 0 | H35: =SUM(H30:H34) -> 0 | J35: =SUM(J30:J34) -> 0 | L35: =SUM(L30:L34) -> 0
A36: Récap 28/02 | D36: =+B35-D35 -> 0 | E36: Récap 31/03 | H36: =+F35-H35 -> 0 | I36: Récap 30/04 | L36: =+J35-L35 -> 0
A39: MAI | E39: JUIN | I39: Situation fin juin
A40: RECETTES | C40: DEPENSES | E40: RECETTES | G40: DEPENSES | J40: Recettes | K40: Dépenses | L40: Total
A41: Dates | B41: Montant | C41: Activités | D41: Montant | E41: Dates | F41: Montant | G41: Activités | H41: Montant | I41: =E23 -> Situation 31/12 | L41: =H23 -> 38
I42: =I25 -> Récap 31/01 | J42: =J24 -> 0 | K42: =L24 -> 0 | L42: =L25 -> 0
I43: =A36 -> Récap 28/02 | J43: =B35 -> 0 | K43: =D35 -> 0 | L43: =D36 -> 0
I44: =E36 -> Récap 31/03 | J44: =F35 -> 0 | K44: =H35 -> 0 | L44: =H36 -> 0
I45: =I36 -> Récap 30/04 | J45: =J35 -> 0 | K45: =L35 -> 0 | L45: =L36 -> 0
I46: =A48 -> Récap 31/05 | J46: =B47 -> 0 | K46: =D47 -> 0 | L46: =D48 -> 0
B47: =SUM(B42:B46) -> 0 | D47: =SUM(D42:D46) -> 0 | F47: =SUM(F42:F46) -> 0 | H47: =SUM(H42:H46) -> 0 | I47: =E48 -> Récap 30/06 | J47: =F47 -> 0 | K47: =H47 -> 0 | L47: =H48 -> 0
A48: Récap 31/05 | D48: =+B47-D47 -> 0 | E48: Récap 30/06 | H48: =+F47-H47 -> 0 | I48: Situation 30/06 | J48: =SUM(J42:J47) -> 0 | K48: =SUM(K42:K47) -> 0 | L48: =SUM(L41:L47) -> 38
L50: =F23+J48-G23-K48+B8 -> 38
J52: =B13+F13+J13+B24+J24+B35+F35+J35+B47+F47 -> 0 | K52: =D13+H13+L13+D24+L24+D35+H35+L35+D47+H47 -> 0 | L52: =B8+J52-K52 -> 38

Sheet BELLENS
J1: Année scolaire : | L1: =' Liste élèves'!B1 -> 2018-2019
A3: NOM : | B3: =' Liste élèves'!A14 -> BELLENS | D3: PRENOM: | E3: =' Liste élèves'!B14 -> Manola | H3: CLASSE : | I3: =' Liste élèves'!C14 -> Classe 5
A5: SEPTEMBRE | E5: OCTOBRE | I5: NOVEMBRE
A6: RECETTES | C6: DEPENSES | E6: RECETTES | G6: DEPENSES | I6: RECETTES | K6: DEPENSES
A7: Dates | B7: Montant | C7: Activités | D7: Montant | E7: Dates | F7: Montant | G7: Activités | H7: Montant | I7: Dates | J7: Montant | K7: Activités | L7: Montant
A8: Report juin
B13: =SUM(B9:B12) -> 0 | D13: =SUM(D8:D12) -> 0 | F13: =SUM(F8:F12) -> 0 | H13: =SUM(H8:H12) -> 0 | J13: =SUM(J8:J12) -> 0 | L13: =SUM(L8:L12) -> 0
A14: Récap 30/09 | D14: =+B13-D13 -> 0 | E14: Récap 31/10 | H14: =+F13-H13 -> 0 | I14: Récap 30/11 | L14: =+J13-L13 -> 0
A16: DÉCEMBRE | E16: Situation fin décembre | I16: JANVIER
A17: RECETTES | C17: DEPENSES | F17: Recettes | G17: Dépenses | H17: Total | I17: RECETTES | K17: DEPENSES
A18: Dates | B18: Montant | C18: Activités | D18: Montant | E18: =A14 -> Récap 30/09 | F18: =B13 -> 0 | G18: =D13 -> 0 | H18: =D14 -> 0 | I18: Dates | J18: Montant | K18: Activités | L18: Montant
E19: =E14 -> Récap 31/10 | F19: =F13 -> 0 | G19: =H13 -> 0 | H19: =H14 -> 0
E20: =I14 -> Récap 30/11 | F20: =J13 -> 0 | G20: =L13 -> 0 | H20: =L14 -> 0
E21: =A25 -> Récap 31/12 | F21: =B24 -> 0 | G21: =D24 -> 0 | H21: =D25 -> 0
E22: Report Sept | H22: =B8 -> 0
E23: Situation 31/12 | F23: =SUM(F18:F22) -> 0 | G23: =SUM(G18:G22) -> 0 | H23: =SUM(H18:H22) -> 0
B24: =SUM(B19:B23) -> 0 | D24: =SUM(D19:D23) -> 0 | J24: =SUM(J19:J23) -> 0 | L24: =SUM(L19:L23) -> 0
A25: Récap 31/12 | D25: =+B24-D24 -> 0 | I25: Récap 31/01 | L25: =+J24-L24 -> 0
A27: FÉVRIER | E27: MARS | I27: AVRIL
A28: RECETTES | C28: DEPENSES | E28: RECETTES | G28: DEPENSES | I28: RECETTES | K28: DEPENSES
A29: Dates | B29: Montant | C29: Activités | D29: Montant | E29: Dates | F29: Montant | G29: Activités | H29: Montant | I29: Dates | J29: Montant | K29: Activités | L29: Montant
B35: =SUM(B30:B34) -> 0 | D35: =SUM(D30:D34) -> 0 | F35: =SUM(F30:F34) -> 0 | H35: =SUM(H30:H34) -> 0 | J35: =SUM(J30:J34) -> 0 | L35: =SUM(L30:L34) -> 0
A36: Récap 28/02 | D36: =+B35-D35 -> 0 | E36: Récap 31/03 | H36: =+F35-H35 -> 0 | I36: Récap 30/04 | L36: =+J35-L35 -> 0
A39: MAI | E39: JUIN | I39: Situation fin juin
A40: RECETTES | C40: DEPENSES | E40: RECETTES | G40: DEPENSES | J40: Recettes | K40: Dépenses | L40: Total
A41: Dates | B41: Montant | C41: Activités | D41: Montant | E41: Dates | F41: Montant | G41: Activités | H41: Montant | I41: =E23 -> Situation 31/12 | L41: =H23 -> 0
I42: =I25 -> Récap 31/01 | J42: =J24 -> 0 | K42: =L24 -> 0 | L42: =L25 -> 0
I43: =A36 -> Récap 28/02 | J43: =B35 -> 0 | K43: =D35 -> 0 | L43: =D36 -> 0
I44: =E36 -> Récap 31/03 | J44: =F35 -> 0 | K44: =H35 -> 0 | L44: =H36 -> 0
I45: =I36 -> Récap 30/04 | J45: =J35 -> 0 | K45: =L35 -> 0 | L45: =L36 -> 0
I46: =A48 -> Récap 31/05 | J46: =B47 -> 0 | K46: =D47 -> 0 | L46: =D48 -> 0
B47: =SUM(B42:B46) -> 0 | D47: =SUM(D42:D46) -> 0 | F47: =SUM(F42:F46) -> 0 | H47: =SUM(H42:H46) -> 0 | I47: =E48 -> Récap 30/06 | J47: =F47 -> 0 | K47: =H47 -> 0 | L47: =H48 -> 0
A48: Récap 31/05 | D48: =+B47-D47 -> 0 | E48: Récap 30/06 | H48: =+F47-H47 -> 0 | I48: Situation 30/06 | J48: =SUM(J42:J47) -> 0 | K48: =SUM(K42:K47) -> 0 | L48: =SUM(L41:L47) -> 0
L50: =F23+J48-G23-K48+B8 -> 0
J52: =B13+F13+J13+B24+J24+B35+F35+J35+B47+F47 -> 0 | K52: =D13+H13+L13+D24+L24+D35+H35+L35+D47+H47 -> 0 | L52: =B8+J52-K52 -> 0

Sheet BERTINOTTI
J1: Année scolaire : | L1: =' Liste élèves'!B1 -> 2018-2019
A3: NOM : | B3: =' Liste élèves'!A15 -> BERTINOTTI | D3: PRENOM: | E3: =' Liste élèves'!B15 -> Synthia | H3: CLASSE : | I3: =' Liste élèves'!C15 -> Classe 4
A5: SEPTEMBRE | E5: OCTOBRE | I5: NOVEMBRE
A6: RECETTES | C6: DEPENSES | E6: RECETTES | G6: DEPENSES | I6: RECETTES | K6: DEPENSES
A7: Dates | B7: Montant | C7: Activités | D7: Montant | E7: Dates | F7: Montant | G7: Activités | H7: Montant | I7: Dates | J7: Montant | K7: Activités | L7: Montant
A8: Report juin | B8: 67
B13: =SUM(B9:B12) -> 0 | D13: =SUM(D8:D12) -> 0 | F13: =SUM(F8:F12) -> 0 | H13: =SUM(H8:H12) -> 0 | J13: =SUM(J8:J12) -> 0 | L13: =SUM(L8:L12) -> 0
A14: Récap 30/09 | D14: =+B13-D13 -> 0 | E14: Récap 31/10 | H14: =+F13-H13 -> 0 | I14: Récap 30/11 | L14: =+J13-L13 -> 0
A16: DÉCEMBRE | E16: Situation fin décembre | I16: JANVIER
A17: RECETTES | C17: DEPENSES | F17: Recettes | G17: Dépenses | H17: Total | I17: RECETTES | K17: DEPENSES
A18: Dates | B18: Montant | C18: Activités | D18: Montant | E18: =A14 -> Récap 30/09 | F18: =B13 -> 0 | G18: =D13 -> 0 | H18: =D14 -> 0 | I18: Dates | J18: Montant | K18: Activités | L18: Montant
E19: =E14 -> Récap 31/10 | F19: =F13 -> 0 | G19: =H13 -> 0 | H19: =H14 -> 0
E20: =I14 -> Récap 30/11 | F20: =J13 -> 0 | G20: =L13 -> 0 | H20: =L14 -> 0
E21: =A25 -> Récap 31/12 | F21: =B24 -> 0 | G21: =D24 -> 0 | H21: =D25 -> 0
E22: Report Sept | H22: =B8 -> 67
E23: Situation 31/12 | F23: =SUM(F18:F22) -> 0 | G23: =SUM(G18:G22) -> 0 | H23: =SUM(H18:H22) -> 67
B24: =SUM(B19:B23) -> 0 | D24: =SUM(D19:D23) -> 0 | J24: =SUM(J19:J23) -> 0 | L24: =SUM(L19:L23) -> 0
A25: Récap 31/12 | D25: =+B24-D24 -> 0 | I25: Récap 31/01 | L25: =+J24-L24 -> 0
A27: FÉVRIER | E27: MARS | I27: AVRIL
A28: RECETTES | C28: DEPENSES | E28: RECETTES | G28: DEPENSES | I28: RECETTES | K28: DEPENSES
A29: Dates | B29: Montant | C29: Activités | D29: Montant | E29: Dates | F29: Montant | G29: Activités | H29: Montant | I29: Dates | J29: Montant | K29: Activités | L29: Montant
B35: =SUM(B30:B34) -> 0 | D35: =SUM(D30:D34) -> 0 | F35: =SUM(F30:F34) -> 0 | H35: =SUM(H30:H34) -> 0 | J35: =SUM(J30:J34) -> 0 | L35: =SUM(L30:L34) -> 0
A36: Récap 28/02 | D36: =+B35-D35 -> 0 | E36: Récap 31/03 | H36: =+F35-H35 -> 0 | I36: Récap 30/04 | L36: =+J35-L35 -> 0
A39: MAI | E39: JUIN | I39: Situation fin juin
A40: RECETTES | C40: DEPENSES | E40: RECETTES | G40: DEPENSES | J40: Recettes | K40: Dépenses | L40: Total
A41: Dates | B41: Montant | C41: Activités | D41: Montant | E41: Dates | F41: Montant | G41: Activités | H41: Montant | I41: =E23 -> Situation 31/12 | L41: =H23 -> 67
I42: =I25 -> Récap 31/01 | J42: =J24 -> 0 | K42: =L24 -> 0 | L42: =L25 -> 0
I43: =A36 -> Récap 28/02 | J43: =B35 -> 0 | K43: =D35 -> 0 | L43: =D36 -> 0
I44: =E36 -> Récap 31/03 | J44: =F35 -> 0 | K44: =H35 -> 0 | L44: =H36 -> 0
I45: =I36 -> Récap 30/04 | J45: =J35 -> 0 | K45: =L35 -> 0 | L45: =L36 -> 0
I46: =A48 -> Récap 31/05 | J46: =B47 -> 0 | K46: =D47 -> 0 | L46: =D48 -> 0
B47: =SUM(B42:B46) -> 0 | D47: =SUM(D42:D46) -> 0 | F47: =SUM(F42:F46) -> 0 | H47: =SUM(H42:H46) -> 0 | I47: =E48 -> Récap 30/06 | J47: =F47 -> 0 | K47: =H47 -> 0 | L47: =H48 -> 0
A48: Récap 31/05 | D48: =+B47-D47 -> 0 | E48: Récap 30/06 | H48: =+F47-H47 -> 0 | I48: Situation 30/06 | J48: =SUM(J42:J47) -> 0 | K48: =SUM(K42:K47) -> 0 | L48: =SUM(L41:L47) -> 67
L50: =F23+J48-G23-K48+B8 -> 67
J52: =B13+F13+J13+B24+J24+B35+F35+J35+B47+F47 -> 0 | K52: =D13+H13+L13+D24+L24+D35+H35+L35+D47+H47 -> 0 | L52: =B8+J52-K52 -> 67

Sheet BERTRANDB
J1: Année scolaire : | L1: =' Liste élèves'!B1 -> 2018-2019
A3: NOM : | B3: =' Liste élèves'!A16 -> BERTRANDB | D3: PRENOM: | E3: =' Liste élèves'!B16 -> Brandon | H3: CLASSE : | I3: =' Liste élèves'!C16 -> Classe FB
A5: SEPTEMBRE | E5: OCTOBRE | I5: NOVEMBRE
A6: RECETTES | C6: DEPENSES | E6: RECETTES | G6: DEPENSES | I6: RECETTES | K6: DEPENSES
A7: Dates | B7: Montant | C7: Activités | D7: Montant | E7: Dates | F7: Montant | G7: Activités | H7: Montant | I7: Dates | J7: Montant | K7: Activités | L7: Montant
A8: Report juin | B8: -12
B13: =SUM(B9:B12) -> 0 | D13: =SUM(D8:D12) -> 0 | F13: =SUM(F8:F12) -> 0 | H13: =SUM(H8:H12) -> 0 | J13: =SUM(J8:J12) -> 0 | L13: =SUM(L8:L12) -> 0
A14: Récap 30/09 | D14: =+B13-D13 -> 0 | E14: Récap 31/10 | H14: =+F13-H13 -> 0 | I14: Récap 30/11 | L14: =+J13-L13 -> 0
A16: DÉCEMBRE | E16: Situation fin décembre | I16: JANVIER
A17: RECETTES | C17: DEPENSES | F17: Recettes | G17: Dépenses | H17: Total | I17: RECETTES | K17: DEPENSES
A18: Dates | B18: Montant | C18: Activités | D18: Montant | E18: =A14 -> Récap 30/09 | F18: =B13 -> 0 | G18: =D13 -> 0 | H18: =D14 -> 0 | I18: Dates | J18: Montant | K18: Activités | L18: Montant
E19: =E14 -> Récap 31/10 | F19: =F13 -> 0 | G19: =H13 -> 0 | H19: =H14 -> 0
E20: =I14 -> Récap 30/11 | F20: =J13 -> 0 | G20: =L13 -> 0 | H20: =L14 -> 0
E21: =A25 -> Récap 31/12 | F21: =B24 -> 0 | G21: =D24 -> 0 | H21: =D25 -> 0
E22: Report Sept | H22: =B8 -> -12
E23: Situation 31/12 | F23: =SUM(F18:F22) -> 0 | G23: =SUM(G18:G22) -> 0 | H23: =SUM(H18:H22) -> -12
B24: =SUM(B19:B23) -> 0 | D24: =SUM(D19:D23) -> 0 | J24: =SUM(J19:J23) -> 0 | L24: =SUM(L19:L23) -> 0
A25: Récap 31/12 | D25: =+B24-D24 -> 0 | I25: Récap 31/01 | L25: =+J24-L24 -> 0
A27: FÉVRIER | E27: MARS | I27: AVRIL
A28: RECETTES | C28: DEPENSES | E28: RECETTES | G28: DEPENSES | I28: RECETTES | K28: DEPENSES
A29: Dates | B29: Montant | C29: Activités | D29: Montant | E29: Dates | F29: Montant | G29: Activités | H29: Montant | I29: Dates | J29: Montant | K29: Activités | L29: Montant
B35: =SUM(B30:B34) -> 0 | D35: =SUM(D30:D34) -> 0 | F35: =SUM(F30:F34) -> 0 | H35: =SUM(H30:H34) -> 0 | J35: =SUM(J30:J34) -> 0 | L35: =SUM(L30:L34) -> 0
A36: Récap 28/02 | D36: =+B35-D35 -> 0 | E36: Récap 31/03 | H36: =+F35-H35 -> 0 | I36: Récap 30/04 | L36: =+J35-L35 -> 0
A39: MAI | E39: JUIN | I39: Situation fin juin
A40: RECETTES | C40: DEPENSES | E40: RECETTES | G40: DEPENSES | J40: Recettes | K40: Dépenses | L40: Total
A41: Dates | B41: Montant | C41: Activités | D41: Montant | E41: Dates | F41: Montant | G41: Activités | H41: Montant | I41: =E23 -> Situation 31/12 | L41: =H23 -> -12
I42: =I25 -> Récap 31/01 | J42: =J24 -> 0 | K42: =L24 -> 0 | L42: =L25 -> 0
I43: =A36 -> Récap 28/02 | J43: =B35 -> 0 | K43: =D35 -> 0 | L43: =D36 -> 0
I44: =E36 -> Récap 31/03 | J44: =F35 -> 0 | K44: =H35 -> 0 | L44: =H36 -> 0
I45: =I36 -> Récap 30/04 | J45: =J35 -> 0 | K45: =L35 -> 0 | L45: =L36 -> 0
I46: =A48 -> Récap 31/05 | J46: =B47 -> 0 | K46: =D47 -> 0 | L46: =D48 -> 0
B47: =SUM(B42:B46) -> 0 | D47: =SUM(D42:D46) -> 0 | F47: =SUM(F42:F46) -> 0 | H47: =SUM(H42:H46) -> 0 | I47: =E48 -> Récap 30/06 | J47: =F47 -> 0 | K47: =H47 -> 0 | L47: =H48 -> 0
A48: Récap 31/05 | D48: =+B47-D47 -> 0 | E48: Récap 30/06 | H48: =+F47-H47 -> 0 | I48: Situation 30/06 | J48: =SUM(J42:J47) -> 0 | K48: =SUM(K42:K47) -> 0 | L48: =SUM(L41:L47) -> -12
L50: =F23+J48-G23-K48+B8 -> -12
J52: =B13+F13+J13+B24+J24+B35+F35+J35+B47+F47 -> 0 | K52: =D13+H13+L13+D24+L24+D35+H35+L35+D47+H47 -> 0 | L52: =B8+J52-K52 -> -12

Sheet BERTRANDd
J1: Année scolaire : | L1: =' Liste élèves'!B1 -> 2018-2019
A3: NOM : | B3: =' Liste élèves'!A17 -> BERTRANDd | D3: PRENOM: | E3: =' Liste élèves'!B17 -> Daisy | H3: CLASSE : | I3: =' Liste élèves'!C17 -> Classe PB
A5: SEPTEMBRE | E5: OCTOBRE | I5: NOVEMBRE
A6: RECETTES | C6: DEPENSES | E6: RECETTES | G6: DEPENSES | I6: RECETTES | K6: DEPENSES
A7: Dates | B7: Montant | C7: Activités | D7: Montant | E7: Dates | F7: Montant | G7: Activités | H7: Montant | I7: Dates | J7: Montant | K7: Activités | L7: Montant
A8: Report juin | B8: -3
B13: =SUM(B9:B12) -> 0 | D13: =SUM(D8:D12) -> 0 | F13: =SUM(F8:F12) -> 0 | H13: =SUM(H8:H12) -> 0 | J13: =SUM(J8:J12) -> 0 | L13: =SUM(L8:L12) -> 0
A14: Récap 30/09 | D14: =+B13-D13 -> 0 | E14: Récap 31/10 | H14: =+F13-H13 -> 0 | I14: Récap 30/11 | L14: =+J13-L13 -> 0
A16: DÉCEMBRE | E16: Situation fin décembre | I16: JANVIER
A17: RECETTES | C17: DEPENSES | F17: Recettes | G17: Dépenses | H17: Total | I17: RECETTES | K17: DEPENSES
A18: Dates | B18: Montant | C18: Activités | D18: Montant | E18: =A14 -> Récap 30/09 | F18: =B13 -> 0 | G18: =D13 -> 0 | H18: =D14 -> 0 | I18: Dates | J18: Montant | K18: Activités | L18: Montant
E19: =E14 -> Récap 31/10 | F19: =F13 -> 0 | G19: =H13 -> 0 | H19: =H14 -> 0
E20: =I14 -> Récap 30/11 | F20: =J13 -> 0 | G20: =L13 -> 0 | H20: =L14 -> 0
E21: =A25 -> Récap 31/12 | F21: =B24 -> 0 | G21: =D24 -> 0 | H21: =D25 -> 0
E22: Report Sept | H22: =B8 -> -3
E23: Situation 31/12 | F23: =SUM(F18:F22) -> 0 | G23: =SUM(G18:G22) -> 0 | H23: =SUM(H18:H22) -> -3
B24: =SUM(B19:B23) -> 0 | D24: =SUM(D19:D23) -> 0 | J24: =SUM(J19:J23) -> 0 | L24: =SUM(L19:L23) -> 0
A25: Récap 31/12 | D25: =+B24-D24 -> 0 | I25: Récap 31/01 | L25: =+J24-L24 -> 0
A27: FÉVRIER | E27: MARS | I27: AVRIL
A28: RECETTES | C28: DEPENSES | E28: RECETTES | G28: DEPENSES | I28: RECETTES | K28: DEPENSES
A29: Dates | B29: Montant | C29: Activités | D29: Montant | E29: Dates | F29: Montant | G29: Activités | H29: Montant | I29: Dates | J29: Montant | K29: Activités | L29: Montant
B35: =SUM(B30:B34) -> 0 | D35: =SUM(D30:D34) -> 0 | F35: =SUM(F30:F34) -> 0 | H35: =SUM(H30:H34) -> 0 | J35: =SUM(J30:J34) -> 0 | L35: =SUM(L30:L34) -> 0
A36: Récap 28/02 | D36: =+B35-D35 -> 0 | E36: Récap 31/03 | H36: =+F35-H35 -> 0 | I36: Récap 30/04 | L36: =+J35-L35 -> 0
A39: MAI | E39: JUIN | I39: Situation fin juin
A40: RECETTES | C40: DEPENSES | E40: RECETTES | G40: DEPENSES | J40: Recettes | K40: Dépenses | L40: Total
A41: Dates | B41: Montant | C41: Activités | D41: Montant | E41: Dates | F41: Montant | G41: Activités | H41: Montant | I41: =E23 -> Situation 31/12 | L41: =H23 -> -3
I42: =I25 -> Récap 31/01 | J42: =J24 -> 0 | K42: =L24 -> 0 | L42: =L25 -> 0
I43: =A36 -> Récap 28/02 | J43: =B35 -> 0 | K43: =D35 -> 0 | L43: =D36 -> 0
I44: =E36 -> Récap 31/03 | J44: =F35 -> 0 | K44: =H35 -> 0 | L44: =H36 -> 0
I45: =I36 -> Récap 30/04 | J45: =J35 -> 0 | K45: =L35 -> 0 | L45: =L36 -> 0
I46: =A48 -> Récap 31/05 | J46: =B47 -> 0 | K46: =D47 -> 0 | L46: =D48 -> 0
B47: =SUM(B42:B46) -> 0 | D47: =SUM(D42:D46) -> 0 | F47: =SUM(F42:F46) -> 0 | H47: =SUM(H42:H46) -> 0 | I47: =E48 -> Récap 30/06 | J47: =F47 -> 0 | K47: =H47 -> 0 | L47: =H48 -> 0
A48: Récap 31/05 | D48: =+B47-D47 -> 0 | E48: Récap 30/06 | H48: =+F47-H47 -> 0 | I48: Situation 30/06 | J48: =SUM(J42:J47) -> 0 | K48: =SUM(K42:K47) -> 0 | L48: =SUM(L41:L47) -> -3
L50: =F23+J48-G23-K48+B8 -> -3
J52: =B13+F13+J13+B24+J24+B35+F35+J35+B47+F47 -> 0 | K52: =D13+H13+L13+D24+L24+D35+H35+L35+D47+H47 -> 0 | L52: =B8+J52-K52 -> -3

Sheet BIZET
J1: Année scolaire : | L1: =' Liste élèves'!B1 -> 2018-2019
A3: NOM : | B3: =' Liste élèves'!A18 -> BIZET | D3: PRENOM: | E3: =' Liste élèves'!B18 -> Dylan | H3: CLASSE : | I3: =' Liste élèves'!C18 -> Classe PB
A5: SEPTEMBRE | E5: OCTOBRE | I5: NOVEMBRE
A6: RECETTES | C6: DEPENSES | E6: RECETTES | G6: DEPENSES | I6: RECETTES | K6: DEPENSES
A7: Dates | B7: Montant | C7: Activités | D7: Montant | E7: Dates | F7: Montant | G7: Activités | H7: Montant | I7: Dates | J7: Montant | K7: Activités | L7: Montant
A8: Report juin | B8: -10.5
B13: =SUM(B9:B12) -> 0 | D13: =SUM(D8:D12) -> 0 | F13: =SUM(F8:F12) -> 0 | H13: =SUM(H8:H12) -> 0 | J13: =SUM(J8:J12) -> 0 | L13: =SUM(L8:L12) -> 0
A14: Récap 30/09 | D14: =+B13-D13 -> 0 | E14: Récap 31/10 | H14: =+F13-H13 -> 0 | I14: Récap 30/11 | L14: =+J13-L13 -> 0
A16: DÉCEMBRE | E16: Situation fin décembre | I16: JANVIER
A17: RECETTES | C17: DEPENSES | F17: Recettes | G17: Dépenses | H17: Total | I17: RECETTES | K17: DEPENSES
A18: Dates | B18: Montant | C18: Activités | D18: Montant | E18: =A14 -> Récap 30/09 | F18: =B13 -> 0 | G18: =D13 -> 0 | H18: =D14 -> 0 | I18: Dates | J18: Montant | K18: Activités | L18: Montant
E19: =E14 -> Récap 31/10 | F19: =F13 -> 0 | G19: =H13 -> 0 | H19: =H14 -> 0
E20: =I14 -> Récap 30/11 | F20: =J13 -> 0 | G20: =L13 -> 0 | H20: =L14 -> 0
E21: =A25 -> Récap 31/12 | F21: =B24 -> 0 | G21: =D24 -> 0 | H21: =D25 -> 0
E22: Report Sept | H22: =B8 -> -10.5
E23: Situation 31/12 | F23: =SUM(F18:F22) -> 0 | G23: =SUM(G18:G22) -> 0 | H23: =SUM(H18:H22) -> -10.5
B24: =SUM(B19:B23) -> 0 | D24: =SUM(D19:D23) -> 0 | J24: =SUM(J19:J23) -> 0 | L24: =SUM(L19:L23) -> 0
A25: Récap 31/12 | D25: =+B24-D24 -> 0 | I25: Récap 31/01 | L25: =+J24-L24 -> 0
A27: FÉVRIER | E27: MARS | I27: AVRIL
A28: RECETTES | C28: DEPENSES | E28: RECETTES | G28: DEPENSES | I28: RECETTES | K28: DEPENSES
A29: Dates | B29: Montant | C29: Activités | D29: Montant | E29: Dates | F29: Montant | G29: Activités | H29: Montant | I29: Dates | J29: Montant | K29: Activités | L29: Montant
B35: =SUM(B30:B34) -> 0 | D35: =SUM(D30:D34) -> 0 | F35: =SUM(F30:F34) -> 0 | H35: =SUM(H30:H34) -> 0 | J35: =SUM(J30:J34) -> 0 | L35: =SUM(L30:L34) -> 0
A36: Récap 28/02 | D36: =+B35-D35 -> 0 | E36: Récap 31/03 | H36: =+F35-H35 -> 0 | I36: Récap 30/04 | L36: =+J35-L35 -> 0
A39: MAI | E39: JUIN | I39: Situation fin juin
A40: RECETTES | C40: DEPENSES | E40: RECETTES | G40: DEPENSES | J40: Recettes | K40: Dépenses | L40: Total
A41: Dates | B41: Montant | C41: Activités | D41: Montant | E41: Dates | F41: Montant | G41: Activités | H41: Montant | I41: =E23 -> Situation 31/12 | L41: =H23 -> -10.5
I42: =I25 -> Récap 31/01 | J42: =J24 -> 0 | K42: =L24 -> 0 | L42: =L25 -> 0
I43: =A36 -> Récap 28/02 | J43: =B35 -> 0 | K43: =D35 -> 0 | L43: =D36 -> 0
I44: =E36 -> Récap 31/03 | J44: =F35 -> 0 | K44: =H35 -> 0 | L44: =H36 -> 0
I45: =I36 -> Récap 30/04 | J45: =J35 -> 0 | K45: =L35 -> 0 | L45: =L36 -> 0
I46: =A48 -> Récap 31/05 | J46: =B47 -> 0 | K46: =D47 -> 0 | L46: =D48 -> 0
B47: =SUM(B42:B46) -> 0 | D47: =SUM(D42:D46) -> 0 | F47: =SUM(F42:F46) -> 0 | H47: =SUM(H42:H46) -> 0 | I47: =E48 -> Récap 30/06 | J47: =F47 -> 0 | K47: =H47 -> 0 | L47: =H48 -> 0
A48: Récap 31/05 | D48: =+B47-D47 -> 0 | E48: Récap 30/06 | H48: =+F47-H47 -> 0 | I48: Situation 30/06 | J48: =SUM(J42:J47) -> 0 | K48: =SUM(K42:K47) -> 0 | L48: =SUM(L41:L47) -> -10.5
L50: =F23+J48-G23-K48+B8 -> -10.5
J52: =B13+F13+J13+B24+J24+B35+F35+J35+B47+F47 -> 0 | K52: =D13+H13+L13+D24+L24+D35+H35+L35+D47+H47 -> 0 | L52: =B8+J52-K52 -> -10.5

Sheet BOBOUCH
J1: Année scolaire : | L1: =' Liste élèves'!B1 -> 2018-2019
A3: NOM : | B3: =' Liste élèves'!A19 -> BOBOUCH | D3: PRENOM: | E3: =' Liste élèves'!B19 -> Leila | H3: CLASSE : | I3: =' Liste élèves'!C19 -> Classe 5
A5: SEPTEMBRE | E5: OCTOBRE | I5: NOVEMBRE
A6: RECETTES | C6: DEPENSES | E6: RECETTES | G6: DEPENSES | I6: RECETTES | K6: DEPENSES
A7: Dates | B7: Montant | C7: Activités | D7: Montant | E7: Dates | F7: Montant | G7: Activités | H7: Montant | I7: Dates | J7: Montant | K7: Activités | L7: Montant
A8: Report juin | B8: 18.03
B13: =SUM(B9:B12) -> 0 | D13: =SUM(D8:D12) -> 0 | F13: =SUM(F8:F12) -> 0 | H13: =SUM(H8:H12) -> 0 | J13: =SUM(J8:J12) -> 0 | L13: =SUM(L8:L12) -> 0
A14: Récap 30/09 | D14: =+B13-D13 -> 0 | E14: Récap 31/10 | H14: =+F13-H13 -> 0 | I14: Récap 30/11 | L14: =+J13-L13 -> 0
A16: DÉCEMBRE | E16: Situation fin décembre | I16: JANVIER
A17: RECETTES | C17: DEPENSES | F17: Recettes | G17: Dépenses | H17: Total | I17: RECETTES | K17: DEPENSES
A18: Dates | B18: Montant | C18: Activités | D18: Montant | E18: =A14 -> Récap 30/09 | F18: =B13 -> 0 | G18: =D13 -> 0 | H18: =D14 -> 0 | I18: Dates | J18: Montant | K18: Activités | L18: Montant
E19: =E14 -> Récap 31/10 | F19: =F13 -> 0 | G19: =H13 -> 0 | H19: =H14 -> 0
E20: =I14 -> Récap 30/11 | F20: =J13 -> 0 | G20: =L13 -> 0 | H20: =L14 -> 0
E21: =A25 -> Récap 31/12 | F21: =B24 -> 0 | G21: =D24 -> 0 | H21: =D25 -> 0
E22: Report Sept | H22: =B8 -> 18.03
E23: Situation 31/12 | F23: =SUM(F18:F22) -> 0 | G23: =SUM(G18:G22) -> 0 | H23: =SUM(H18:H22) -> 18.03
B24: =SUM(B19:B23) -> 0 | D24: =SUM(D19:D23) -> 0 | J24: =SUM(J19:J23) -> 0 | L24: =SUM(L19:L23) -> 0
A25: Récap 31/12 | D25: =+B24-D24 -> 0 | I25: Récap 31/01 | L25: =+J24-L24 -> 0
A27: FÉVRIER | E27: MARS | I27: AVRIL
A28: RECETTES | C28: DEPENSES | E28: RECETTES | G28: DEPENSES | I28: RECETTES | K28: DEPENSES
A29: Dates | B29: Montant | C29: Activités | D29: Montant | E29: Dates | F29: Montant | G29: Activités | H29: Montant | I29: Dates | J29: Montant | K29: Activités | L29: Montant
B35: =SUM(B30:B34) -> 0 | D35: =SUM(D30:D34) -> 0 | F35: =SUM(F30:F34) -> 0 | H35: =SUM(H30:H34) -> 0 | J35: =SUM(J30:J34) -> 0 | L35: =SUM(L30:L34) -> 0
A36: Récap 28/02 | D36: =+B35-D35 -> 0 | E36: Récap 31/03 | H36: =+F35-H35 -> 0 | I36: Récap 30/04 | L36: =+J35-L35 -> 0
A39: MAI | E39: JUIN | I39: Situation fin juin
A40: RECETTES | C40: DEPENSES | E40: RECETTES | G40: DEPENSES | J40: Recettes | K40: Dépenses | L40: Total
A41: Dates | B41: Montant | C41: Activités | D41: Montant | E41: Dates | F41: Montant | G41: Activités | H41: Montant | I41: =E23 -> Situation 31/12 | L41: =H23 -> 18.03
I42: =I25 -> Récap 31/01 | J42: =J24 -> 0 | K42: =L24 -> 0 | L42: =L25 -> 0
I43: =A36 -> Récap 28/02 | J43: =B35 -> 0 | K43: =D35 -> 0 | L43: =D36 -> 0
I44: =E36 -> Récap 31/03 | J44: =F35 -> 0 | K44: =H35 -> 0 | L44: =H36 -> 0
I45: =I36 -> Récap 30/04 | J45: =J35 -> 0 | K45: =L35 -> 0 | L45: =L36 -> 0
I46: =A48 -> Récap 31/05 | J46: =B47 -> 0 | K46: =D47 -> 0 | L46: =D48 -> 0
B47: =SUM(B42:B46) -> 0 | D47: =SUM(D42:D46) -> 0 | F47: =SUM(F42:F46) -> 0 | H47: =SUM(H42:H46) -> 0 | I47: =E48 -> Récap 30/06 | J47: =F47 -> 0 | K47: =H47 -> 0 | L47: =H48 -> 0
A48: Récap 31/05 | D48: =+B47-D47 -> 0 | E48: Récap 30/06 | H48: =+F47-H47 -> 0 | I48: Situation 30/06 | J48: =SUM(J42:J47) -> 0 | K48: =SUM(K42:K47) -> 0 | L48: =SUM(L41:L47) -> 18.03
L50: =F23+J48-G23-K48+B8 -> 18.03
J52: =B13+F13+J13+B24+J24+B35+F35+J35+B47+F47 -> 0 | K52: =D13+H13+L13+D24+L24+D35+H35+L35+D47+H47 -> 0 | L52: =B8+J52-K52 -> 18.03

Sheet BOEMBEKE
J1: Année scolaire : | L1: =' Liste élèves'!B1 -> 2018-2019
A3: NOM : | B3: =' Liste élèves'!A20 -> BOEMBEKE | D3: PRENOM: | E3: =' Liste élèves'!B20 -> Emilie | H3: CLASSE : | I3: =' Liste élèves'!C20 -> Classe MC
A5: SEPTEMBRE | E5: OCTOBRE | I5: NOVEMBRE
A6: RECETTES | C6: DEPENSES | E6: RECETTES | G6: DEPENSES | I6: RECETTES | K6: DEPENSES
A7: Dates | B7: Montant | C7: Activités | D7: Montant | E7: Dates | F7: Montant | G7: Activités | H7: Montant | I7: Dates | J7: Montant | K7: Activités | L7: Montant
A8: Report juin | B8: 51.6
B13: =SUM(B9:B12) -> 0 | D13: =SUM(D8:D12) -> 0 | F13: =SUM(F8:F12) -> 0 | H13: =SUM(H8:H12) -> 0 | J13: =SUM(J8:J12) -> 0 | L13: =SUM(L8:L12) -> 0
A14: Récap 30/09 | D14: =+B13-D13 -> 0 | E14: Récap 31/10 | H14: =+F13-H13 -> 0 | I14: Récap 30/11 | L14: =+J13-L13 -> 0
A16: DÉCEMBRE | E16: Situation fin décembre | I16: JANVIER
A17: RECETTES | C17: DEPENSES | F17: Recettes | G17: Dépenses | H17: Total | I17: RECETTES | K17: DEPENSES
A18: Dates | B18: Montant | C18: Activités | D18: Montant | E18: =A14 -> Récap 30/09 | F18: =B13 -> 0 | G18: =D13 -> 0 | H18: =D14 -> 0 | I18: Dates | J18: Montant | K18: Activités | L18: Montant
E19: =E14 -> Récap 31/10 | F19: =F13 -> 0 | G19: =H13 -> 0 | H19: =H14 -> 0
E20: =I14 -> Récap 30/11 | F20: =J13 -> 0 | G20: =L13 -> 0 | H20: =L14 -> 0
E21: =A25 -> Récap 31/12 | F21: =B24 -> 0 | G21: =D24 -> 0 | H21: =D25 -> 0
E22: Report Sept | H22: =B8 -> 51.6
E23: Situation 31/12 | F23: =SUM(F18:F22) -> 0 | G23: =SUM(G18:G22) -> 0 | H23: =SUM(H18:H22) -> 51.6
B24: =SUM(B19:B23) -> 0 | D24: =SUM(D19:D23) -> 0 | J24: =SUM(J19:J23) -> 0 | L24: =SUM(L19:L23) -> 0
A25: Récap 31/12 | D25: =+B24-D24 -> 0 | I25: Récap 31/01 | L25: =+J24-L24 -> 0
A27: FÉVRIER | E27: MARS | I27: AVRIL
A28: RECETTES | C28: DEPENSES | E28: RECETTES | G28: DEPENSES | I28: RECETTES | K28: DEPENSES
A29: Dates | B29: Montant | C29: Activités | D29: Montant | E29: Dates | F29: Montant | G29: Activités | H29: Montant | I29: Dates | J29: Montant | K29: Activités | L29: Montant
B35: =SUM(B30:B34) -> 0 | D35: =SUM(D30:D34) -> 0 | F35: =SUM(F30:F34) -> 0 | H35: =SUM(H30:H34) -> 0 | J35: =SUM(J30:J34) -> 0 | L35: =SUM(L30:L34) -> 0
A36: Récap 28/02 | D36: =+B35-D35 -> 0 | E36: Récap 31/03 | H36: =+F35-H35 -> 0 | I36: Récap 30/04 | L36: =+J35-L35 -> 0
A39: MAI | E39: JUIN | I39: Situation fin juin
A40: RECETTES | C40: DEPENSES | E40: RECETTES | G40: DEPENSES | J40: Recettes | K40: Dépenses | L40: Total
A41: Dates | B41: Montant | C41: Activités | D41: Montant | E41: Dates | F41: Montant | G41: Activités | H41: Montant | I41: =E23 -> Situation 31/12 | L41: =H23 -> 51.6
I42: =I25 -> Récap 31/01 | J42: =J24 -> 0 | K42: =L24 -> 0 | L42: =L25 -> 0
I43: =A36 -> Récap 28/02 | J43: =B35 -> 0 | K43: =D35 -> 0 | L43: =D36 -> 0
I44: =E36 -> Récap 31/03 | J44: =F35 -> 0 | K44: =H35 -> 0 | L44: =H36 -> 0
I45: =I36 -> Récap 30/04 | J45: =J35 -> 0 | K45: =L35 -> 0 | L45: =L36 -> 0
I46: =A48 -> Récap 31/05 | J46: =B47 -> 0 | K46: =D47 -> 0 | L46: =D48 -> 0
B47: =SUM(B42:B46) -> 0 | D47: =SUM(D42:D46) -> 0 | F47: =SUM(F42:F46) -> 0 | H47: =SUM(H42:H46) -> 0 | I47: =E48 -> Récap 30/06 | J47: =F47 -> 0 | K47: =H47 -> 0 | L47: =H48 -> 0
A48: Récap 31/05 | D48: =+B47-D47 -> 0 | E48: Récap 30/06 | H48: =+F47-H47 -> 0 | I48: Situation 30/06 | J48: =SUM(J42:J47) -> 0 | K48: =SUM(K42:K47) -> 0 | L48: =SUM(L41:L47) -> 51.6
L50: =F23+J48-G23-K48+B8 -> 51.6
J52: =B13+F13+J13+B24+J24+B35+F35+J35+B47+F47 -> 0 | K52: =D13+H13+L13+D24+L24+D35+H35+L35+D47+H47 -> 0 | L52: =B8+J52-K52 -> 51.6

Sheet BOSSU
J1: Année scolaire : | L1: =' Liste élèves'!B1 -> 2018-2019
A3: NOM : | B3: =' Liste élèves'!A21 -> BOSSU | D3: PRENOM: | E3: =' Liste élèves'!B21 -> Océane | H3: CLASSE : | I3: =' Liste élèves'!C21 -> Classe 5
A5: SEPTEMBRE | E5: OCTOBRE | I5: NOVEMBRE
A6: RECETTES | C6: DEPENSES | E6: RECETTES | G6: DEPENSES | I6: RECETTES | K6: DEPENSES
A7: Dates | B7: Montant | C7: Activités | D7: Montant | E7: Dates | F7: Montant | G7: Activités | H7: Montant | I7: Dates | J7: Montant | K7: Activités | L7: Montant
A8: Report juin | B8: 54.5
B13: =SUM(B9:B12) -> 0 | D13: =SUM(D8:D12) -> 0 | F13: =SUM(F8:F12) -> 0 | H13: =SUM(H8:H12) -> 0 | J13: =SUM(J8:J12) -> 0 | L13: =SUM(L8:L12) -> 0
A14: Récap 30/09 | D14: =+B13-D13 -> 0 | E14: Récap 31/10 | H14: =+F13-H13 -> 0 | I14: Récap 30/11 | L14: =+J13-L13 -> 0
A16: DÉCEMBRE | E16: Situation fin décembre | I16: JANVIER
A17: RECETTES | C17: DEPENSES | F17: Recettes | G17: Dépenses | H17: Total | I17: RECETTES | K17: DEPENSES
A18: Dates | B18: Montant | C18: Activités | D18: Montant | E18: =A14 -> Récap 30/09 | F18: =B13 -> 0 | G18: =D13 -> 0 | H18: =D14 -> 0 | I18: Dates | J18: Montant | K18: Activités | L18: Montant
E19: =E14 -> Récap 31/10 | F19: =F13 -> 0 | G19: =H13 -> 0 | H19: =H14 -> 0
E20: =I14 -> Récap 30/11 | F20: =J13 -> 0 | G20: =L13 -> 0 | H20: =L14 -> 0
E21: =A25 -> Récap 31/12 | F21: =B24 -> 0 | G21: =D24 -> 0 | H21: =D25 -> 0
E22: Report Sept | H22: =B8 -> 54.5
E23: Situation 31/12 | F23: =SUM(F18:F22) -> 0 | G23: =SUM(G18:G22) -> 0 | H23: =SUM(H18:H22) -> 54.5
B24: =SUM(B19:B23) -> 0 | D24: =SUM(D19:D23) -> 0 | J24: =SUM(J19:J23) -> 0 | L24: =SUM(L19:L23) -> 0
A25: Récap 31/12 | D25: =+B24-D24 -> 0 | I25: Récap 31/01 | L25: =+J24-L24 -> 0
A27: FÉVRIER | E27: MARS | I27: AVRIL
A28: RECETTES | C28: DEPENSES | E28: RECETTES | G28: DEPENSES | I28: RECETTES | K28: DEPENSES
A29: Dates | B29: Montant | C29: Activités | D29: Montant | E29: Dates | F29: Montant | G29: Activités | H29: Montant | I29: Dates | J29: Montant | K29: Activités | L29: Montant
B35: =SUM(B30:B34) -> 0 | D35: =SUM(D30:D34) -> 0 | F35: =SUM(F30:F34) -> 0 | H35: =SUM(H30:H34) -> 0 | J35: =SUM(J30:J34) -> 0 | L35: =SUM(L30:L34) -> 0
A36: Récap 28/02 | D36: =+B35-D35 -> 0 | E36: Récap 31/03 | H36: =+F35-H35 -> 0 | I36: Récap 30/04 | L36: =+J35-L35 -> 0
A39: MAI | E39: JUIN | I39: Situation fin juin
A40: RECETTES | C40: DEPENSES | E40: RECETTES | G40: DEPENSES | J40: Recettes | K40: Dépenses | L40: Total
A41: Dates | B41: Montant | C41: Activités | D41: Montant | E41: Dates | F41: Montant | G41: Activités | H41: Montant | I41: =E23 -> Situation 31/12 | L41: =H23 -> 54.5
I42: =I25 -> Récap 31/01 | J42: =J24 -> 0 | K42: =L24 -> 0 | L42: =L25 -> 0
I43: =A36 -> Récap 28/02 | J43: =B35 -> 0 | K43: =D35 -> 0 | L43: =D36 -> 0
I44: =E36 -> Récap 31/03 | J44: =F35 -> 0 | K44: =H35 -> 0 | L44: =H36 -> 0
I45: =I36 -> Récap 30/04 | J45: =J35 -> 0 | K45: =L35 -> 0 | L45: =L36 -> 0
I46: =A48 -> Récap 31/05 | J46: =B47 -> 0 | K46: =D47 -> 0 | L46: =D48 -> 0
B47: =SUM(B42:B46) -> 0 | D47: =SUM(D42:D46) -> 0 | F47: =SUM(F42:F46) -> 0 | H47: =SUM(H42:H46) -> 0 | I47: =E48 -> Récap 30/06 | J47: =F47 -> 0 | K47: =H47 -> 0 | L47: =H48 -> 0
A48: Récap 31/05 | D48: =+B47-D47 -> 0 | E48: Récap 30/06 | H48: =+F47-H47 -> 0 | I48: Situation 30/06 | J48: =SUM(J42:J47) -> 0 | K48: =SUM(K42:K47) -> 0 | L48: =SUM(L41:L47) -> 54.5
L50: =F23+J48-G23-K48+B8 -> 54.5
J52: =B13+F13+J13+B24+J24+B35+F35+J35+B47+F47 -> 0 | K52: =D13+H13+L13+D24+L24+D35+H35+L35+D47+H47 -> 0 | L52: =B8+J52-K52 -> 54.5

Sheet BOUAOUDA
J1: Année scolaire : | L1: =' Liste élèves'!B1 -> 2018-2019
A3: NOM : | B3: =' Liste élèves'!A22 -> BOUAOUDA | D3: PRENOM: | E3: =' Liste élèves'!B22 -> Anass | H3: CLASSE : | I3: =' Liste élèves'!C22 -> Classe PB
A5: SEPTEMBRE | E5: OCTOBRE | I5: NOVEMBRE
A6: RECETTES | C6: DEPENSES | E6: RECETTES | G6: DEPENSES | I6: RECETTES | K6: DEPENSES
A7: Dates | B7: Montant | C7: Activités | D7: Montant | E7: Dates | F7: Montant | G7: Activités | H7: Montant | I7: Dates | J7: Montant | K7: Activités | L7: Montant
A8: Report juin | B8: 0.5
B13: =SUM(B9:B12) -> 0 | D13: =SUM(D8:D12) -> 0 | F13: =SUM(F8:F12) -> 0 | H13: =SUM(H8:H12) -> 0 | J13: =SUM(J8:J12) -> 0 | L13: =SUM(L8:L12) -> 0
A14: Récap 30/09 | D14: =+B13-D13 -> 0 | E14: Récap 31/10 | H14: =+F13-H13 -> 0 | I14: Récap 30/11 | L14: =+J13-L13 -> 0
A16: DÉCEMBRE | E16: Situation fin décembre | I16: JANVIER
A17: RECETTES | C17: DEPENSES | F17: Recettes | G17: Dépenses | H17: Total | I17: RECETTES | K17: DEPENSES
A18: Dates | B18: Montant | C18: Activités | D18: Montant | E18: =A14 -> Récap 30/09 | F18: =B13 -> 0 | G18: =D13 -> 0 | H18: =D14 -> 0 | I18: Dates | J18: Montant | K18: Activités | L18: Montant
E19: =E14 -> Récap 31/10 | F19: =F13 -> 0 | G19: =H13 -> 0 | H19: =H14 -> 0
E20: =I14 -> Récap 30/11 | F20: =J13 -> 0 | G20: =L13 -> 0 | H20: =L14 -> 0
E21: =A25 -> Récap 31/12 | F21: =B24 -> 0 | G21: =D24 -> 0 | H21: =D25 -> 0
E22: Report Sept | H22: =B8 -> 0.5
E23: Situation 31/12 | F23: =SUM(F18:F22) -> 0 | G23: =SUM(G18:G22) -> 0 | H23: =SUM(H18:H22) -> 0.5
B24: =SUM(B19:B23) -> 0 | D24: =SUM(D19:D23) -> 0 | J24: =SUM(J19:J23) -> 0 | L24: =SUM(L19:L23) -> 0
A25: Récap 31/12 | D25: =+B24-D24 -> 0 | I25: Récap 31/01 | L25: =+J24-L24 -> 0
A27: FÉVRIER | E27: MARS | I27: AVRIL
A28: RECETTES | C28: DEPENSES | E28: RECETTES | G28: DEPENSES | I28: RECETTES | K28: DEPENSES
A29: Dates | B29: Montant | C29: Activités | D29: Montant | E29: Dates | F29: Montant | G29: Activités | H29: Montant | I29: Dates | J29: Montant | K29: Activités | L29: Montant
B35: =SUM(B30:B34) -> 0 | D35: =SUM(D30:D34) -> 0 | F35: =SUM(F30:F34) -> 0 | H35: =SUM(H30:H34) -> 0 | J35: =SUM(J30:J34) -> 0 | L35: =SUM(L30:L34) -> 0
A36: Récap 28/02 | D36: =+B35-D35 -> 0 | E36: Récap 31/03 | H36: =+F35-H35 -> 0 | I36: Récap 30/04 | L36: =+J35-L35 -> 0
A39: MAI | E39: JUIN | I39: Situation fin juin
A40: RECETTES | C40: DEPENSES | E40: RECETTES | G40: DEPENSES | J40: Recettes | K40: Dépenses | L40: Total
A41: Dates | B41: Montant | C41: Activités | D41: Montant | E41: Dates | F41: Montant | G41: Activités | H41: Montant | I41: =E23 -> Situation 31/12 | L41: =H23 -> 0.5
I42: =I25 -> Récap 31/01 | J42: =J24 -> 0 | K42: =L24 -> 0 | L42: =L25 -> 0
I43: =A36 -> Récap 28/02 | J43: =B35 -> 0 | K43: =D35 -> 0 | L43: =D36 -> 0
I44: =E36 -> Récap 31/03 | J44: =F35 -> 0 | K44: =H35 -> 0 | L44: =H36 -> 0
I45: =I36 -> Récap 30/04 | J45: =J35 -> 0 | K45: =L35 -> 0 | L45: =L36 -> 0
I46: =A48 -> Récap 31/05 | J46: =B47 -> 0 | K46: =D47 -> 0 | L46: =D48 -> 0
B47: =SUM(B42:B46) -> 0 | D47: =SUM(D42:D46) -> 0 | F47: =SUM(F42:F46) -> 0 | H47: =SUM(H42:H46) -> 0 | I47: =E48 -> Récap 30/06 | J47: =F47 -> 0 | K47: =H47 -> 0 | L47: =H48 -> 0
A48: Récap 31/05 | D48: =+B47-D47 -> 0 | E48: Récap 30/06 | H48: =+F47-H47 -> 0 | I48: Situation 30/06 | J48: =SUM(J42:J47) -> 0 | K48: =SUM(K42:K47) -> 0 | L48: =SUM(L41:L47) -> 0.5
L50: =F23+J48-G23-K48+B8 -> 0.5
J52: =B13+F13+J13+B24+J24+B35+F35+J35+B47+F47 -> 0 | K52: =D13+H13+L13+D24+L24+D35+H35+L35+D47+H47 -> 0 | L52: =B8+J52-K52 -> 0.5

Sheet BOUAROUROU
J1: Année scolaire : | L1: =' Liste élèves'!B1 -> 2018-2019
A3: NOM : | B3: =' Liste élèves'!A23 -> BOUAROUROU | D3: PRENOM: | E3: =' Liste élèves'!B23 -> Sofian | H3: CLASSE : | I3: =' Liste élèves'!C23 -> Classe FB
A5: SEPTEMBRE | E5: OCTOBRE | I5: NOVEMBRE
A6: RECETTES | C6: DEPENSES | E6: RECETTES | G6: DEPENSES | I6: RECETTES | K6: DEPENSES
A7: Dates | B7: Montant | C7: Activités | D7: Montant | E7: Dates | F7: Montant | G7: Activités | H7: Montant | I7: Dates | J7: Montant | K7: Activités | L7: Montant
A8: Report juin | B8: 23
B13: =SUM(B9:B12) -> 0 | D13: =SUM(D8:D12) -> 0 | F13: =SUM(F8:F12) -> 0 | H13: =SUM(H8:H12) -> 0 | J13: =SUM(J8:J12) -> 0 | L13: =SUM(L8:L12) -> 0
A14: Récap 30/09 | D14: =+B13-D13 -> 0 | E14: Récap 31/10 | H14: =+F13-H13 -> 0 | I14: Récap 30/11 | L14: =+J13-L13 -> 0
A16: DÉCEMBRE | E16: Situation fin décembre | I16: JANVIER
A17: RECETTES | C17: DEPENSES | F17: Recettes | G17: Dépenses | H17: Total | I17: RECETTES | K17: DEPENSES
A18: Dates | B18: Montant | C18: Activités | D18: Montant | E18: =A14 -> Récap 30/09 | F18: =B13 -> 0 | G18: =D13 -> 0 | H18: =D14 -> 0 | I18: Dates | J18: Montant | K18: Activités | L18: Montant
E19: =E14 -> Récap 31/10 | F19: =F13 -> 0 | G19: =H13 -> 0 | H19: =H14 -> 0
E20: =I14 -> Récap 30/11 | F20: =J13 -> 0 | G20: =L13 -> 0 | H20: =L14 -> 0
E21: =A25 -> Récap 31/12 | F21: =B24 -> 0 | G21: =D24 -> 0 | H21: =D25 -> 0
E22: Report Sept | H22: =B8 -> 23
E23: Situation 31/12 | F23: =SUM(F18:F22) -> 0 | G23: =SUM(G18:G22) -> 0 | H23: =SUM(H18:H22) -> 23
B24: =SUM(B19:B23) -> 0 | D24: =SUM(D19:D23) -> 0 | J24: =SUM(J19:J23) -> 0 | L24: =SUM(L19:L23) -> 0
A25: Récap 31/12 | D25: =+B24-D24 -> 0 | I25: Récap 31/01 | L25: =+J24-L24 -> 0
A27: FÉVRIER | E27: MARS | I27: AVRIL
A28: RECETTES | C28: DEPENSES | E28: RECETTES | G28: DEPENSES | I28: RECETTES | K28: DEPENSES
A29: Dates | B29: Montant | C29: Activités | D29: Montant | E29: Dates | F29: Montant | G29: Activités | H29: Montant | I29: Dates | J29: Montant | K29: Activités | L29: Montant
B35: =SUM(B30:B34) -> 0 | D35: =SUM(D30:D34) -> 0 | F35: =SUM(F30:F34) -> 0 | H35: =SUM(H30:H34) -> 0 | J35: =SUM(J30:J34) -> 0 | L35: =SUM(L30:L34) -> 0
A36: Récap 28/02 | D36: =+B35-D35 -> 0 | E36: Récap 31/03 | H36: =+F35-H35 -> 0 | I36: Récap 30/04 | L36: =+J35-L35 -> 0
A39: MAI | E39: JUIN | I39: Situation fin juin
A40: RECETTES | C40: DEPENSES | E40: RECETTES | G40: DEPENSES | J40: Recettes | K40: Dépenses | L40: Total
A41: Dates | B41: Montant | C41: Activités | D41: Montant | E41: Dates | F41: Montant | G41: Activités | H41: Montant | I41: =E23 -> Situation 31/12 | L41: =H23 -> 23
I42: =I25 -> Récap 31/01 | J42: =J24 -> 0 | K42: =L24 -> 0 | L42: =L25 -> 0
I43: =A36 -> Récap 28/02 | J43: =B35 -> 0 | K43: =D35 -> 0 | L43: =D36 -> 0
I44: =E36 -> Récap 31/03 | J44: =F35 -> 0 | K44: =H35 -> 0 | L44: =H36 -> 0
I45: =I36 -> Récap 30/04 | J45: =J35 -> 0 | K45: =L35 -> 0 | L45: =L36 -> 0
I46: =A48 -> Récap 31/05 | J46: =B47 -> 0 | K46: =D47 -> 0 | L46: =D48 -> 0
B47: =SUM(B42:B46) -> 0 | D47: =SUM(D42:D46) -> 0 | F47: =SUM(F42:F46) -> 0 | H47: =SUM(H42:H46) -> 0 | I47: =E48 -> Récap 30/06 | J47: =F47 -> 0 | K47: =H47 -> 0 | L47: =H48 -> 0
A48: Récap 31/05 | D48: =+B47-D47 -> 0 | E48: Récap 30/06 | H48: =+F47-H47 -> 0 | I48: Situation 30/06 | J48: =SUM(J42:J47) -> 0 | K48: =SUM(K42:K47) -> 0 | L48: =SUM(L41:L47) -> 23
L50: =F23+J48-G23-K48+B8 -> 23
J52: =B13+F13+J13+B24+J24+B35+F35+J35+B47+F47 -> 0 | K52: =D13+H13+L13+D24+L24+D35+H35+L35+D47+H47 -> 0 | L52: =B8+J52-K52 -> 23

Sheet BOUAYACHE
J1: Année scolaire : | L1: =' Liste élèves'!B1 -> 2018-2019
A3: NOM : | B3: =' Liste élèves'!A24 -> BOUAYACHE | D3: PRENOM: | E3: =' Liste élèves'!B24 -> Nouheila | H3: CLASSE : | I3: =' Liste élèves'!C24 -> Classe 2
A5: SEPTEMBRE | E5: OCTOBRE | I5: NOVEMBRE
A6: RECETTES | C6: DEPENSES | E6: RECETTES | G6: DEPENSES | I6: RECETTES | K6: DEPENSES
A7: Dates | B7: Montant | C7: Activités | D7: Montant | E7: Dates | F7: Montant | G7: Activités | H7: Montant | I7: Dates | J7: Montant | K7: Activités | L7: Montant
A8: Report juin
B13: =SUM(B9:B12) -> 0 | D13: =SUM(D8:D12) -> 0 | F13: =SUM(F8:F12) -> 0 | H13: =SUM(H8:H12) -> 0 | J13: =SUM(J8:J12) -> 0 | L13: =SUM(L8:L12) -> 0
A14: Récap 30/09 | D14: =+B13-D13 -> 0 | E14: Récap 31/10 | H14: =+F13-H13 -> 0 | I14: Récap 30/11 | L14: =+J13-L13 -> 0
A16: DÉCEMBRE | E16: Situation fin décembre | I16: JANVIER
A17: RECETTES | C17: DEPENSES | F17: Recettes | G17: Dépenses | H17: Total | I17: RECETTES | K17: DEPENSES
A18: Dates | B18: Montant | C18: Activités | D18: Montant | E18: =A14 -> Récap 30/09 | F18: =B13 -> 0 | G18: =D13 -> 0 | H18: =D14 -> 0 | I18: Dates | J18: Montant | K18: Activités | L18: Montant
E19: =E14 -> Récap 31/10 | F19: =F13 -> 0 | G19: =H13 -> 0 | H19: =H14 -> 0
E20: =I14 -> Récap 30/11 | F20: =J13 -> 0 | G20: =L13 -> 0 | H20: =L14 -> 0
E21: =A25 -> Récap 31/12 | F21: =B24 -> 0 | G21: =D24 -> 0 | H21: =D25 -> 0
E22: Report Sept | H22: =B8 -> 0
E23: Situation 31/12 | F23: =SUM(F18:F22) -> 0 | G23: =SUM(G18:G22) -> 0 | H23: =SUM(H18:H22) -> 0
B24: =SUM(B19:B23) -> 0 | D24: =SUM(D19:D23) -> 0 | J24: =SUM(J19:J23) -> 0 | L24: =SUM(L19:L23) -> 0
A25: Récap 31/12 | D25: =+B24-D24 -> 0 | I25: Récap 31/01 | L25: =+J24-L24 -> 0
A27: FÉVRIER | E27: MARS | I27: AVRIL
A28: RECETTES | C28: DEPENSES | E28: RECETTES | G28: DEPENSES | I28: RECETTES | K28: DEPENSES
A29: Dates | B29: Montant | C29: Activités | D29: Montant | E29: Dates | F29: Montant | G29: Activités | H29: Montant | I29: Dates | J29: Montant | K29: Activités | L29: Montant
B35: =SUM(B30:B34) -> 0 | D35: =SUM(D30:D34) -> 0 | F35: =SUM(F30:F34) -> 0 | H35: =SUM(H30:H34) -> 0 | J35: =SUM(J30:J34) -> 0 | L35: =SUM(L30:L34) -> 0
A36: Récap 28/02 | D36: =+B35-D35 -> 0 | E36: Récap 31/03 | H36: =+F35-H35 -> 0 | I36: Récap 30/04 | L36: =+J35-L35 -> 0
A39: MAI | E39: JUIN | I39: Situation fin juin
A40: RECETTES | C40: DEPENSES | E40: RECETTES | G40: DEPENSES | J40: Recettes | K40: Dépenses | L40: Total
A41: Dates | B41: Montant | C41: Activités | D41: Montant | E41: Dates | F41: Montant | G41: Activités | H41: Montant | I41: =E23 -> Situation 31/12 | L41: =H23 -> 0
I42: =I25 -> Récap 31/01 | J42: =J24 -> 0 | K42: =L24 -> 0 | L42: =L25 -> 0
I43: =A36 -> Récap 28/02 | J43: =B35 -> 0 | K43: =D35 -> 0 | L43: =D36 -> 0
I44: =E36 -> Récap 31/03 | J44: =F35 -> 0 | K44: =H35 -> 0 | L44: =H36 -> 0
I45: =I36 -> Récap 30/04 | J45: =J35 -> 0 | K45: =L35 -> 0 | L45: =L36 -> 0
I46: =A48 -> Récap 31/05 | J46: =B47 -> 0 | K46: =D47 -> 0 | L46: =D48 -> 0
B47: =SUM(B42:B46) -> 0 | D47: =SUM(D42:D46) -> 0 | F47: =SUM(F42:F46) -> 0 | H47: =SUM(H42:H46) -> 0 | I47: =E48 -> Récap 30/06 | J47: =F47 -> 0 | K47: =H47 -> 0 | L47: =H48 -> 0 | N47: 59.86
A48: Récap 31/05 | D48: =+B47-D47 -> 0 | E48: Récap 30/06 | H48: =+F47-H47 -> 0 | I48: Situation 30/06 | J48: =SUM(J42:J47) -> 0 | K48: =SUM(K42:K47) -> 0 | L48: =SUM(L41:L47) -> 0
L50: =F23+J48-G23-K48+B8 -> 0
J52: =B13+F13+J13+B24+J24+B35+F35+J35+B47+F47 -> 0 | K52: =D13+H13+L13+D24+L24+D35+H35+L35+D47+H47 -> 0 | L52: =B8+J52-K52 -> 0

Sheet BUYS
J1: Année scolaire : | L1: =' Liste élèves'!B1 -> 2018-2019
A3: NOM : | B3: =' Liste élèves'!A25 -> BUYS | D3: PRENOM: | E3: =' Liste élèves'!B25 -> Tom | H3: CLASSE : | I3: =' Liste élèves'!C25 -> Classe 11
A5: SEPTEMBRE | E5: OCTOBRE | I5: NOVEMBRE
A6: RECETTES | C6: DEPENSES | E6: RECETTES | G6: DEPENSES | I6: RECETTES | K6: DEPENSES
A7: Dates | B7: Montant | C7: Activités | D7: Montant | E7: Dates | F7: Montant | G7: Activités | H7: Montant | I7: Dates | J7: Montant | K7: Activités | L7: Montant
A8: Report juin | B8: 72
B13: =SUM(B9:B12) -> 0 | D13: =SUM(D8:D12) -> 0 | F13: =SUM(F8:F12) -> 0 | H13: =SUM(H8:H12) -> 0 | J13: =SUM(J8:J12) -> 0 | L13: =SUM(L8:L12) -> 0
A14: Récap 30/09 | D14: =+B13-D13 -> 0 | E14: Récap 31/10 | H14: =+F13-H13 -> 0 | I14: Récap 30/11 | L14: =+J13-L13 -> 0
A16: DÉCEMBRE | E16: Situation fin décembre | I16: JANVIER
A17: RECETTES | C17: DEPENSES | F17: Recettes | G17: Dépenses | H17: Total | I17: RECETTES | K17: DEPENSES
A18: Dates | B18: Montant | C18: Activités | D18: Montant | E18: =A14 -> Récap 30/09 | F18: =B13 -> 0 | G18: =D13 -> 0 | H18: =D14 -> 0 | I18: Dates | J18: Montant | K18: Activités | L18: Montant
E19: =E14 -> Récap 31/10 | F19: =F13 -> 0 | G19: =H13 -> 0 | H19: =H14 -> 0
E20: =I14 -> Récap 30/11 | F20: =J13 -> 0 | G20: =L13 -> 0 | H20: =L14 -> 0
E21: =A25 -> Récap 31/12 | F21: =B24 -> 0 | G21: =D24 -> 0 | H21: =D25 -> 0
E22: Report Sept | H22: =B8 -> 72
E23: Situation 31/12 | F23: =SUM(F18:F22) -> 0 | G23: =SUM(G18:G22) -> 0 | H23: =SUM(H18:H22) -> 72
B24: =SUM(B19:B23) -> 0 | D24: =SUM(D19:D23) -> 0 | J24: =SUM(J19:J23) -> 0 | L24: =SUM(L19:L23) -> 0
A25: Récap 31/12 | D25: =+B24-D24 -> 0 | I25: Récap 31/01 | L25: =+J24-L24 -> 0
A27: FÉVRIER | E27: MARS | I27: AVRIL
A28: RECETTES | C28: DEPENSES | E28: RECETTES | G28: DEPENSES | I28: RECETTES | K28: DEPENSES
A29: Dates | B29: Montant | C29: Activités | D29: Montant | E29: Dates | F29: Montant | G29: Activités | H29: Montant | I29: Dates | J29: Montant | K29: Activités | L29: Montant
B35: =SUM(B30:B34) -> 0 | D35: =SUM(D30:D34) -> 0 | F35: =SUM(F30:F34) -> 0 | H35: =SUM(H30:H34) -> 0 | J35: =SUM(J30:J34) -> 0 | L35: =SUM(L30:L34) -> 0
A36: Récap 28/02 | D36: =+B35-D35 -> 0 | E36: Récap 31/03 | H36: =+F35-H35 -> 0 | I36: Récap 30/04 | L36: =+J35-L35 -> 0
A39: MAI | E39: JUIN | I39: Situation fin juin
A40: RECETTES | C40: DEPENSES | E40: RECETTES | G40: DEPENSES | J40: Recettes | K40: Dépenses | L40: Total
A41: Dates | B41: Montant | C41: Activités | D41: Montant | E41: Dates | F41: Montant | G41: Activités | H41: Montant | I41: =E23 -> Situation 31/12 | L41: =H23 -> 72
I42: =I25 -> Récap 31/01 | J42: =J24 -> 0 | K42: =L24 -> 0 | L42: =L25 -> 0
I43: =A36 -> Récap 28/02 | J43: =B35 -> 0 | K43: =D35 -> 0 | L43: =D36 -> 0
I44: =E36 -> Récap 31/03 | J44: =F35 -> 0 | K44: =H35 -> 0 | L44: =H36 -> 0
I45: =I36 -> Récap 30/04 | J45: =J35 -> 0 | K45: =L35 -> 0 | L45: =L36 -> 0
I46: =A48 -> Récap 31/05 | J46: =B47 -> 0 | K46: =D47 -> 0 | L46: =D48 -> 0
B47: =SUM(B42:B46) -> 0 | D47: =SUM(D42:D46) -> 0 | F47: =SUM(F42:F46) -> 0 | H47: =SUM(H42:H46) -> 0 | I47: =E48 -> Récap 30/06 | J47: =F47 -> 0 | K47: =H47 -> 0 | L47: =H48 -> 0 | N47: 7
A48: Récap 31/05 | D48: =+B47-D47 -> 0 | E48: Récap 30/06 | H48: =+F47-H47 -> 0 | I48: Situation 30/06 | J48: =SUM(J42:J47) -> 0 | K48: =SUM(K42:K47) -> 0 | L48: =SUM(L41:L47) -> 72
L50: =F23+J48-G23-K48+B8 -> 72
J52: =B13+F13+J13+B24+J24+B35+F35+J35+B47+F47 -> 0 | K52: =D13+H13+L13+D24+L24+D35+H35+L35+D47+H47 -> 0 | L52: =B8+J52-K52 -> 72

Sheet CAMBRON
J1: Année scolaire : | L1: =' Liste élèves'!B1 -> 2018-2019
A3: NOM : | B3: =' Liste élèves'!A26 -> CAMBRON | D3: PRENOM: | E3: =' Liste élèves'!B26 -> Sullivan | H3: CLASSE : | I3: =' Liste élèves'!C26 -> Classe 8
A5: SEPTEMBRE | E5: OCTOBRE | I5: NOVEMBRE
A6: RECETTES | C6: DEPENSES | E6: RECETTES | G6: DEPENSES | I6: RECETTES | K6: DEPENSES
A7: Dates | B7: Montant | C7: Activités | D7: Montant | E7: Dates | F7: Montant | G7: Activités | H7: Montant | I7: Dates | J7: Montant | K7: Activités | L7: Montant
A8: Report juin | B8: -6
B13: =SUM(B9:B12) -> 0 | D13: =SUM(D8:D12) -> 0 | F13: =SUM(F8:F12) -> 0 | H13: =SUM(H8:H12) -> 0 | J13: =SUM(J8:J12) -> 0 | L13: =SUM(L8:L12) -> 0
A14: Récap 30/09 | D14: =+B13-D13 -> 0 | E14: Récap 31/10 | H14: =+F13-H13 -> 0 | I14: Récap 30/11 | L14: =+J13-L13 -> 0
A16: DÉCEMBRE | E16: Situation fin décembre | I16: JANVIER
A17: RECETTES | C17: DEPENSES | F17: Recettes | G17: Dépenses | H17: Total | I17: RECETTES | K17: DEPENSES
A18: Dates | B18: Montant | C18: Activités | D18: Montant | E18: =A14 -> Récap 30/09 | F18: =B13 -> 0 | G18: =D13 -> 0 | H18: =D14 -> 0 | I18: Dates | J18: Montant | K18: Activités | L18: Montant
E19: =E14 -> Récap 31/10 | F19: =F13 -> 0 | G19: =H13 -> 0 | H19: =H14 -> 0
E20: =I14 -> Récap 30/11 | F20: =J13 -> 0 | G20: =L13 -> 0 | H20: =L14 -> 0
E21: =A25 -> Récap 31/12 | F21: =B24 -> 0 | G21: =D24 -> 0 | H21: =D25 -> 0
E22: Report Sept | H22: =B8 -> -6
E23: Situation 31/12 | F23: =SUM(F18:F22) -> 0 | G23: =SUM(G18:G22) -> 0 | H23: =SUM(H18:H22) -> -6
B24: =SUM(B19:B23) -> 0 | D24: =SUM(D19:D23) -> 0 | J24: =SUM(J19:J23) -> 0 | L24: =SUM(L19:L23) -> 0
A25: Récap 31/12 | D25: =+B24-D24 -> 0 | I25: Récap 31/01 | L25: =+J24-L24 -> 0
A27: FÉVRIER | E27: MARS | I27: AVRIL
A28: RECETTES | C28: DEPENSES | E28: RECETTES | G28: DEPENSES | I28: RECETTES | K28: DEPENSES
A29: Dates | B29: Montant | C29: Activités | D29: Montant | E29: Dates | F29: Montant | G29: Activités | H29: Montant | I29: Dates | J29: Montant | K29: Activités | L29: Montant
B35: =SUM(B30:B34) -> 0 | D35: =SUM(D30:D34) -> 0 | F35: =SUM(F30:F34) -> 0 | H35: =SUM(H30:H34) -> 0 | J35: =SUM(J30:J34) -> 0 | L35: =SUM(L30:L34) -> 0
A36: Récap 28/02 | D36: =+B35-D35 -> 0 | E36: Récap 31/03 | H36: =+F35-H35 -> 0 | I36: Récap 30/04 | L36: =+J35-L35 -> 0
A39: MAI | E39: JUIN | I39: Situation fin juin
A40: RECETTES | C40: DEPENSES | E40: RECETTES | G40: DEPENSES | J40: Recettes | K40: Dépenses | L40: Total
A41: Dates | B41: Montant | C41: Activités | D41: Montant | E41: Dates | F41: Montant | G41: Activités | H41: Montant | I41: =E23 -> Situation 31/12 | L41: =H23 -> -6
I42: =I25 -> Récap 31/01 | J42: =J24 -> 0 | K42: =L24 -> 0 | L42: =L25 -> 0
I43: =A36 -> Récap 28/02 | J43: =B35 -> 0 | K43: =D35 -> 0 | L43: =D36 -> 0
I44: =E36 -> Récap 31/03 | J44: =F35 -> 0 | K44: =H35 -> 0 | L44: =H36 -> 0
I45: =I36 -> Récap 30/04 | J45: =J35 -> 0 | K45: =L35 -> 0 | L45: =L36 -> 0
I46: =A48 -> Récap 31/05 | J46: =B47 -> 0 | K46: =D47 -> 0 | L46: =D48 -> 0
B47: =SUM(B42:B46) -> 0 | D47: =SUM(D42:D46) -> 0 | F47: =SUM(F42:F46) -> 0 | H47: =SUM(H42:H46) -> 0 | I47: =E48 -> Récap 30/06 | J47: =F47 -> 0 | K47: =H47 -> 0 | L47: =H48 -> 0
A48: Récap 31/05 | D48: =+B47-D47 -> 0 | E48: Récap 30/06 | H48: =+F47-H47 -> 0 | I48: Situation 30/06 | J48: =SUM(J42:J47) -> 0 | K48: =SUM(K42:K47) -> 0 | L48: =SUM(L41:L47) -> -6
L50: =F23+J48-G23-K48+B8 -> -6
J52: =B13+F13+J13+B24+J24+B35+F35+J35+B47+F47 -> 0 | K52: =D13+H13+L13+D24+L24+D35+H35+L35+D47+H47 -> 0 | L52: =B8+J52-K52 -> -6

Sheet CARBONNELLE
J1: Année scolaire : | L1: =' Liste élèves'!B1 -> 2018-2019
A3: NOM : | B3: =' Liste élèves'!A27 -> CARBONNELLE | D3: PRENOM: | E3: =' Liste élèves'!B27 -> Cheyenne | H3: CLASSE : | I3: =' Liste élèves'!C27 -> Classe MB
A5: SEPTEMBRE | E5: OCTOBRE | I5: NOVEMBRE
A6: RECETTES | C6: DEPENSES | E6: RECETTES | G6: DEPENSES | I6: RECETTES | K6: DEPENSES
A7: Dates | B7: Montant | C7: Activités | D7: Montant | E7: Dates | F7: Montant | G7: Activités | H7: Montant | I7: Dates | J7: Montant | K7: Activités | L7: Montant
A8: Report juin | B8: 39.5
B13: =SUM(B9:B12) -> 0 | D13: =SUM(D8:D12) -> 0 | F13: =SUM(F8:F12) -> 0 | H13: =SUM(H8:H12) -> 0 | J13: =SUM(J8:J12) -> 0 | L13: =SUM(L8:L12) -> 0
A14: Récap 30/09 | D14: =+B13-D13 -> 0 | E14: Récap 31/10 | H14: =+F13-H13 -> 0 | I14: Récap 30/11 | L14: =+J13-L13 -> 0
A16: DÉCEMBRE | E16: Situation fin décembre | I16: JANVIER
A17: RECETTES | C17: DEPENSES | F17: Recettes | G17: Dépenses | H17: Total | I17: RECETTES | K17: DEPENSES
A18: Dates | B18: Montant | C18: Activités | D18: Montant | E18: =A14 -> Récap 30/09 | F18: =B13 -> 0 | G18: =D13 -> 0 | H18: =D14 -> 0 | I18: Dates | J18: Montant | K18: Activités | L18: Montant
E19: =E14 -> Récap 31/10 | F19: =F13 -> 0 | G19: =H13 -> 0 | H19: =H14 -> 0
E20: =I14 -> Récap 30/11 | F20: =J13 -> 0 | G20: =L13 -> 0 | H20: =L14 -> 0
E21: =A25 -> Récap 31/12 | F21: =B24 -> 0 | G21: =D24 -> 0 | H21: =D25 -> 0
E22: Report Sept | H22: =B8 -> 39.5
E23: Situation 31/12 | F23: =SUM(F18:F22) -> 0 | G23: =SUM(G18:G22) -> 0 | H23: =SUM(H18:H22) -> 39.5
B24: =SUM(B19:B23) -> 0 | D24: =SUM(D19:D23) -> 0 | J24: =SUM(J19:J23) -> 0 | L24: =SUM(L19:L23) -> 0
A25: Récap 31/12 | D25: =+B24-D24 -> 0 | I25: Récap 31/01 | L25: =+J24-L24 -> 0
A27: FÉVRIER | E27: MARS | I27: AVRIL
A28: RECETTES | C28: DEPENSES | E28: RECETTES | G28: DEPENSES | I28: RECETTES | K28: DEPENSES
A29: Dates | B29: Montant | C29: Activités | D29: Montant | E29: Dates | F29: Montant | G29: Activités | H29: Montant | I29: Dates | J29: Montant | K29: Activités | L29: Montant
B35: =SUM(B30:B34) -> 0 | D35: =SUM(D30:D34) -> 0 | F35: =SUM(F30:F34) -> 0 | H35: =SUM(H30:H34) -> 0 | J35: =SUM(J30:J34) -> 0 | L35: =SUM(L30:L34) -> 0
A36: Récap 28/02 | D36: =+B35-D35 -> 0 | E36: Récap 31/03 | H36: =+F35-H35 -> 0 | I36: Récap 30/04 | L36: =+J35-L35 -> 0
A39: MAI | E39: JUIN | I39: Situation fin juin
A40: RECETTES | C40: DEPENSES | E40: RECETTES | G40: DEPENSES | J40: Recettes | K40: Dépenses | L40: Total
A41: Dates | B41: Montant | C41: Activités | D41: Montant | E41: Dates | F41: Montant | G41: Activités | H41: Montant | I41: =E23 -> Situation 31/12 | L41: =H23 -> 39.5
I42: =I25 -> Récap 31/01 | J42: =J24 -> 0 | K42: =L24 -> 0 | L42: =L25 -> 0
I43: =A36 -> Récap 28/02 | J43: =B35 -> 0 | K43: =D35 -> 0 | L43: =D36 -> 0
I44: =E36 -> Récap 31/03 | J44: =F35 -> 0 | K44: =H35 -> 0 | L44: =H36 -> 0
I45: =I36 -> Récap 30/04 | J45: =J35 -> 0 | K45: =L35 -> 0 | L45: =L36 -> 0
I46: =A48 -> Récap 31/05 | J46: =B47 -> 0 | K46: =D47 -> 0 | L46: =D48 -> 0
B47: =SUM(B42:B46) -> 0 | D47: =SUM(D42:D46) -> 0 | F47: =SUM(F42:F46) -> 0 | H47: =SUM(H42:H46) -> 0 | I47: =E48 -> Récap 30/06 | J47: =F47 -> 0 | K47: =H47 -> 0 | L47: =H48 -> 0
A48: Récap 31/05 | D48: =+B47-D47 -> 0 | E48: Récap 30/06 | H48: =+F47-H47 -> 0 | I48: Situation 30/06 | J48: =SUM(J42:J47) -> 0 | K48: =SUM(K42:K47) -> 0 | L48: =SUM(L41:L47) -> 39.5
L50: =F23+J48-G23-K48+B8 -> 39.5
J52: =B13+F13+J13+B24+J24+B35+F35+J35+B47+F47 -> 0 | K52: =D13+H13+L13+D24+L24+D35+H35+L35+D47+H47 -> 0 | L52: =B8+J52-K52 -> 39.5

Sheet CHAVATTE
J1: Année scolaire : | L1: =' Liste élèves'!B1 -> 2018-2019
A3: NOM : | B3: =' Liste élèves'!A28 -> CHAVATTE | D3: PRENOM: | E3: =' Liste élèves'!B28 -> Nicolas | H3: CLASSE : | I3: =' Liste élèves'!C28 -> Classe PC
A5: SEPTEMBRE | E5: OCTOBRE | I5: NOVEMBRE
A6: RECETTES | C6: DEPENSES | E6: RECETTES | G6: DEPENSES | I6: RECETTES | K6: DEPENSES
A7: Dates | B7: Montant | C7: Activités | D7: Montant | E7: Dates | F7: Montant | G7: Activités | H7: Montant | I7: Dates | J7: Montant | K7: Activités | L7: Montant
A8: Report juin | B8: 36
B13: =SUM(B9:B12) -> 0 | D13: =SUM(D8:D12) -> 0 | F13: =SUM(F8:F12) -> 0 | H13: =SUM(H8:H12) -> 0 | J13: =SUM(J8:J12) -> 0 | L13: =SUM(L8:L12) -> 0
A14: Récap 30/09 | D14: =+B13-D13 -> 0 | E14: Récap 31/10 | H14: =+F13-H13 -> 0 | I14: Récap 30/11 | L14: =+J13-L13 -> 0
A16: DÉCEMBRE | E16: Situation fin décembre | I16: JANVIER
A17: RECETTES | C17: DEPENSES | F17: Recettes | G17: Dépenses | H17: Total | I17: RECETTES | K17: DEPENSES
A18: Dates | B18: Montant | C18: Activités | D18: Montant | E18: =A14 -> Récap 30/09 | F18: =B13 -> 0 | G18: =D13 -> 0 | H18: =D14 -> 0 | I18: Dates | J18: Montant | K18: Activités | L18: Montant
E19: =E14 -> Récap 31/10 | F19: =F13 -> 0 | G19: =H13 -> 0 | H19: =H14 -> 0
E20: =I14 -> Récap 30/11 | F20: =J13 -> 0 | G20: =L13 -> 0 | H20: =L14 -> 0
E21: =A25 -> Récap 31/12 | F21: =B24 -> 0 | G21: =D24 -> 0 | H21: =D25 -> 0
E22: Report Sept | H22: =B8 -> 36
E23: Situation 31/12 | F23: =SUM(F18:F22) -> 0 | G23: =SUM(G18:G22) -> 0 | H23: =SUM(H18:H22) -> 36
B24: =SUM(B19:B23) -> 0 | D24: =SUM(D19:D23) -> 0 | J24: =SUM(J19:J23) -> 0 | L24: =SUM(L19:L23) -> 0
A25: Récap 31/12 | D25: =+B24-D24 -> 0 | I25: Récap 31/01 | L25: =+J24-L24 -> 0
A27: FÉVRIER | E27: MARS | I27: AVRIL
A28: RECETTES | C28: DEPENSES | E28: RECETTES | G28: DEPENSES | I28: RECETTES | K28: DEPENSES
A29: Dates | B29: Montant | C29: Activités | D29: Montant | E29: Dates | F29: Montant | G29: Activités | H29: Montant | I29: Dates | J29: Montant | K29: Activités | L29: Montant
B35: =SUM(B30:B34) -> 0 | D35: =SUM(D30:D34) -> 0 | F35: =SUM(F30:F34) -> 0 | H35: =SUM(H30:H34) -> 0 | J35: =SUM(J30:J34) -> 0 | L35: =SUM(L30:L34) -> 0
A36: Récap 28/02 | D36: =+B35-D35 -> 0 | E36: Récap 31/03 | H36: =+F35-H35 -> 0 | I36: Récap 30/04 | L36: =+J35-L35 -> 0
A39: MAI | E39: JUIN | I39: Situation fin juin
A40: RECETTES | C40: DEPENSES | E40: RECETTES | G40: DEPENSES | J40: Recettes | K40: Dépenses | L40: Total
A41: Dates | B41: Montant | C41: Activités | D41: Montant | E41: Dates | F41: Montant | G41: Activités | H41: Montant | I41: =E23 -> Situation 31/12 | L41: =H23 -> 36
I42: =I25 -> Récap 31/01 | J42: =J24 -> 0 | K42: =L24 -> 0 | L42: =L25 -> 0
I43: =A36 -> Récap 28/02 | J43: =B35 -> 0 | K43: =D35 -> 0 | L43: =D36 -> 0
I44: =E36 -> Récap 31/03 | J44: =F35 -> 0 | K44: =H35 -> 0 | L44: =H36 -> 0
I45: =I36 -> Récap 30/04 | J45: =J35 -> 0 | K45: =L35 -> 0 | L45: =L36 -> 0
I46: =A48 -> Récap 31/05 | J46: =B47 -> 0 | K46: =D47 -> 0 | L46: =D48 -> 0
B47: =SUM(B42:B46) -> 0 | D47: =SUM(D42:D46) -> 0 | F47: =SUM(F42:F46) -> 0 | H47: =SUM(H42:H46) -> 0 | I47: =E48 -> Récap 30/06 | J47: =F47 -> 0 | K47: =H47 -> 0 | L47: =H48 -> 0
A48: Récap 31/05 | D48: =+B47-D47 -> 0 | E48: Récap 30/06 | H48: =+F47-H47 -> 0 | I48: Situation 30/06 | J48: =SUM(J42:J47) -> 0 | K48: =SUM(K42:K47) -> 0 | L48: =SUM(L41:L47) -> 36
L50: =F23+J48-G23-K48+B8 -> 36
J52: =B13+F13+J13+B24+J24+B35+F35+J35+B47+F47 -> 0 | K52: =D13+H13+L13+D24+L24+D35+H35+L35+D47+H47 -> 0 | L52: =B8+J52-K52 -> 36

Sheet CHOMEZ
J1: Année scolaire : | L1: =' Liste élèves'!B1 -> 2018-2019
A3: NOM : | B3: =' Liste élèves'!A29 -> CHOMEZ | D3: PRENOM: | E3: =' Liste élèves'!B29 -> Logan | H3: CLASSE : | I3: =' Liste élèves'!C29 -> Classe MC
A5: SEPTEMBRE | E5: OCTOBRE | I5: NOVEMBRE
A6: RECETTES | C6: DEPENSES | E6: RECETTES | G6: DEPENSES | I6: RECETTES | K6: DEPENSES
A7: Dates | B7: Montant | C7: Activités | D7: Montant | E7: Dates | F7: Montant | G7: Activités | H7: Montant | I7: Dates | J7: Montant | K7: Activités | L7: Montant
A8: Report juin | B8: 55
B13: =SUM(B9:B12) -> 0 | D13: =SUM(D8:D12) -> 0 | F13: =SUM(F8:F12) -> 0 | H13: =SUM(H8:H12) -> 0 | J13: =SUM(J8:J12) -> 0 | L13: =SUM(L8:L12) -> 0
A14: Récap 30/09 | D14: =+B13-D13 -> 0 | E14: Récap 31/10 | H14: =+F13-H13 -> 0 | I14: Récap 30/11 | L14: =+J13-L13 -> 0
A16: DÉCEMBRE | E16: Situation fin décembre | I16: JANVIER
A17: RECETTES | C17: DEPENSES | F17: Recettes | G17: Dépenses | H17: Total | I17: RECETTES | K17: DEPENSES
A18: Dates | B18: Montant | C18: Activités | D18: Montant | E18: =A14 -> Récap 30/09 | F18: =B13 -> 0 | G18: =D13 -> 0 | H18: =D14 -> 0 | I18: Dates | J18: Montant | K18: Activités | L18: Montant
E19: =E14 -> Récap 31/10 | F19: =F13 -> 0 | G19: =H13 -> 0 | H19: =H14 -> 0
E20: =I14 -> Récap 30/11 | F20: =J13 -> 0 | G20: =L13 -> 0 | H20: =L14 -> 0
E21: =A25 -> Récap 31/12 | F21: =B24 -> 0 | G21: =D24 -> 0 | H21: =D25 -> 0
E22: Report Sept | H22: =B8 -> 55
E23: Situation 31/12 | F23: =SUM(F18:F22) -> 0 | G23: =SUM(G18:G22) -> 0 | H23: =SUM(H18:H22) -> 55
B24: =SUM(B19:B23) -> 0 | D24: =SUM(D19:D23) -> 0 | J24: =SUM(J19:J23) -> 0 | L24: =SUM(L19:L23) -> 0
A25: Récap 31/12 | D25: =+B24-D24 -> 0 | I25: Récap 31/01 | L25: =+J24-L24 -> 0
A27: FÉVRIER | E27: MARS | I27: AVRIL
A28: RECETTES | C28: DEPENSES | E28: RECETTES | G28: DEPENSES | I28: RECETTES | K28: DEPENSES
A29: Dates | B29: Montant | C29: Activités | D29: Montant | E29: Dates | F29: Montant | G29: Activités | H29: Montant | I29: Dates | J29: Montant | K29: Activités | L29: Montant
B35: =SUM(B30:B34) -> 0 | D35: =SUM(D30:D34) -> 0 | F35: =SUM(F30:F34) -> 0 | H35: =SUM(H30:H34) -> 0 | J35: =SUM(J30:J34) -> 0 | L35: =SUM(L30:L34) -> 0
A36: Récap 28/02 | D36: =+B35-D35 -> 0 | E36: Récap 31/03 | H36: =+F35-H35 -> 0 | I36: Récap 30/04 | L36: =+J35-L35 -> 0
A39: MAI | E39: JUIN | I39: Situation fin juin
A40: RECETTES | C40: DEPENSES | E40: RECETTES | G40: DEPENSES | J40: Recettes | K40: Dépenses | L40: Total
A41: Dates | B41: Montant | C41: Activités | D41: Montant | E41: Dates | F41: Montant | G41: Activités | H41: Montant | I41: =E23 -> Situation 31/12 | L41: =H23 -> 55
I42: =I25 -> Récap 31/01 | J42: =J24 -> 0 | K42: =L24 -> 0 | L42: =L25 -> 0
I43: =A36 -> Récap 28/02 | J43: =B35 -> 0 | K43: =D35 -> 0 | L43: =D36 -> 0
I44: =E36 -> Récap 31/03 | J44: =F35 -> 0 | K44: =H35 -> 0 | L44: =H36 -> 0
I45: =I36 -> Récap 30/04 | J45: =J35 -> 0 | K45: =L35 -> 0 | L45: =L36 -> 0
I46: =A48 -> Récap 31/05 | J46: =B47 -> 0 | K46: =D47 -> 0 | L46: =D48 -> 0
B47: =SUM(B42:B46) -> 0 | D47: =SUM(D42:D46) -> 0 | F47: =SUM(F42:F46) -> 0 | H47: =SUM(H42:H46) -> 0 | I47: =E48 -> Récap 30/06 | J47: =F47 -> 0 | K47: =H47 -> 0 | L47: =H48 -> 0
A48: Récap 31/05 | D48: =+B47-D47 -> 0 | E48: Récap 30/06 | H48: =+F47-H47 -> 0 | I48: Situation 30/06 | J48: =SUM(J42:J47) -> 0 | K48: =SUM(K42:K47) -> 0 | L48: =SUM(L41:L47) -> 55
L50: =F23+J48-G23-K48+B8 -> 55
J52: =B13+F13+J13+B24+J24+B35+F35+J35+B47+F47 -> 0 | K52: =D13+H13+L13+D24+L24+D35+H35+L35+D47+H47 -> 0 | L52: =B8+J52-K52 -> 55

Sheet CLAESSENS
J1: Année scolaire : | L1: =' Liste élèves'!B1 -> 2018-2019
A3: NOM : | B3: =' Liste élèves'!A30 -> CLAESSENS | D3: PRENOM: | E3: =' Liste élèves'!B30 -> Océane | H3: CLASSE : | I3: =' Liste élèves'!C30 -> Classe PA
A5: SEPTEMBRE | E5: OCTOBRE | I5: NOVEMBRE
A6: RECETTES | C6: DEPENSES | E6: RECETTES | G6: DEPENSES | I6: RECETTES | K6: DEPENSES
A7: Dates | B7: Montant | C7: Activités | D7: Montant | E7: Dates | F7: Montant | G7: Activités | H7: Montant | I7: Dates | J7: Montant | K7: Activités | L7: Montant
A8: Report juin | B8: 37.5
B13: =SUM(B9:B12) -> 0 | D13: =SUM(D8:D12) -> 0 | F13: =SUM(F8:F12) -> 0 | H13: =SUM(H8:H12) -> 0 | J13: =SUM(J8:J12) -> 0 | L13: =SUM(L8:L12) -> 0
A14: Récap 30/09 | D14: =+B13-D13 -> 0 | E14: Récap 31/10 | H14: =+F13-H13 -> 0 | I14: Récap 30/11 | L14: =+J13-L13 -> 0
A16: DÉCEMBRE | E16: Situation fin décembre | I16: JANVIER
A17: RECETTES | C17: DEPENSES | F17: Recettes | G17: Dépenses | H17: Total | I17: RECETTES | K17: DEPENSES
A18: Dates | B18: Montant | C18: Activités | D18: Montant | E18: =A14 -> Récap 30/09 | F18: =B13 -> 0 | G18: =D13 -> 0 | H18: =D14 -> 0 | I18: Dates | J18: Montant | K18: Activités | L18: Montant
E19: =E14 -> Récap 31/10 | F19: =F13 -> 0 | G19: =H13 -> 0 | H19: =H14 -> 0
E20: =I14 -> Récap 30/11 | F20: =J13 -> 0 | G20: =L13 -> 0 | H20: =L14 -> 0
E21: =A25 -> Récap 31/12 | F21: =B24 -> 0 | G21: =D24 -> 0 | H21: =D25 -> 0
E22: Report Sept | H22: =B8 -> 37.5
E23: Situation 31/12 | F23: =SUM(F18:F22) -> 0 | G23: =SUM(G18:G22) -> 0 | H23: =SUM(H18:H22) -> 37.5
B24: =SUM(B19:B23) -> 0 | D24: =SUM(D19:D23) -> 0 | J24: =SUM(J19:J23) -> 0 | L24: =SUM(L19:L23) -> 0
A25: Récap 31/12 | D25: =+B24-D24 -> 0 | I25: Récap 31/01 | L25: =+J24-L24 -> 0
A27: FÉVRIER | E27: MARS | I27: AVRIL
A28: RECETTES | C28: DEPENSES | E28: RECETTES | G28: DEPENSES | I28: RECETTES | K28: DEPENSES
A29: Dates | B29: Montant | C29: Activités | D29: Montant | E29: Dates | F29: Montant | G29: Activités | H29: Montant | I29: Dates | J29: Montant | K29: Activités | L29: Montant
B35: =SUM(B30:B34) -> 0 | D35: =SUM(D30:D34) -> 0 | F35: =SUM(F30:F34) -> 0 | H35: =SUM(H30:H34) -> 0 | J35: =SUM(J30:J34) -> 0 | L35: =SUM(L30:L34) -> 0
A36: Récap 28/02 | D36: =+B35-D35 -> 0 | E36: Récap 31/03 | H36: =+F35-H35 -> 0 | I36: Récap 30/04 | L36: =+J35-L35 -> 0
A39: MAI | E39: JUIN | I39: Situation fin juin
A40: RECETTES | C40: DEPENSES | E40: RECETTES | G40: DEPENSES | J40: Recettes | K40: Dépenses | L40: Total
A41: Dates | B41: Montant | C41: Activités | D41: Montant | E41: Dates | F41: Montant | G41: Activités | H41: Montant | I41: =E23 -> Situation 31/12 | L41: =H23 -> 37.5
I42: =I25 -> Récap 31/01 | J42: =J24 -> 0 | K42: =L24 -> 0 | L42: =L25 -> 0
I43: =A36 -> Récap 28/02 | J43: =B35 -> 0 | K43: =D35 -> 0 | L43: =D36 -> 0
I44: =E36 -> Récap 31/03 | J44: =F35 -> 0 | K44: =H35 -> 0 | L44: =H36 -> 0
I45: =I36 -> Récap 30/04 | J45: =J35 -> 0 | K45: =L35 -> 0 | L45: =L36 -> 0
I46: =A48 -> Récap 31/05 | J46: =B47 -> 0 | K46: =D47 -> 0 | L46: =D48 -> 0
B47: =SUM(B42:B46) -> 0 | D47: =SUM(D42:D46) -> 0 | F47: =SUM(F42:F46) -> 0 | H47: =SUM(H42:H46) -> 0 | I47: =E48 -> Récap 30/06 | J47: =F47 -> 0 | K47: =H47 -> 0 | L47: =H48 -> 0
A48: Récap 31/05 | D48: =+B47-D47 -> 0 | E48: Récap 30/06 | H48: =+F47-H47 -> 0 | I48: Situation 30/06 | J48: =SUM(J42:J47) -> 0 | K48: =SUM(K42:K47) -> 0 | L48: =SUM(L41:L47) -> 37.5
L50: =F23+J48-G23-K48+B8 -> 37.5
J52: =B13+F13+J13+B24+J24+B35+F35+J35+B47+F47 -> 0 | K52: =D13+H13+L13+D24+L24+D35+H35+L35+D47+H47 -> 0 | L52: =B8+J52-K52 -> 37.5

Sheet COUILLARD
J1: Année scolaire : | L1: =' Liste élèves'!B1 -> 2018-2019
A3: NOM : | B3: =' Liste élèves'!A31 -> COUILLARD | D3: PRENOM: | E3: =' Liste élèves'!B31 -> Valentin | H3: CLASSE : | I3: =' Liste élèves'!C31 -> Classe MA
A5: SEPTEMBRE | E5: OCTOBRE | I5: NOVEMBRE
A6: RECETTES | C6: DEPENSES | E6: RECETTES | G6: DEPENSES | I6: RECETTES | K6: DEPENSES
A7: Dates | B7: Montant | C7: Activités | D7: Montant | E7: Dates | F7: Montant | G7: Activités | H7: Montant | I7: Dates | J7: Montant | K7: Activités | L7: Montant
A8: Report juin | B8: 37.5
B13: =SUM(B9:B12) -> 0 | D13: =SUM(D8:D12) -> 0 | F13: =SUM(F8:F12) -> 0 | H13: =SUM(H8:H12) -> 0 | J13: =SUM(J8:J12) -> 0 | L13: =SUM(L8:L12) -> 0
A14: Récap 30/09 | D14: =+B13-D13 -> 0 | E14: Récap 31/10 | H14: =+F13-H13 -> 0 | I14: Récap 30/11 | L14: =+J13-L13 -> 0
A16: DÉCEMBRE | E16: Situation fin décembre | I16: JANVIER
A17: RECETTES | C17: DEPENSES | F17: Recettes | G17: Dépenses | H17: Total | I17: RECETTES | K17: DEPENSES
A18: Dates | B18: Montant | C18: Activités | D18: Montant | E18: =A14 -> Récap 30/09 | F18: =B13 -> 0 | G18: =D13 -> 0 | H18: =D14 -> 0 | I18: Dates | J18: Montant | K18: Activités | L18: Montant
E19: =E14 -> Récap 31/10 | F19: =F13 -> 0 | G19: =H13 -> 0 | H19: =H14 -> 0
E20: =I14 -> Récap 30/11 | F20: =J13 -> 0 | G20: =L13 -> 0 | H20: =L14 -> 0
E21: =A25 -> Récap 31/12 | F21: =B24 -> 0 | G21: =D24 -> 0 | H21: =D25 -> 0
E22: Report Sept | H22: =B8 -> 37.5
E23: Situation 31/12 | F23: =SUM(F18:F22) -> 0 | G23: =SUM(G18:G22) -> 0 | H23: =SUM(H18:H22) -> 37.5
B24: =SUM(B19:B23) -> 0 | D24: =SUM(D19:D23) -> 0 | J24: =SUM(J19:J23) -> 0 | L24: =SUM(L19:L23) -> 0
A25: Récap 31/12 | D25: =+B24-D24 -> 0 | I25: Récap 31/01 | L25: =+J24-L24 -> 0
A27: FÉVRIER | E27: MARS | I27: AVRIL
A28: RECETTES | C28: DEPENSES | E28: RECETTES | G28: DEPENSES | I28: RECETTES | K28: DEPENSES
A29: Dates | B29: Montant | C29: Activités | D29: Montant | E29: Dates | F29: Montant | G29: Activités | H29: Montant | I29: Dates | J29: Montant | K29: Activités | L29: Montant
B35: =SUM(B30:B34) -> 0 | D35: =SUM(D30:D34) -> 0 | F35: =SUM(F30:F34) -> 0 | H35: =SUM(H30:H34) -> 0 | J35: =SUM(J30:J34) -> 0 | L35: =SUM(L30:L34) -> 0
A36: Récap 28/02 | D36: =+B35-D35 -> 0 | E36: Récap 31/03 | H36: =+F35-H35 -> 0 | I36: Récap 30/04 | L36: =+J35-L35 -> 0
A39: MAI | E39: JUIN | I39: Situation fin juin
A40: RECETTES | C40: DEPENSES | E40: RECETTES | G40: DEPENSES | J40: Recettes | K40: Dépenses | L40: Total
A41: Dates | B41: Montant | C41: Activités | D41: Montant | E41: Dates | F41: Montant | G41: Activités | H41: Montant | I41: =E23 -> Situation 31/12 | L41: =H23 -> 37.5
I42: =I25 -> Récap 31/01 | J42: =J24 -> 0 | K42: =L24 -> 0 | L42: =L25 -> 0
I43: =A36 -> Récap 28/02 | J43: =B35 -> 0 | K43: =D35 -> 0 | L43: =D36 -> 0
I44: =E36 -> Récap 31/03 | J44: =F35 -> 0 | K44: =H35 -> 0 | L44: =H36 -> 0
I45: =I36 -> Récap 30/04 | J45: =J35 -> 0 | K45: =L35 -> 0 | L45: =L36 -> 0
I46: =A48 -> Récap 31/05 | J46: =B47 -> 0 | K46: =D47 -> 0 | L46: =D48 -> 0
B47: =SUM(B42:B46) -> 0 | D47: =SUM(D42:D46) -> 0 | F47: =SUM(F42:F46) -> 0 | H47: =SUM(H42:H46) -> 0 | I47: =E48 -> Récap 30/06 | J47: =F47 -> 0 | K47: =H47 -> 0 | L47: =H48 -> 0
A48: Récap 31/05 | D48: =+B47-D47 -> 0 | E48: Récap 30/06 | H48: =+F47-H47 -> 0 | I48: Situation 30/06 | J48: =SUM(J42:J47) -> 0 | K48: =SUM(K42:K47) -> 0 | L48: =SUM(L41:L47) -> 37.5
L50: =F23+J48-G23-K48+B8 -> 37.5
J52: =B13+F13+J13+B24+J24+B35+F35+J35+B47+F47 -> 0 | K52: =D13+H13+L13+D24+L24+D35+H35+L35+D47+H47 -> 0 | L52: =B8+J52-K52 -> 37.5

Sheet CWIKLA
J1: Année scolaire : | L1: =' Liste élèves'!B1 -> 2018-2019
A3: NOM : | B3: =' Liste élèves'!A32 -> CWIKLA | D3: PRENOM: | E3: =' Liste élèves'!B32 -> Morgan | H3: CLASSE : | I3: =' Liste élèves'!C32 -> Classe MC
A5: SEPTEMBRE | E5: OCTOBRE | I5: NOVEMBRE
A6: RECETTES | C6: DEPENSES | E6: RECETTES | G6: DEPENSES | I6: RECETTES | K6: DEPENSES
A7: Dates | B7: Montant | C7: Activités | D7: Montant | E7: Dates | F7: Montant | G7: Activités | H7: Montant | I7: Dates | J7: Montant | K7: Activités | L7: Montant
A8: Report juin | B8: 61.06
B13: =SUM(B9:B12) -> 0 | D13: =SUM(D8:D12) -> 0 | F13: =SUM(F8:F12) -> 0 | H13: =SUM(H8:H12) -> 0 | J13: =SUM(J8:J12) -> 0 | L13: =SUM(L8:L12) -> 0
A14: Récap 30/09 | D14: =+B13-D13 -> 0 | E14: Récap 31/10 | H14: =+F13-H13 -> 0 | I14: Récap 30/11 | L14: =+J13-L13 -> 0
A16: DÉCEMBRE | E16: Situation fin décembre | I16: JANVIER
A17: RECETTES | C17: DEPENSES | F17: Recettes | G17: Dépenses | H17: Total | I17: RECETTES | K17: DEPENSES
A18: Dates | B18: Montant | C18: Activités | D18: Montant | E18: =A14 -> Récap 30/09 | F18: =B13 -> 0 | G18: =D13 -> 0 | H18: =D14 -> 0 | I18: Dates | J18: Montant | K18: Activités | L18: Montant
E19: =E14 -> Récap 31/10 | F19: =F13 -> 0 | G19: =H13 -> 0 | H19: =H14 -> 0
E20: =I14 -> Récap 30/11 | F20: =J13 -> 0 | G20: =L13 -> 0 | H20: =L14 -> 0
E21: =A25 -> Récap 31/12 | F21: =B24 -> 0 | G21: =D24 -> 0 | H21: =D25 -> 0
E22: Report Sept | H22: =B8 -> 61.06
E23: Situation 31/12 | F23: =SUM(F18:F22) -> 0 | G23: =SUM(G18:G22) -> 0 | H23: =SUM(H18:H22) -> 61.06
B24: =SUM(B19:B23) -> 0 | D24: =SUM(D19:D23) -> 0 | J24: =SUM(J19:J23) -> 0 | L24: =SUM(L19:L23) -> 0
A25: Récap 31/12 | D25: =+B24-D24 -> 0 | I25: Récap 31/01 | L25: =+J24-L24 -> 0
A27: FÉVRIER | E27: MARS | I27: AVRIL
A28: RECETTES | C28: DEPENSES | E28: RECETTES | G28: DEPENSES | I28: RECETTES | K28: DEPENSES
A29: Dates | B29: Montant | C29: Activités | D29: Montant | E29: Dates | F29: Montant | G29: Activités | H29: Montant | I29: Dates | J29: Montant | K29: Activités | L29: Montant
B35: =SUM(B30:B34) -> 0 | D35: =SUM(D30:D34) -> 0 | F35: =SUM(F30:F34) -> 0 | H35: =SUM(H30:H34) -> 0 | J35: =SUM(J30:J34) -> 0 | L35: =SUM(L30:L34) -> 0
A36: Récap 28/02 | D36: =+B35-D35 -> 0 | E36: Récap 31/03 | H36: =+F35-H35 -> 0 | I36: Récap 30/04 | L36: =+J35-L35 -> 0
A39: MAI | E39: JUIN | I39: Situation fin juin
A40: RECETTES | C40: DEPENSES | E40: RECETTES | G40: DEPENSES | J40: Recettes | K40: Dépenses | L40: Total
A41: Dates | B41: Montant | C41: Activités | D41: Montant | E41: Dates | F41: Montant | G41: Activités | H41: Montant | I41: =E23 -> Situation 31/12 | L41: =H23 -> 61.06
I42: =I25 -> Récap 31/01 | J42: =J24 -> 0 | K42: =L24 -> 0 | L42: =L25 -> 0
I43: =A36 -> Récap 28/02 | J43: =B35 -> 0 | K43: =D35 -> 0 | L43: =D36 -> 0
I44: =E36 -> Récap 31/03 | J44: =F35 -> 0 | K44: =H35 -> 0 | L44: =H36 -> 0
I45: =I36 -> Récap 30/04 | J45: =J35 -> 0 | K45: =L35 -> 0 | L45: =L36 -> 0
I46: =A48 -> Récap 31/05 | J46: =B47 -> 0 | K46: =D47 -> 0 | L46: =D48 -> 0
B47: =SUM(B42:B46) -> 0 | D47: =SUM(D42:D46) -> 0 | F47: =SUM(F42:F46) -> 0 | H47: =SUM(H42:H46) -> 0 | I47: =E48 -> Récap 30/06 | J47: =F47 -> 0 | K47: =H47 -> 0 | L47: =H48 -> 0
A48: Récap 31/05 | D48: =+B47-D47 -> 0 | E48: Récap 30/06 | H48: =+F47-H47 -> 0 | I48: Situation 30/06 | J48: =SUM(J42:J47) -> 0 | K48: =SUM(K42:K47) -> 0 | L48: =SUM(L41:L47) -> 61.06
L50: =F23+J48-G23-K48+B8 -> 61.06
J52: =B13+F13+J13+B24+J24+B35+F35+J35+B47+F47 -> 0 | K52: =D13+H13+L13+D24+L24+D35+H35+L35+D47+H47 -> 0 | L52: =B8+J52-K52 -> 61.06

Sheet DAHMANI
J1: Année scolaire : | L1: =' Liste élèves'!B1 -> 2018-2019
A3: NOM : | B3: =' Liste élèves'!A34 -> DAHMANI | D3: PRENOM: | E3: =' Liste élèves'!B34 -> Abdelkrim | H3: CLASSE : | I3: =' Liste élèves'!C34 -> Classe 4
A5: SEPTEMBRE | E5: OCTOBRE | I5: NOVEMBRE
A6: RECETTES | C6: DEPENSES | E6: RECETTES | G6: DEPENSES | I6: RECETTES | K6: DEPENSES
A7: Dates | B7: Montant | C7: Activités | D7: Montant | E7: Dates | F7: Montant | G7: Activités | H7: Montant | I7: Dates | J7: Montant | K7: Activités | L7: Montant
A8: Report juin | B8: 40.7
B13: =SUM(B9:B12) -> 0 | D13: =SUM(D8:D12) -> 0 | F13: =SUM(F8:F12) -> 0 | H13: =SUM(H8:H12) -> 0 | J13: =SUM(J8:J12) -> 0 | L13: =SUM(L8:L12) -> 0
A14: Récap 30/09 | D14: =+B13-D13 -> 0 | E14: Récap 31/10 | H14: =+F13-H13 -> 0 | I14: Récap 30/11 | L14: =+J13-L13 -> 0
A16: DÉCEMBRE | E16: Situation fin décembre | I16: JANVIER
A17: RECETTES | C17: DEPENSES | F17: Recettes | G17: Dépenses | H17: Total | I17: RECETTES | K17: DEPENSES
A18: Dates | B18: Montant | C18: Activités | D18: Montant | E18: =A14 -> Récap 30/09 | F18: =B13 -> 0 | G18: =D13 -> 0 | H18: =D14 -> 0 | I18: Dates | J18: Montant | K18: Activités | L18: Montant
E19: =E14 -> Récap 31/10 | F19: =F13 -> 0 | G19: =H13 -> 0 | H19: =H14 -> 0
E20: =I14 -> Récap 30/11 | F20: =J13 -> 0 | G20: =L13 -> 0 | H20: =L14 -> 0
E21: =A25 -> Récap 31/12 | F21: =B24 -> 0 | G21: =D24 -> 0 | H21: =D25 -> 0
E22: Report Sept | H22: =B8 -> 40.7
E23: Situation 31/12 | F23: =SUM(F18:F22) -> 0 | G23: =SUM(G18:G22) -> 0 | H23: =SUM(H18:H22) -> 40.7
B24: =SUM(B19:B23) -> 0 | D24: =SUM(D19:D23) -> 0 | J24: =SUM(J19:J23) -> 0 | L24: =SUM(L19:L23) -> 0
A25: Récap 31/12 | D25: =+B24-D24 -> 0 | I25: Récap 31/01 | L25: =+J24-L24 -> 0
A27: FÉVRIER | E27: MARS | I27: AVRIL
A28: RECETTES | C28: DEPENSES | E28: RECETTES | G28: DEPENSES | I28: RECETTES | K28: DEPENSES
A29: Dates | B29: Montant | C29: Activités | D29: Montant | E29: Dates | F29: Montant | G29: Activités | H29: Montant | I29: Dates | J29: Montant | K29: Activités | L29: Montant
B35: =SUM(B30:B34) -> 0 | D35: =SUM(D30:D34) -> 0 | F35: =SUM(F30:F34) -> 0 | H35: =SUM(H30:H34) -> 0 | J35: =SUM(J30:J34) -> 0 | L35: =SUM(L30:L34) -> 0
A36: Récap 28/02 | D36: =+B35-D35 -> 0 | E36: Récap 31/03 | H36: =+F35-H35 -> 0 | I36: Récap 30/04 | L36: =+J35-L35 -> 0
A39: MAI | E39: JUIN | I39: Situation fin juin
A40: RECETTES | C40: DEPENSES | E40: RECETTES | G40: DEPENSES | J40: Recettes | K40: Dépenses | L40: Total
A41: Dates | B41: Montant | C41: Activités | D41: Montant | E41: Dates | F41: Montant | G41: Activités | H41: Montant | I41: =E23 -> Situation 31/12 | L41: =H23 -> 40.7
I42: =I25 -> Récap 31/01 | J42: =J24 -> 0 | K42: =L24 -> 0 | L42: =L25 -> 0
I43: =A36 -> Récap 28/02 | J43: =B35 -> 0 | K43: =D35 -> 0 | L43: =D36 -> 0
I44: =E36 -> Récap 31/03 | J44: =F35 -> 0 | K44: =H35 -> 0 | L44: =H36 -> 0
I45: =I36 -> Récap 30/04 | J45: =J35 -> 0 | K45: =L35 -> 0 | L45: =L36 -> 0
I46: =A48 -> Récap 31/05 | J46: =B47 -> 0 | K46: =D47 -> 0 | L46: =D48 -> 0
B47: =SUM(B42:B46) -> 0 | D47: =SUM(D42:D46) -> 0 | F47: =SUM(F42:F46) -> 0 | H47: =SUM(H42:H46) -> 0 | I47: =E48 -> Récap 30/06 | J47: =F47 -> 0 | K47: =H47 -> 0 | L47: =H48 -> 0
A48: Récap 31/05 | D48: =+B47-D47 -> 0 | E48: Récap 30/06 | H48: =+F47-H47 -> 0 | I48: Situation 30/06 | J48: =SUM(J42:J47) -> 0 | K48: =SUM(K42:K47) -> 0 | L48: =SUM(L41:L47) -> 40.7
L50: =F23+J48-G23-K48+B8 -> 40.7
J52: =B13+F13+J13+B24+J24+B35+F35+J35+B47+F47 -> 0 | K52: =D13+H13+L13+D24+L24+D35+H35+L35+D47+H47 -> 0 | L52: =B8+J52-K52 -> 40.7

Sheet DAMBROSIO
J1: Année scolaire : | L1: =' Liste élèves'!B1 -> 2018-2019
A3: NOM : | B3: =' Liste élèves'!A33 -> DAMBROSIO | D3: PRENOM: | E3: =' Liste élèves'!B33 -> Nadine | H3: CLASSE : | I3: =' Liste élèves'!C33 -> Classe MC
A5: SEPTEMBRE | E5: OCTOBRE | I5: NOVEMBRE
A6: RECETTES | C6: DEPENSES | E6: RECETTES | G6: DEPENSES | I6: RECETTES | K6: DEPENSES
A7: Dates | B7: Montant | C7: Activités | D7: Montant | E7: Dates | F7: Montant | G7: Activités | H7: Montant | I7: Dates | J7: Montant | K7: Activités | L7: Montant
A8: Report juin | B8: 128.5
B13: =SUM(B9:B12) -> 0 | D13: =SUM(D8:D12) -> 0 | F13: =SUM(F8:F12) -> 0 | H13: =SUM(H8:H12) -> 0 | J13: =SUM(J8:J12) -> 0 | L13: =SUM(L8:L12) -> 0
A14: Récap 30/09 | D14: =+B13-D13 -> 0 | E14: Récap 31/10 | H14: =+F13-H13 -> 0 | I14: Récap 30/11 | L14: =+J13-L13 -> 0
A16: DÉCEMBRE | E16: Situation fin décembre | I16: JANVIER
A17: RECETTES | C17: DEPENSES | F17: Recettes | G17: Dépenses | H17: Total | I17: RECETTES | K17: DEPENSES
A18: Dates | B18: Montant | C18: Activités | D18: Montant | E18: =A14 -> Récap 30/09 | F18: =B13 -> 0 | G18: =D13 -> 0 | H18: =D14 -> 0 | I18: Dates | J18: Montant | K18: Activités | L18: Montant
E19: =E14 -> Récap 31/10 | F19: =F13 -> 0 | G19: =H13 -> 0 | H19: =H14 -> 0
E20: =I14 -> Récap 30/11 | F20: =J13 -> 0 | G20: =L13 -> 0 | H20: =L14 -> 0
E21: =A25 -> Récap 31/12 | F21: =B24 -> 0 | G21: =D24 -> 0 | H21: =D25 -> 0
E22: Report Sept | H22: =B8 -> 128.5
E23: Situation 31/12 | F23: =SUM(F18:F22) -> 0 | G23: =SUM(G18:G22) -> 0 | H23: =SUM(H18:H22) -> 128.5
B24: =SUM(B19:B23) -> 0 | D24: =SUM(D19:D23) -> 0 | J24: =SUM(J19:J23) -> 0 | L24: =SUM(L19:L23) -> 0
A25: Récap 31/12 | D25: =+B24-D24 -> 0 | I25: Récap 31/01 | L25: =+J24-L24 -> 0
A27: FÉVRIER | E27: MARS | I27: AVRIL
A28: RECETTES | C28: DEPENSES | E28: RECETTES | G28: DEPENSES | I28: RECETTES | K28: DEPENSES
A29: Dates | B29: Montant | C29: Activités | D29: Montant | E29: Dates | F29: Montant | G29: Activités | H29: Montant | I29: Dates | J29: Montant | K29: Activités | L29: Montant
B35: =SUM(B30:B34) -> 0 | D35: =SUM(D30:D34) -> 0 | F35: =SUM(F30:F34) -> 0 | H35: =SUM(H30:H34) -> 0 | J35: =SUM(J30:J34) -> 0 | L35: =SUM(L30:L34) -> 0
A36: Récap 28/02 | D36: =+B35-D35 -> 0 | E36: Récap 31/03 | H36: =+F35-H35 -> 0 | I36: Récap 30/04 | L36: =+J35-L35 -> 0
A39: MAI | E39: JUIN | I39: Situation fin juin
A40: RECETTES | C40: DEPENSES | E40: RECETTES | G40: DEPENSES | J40: Recettes | K40: Dépenses | L40: Total
A41: Dates | B41: Montant | C41: Activités | D41: Montant | E41: Dates | F41: Montant | G41: Activités | H41: Montant | I41: =E23 -> Situation 31/12 | L41: =H23 -> 128.5
I42: =I25 -> Récap 31/01 | J42: =J24 -> 0 | K42: =L24 -> 0 | L42: =L25 -> 0
I43: =A36 -> Récap 28/02 | J43: =B35 -> 0 | K43: =D35 -> 0 | L43: =D36 -> 0
I44: =E36 -> Récap 31/03 | J44: =F35 -> 0 | K44: =H35 -> 0 | L44: =H36 -> 0
I45: =I36 -> Récap 30/04 | J45: =J35 -> 0 | K45: =L35 -> 0 | L45: =L36 -> 0
I46: =A48 -> Récap 31/05 | J46: =B47 -> 0 | K46: =D47 -> 0 | L46: =D48 -> 0
B47: =SUM(B42:B46) -> 0 | D47: =SUM(D42:D46) -> 0 | F47: =SUM(F42:F46) -> 0 | H47: =SUM(H42:H46) -> 0 | I47: =E48 -> Récap 30/06 | J47: =F47 -> 0 | K47: =H47 -> 0 | L47: =H48 -> 0
A48: Récap 31/05 | D48: =+B47-D47 -> 0 | E48: Récap 30/06 | H48: =+F47-H47 -> 0 | I48: Situation 30/06 | J48: =SUM(J42:J47) -> 0 | K48: =SUM(K42:K47) -> 0 | L48: =SUM(L41:L47) -> 128.5
L50: =F23+J48-G23-K48+B8 -> 128.5
J52: =B13+F13+J13+B24+J24+B35+F35+J35+B47+F47 -> 0 | K52: =D13+H13+L13+D24+L24+D35+H35+L35+D47+H47 -> 0 | L52: =B8+J52-K52 -> 128.5

Sheet DAMIEN
J1: Année scolaire : | L1: =' Liste élèves'!B1 -> 2018-2019
A3: NOM : | B3: =' Liste élèves'!A35 -> DAMIEN | D3: PRENOM: | E3: =' Liste élèves'!B35 -> Hélène | H3: CLASSE : | I3: =' Liste élèves'!C35 -> Classe MC
A5: SEPTEMBRE | E5: OCTOBRE | I5: NOVEMBRE
A6: RECETTES | C6: DEPENSES | E6: RECETTES | G6: DEPENSES | I6: RECETTES | K6: DEPENSES
A7: Dates | B7: Montant | C7: Activités | D7: Montant | E7: Dates | F7: Montant | G7: Activités | H7: Montant | I7: Dates | J7: Montant | K7: Activités | L7: Montant
A8: Report juin | B8: 43.7
B13: =SUM(B9:B12) -> 0 | D13: =SUM(D8:D12) -> 0 | F13: =SUM(F8:F12) -> 0 | H13: =SUM(H8:H12) -> 0 | J13: =SUM(J8:J12) -> 0 | L13: =SUM(L8:L12) -> 0
A14: Récap 30/09 | D14: =+B13-D13 -> 0 | E14: Récap 31/10 | H14: =+F13-H13 -> 0 | I14: Récap 30/11 | L14: =+J13-L13 -> 0
A16: DÉCEMBRE | E16: Situation fin décembre | I16: JANVIER
A17: RECETTES | C17: DEPENSES | F17: Recettes | G17: Dépenses | H17: Total | I17: RECETTES | K17: DEPENSES
A18: Dates | B18: Montant | C18: Activités | D18: Montant | E18: =A14 -> Récap 30/09 | F18: =B13 -> 0 | G18: =D13 -> 0 | H18: =D14 -> 0 | I18: Dates | J18: Montant | K18: Activités | L18: Montant
E19: =E14 -> Récap 31/10 | F19: =F13 -> 0 | G19: =H13 -> 0 | H19: =H14 -> 0
E20: =I14 -> Récap 30/11 | F20: =J13 -> 0 | G20: =L13 -> 0 | H20: =L14 -> 0
E21: =A25 -> Récap 31/12 | F21: =B24 -> 0 | G21: =D24 -> 0 | H21: =D25 -> 0
E22: Report Sept | H22: =B8 -> 43.7
E23: Situation 31/12 | F23: =SUM(F18:F22) -> 0 | G23: =SUM(G18:G22) -> 0 | H23: =SUM(H18:H22) -> 43.7
B24: =SUM(B19:B23) -> 0 | D24: =SUM(D19:D23) -> 0 | J24: =SUM(J19:J23) -> 0 | L24: =SUM(L19:L23) -> 0
A25: Récap 31/12 | D25: =+B24-D24 -> 0 | I25: Récap 31/01 | L25: =+J24-L24 -> 0
A27: FÉVRIER | E27: MARS | I27: AVRIL
A28: RECETTES | C28: DEPENSES | E28: RECETTES | G28: DEPENSES | I28: RECETTES | K28: DEPENSES
A29: Dates | B29: Montant | C29: Activités | D29: Montant | E29: Dates | F29: Montant | G29: Activités | H29: Montant | I29: Dates | J29: Montant | K29: Activités | L29: Montant
B35: =SUM(B30:B34) -> 0 | D35: =SUM(D30:D34) -> 0 | F35: =SUM(F30:F34) -> 0 | H35: =SUM(H30:H34) -> 0 | J35: =SUM(J30:J34) -> 0 | L35: =SUM(L30:L34) -> 0
A36: Récap 28/02 | D36: =+B35-D35 -> 0 | E36: Récap 31/03 | H36: =+F35-H35 -> 0 | I36: Récap 30/04 | L36: =+J35-L35 -> 0
A39: MAI | E39: JUIN | I39: Situation fin juin
A40: RECETTES | C40: DEPENSES | E40: RECETTES | G40: DEPENSES | J40: Recettes | K40: Dépenses | L40: Total
A41: Dates | B41: Montant | C41: Activités | D41: Montant | E41: Dates | F41: Montant | G41: Activités | H41: Montant | I41: =E23 -> Situation 31/12 | L41: =H23 -> 43.7
I42: =I25 -> Récap 31/01 | J42: =J24 -> 0 | K42: =L24 -> 0 | L42: =L25 -> 0
I43: =A36 -> Récap 28/02 | J43: =B35 -> 0 | K43: =D35 -> 0 | L43: =D36 -> 0
I44: =E36 -> Récap 31/03 | J44: =F35 -> 0 | K44: =H35 -> 0 | L44: =H36 -> 0
I45: =I36 -> Récap 30/04 | J45: =J35 -> 0 | K45: =L35 -> 0 | L45: =L36 -> 0
I46: =A48 -> Récap 31/05 | J46: =B47 -> 0 | K46: =D47 -> 0 | L46: =D48 -> 0
B47: =SUM(B42:B46) -> 0 | D47: =SUM(D42:D46) -> 0 | F47: =SUM(F42:F46) -> 0 | H47: =SUM(H42:H46) -> 0 | I47: =E48 -> Récap 30/06 | J47: =F47 -> 0 | K47: =H47 -> 0 | L47: =H48 -> 0
A48: Récap 31/05 | D48: =+B47-D47 -> 0 | E48: Récap 30/06 | H48: =+F47-H47 -> 0 | I48: Situation 30/06 | J48: =SUM(J42:J47) -> 0 | K48: =SUM(K42:K47) -> 0 | L48: =SUM(L41:L47) -> 43.7
L50: =F23+J48-G23-K48+B8 -> 43.7
J52: =B13+F13+J13+B24+J24+B35+F35+J35+B47+F47 -> 0 | K52: =D13+H13+L13+D24+L24+D35+H35+L35+D47+H47 -> 0 | L52: =B8+J52-K52 -> 43.7

Sheet DASPREMONT
J1: Année scolaire : | L1: =' Liste élèves'!B1 -> 2018-2019
A3: NOM : | B3: =' Liste élèves'!A36 -> DASPREMONT | D3: PRENOM: | E3: =' Liste élèves'!B36 -> Kimberley | H3: CLASSE : | I3: =' Liste élèves'!C36 -> Classe MB
A5: SEPTEMBRE | E5: OCTOBRE | I5: NOVEMBRE
A6: RECETTES | C6: DEPENSES | E6: RECETTES | G6: DEPENSES | I6: RECETTES | K6: DEPENSES
A7: Dates | B7: Montant | C7: Activités | D7: Montant | E7: Dates | F7: Montant | G7: Activités | H7: Montant | I7: Dates | J7: Montant | K7: Activités | L7: Montant
A8: Report juin | B8: 36
B13: =SUM(B9:B12) -> 0 | D13: =SUM(D8:D12) -> 0 | F13: =SUM(F8:F12) -> 0 | H13: =SUM(H8:H12) -> 0 | J13: =SUM(J8:J12) -> 0 | L13: =SUM(L8:L12) -> 0
A14: Récap 30/09 | D14: =+B13-D13 -> 0 | E14: Récap 31/10 | H14: =+F13-H13 -> 0 | I14: Récap 30/11 | L14: =+J13-L13 -> 0
A16: DÉCEMBRE | E16: Situation fin décembre | I16: JANVIER
A17: RECETTES | C17: DEPENSES | F17: Recettes | G17: Dépenses | H17: Total | I17: RECETTES | K17: DEPENSES
A18: Dates | B18: Montant | C18: Activités | D18: Montant | E18: =A14 -> Récap 30/09 | F18: =B13 -> 0 | G18: =D13 -> 0 | H18: =D14 -> 0 | I18: Dates | J18: Montant | K18: Activités | L18: Montant
E19: =E14 -> Récap 31/10 | F19: =F13 -> 0 | G19: =H13 -> 0 | H19: =H14 -> 0
E20: =I14 -> Récap 30/11 | F20: =J13 -> 0 | G20: =L13 -> 0 | H20: =L14 -> 0
E21: =A25 -> Récap 31/12 | F21: =B24 -> 0 | G21: =D24 -> 0 | H21: =D25 -> 0
E22: Report Sept | H22: =B8 -> 36
E23: Situation 31/12 | F23: =SUM(F18:F22) -> 0 | G23: =SUM(G18:G22) -> 0 | H23: =SUM(H18:H22) -> 36
B24: =SUM(B19:B23) -> 0 | D24: =SUM(D19:D23) -> 0 | J24: =SUM(J19:J23) -> 0 | L24: =SUM(L19:L23) -> 0
A25: Récap 31/12 | D25: =+B24-D24 -> 0 | I25: Récap 31/01 | L25: =+J24-L24 -> 0
A27: FÉVRIER | E27: MARS | I27: AVRIL
A28: RECETTES | C28: DEPENSES | E28: RECETTES | G28: DEPENSES | I28: RECETTES | K28: DEPENSES
A29: Dates | B29: Montant | C29: Activités | D29: Montant | E29: Dates | F29: Montant | G29: Activités | H29: Montant | I29: Dates | J29: Montant | K29: Activités | L29: Montant
B35: =SUM(B30:B34) -> 0 | D35: =SUM(D30:D34) -> 0 | F35: =SUM(F30:F34) -> 0 | H35: =SUM(H30:H34) -> 0 | J35: =SUM(J30:J34) -> 0 | L35: =SUM(L30:L34) -> 0
A36: Récap 28/02 | D36: =+B35-D35 -> 0 | E36: Récap 31/03 | H36: =+F35-H35 -> 0 | I36: Récap 30/04 | L36: =+J35-L35 -> 0
A39: MAI | E39: JUIN | I39: Situation fin juin
A40: RECETTES | C40: DEPENSES | E40: RECETTES | G40: DEPENSES | J40: Recettes | K40: Dépenses | L40: Total
A41: Dates | B41: Montant | C41: Activités | D41: Montant | E41: Dates | F41: Montant | G41: Activités | H41: Montant | I41: =E23 -> Situation 31/12 | L41: =H23 -> 36
I42: =I25 -> Récap 31/01 | J42: =J24 -> 0 | K42: =L24 -> 0 | L42: =L25 -> 0
I43: =A36 -> Récap 28/02 | J43: =B35 -> 0 | K43: =D35 -> 0 | L43: =D36 -> 0
I44: =E36 -> Récap 31/03 | J44: =F35 -> 0 | K44: =H35 -> 0 | L44: =H36 -> 0
I45: =I36 -> Récap 30/04 | J45: =J35 -> 0 | K45: =L35 -> 0 | L45: =L36 -> 0
I46: =A48 -> Récap 31/05 | J46: =B47 -> 0 | K46: =D47 -> 0 | L46: =D48 -> 0
B47: =SUM(B42:B46) -> 0 | D47: =SUM(D42:D46) -> 0 | F47: =SUM(F42:F46) -> 0 | H47: =SUM(H42:H46) -> 0 | I47: =E48 -> Récap 30/06 | J47: =F47 -> 0 | K47: =H47 -> 0 | L47: =H48 -> 0
A48: Récap 31/05 | D48: =+B47-D47 -> 0 | E48: Récap 30/06 | H48: =+F47-H47 -> 0 | I48: Situation 30/06 | J48: =SUM(J42:J47) -> 0 | K48: =SUM(K42:K47) -> 0 | L48: =SUM(L41:L47) -> 36
L50: =F23+J48-G23-K48+B8 -> 36
J52: =B13+F13+J13+B24+J24+B35+F35+J35+B47+F47 -> 0 | K52: =D13+H13+L13+D24+L24+D35+H35+L35+D47+H47 -> 0 | L52: =B8+J52-K52 -> 36

Sheet DAU
J1: Année scolaire : | L1: =' Liste élèves'!B1 -> 2018-2019
A3: NOM : | B3: =' Liste élèves'!A37 -> DAU | D3: PRENOM: | E3: =' Liste élèves'!B37 -> Qani | H3: CLASSE : | I3: =' Liste élèves'!C37 -> Classe 2
A5: SEPTEMBRE | E5: OCTOBRE | I5: NOVEMBRE
A6: RECETTES | C6: DEPENSES | E6: RECETTES | G6: DEPENSES | I6: RECETTES | K6: DEPENSES
A7: Dates | B7: Montant | C7: Activités | D7: Montant | E7: Dates | F7: Montant | G7: Activités | H7: Montant | I7: Dates | J7: Montant | K7: Activités | L7: Montant
A8: Report juin
B13: =SUM(B9:B12) -> 0 | D13: =SUM(D8:D12) -> 0 | F13: =SUM(F8:F12) -> 0 | H13: =SUM(H8:H12) -> 0 | J13: =SUM(J8:J12) -> 0 | L13: =SUM(L8:L12) -> 0
A14: Récap 30/09 | D14: =+B13-D13 -> 0 | E14: Récap 31/10 | H14: =+F13-H13 -> 0 | I14: Récap 30/11 | L14: =+J13-L13 -> 0
A16: DÉCEMBRE | E16: Situation fin décembre | I16: JANVIER
A17: RECETTES | C17: DEPENSES | F17: Recettes | G17: Dépenses | H17: Total | I17: RECETTES | K17: DEPENSES
A18: Dates | B18: Montant | C18: Activités | D18: Montant | E18: =A14 -> Récap 30/09 | F18: =B13 -> 0 | G18: =D13 -> 0 | H18: =D14 -> 0 | I18: Dates | J18: Montant | K18: Activités | L18: Montant
E19: =E14 -> Récap 31/10 | F19: =F13 -> 0 | G19: =H13 -> 0 | H19: =H14 -> 0
E20: =I14 -> Récap 30/11 | F20: =J13 -> 0 | G20: =L13 -> 0 | H20: =L14 -> 0
E21: =A25 -> Récap 31/12 | F21: =B24 -> 0 | G21: =D24 -> 0 | H21: =D25 -> 0
E22: Report Sept | H22: =B8 -> 0
E23: Situation 31/12 | F23: =SUM(F18:F22) -> 0 | G23: =SUM(G18:G22) -> 0 | H23: =SUM(H18:H22) -> 0
B24: =SUM(B19:B23) -> 0 | D24: =SUM(D19:D23) -> 0 | J24: =SUM(J19:J23) -> 0 | L24: =SUM(L19:L23) -> 0
A25: Récap 31/12 | D25: =+B24-D24 -> 0 | I25: Récap 31/01 | L25: =+J24-L24 -> 0
A27: FÉVRIER | E27: MARS | I27: AVRIL
A28: RECETTES | C28: DEPENSES | E28: RECETTES | G28: DEPENSES | I28: RECETTES | K28: DEPENSES
A29: Dates | B29: Montant | C29: Activités | D29: Montant | E29: Dates | F29: Montant | G29: Activités | H29: Montant | I29: Dates | J29: Montant | K29: Activités | L29: Montant
B35: =SUM(B30:B34) -> 0 | D35: =SUM(D30:D34) -> 0 | F35: =SUM(F30:F34) -> 0 | H35: =SUM(H30:H34) -> 0 | J35: =SUM(J30:J34) -> 0 | L35: =SUM(L30:L34) -> 0
A36: Récap 28/02 | D36: =+B35-D35 -> 0 | E36: Récap 31/03 | H36: =+F35-H35 -> 0 | I36: Récap 30/04 | L36: =+J35-L35 -> 0
A39: MAI | E39: JUIN | I39: Situation fin juin
A40: RECETTES | C40: DEPENSES | E40: RECETTES | G40: DEPENSES | J40: Recettes | K40: Dépenses | L40: Total
A41: Dates | B41: Montant | C41: Activités | D41: Montant | E41: Dates | F41: Montant | G41: Activités | H41: Montant | I41: =E23 -> Situation 31/12 | L41: =H23 -> 0
I42: =I25 -> Récap 31/01 | J42: =J24 -> 0 | K42: =L24 -> 0 | L42: =L25 -> 0
I43: =A36 -> Récap 28/02 | J43: =B35 -> 0 | K43: =D35 -> 0 | L43: =D36 -> 0
I44: =E36 -> Récap 31/03 | J44: =F35 -> 0 | K44: =H35 -> 0 | L44: =H36 -> 0
I45: =I36 -> Récap 30/04 | J45: =J35 -> 0 | K45: =L35 -> 0 | L45: =L36 -> 0
I46: =A48 -> Récap 31/05 | J46: =B47 -> 0 | K46: =D47 -> 0 | L46: =D48 -> 0
B47: =SUM(B42:B46) -> 0 | D47: =SUM(D42:D46) -> 0 | F47: =SUM(F42:F46) -> 0 | H47: =SUM(H42:H46) -> 0 | I47: =E48 -> Récap 30/06 | J47: =F47 -> 0 | K47: =H47 -> 0 | L47: =H48 -> 0
A48: Récap 31/05 | D48: =+B47-D47 -> 0 | E48: Récap 30/06 | H48: =+F47-H47 -> 0 | I48: Situation 30/06 | J48: =SUM(J42:J47) -> 0 | K48: =SUM(K42:K47) -> 0 | L48: =SUM(L41:L47) -> 0
L50: =F23+J48-G23-K48+B8 -> 0
J52: =B13+F13+J13+B24+J24+B35+F35+J35+B47+F47 -> 0 | K52: =D13+H13+L13+D24+L24+D35+H35+L35+D47+H47 -> 0 | L52: =B8+J52-K52 -> 0

Sheet DEBESSELLE
J1: Année scolaire : | L1: =' Liste élèves'!B1 -> 2018-2019
A3: NOM : | B3: =' Liste élèves'!A43 -> DEBESSELLE | D3: PRENOM: | E3: =' Liste élèves'!B43 -> Manon | H3: CLASSE : | I3: =' Liste élèves'!C43 -> Classe MB
A5: SEPTEMBRE | E5: OCTOBRE | I5: NOVEMBRE
A6: RECETTES | C6: DEPENSES | E6: RECETTES | G6: DEPENSES | I6: RECETTES | K6: DEPENSES
A7: Dates | B7: Montant | C7: Activités | D7: Montant | E7: Dates | F7: Montant | G7: Activités | H7: Montant | I7: Dates | J7: Montant | K7: Activités | L7: Montant
A8: Report juin | B8: -2.5
B13: =SUM(B9:B12) -> 0 | D13: =SUM(D8:D12) -> 0 | F13: =SUM(F8:F12) -> 0 | H13: =SUM(H8:H12) -> 0 | J13: =SUM(J8:J12) -> 0 | L13: =SUM(L8:L12) -> 0
A14: Récap 30/09 | D14: =+B13-D13 -> 0 | E14: Récap 31/10 | H14: =+F13-H13 -> 0 | I14: Récap 30/11 | L14: =+J13-L13 -> 0
A16: DÉCEMBRE | E16: Situation fin décembre | I16: JANVIER
A17: RECETTES | C17: DEPENSES | F17: Recettes | G17: Dépenses | H17: Total | I17: RECETTES | K17: DEPENSES
A18: Dates | B18: Montant | C18: Activités | D18: Montant | E18: =A14 -> Récap 30/09 | F18: =B13 -> 0 | G18: =D13 -> 0 | H18: =D14 -> 0 | I18: Dates | J18: Montant | K18: Activités | L18: Montant
E19: =E14 -> Récap 31/10 | F19: =F13 -> 0 | G19: =H13 -> 0 | H19: =H14 -> 0
E20: =I14 -> Récap 30/11 | F20: =J13 -> 0 | G20: =L13 -> 0 | H20: =L14 -> 0
E21: =A25 -> Récap 31/12 | F21: =B24 -> 0 | G21: =D24 -> 0 | H21: =D25 -> 0
E22: Report Sept | H22: =B8 -> -2.5
E23: Situation 31/12 | F23: =SUM(F18:F22) -> 0 | G23: =SUM(G18:G22) -> 0 | H23: =SUM(H18:H22) -> -2.5
B24: =SUM(B19:B23) -> 0 | D24: =SUM(D19:D23) -> 0 | J24: =SUM(J19:J23) -> 0 | L24: =SUM(L19:L23) -> 0
A25: Récap 31/12 | D25: =+B24-D24 -> 0 | I25: Récap 31/01 | L25: =+J24-L24 -> 0
A27: FÉVRIER | E27: MARS | I27: AVRIL
A28: RECETTES | C28: DEPENSES | E28: RECETTES | G28: DEPENSES | I28: RECETTES | K28: DEPENSES
A29: Dates | B29: Montant | C29: Activités | D29: Montant | E29: Dates | F29: Montant | G29: Activités | H29: Montant | I29: Dates | J29: Montant | K29: Activités | L29: Montant
B35: =SUM(B30:B34) -> 0 | D35: =SUM(D30:D34) -> 0 | F35: =SUM(F30:F34) -> 0 | H35: =SUM(H30:H34) -> 0 | J35: =SUM(J30:J34) -> 0 | L35: =SUM(L30:L34) -> 0
A36: Récap 28/02 | D36: =+B35-D35 -> 0 | E36: Récap 31/03 | H36: =+F35-H35 -> 0 | I36: Récap 30/04 | L36: =+J35-L35 -> 0
A39: MAI | E39: JUIN | I39: Situation fin juin
A40: RECETTES | C40: DEPENSES | E40: RECETTES | G40: DEPENSES | J40: Recettes | K40: Dépenses | L40: Total
A41: Dates | B41: Montant | C41: Activités | D41: Montant | E41: Dates | F41: Montant | G41: Activités | H41: Montant | I41: =E23 -> Situation 31/12 | L41: =H23 -> -2.5
I42: =I25 -> Récap 31/01 | J42: =J24 -> 0 | K42: =L24 -> 0 | L42: =L25 -> 0
I43: =A36 -> Récap 28/02 | J43: =B35 -> 0 | K43: =D35 -> 0 | L43: =D36 -> 0
I44: =E36 -> Récap 31/03 | J44: =F35 -> 0 | K44: =H35 -> 0 | L44: =H36 -> 0
I45: =I36 -> Récap 30/04 | J45: =J35 -> 0 | K45: =L35 -> 0 | L45: =L36 -> 0
I46: =A48 -> Récap 31/05 | J46: =B47 -> 0 | K46: =D47 -> 0 | L46: =D48 -> 0
B47: =SUM(B42:B46) -> 0 | D47: =SUM(D42:D46) -> 0 | F47: =SUM(F42:F46) -> 0 | H47: =SUM(H42:H46) -> 0 | I47: =E48 -> Récap 30/06 | J47: =F47 -> 0 | K47: =H47 -> 0 | L47: =H48 -> 0
A48: Récap 31/05 | D48: =+B47-D47 -> 0 | E48: Récap 30/06 | H48: =+F47-H47 -> 0 | I48: Situation 30/06 | J48: =SUM(J42:J47) -> 0 | K48: =SUM(K42:K47) -> 0 | L48: =SUM(L41:L47) -> -2.5
L50: =F23+J48-G23-K48+B8 -> -2.5
J52: =B13+F13+J13+B24+J24+B35+F35+J35+B47+F47 -> 0 | K52: =D13+H13+L13+D24+L24+D35+H35+L35+D47+H47 -> 0 | L52: =B8+J52-K52 -> -2.5

Sheet DEBOCK
J1: Année scolaire : | L1: =' Liste élèves'!B1 -> 2018-2019
A3: NOM : | B3: =' Liste élèves'!A38 -> DEBOCK | D3: PRENOM: | E3: =' Liste élèves'!B38 -> Ophélie | H3: CLASSE : | I3: =' Liste élèves'!C38 -> Classa 4
A5: SEPTEMBRE | E5: OCTOBRE | I5: NOVEMBRE
A6: RECETTES | C6: DEPENSES | E6: RECETTES | G6: DEPENSES | I6: RECETTES | K6: DEPENSES
A7: Dates | B7: Montant | C7: Activités | D7: Montant | E7: Dates | F7: Montant | G7: Activités | H7: Montant | I7: Dates | J7: Montant | K7: Activités | L7: Montant
A8: Report juin
B13: =SUM(B9:B12) -> 0 | D13: =SUM(D8:D12) -> 0 | F13: =SUM(F8:F12) -> 0 | H13: =SUM(H8:H12) -> 0 | J13: =SUM(J8:J12) -> 0 | L13: =SUM(L8:L12) -> 0
A14: Récap 30/09 | D14: =+B13-D13 -> 0 | E14: Récap 31/10 | H14: =+F13-H13 -> 0 | I14: Récap 30/11 | L14: =+J13-L13 -> 0
A16: DÉCEMBRE | E16: Situation fin décembre | I16: JANVIER
A17: RECETTES | C17: DEPENSES | F17: Recettes | G17: Dépenses | H17: Total | I17: RECETTES | K17: DEPENSES
A18: Dates | B18: Montant | C18: Activités | D18: Montant | E18: =A14 -> Récap 30/09 | F18: =B13 -> 0 | G18: =D13 -> 0 | H18: =D14 -> 0 | I18: Dates | J18: Montant | K18: Activités | L18: Montant
E19: =E14 -> Récap 31/10 | F19: =F13 -> 0 | G19: =H13 -> 0 | H19: =H14 -> 0
E20: =I14 -> Récap 30/11 | F20: =J13 -> 0 | G20: =L13 -> 0 | H20: =L14 -> 0
E21: =A25 -> Récap 31/12 | F21: =B24 -> 0 | G21: =D24 -> 0 | H21: =D25 -> 0
E22: Report Sept | H22: =B8 -> 0
E23: Situation 31/12 | F23: =SUM(F18:F22) -> 0 | G23: =SUM(G18:G22) -> 0 | H23: =SUM(H18:H22) -> 0
B24: =SUM(B19:B23) -> 0 | D24: =SUM(D19:D23) -> 0 | J24: =SUM(J19:J23) -> 0 | L24: =SUM(L19:L23) -> 0
A25: Récap 31/12 | D25: =+B24-D24 -> 0 | I25: Récap 31/01 | L25: =+J24-L24 -> 0
A27: FÉVRIER | E27: MARS | I27: AVRIL
A28: RECETTES | C28: DEPENSES | E28: RECETTES | G28: DEPENSES | I28: RECETTES | K28: DEPENSES
A29: Dates | B29: Montant | C29: Activités | D29: Montant | E29: Dates | F29: Montant | G29: Activités | H29: Montant | I29: Dates | J29: Montant | K29: Activités | L29: Montant
B35: =SUM(B30:B34) -> 0 | D35: =SUM(D30:D34) -> 0 | F35: =SUM(F30:F34) -> 0 | H35: =SUM(H30:H34) -> 0 | J35: =SUM(J30:J34) -> 0 | L35: =SUM(L30:L34) -> 0
A36: Récap 28/02 | D36: =+B35-D35 -> 0 | E36: Récap 31/03 | H36: =+F35-H35 -> 0 | I36: Récap 30/04 | L36: =+J35-L35 -> 0
A39: MAI | E39: JUIN | I39: Situation fin juin
A40: RECETTES | C40: DEPENSES | E40: RECETTES | G40: DEPENSES | J40: Recettes | K40: Dépenses | L40: Total
A41: Dates | B41: Montant | C41: Activités | D41: Montant | E41: Dates | F41: Montant | G41: Activités | H41: Montant | I41: =E23 -> Situation 31/12 | L41: =H23 -> 0
I42: =I25 -> Récap 31/01 | J42: =J24 -> 0 | K42: =L24 -> 0 | L42: =L25 -> 0
I43: =A36 -> Récap 28/02 | J43: =B35 -> 0 | K43: =D35 -> 0 | L43: =D36 -> 0
I44: =E36 -> Récap 31/03 | J44: =F35 -> 0 | K44: =H35 -> 0 | L44: =H36 -> 0
I45: =I36 -> Récap 30/04 | J45: =J35 -> 0 | K45: =L35 -> 0 | L45: =L36 -> 0
I46: =A48 -> Récap 31/05 | J46: =B47 -> 0 | K46: =D47 -> 0 | L46: =D48 -> 0
B47: =SUM(B42:B46) -> 0 | D47: =SUM(D42:D46) -> 0 | F47: =SUM(F42:F46) -> 0 | H47: =SUM(H42:H46) -> 0 | I47: =E48 -> Récap 30/06 | J47: =F47 -> 0 | K47: =H47 -> 0 | L47: =H48 -> 0
A48: Récap 31/05 | D48: =+B47-D47 -> 0 | E48: Récap 30/06 | H48: =+F47-H47 -> 0 | I48: Situation 30/06 | J48: =SUM(J42:J47) -> 0 | K48: =SUM(K42:K47) -> 0 | L48: =SUM(L41:L47) -> 0
L50: =F23+J48-G23-K48+B8 -> 0
J52: =B13+F13+J13+B24+J24+B35+F35+J35+B47+F47 -> 0 | K52: =D13+H13+L13+D24+L24+D35+H35+L35+D47+H47 -> 0 | L52: =B8+J52-K52 -> 0

Sheet DEGANDMJ
J1: Année scolaire : | L1: =' Liste élèves'!B1 -> 2018-2019
A3: NOM : | B3: =' Liste élèves'!A45 -> DEGANDMJ | D3: PRENOM: | E3: =' Liste élèves'!B45 -> Marry-Jhones | H3: CLASSE : | I3: =' Liste élèves'!C45 -> Classe PA
A5: SEPTEMBRE | E5: OCTOBRE | I5: NOVEMBRE
A6: RECETTES | C6: DEPENSES | E6: RECETTES | G6: DEPENSES | I6: RECETTES | K6: DEPENSES
A7: Dates | B7: Montant | C7: Activités | D7: Montant | E7: Dates | F7: Montant | G7: Activités | H7: Montant | I7: Dates | J7: Montant | K7: Activités | L7: Montant
A8: Report juin
B13: =SUM(B9:B12) -> 0 | D13: =SUM(D8:D12) -> 0 | F13: =SUM(F8:F12) -> 0 | H13: =SUM(H8:H12) -> 0 | J13: =SUM(J8:J12) -> 0 | L13: =SUM(L8:L12) -> 0
A14: Récap 30/09 | D14: =+B13-D13 -> 0 | E14: Récap 31/10 | H14: =+F13-H13 -> 0 | I14: Récap 30/11 | L14: =+J13-L13 -> 0
A16: DÉCEMBRE | E16: Situation fin décembre | I16: JANVIER
A17: RECETTES | C17: DEPENSES | F17: Recettes | G17: Dépenses | H17: Total | I17: RECETTES | K17: DEPENSES
A18: Dates | B18: Montant | C18: Activités | D18: Montant | E18: =A14 -> Récap 30/09 | F18: =B13 -> 0 | G18: =D13 -> 0 | H18: =D14 -> 0 | I18: Dates | J18: Montant | K18: Activités | L18: Montant
E19: =E14 -> Récap 31/10 | F19: =F13 -> 0 | G19: =H13 -> 0 | H19: =H14 -> 0
E20: =I14 -> Récap 30/11 | F20: =J13 -> 0 | G20: =L13 -> 0 | H20: =L14 -> 0
E21: =A25 -> Récap 31/12 | F21: =B24 -> 0 | G21: =D24 -> 0 | H21: =D25 -> 0
E22: Report Sept | H22: =B8 -> 0
E23: Situation 31/12 | F23: =SUM(F18:F22) -> 0 | G23: =SUM(G18:G22) -> 0 | H23: =SUM(H18:H22) -> 0
B24: =SUM(B19:B23) -> 0 | D24: =SUM(D19:D23) -> 0 | J24: =SUM(J19:J23) -> 0 | L24: =SUM(L19:L23) -> 0
A25: Récap 31/12 | D25: =+B24-D24 -> 0 | I25: Récap 31/01 | L25: =+J24-L24 -> 0
A27: FÉVRIER | E27: MARS | I27: AVRIL
A28: RECETTES | C28: DEPENSES | E28: RECETTES | G28: DEPENSES | I28: RECETTES | K28: DEPENSES
A29: Dates | B29: Montant | C29: Activités | D29: Montant | E29: Dates | F29: Montant | G29: Activités | H29: Montant | I29: Dates | J29: Montant | K29: Activités | L29: Montant
B35: =SUM(B30:B34) -> 0 | D35: =SUM(D30:D34) -> 0 | F35: =SUM(F30:F34) -> 0 | H35: =SUM(H30:H34) -> 0 | J35: =SUM(J30:J34) -> 0 | L35: =SUM(L30:L34) -> 0
A36: Récap 28/02 | D36: =+B35-D35 -> 0 | E36: Récap 31/03 | H36: =+F35-H35 -> 0 | I36: Récap 30/04 | L36: =+J35-L35 -> 0
A39: MAI | E39: JUIN | I39: Situation fin juin
A40: RECETTES | C40: DEPENSES | E40: RECETTES | G40: DEPENSES | J40: Recettes | K40: Dépenses | L40: Total
A41: Dates | B41: Montant | C41: Activités | D41: Montant | E41: Dates | F41: Montant | G41: Activités | H41: Montant | I41: =E23 -> Situation 31/12 | L41: =H23 -> 0
I42: =I25 -> Récap 31/01 | J42: =J24 -> 0 | K42: =L24 -> 0 | L42: =L25 -> 0
I43: =A36 -> Récap 28/02 | J43: =B35 -> 0 | K43: =D35 -> 0 | L43: =D36 -> 0
I44: =E36 -> Récap 31/03 | J44: =F35 -> 0 | K44: =H35 -> 0 | L44: =H36 -> 0
I45: =I36 -> Récap 30/04 | J45: =J35 -> 0 | K45: =L35 -> 0 | L45: =L36 -> 0
I46: =A48 -> Récap 31/05 | J46: =B47 -> 0 | K46: =D47 -> 0 | L46: =D48 -> 0
B47: =SUM(B42:B46) -> 0 | D47: =SUM(D42:D46) -> 0 | F47: =SUM(F42:F46) -> 0 | H47: =SUM(H42:H46) -> 0 | I47: =E48 -> Récap 30/06 | J47: =F47 -> 0 | K47: =H47 -> 0 | L47: =H48 -> 0
A48: Récap 31/05 | D48: =+B47-D47 -> 0 | E48: Récap 30/06 | H48: =+F47-H47 -> 0 | I48: Situation 30/06 | J48: =SUM(J42:J47) -> 0 | K48: =SUM(K42:K47) -> 0 | L48: =SUM(L41:L47) -> 0
L50: =F23+J48-G23-K48+B8 -> 0
J52: =B13+F13+J13+B24+J24+B35+F35+J35+B47+F47 -> 0 | K52: =D13+H13+L13+D24+L24+D35+H35+L35+D47+H47 -> 0 | L52: =B8+J52-K52 -> 0

Sheet DEGANDT
J1: Année scolaire : | L1: =' Liste élèves'!B1 -> 2018-2019
A3: NOM : | B3: =' Liste élèves'!A44 -> DEGANDT | D3: PRENOM: | E3: =' Liste élèves'!B44 -> Thomas | H3: CLASSE : | I3: =' Liste élèves'!C44 -> Classe 10
A5: SEPTEMBRE | E5: OCTOBRE | I5: NOVEMBRE
A6: RECETTES | C6: DEPENSES | E6: RECETTES | G6: DEPENSES | I6: RECETTES | K6: DEPENSES
A7: Dates | B7: Montant | C7: Activités | D7: Montant | E7: Dates | F7: Montant | G7: Activités | H7: Montant | I7: Dates | J7: Montant | K7: Activités | L7: Montant
A8: Report juin | B8: -49.1
B13: =SUM(B9:B12) -> 0 | D13: =SUM(D8:D12) -> 0 | F13: =SUM(F8:F12) -> 0 | H13: =SUM(H8:H12) -> 0 | J13: =SUM(J8:J12) -> 0 | L13: =SUM(L8:L12) -> 0
A14: Récap 30/09 | D14: =+B13-D13 -> 0 | E14: Récap 31/10 | H14: =+F13-H13 -> 0 | I14: Récap 30/11 | L14: =+J13-L13 -> 0
A16: DÉCEMBRE | E16: Situation fin décembre | I16: JANVIER
A17: RECETTES | C17: DEPENSES | F17: Recettes | G17: Dépenses | H17: Total | I17: RECETTES | K17: DEPENSES
A18: Dates | B18: Montant | C18: Activités | D18: Montant | E18: =A14 -> Récap 30/09 | F18: =B13 -> 0 | G18: =D13 -> 0 | H18: =D14 -> 0 | I18: Dates | J18: Montant | K18: Activités | L18: Montant
E19: =E14 -> Récap 31/10 | F19: =F13 -> 0 | G19: =H13 -> 0 | H19: =H14 -> 0
E20: =I14 -> Récap 30/11 | F20: =J13 -> 0 | G20: =L13 -> 0 | H20: =L14 -> 0
E21: =A25 -> Récap 31/12 | F21: =B24 -> 0 | G21: =D24 -> 0 | H21: =D25 -> 0
E22: Report Sept | H22: =B8 -> -49.1
E23: Situation 31/12 | F23: =SUM(F18:F22) -> 0 | G23: =SUM(G18:G22) -> 0 | H23: =SUM(H18:H22) -> -49.1
B24: =SUM(B19:B23) -> 0 | D24: =SUM(D19:D23) -> 0 | J24: =SUM(J19:J23) -> 0 | L24: =SUM(L19:L23) -> 0
A25: Récap 31/12 | D25: =+B24-D24 -> 0 | I25: Récap 31/01 | L25: =+J24-L24 -> 0
A27: FÉVRIER | E27: MARS | I27: AVRIL
A28: RECETTES | C28: DEPENSES | E28: RECETTES | G28: DEPENSES | I28: RECETTES | K28: DEPENSES
A29: Dates | B29: Montant | C29: Activités | D29: Montant | E29: Dates | F29: Montant | G29: Activités | H29: Montant | I29: Dates | J29: Montant | K29: Activités | L29: Montant
B35: =SUM(B30:B34) -> 0 | D35: =SUM(D30:D34) -> 0 | F35: =SUM(F30:F34) -> 0 | H35: =SUM(H30:H34) -> 0 | J35: =SUM(J30:J34) -> 0 | L35: =SUM(L30:L34) -> 0
A36: Récap 28/02 | D36: =+B35-D35 -> 0 | E36: Récap 31/03 | H36: =+F35-H35 -> 0 | I36: Récap 30/04 | L36: =+J35-L35 -> 0
A39: MAI | E39: JUIN | I39: Situation fin juin
A40: RECETTES | C40: DEPENSES | E40: RECETTES | G40: DEPENSES | J40: Recettes | K40: Dépenses | L40: Total
A41: Dates | B41: Montant | C41: Activités | D41: Montant | E41: Dates | F41: Montant | G41: Activités | H41: Montant | I41: =E23 -> Situation 31/12 | L41: =H23 -> -49.1
I42: =I25 -> Récap 31/01 | J42: =J24 -> 0 | K42: =L24 -> 0 | L42: =L25 -> 0
I43: =A36 -> Récap 28/02 | J43: =B35 -> 0 | K43: =D35 -> 0 | L43: =D36 -> 0
I44: =E36 -> Récap 31/03 | J44: =F35 -> 0 | K44: =H35 -> 0 | L44: =H36 -> 0
I45: =I36 -> Récap 30/04 | J45: =J35 -> 0 | K45: =L35 -> 0 | L45: =L36 -> 0
I46: =A48 -> Récap 31/05 | J46: =B47 -> 0 | K46: =D47 -> 0 | L46: =D48 -> 0
B47: =SUM(B42:B46) -> 0 | D47: =SUM(D42:D46) -> 0 | F47: =SUM(F42:F46) -> 0 | H47: =SUM(H42:H46) -> 0 | I47: =E48 -> Récap 30/06 | J47: =F47 -> 0 | K47: =H47 -> 0 | L47: =H48 -> 0
A48: Récap 31/05 | D48: =+B47-D47 -> 0 | E48: Récap 30/06 | H48: =+F47-H47 -> 0 | I48: Situation 30/06 | J48: =SUM(J42:J47) -> 0 | K48: =SUM(K42:K47) -> 0 | L48: =SUM(L41:L47) -> -49.1
L50: =F23+J48-G23-K48+B8 -> -49.1
J52: =B13+F13+J13+B24+J24+B35+F35+J35+B47+F47 -> 0 | K52: =D13+H13+L13+D24+L24+D35+H35+L35+D47+H47 -> 0 | L52: =B8+J52-K52 -> -49.1

Sheet DEGEYTERE
J1: Année scolaire : | L1: =' Liste élèves'!B1 -> 2018-2019
A3: NOM : | B3: =' Liste élèves'!A39 -> DEGEYTERE | D3: PRENOM: | E3: =' Liste élèves'!B39 -> Emilie | H3: CLASSE : | I3: =' Liste élèves'!C39 -> Classe PA
A5: SEPTEMBRE | E5: OCTOBRE | I5: NOVEMBRE
A6: RECETTES | C6: DEPENSES | E6: RECETTES | G6: DEPENSES | I6: RECETTES | K6: DEPENSES
A7: Dates | B7: Montant | C7: Activités | D7: Montant | E7: Dates | F7: Montant | G7: Activités | H7: Montant | I7: Dates | J7: Montant | K7: Activités | L7: Montant
A8: Report juin
B13: =SUM(B9:B12) -> 0 | D13: =SUM(D8:D12) -> 0 | F13: =SUM(F8:F12) -> 0 | H13: =SUM(H8:H12) -> 0 | J13: =SUM(J8:J12) -> 0 | L13: =SUM(L8:L12) -> 0
A14: Récap 30/09 | D14: =+B13-D13 -> 0 | E14: Récap 31/10 | H14: =+F13-H13 -> 0 | I14: Récap 30/11 | L14: =+J13-L13 -> 0
A16: DÉCEMBRE | E16: Situation fin décembre | I16: JANVIER
A17: RECETTES | C17: DEPENSES | F17: Recettes | G17: Dépenses | H17: Total | I17: RECETTES | K17: DEPENSES
A18: Dates | B18: Montant | C18: Activités | D18: Montant | E18: =A14 -> Récap 30/09 | F18: =B13 -> 0 | G18: =D13 -> 0 | H18: =D14 -> 0 | I18: Dates | J18: Montant | K18: Activités | L18: Montant
E19: =E14 -> Récap 31/10 | F19: =F13 -> 0 | G19: =H13 -> 0 | H19: =H14 -> 0
E20: =I14 -> Récap 30/11 | F20: =J13 -> 0 | G20: =L13 -> 0 | H20: =L14 -> 0
E21: =A25 -> Récap 31/12 | F21: =B24 -> 0 | G21: =D24 -> 0 | H21: =D25 -> 0
E22: Report Sept | H22: =B8 -> 0
E23: Situation 31/12 | F23: =SUM(F18:F22) -> 0 | G23: =SUM(G18:G22) -> 0 | H23: =SUM(H18:H22) -> 0
B24: =SUM(B19:B23) -> 0 | D24: =SUM(D19:D23) -> 0 | J24: =SUM(J19:J23) -> 0 | L24: =SUM(L19:L23) -> 0
A25: Récap 31/12 | D25: =+B24-D24 -> 0 | I25: Récap 31/01 | L25: =+J24-L24 -> 0
A27: FÉVRIER | E27: MARS | I27: AVRIL
A28: RECETTES | C28: DEPENSES | E28: RECETTES | G28: DEPENSES | I28: RECETTES | K28: DEPENSES
A29: Dates | B29: Montant | C29: Activités | D29: Montant | E29: Dates | F29: Montant | G29: Activités | H29: Montant | I29: Dates | J29: Montant | K29: Activités | L29: Montant
B35: =SUM(B30:B34) -> 0 | D35: =SUM(D30:D34) -> 0 | F35: =SUM(F30:F34) -> 0 | H35: =SUM(H30:H34) -> 0 | J35: =SUM(J30:J34) -> 0 | L35: =SUM(L30:L34) -> 0
A36: Récap 28/02 | D36: =+B35-D35 -> 0 | E36: Récap 31/03 | H36: =+F35-H35 -> 0 | I36: Récap 30/04 | L36: =+J35-L35 -> 0
A39: MAI | E39: JUIN | I39: Situation fin juin
A40: RECETTES | C40: DEPENSES | E40: RECETTES | G40: DEPENSES | J40: Recettes | K40: Dépenses | L40: Total
A41: Dates | B41: Montant | C41: Activités | D41: Montant | E41: Dates | F41: Montant | G41: Activités | H41: Montant | I41: =E23 -> Situation 31/12 | L41: =H23 -> 0
I42: =I25 -> Récap 31/01 | J42: =J24 -> 0 | K42: =L24 -> 0 | L42: =L25 -> 0
I43: =A36 -> Récap 28/02 | J43: =B35 -> 0 | K43: =D35 -> 0 | L43: =D36 -> 0
I44: =E36 -> Récap 31/03 | J44: =F35 -> 0 | K44: =H35 -> 0 | L44: =H36 -> 0
I45: =I36 -> Récap 30/04 | J45: =J35 -> 0 | K45: =L35 -> 0 | L45: =L36 -> 0
I46: =A48 -> Récap 31/05 | J46: =B47 -> 0 | K46: =D47 -> 0 | L46: =D48 -> 0
B47: =SUM(B42:B46) -> 0 | D47: =SUM(D42:D46) -> 0 | F47: =SUM(F42:F46) -> 0 | H47: =SUM(H42:H46) -> 0 | I47: =E48 -> Récap 30/06 | J47: =F47 -> 0 | K47: =H47 -> 0 | L47: =H48 -> 0
A48: Récap 31/05 | D48: =+B47-D47 -> 0 | E48: Récap 30/06 | H48: =+F47-H47 -> 0 | I48: Situation 30/06 | J48: =SUM(J42:J47) -> 0 | K48: =SUM(K42:K47) -> 0 | L48: =SUM(L41:L47) -> 0
L50: =F23+J48-G23-K48+B8 -> 0
J52: =B13+F13+J13+B24+J24+B35+F35+J35+B47+F47 -> 0 | K52: =D13+H13+L13+D24+L24+D35+H35+L35+D47+H47 -> 0 | L52: =B8+J52-K52 -> 0

Sheet DEHBI
J1: Année scolaire : | L1: =' Liste élèves'!B1 -> 2018-2019
A3: NOM : | B3: =' Liste élèves'!A46 -> DEHBI | D3: PRENOM: | E3: =' Liste élèves'!B46 -> Yassin | H3: CLASSE : | I3: =' Liste élèves'!C46 -> Classe AA
A5: SEPTEMBRE | E5: OCTOBRE | I5: NOVEMBRE
A6: RECETTES | C6: DEPENSES | E6: RECETTES | G6: DEPENSES | I6: RECETTES | K6: DEPENSES
A7: Dates | B7: Montant | C7: Activités | D7: Montant | E7: Dates | F7: Montant | G7: Activités | H7: Montant | I7: Dates | J7: Montant | K7: Activités | L7: Montant
A8: Report juin
A9: 42989
B13: =SUM(B9:B12) -> 0 | D13: =SUM(D8:D12) -> 0 | F13: =SUM(F8:F12) -> 0 | H13: =SUM(H8:H12) -> 0 | J13: =SUM(J8:J12) -> 0 | L13: =SUM(L8:L12) -> 0
A14: Récap 30/09 | D14: =+B13-D13 -> 0 | E14: Récap 31/10 | H14: =+F13-H13 -> 0 | I14: Récap 30/11 | L14: =+J13-L13 -> 0
A16: DÉCEMBRE | E16: Situation fin décembre | I16: JANVIER
A17: RECETTES | C17: DEPENSES | F17: Recettes | G17: Dépenses | H17: Total | I17: RECETTES | K17: DEPENSES
A18: Dates | B18: Montant | C18: Activités | D18: Montant | E18: =A14 -> Récap 30/09 | F18: =B13 -> 0 | G18: =D13 -> 0 | H18: =D14 -> 0 | I18: Dates | J18: Montant | K18: Activités | L18: Montant
E19: =E14 -> Récap 31/10 | F19: =F13 -> 0 | G19: =H13 -> 0 | H19: =H14 -> 0
E20: =I14 -> Récap 30/11 | F20: =J13 -> 0 | G20: =L13 -> 0 | H20: =L14 -> 0
E21: =A25 -> Récap 31/12 | F21: =B24 -> 0 | G21: =D24 -> 0 | H21: =D25 -> 0
E22: Report Sept | H22: =B8 -> 0
E23: Situation 31/12 | F23: =SUM(F18:F22) -> 0 | G23: =SUM(G18:G22) -> 0 | H23: =SUM(H18:H22) -> 0
B24: =SUM(B19:B23) -> 0 | D24: =SUM(D19:D23) -> 0 | J24: =SUM(J19:J23) -> 0 | L24: =SUM(L19:L23) -> 0
A25: Récap 31/12 | D25: =+B24-D24 -> 0 | I25: Récap 31/01 | L25: =+J24-L24 -> 0
A27: FÉVRIER | E27: MARS | I27: AVRIL
A28: RECETTES | C28: DEPENSES | E28: RECETTES | G28: DEPENSES | I28: RECETTES | K28: DEPENSES
A29: Dates | B29: Montant | C29: Activités | D29: Montant | E29: Dates | F29: Montant | G29: Activités | H29: Montant | I29: Dates | J29: Montant | K29: Activités | L29: Montant
B35: =SUM(B30:B34) -> 0 | D35: =SUM(D30:D34) -> 0 | F35: =SUM(F30:F34) -> 0 | H35: =SUM(H30:H34) -> 0 | J35: =SUM(J30:J34) -> 0 | L35: =SUM(L30:L34) -> 0
A36: Récap 28/02 | D36: =+B35-D35 -> 0 | E36: Récap 31/03 | H36: =+F35-H35 -> 0 | I36: Récap 30/04 | L36: =+J35-L35 -> 0
A39: MAI | E39: JUIN | I39: Situation fin juin
A40: RECETTES | C40: DEPENSES | E40: RECETTES | G40: DEPENSES | J40: Recettes | K40: Dépenses | L40: Total
A41: Dates | B41: Montant | C41: Activités | D41: Montant | E41: Dates | F41: Montant | G41: Activités | H41: Montant | I41: =E23 -> Situation 31/12 | L41: =H23 -> 0
I42: =I25 -> Récap 31/01 | J42: =J24 -> 0 | K42: =L24 -> 0 | L42: =L25 -> 0
I43: =A36 -> Récap 28/02 | J43: =B35 -> 0 | K43: =D35 -> 0 | L43: =D36 -> 0
I44: =E36 -> Récap 31/03 | J44: =F35 -> 0 | K44: =H35 -> 0 | L44: =H36 -> 0
I45: =I36 -> Récap 30/04 | J45: =J35 -> 0 | K45: =L35 -> 0 | L45: =L36 -> 0
I46: =A48 -> Récap 31/05 | J46: =B47 -> 0 | K46: =D47 -> 0 | L46: =D48 -> 0
B47: =SUM(B42:B46) -> 0 | D47: =SUM(D42:D46) -> 0 | F47: =SUM(F42:F46) -> 0 | H47: =SUM(H42:H46) -> 0 | I47: =E48 -> Récap 30/06 | J47: =F47 -> 0 | K47: =H47 -> 0 | L47: =H48 -> 0
A48: Récap 31/05 | D48: =+B47-D47 -> 0 | E48: Récap 30/06 | H48: =+F47-H47 -> 0 | I48: Situation 30/06 | J48: =SUM(J42:J47) -> 0 | K48: =SUM(K42:K47) -> 0 | L48: =SUM(L41:L47) -> 0
L50: =F23+J48-G23-K48+B8 -> 0
J52: =B13+F13+J13+B24+J24+B35+F35+J35+B47+F47 -> 0 | K52: =D13+H13+L13+D24+L24+D35+H35+L35+D47+H47 -> 0 | L52: =B8+J52-K52 -> 0

Sheet DEHOUX
A1: 0 | J1: Année scolaire : | L1: =' Liste élèves'!B1 -> 2018-2019
A3: NOM : | B3: =' Liste élèves'!A47 -> DEHOUX | D3: PRENOM: | E3: =' Liste élèves'!B47 -> Ilona | H3: CLASSE : | I3: =' Liste élèves'!C47 -> Classe 1
A5: SEPTEMBRE | E5: OCTOBRE | I5: NOVEMBRE
A6: RECETTES | C6: DEPENSES | E6: RECETTES | G6: DEPENSES | I6: RECETTES | K6: DEPENSES
A7: Dates | B7: Montant | C7: Activités | D7: Montant | E7: Dates | F7: Montant | G7: Activités | H7: Montant | I7: Dates | J7: Montant | K7: Activités | L7: Montant
A8: Report juin | B8: 48.7
B13: =SUM(B9:B12) -> 0 | D13: =SUM(D8:D12) -> 0 | F13: =SUM(F8:F12) -> 0 | H13: =SUM(H8:H12) -> 0 | J13: =SUM(J8:J12) -> 0 | L13: =SUM(L8:L12) -> 0
A14: Récap 30/09 | D14: =+B13-D13 -> 0 | E14: Récap 31/10 | H14: =+F13-H13 -> 0 | I14: Récap 30/11 | L14: =+J13-L13 -> 0
A16: DÉCEMBRE | E16: Situation fin décembre | I16: JANVIER
A17: RECETTES | C17: DEPENSES | F17: Recettes | G17: Dépenses | H17: Total | I17: RECETTES | K17: DEPENSES
A18: Dates | B18: Montant | C18: Activités | D18: Montant | E18: =A14 -> Récap 30/09 | F18: =B13 -> 0 | G18: =D13 -> 0 | H18: =D14 -> 0 | I18: Dates | J18: Montant | K18: Activités | L18: Montant
E19: =E14 -> Récap 31/10 | F19: =F13 -> 0 | G19: =H13 -> 0 | H19: =H14 -> 0
E20: =I14 -> Récap 30/11 | F20: =J13 -> 0 | G20: =L13 -> 0 | H20: =L14 -> 0
E21: =A25 -> Récap 31/12 | F21: =B24 -> 0 | G21: =D24 -> 0 | H21: =D25 -> 0
E22: Report Sept | H22: =B8 -> 48.7
E23: Situation 31/12 | F23: =SUM(F18:F22) -> 0 | G23: =SUM(G18:G22) -> 0 | H23: =SUM(H18:H22) -> 48.7
B24: =SUM(B19:B23) -> 0 | D24: =SUM(D19:D23) -> 0 | J24: =SUM(J19:J23) -> 0 | L24: =SUM(L19:L23) -> 0
A25: Récap 31/12 | D25: =+B24-D24 -> 0 | I25: Récap 31/01 | L25: =+J24-L24 -> 0
A27: FÉVRIER | E27: MARS | I27: AVRIL
A28: RECETTES | C28: DEPENSES | E28: RECETTES | G28: DEPENSES | I28: RECETTES | K28: DEPENSES
A29: Dates | B29: Montant | C29: Activités | D29: Montant | E29: Dates | F29: Montant | G29: Activités | H29: Montant | I29: Dates | J29: Montant | K29: Activités | L29: Montant
B35: =SUM(B30:B34) -> 0 | D35: =SUM(D30:D34) -> 0 | F35: =SUM(F30:F34) -> 0 | H35: =SUM(H30:H34) -> 0 | J35: =SUM(J30:J34) -> 0 | L35: =SUM(L30:L34) -> 0
A36: Récap 28/02 | D36: =+B35-D35 -> 0 | E36: Récap 31/03 | H36: =+F35-H35 -> 0 | I36: Récap 30/04 | L36: =+J35-L35 -> 0
A39: MAI | E39: JUIN | I39: Situation fin juin
A40: RECETTES | C40: DEPENSES | E40: RECETTES | G40: DEPENSES | J40: Recettes | K40: Dépenses | L40: Total
A41: Dates | B41: Montant | C41: Activités | D41: Montant | E41: Dates | F41: Montant | G41: Activités | H41: Montant | I41: =E23 -> Situation 31/12 | L41: =H23 -> 48.7
I42: =I25 -> Récap 31/01 | J42: =J24 -> 0 | K42: =L24 -> 0 | L42: =L25 -> 0
I43: =A36 -> Récap 28/02 | J43: =B35 -> 0 | K43: =D35 -> 0 | L43: =D36 -> 0
I44: =E36 -> Récap 31/03 | J44: =F35 -> 0 | K44: =H35 -> 0 | L44: =H36 -> 0
I45: =I36 -> Récap 30/04 | J45: =J35 -> 0 | K45: =L35 -> 0 | L45: =L36 -> 0
I46: =A48 -> Récap 31/05 | J46: =B47 -> 0 | K46: =D47 -> 0 | L46: =D48 -> 0
B47: =SUM(B42:B46) -> 0 | D47: =SUM(D42:D46) -> 0 | F47: =SUM(F42:F46) -> 0 | H47: =SUM(H42:H46) -> 0 | I47: =E48 -> Récap 30/06 | J47: =F47 -> 0 | K47: =H47 -> 0 | L47: =H48 -> 0
A48: Récap 31/05 | D48: =+B47-D47 -> 0 | E48: Récap 30/06 | H48: =+F47-H47 -> 0 | I48: Situation 30/06 | J48: =SUM(J42:J47) -> 0 | K48: =SUM(K42:K47) -> 0 | L48: =SUM(L41:L47) -> 48.7
L50: =F23+J48-G23-K48+B8 -> 48.7
J52: =B13+F13+J13+B24+J24+B35+F35+J35+B47+F47 -> 0 | K52: =D13+H13+L13+D24+L24+D35+H35+L35+D47+H47 -> 0 | L52: =B8+J52-K52 -> 48.7

Sheet DELCROIX
J1: Année scolaire : | L1: =' Liste élèves'!B1 -> 2018-2019
A3: NOM : | B3: =' Liste élèves'!A50 -> DELCROIX | D3: PRENOM: | E3: =' Liste élèves'!B50 -> Gaëtan | H3: CLASSE : | I3: =' Liste élèves'!C50 -> Classe JB
A5: SEPTEMBRE | E5: OCTOBRE | I5: NOVEMBRE
A6: RECETTES | C6: DEPENSES | E6: RECETTES | G6: DEPENSES | I6: RECETTES | K6: DEPENSES
A7: Dates | B7: Montant | C7: Activités | D7: Montant | E7: Dates | F7: Montant | G7: Activités | H7: Montant | I7: Dates | J7: Montant | K7: Activités | L7: Montant
A8: Report juin | B8: 43.5
B13: =SUM(B9:B12) -> 0 | D13: =SUM(D8:D12) -> 0 | F13: =SUM(F8:F12) -> 0 | H13: =SUM(H8:H12) -> 0 | J13: =SUM(J8:J12) -> 0 | L13: =SUM(L8:L12) -> 0
A14: Récap 30/09 | D14: =+B13-D13 -> 0 | E14: Récap 31/10 | H14: =+F13-H13 -> 0 | I14: Récap 30/11 | L14: =+J13-L13 -> 0
A16: DÉCEMBRE | E16: Situation fin décembre | I16: JANVIER
A17: RECETTES | C17: DEPENSES | F17: Recettes | G17: Dépenses | H17: Total | I17: RECETTES | K17: DEPENSES
A18: Dates | B18: Montant | C18: Activités | D18: Montant | E18: =A14 -> Récap 30/09 | F18: =B13 -> 0 | G18: =D13 -> 0 | H18: =D14 -> 0 | I18: Dates | J18: Montant | K18: Activités | L18: Montant
E19: =E14 -> Récap 31/10 | F19: =F13 -> 0 | G19: =H13 -> 0 | H19: =H14 -> 0
E20: =I14 -> Récap 30/11 | F20: =J13 -> 0 | G20: =L13 -> 0 | H20: =L14 -> 0
E21: =A25 -> Récap 31/12 | F21: =B24 -> 0 | G21: =D24 -> 0 | H21: =D25 -> 0
E22: Report Sept | H22: =B8 -> 43.5
E23: Situation 31/12 | F23: =SUM(F18:F22) -> 0 | G23: =SUM(G18:G22) -> 0 | H23: =SUM(H18:H22) -> 43.5
B24: =SUM(B19:B23) -> 0 | D24: =SUM(D19:D23) -> 0 | J24: =SUM(J19:J23) -> 0 | L24: =SUM(L19:L23) -> 0
A25: Récap 31/12 | D25: =+B24-D24 -> 0 | I25: Récap 31/01 | L25: =+J24-L24 -> 0
A27: FÉVRIER | E27: MARS | I27: AVRIL
A28: RECETTES | C28: DEPENSES | E28: RECETTES | G28: DEPENSES | I28: RECETTES | K28: DEPENSES
A29: Dates | B29: Montant | C29: Activités | D29: Montant | E29: Dates | F29: Montant | G29: Activités | H29: Montant | I29: Dates | J29: Montant | K29: Activités | L29: Montant
B35: =SUM(B30:B34) -> 0 | D35: =SUM(D30:D34) -> 0 | F35: =SUM(F30:F34) -> 0 | H35: =SUM(H30:H34) -> 0 | J35: =SUM(J30:J34) -> 0 | L35: =SUM(L30:L34) -> 0
A36: Récap 28/02 | D36: =+B35-D35 -> 0 | E36: Récap 31/03 | H36: =+F35-H35 -> 0 | I36: Récap 30/04 | L36: =+J35-L35 -> 0
A39: MAI | E39: JUIN | I39: Situation fin juin
A40: RECETTES | C40: DEPENSES | E40: RECETTES | G40: DEPENSES | J40: Recettes | K40: Dépenses | L40: Total
A41: Dates | B41: Montant | C41: Activités | D41: Montant | E41: Dates | F41: Montant | G41: Activités | H41: Montant | I41: =E23 -> Situation 31/12 | L41: =H23 -> 43.5
I42: =I25 -> Récap 31/01 | J42: =J24 -> 0 | K42: =L24 -> 0 | L42: =L25 -> 0
I43: =A36 -> Récap 28/02 | J43: =B35 -> 0 | K43: =D35 -> 0 | L43: =D36 -> 0
I44: =E36 -> Récap 31/03 | J44: =F35 -> 0 | K44: =H35 -> 0 | L44: =H36 -> 0
I45: =I36 -> Récap 30/04 | J45: =J35 -> 0 | K45: =L35 -> 0 | L45: =L36 -> 0
I46: =A48 -> Récap 31/05 | J46: =B47 -> 0 | K46: =D47 -> 0 | L46: =D48 -> 0
B47: =SUM(B42:B46) -> 0 | D47: =SUM(D42:D46) -> 0 | F47: =SUM(F42:F46) -> 0 | H47: =SUM(H42:H46) -> 0 | I47: =E48 -> Récap 30/06 | J47: =F47 -> 0 | K47: =H47 -> 0 | L47: =H48 -> 0
A48: Récap 31/05 | D48: =+B47-D47 -> 0 | E48: Récap 30/06 | H48: =+F47-H47 -> 0 | I48: Situation 30/06 | J48: =SUM(J42:J47) -> 0 | K48: =SUM(K42:K47) -> 0 | L48: =SUM(L41:L47) -> 43.5
L50: =F23+J48-G23-K48+B8 -> 43.5
J52: =B13+F13+J13+B24+J24+B35+F35+J35+B47+F47 -> 0 | K52: =D13+H13+L13+D24+L24+D35+H35+L35+D47+H47 -> 0 | L52: =B8+J52-K52 -> 43.5

Sheet DELDUCA
J1: Année scolaire : | L1: =' Liste élèves'!B1 -> 2018-2019
A3: NOM : | B3: =' Liste élèves'!A48 -> DELDUCA | D3: PRENOM: | E3: =' Liste élèves'!B48 -> Juliano | H3: CLASSE : | I3: =' Liste élèves'!C48 -> Classe AA
A5: SEPTEMBRE | E5: OCTOBRE | I5: NOVEMBRE
A6: RECETTES | C6: DEPENSES | E6: RECETTES | G6: DEPENSES | I6: RECETTES | K6: DEPENSES
A7: Dates | B7: Montant | C7: Activités | D7: Montant | E7: Dates | F7: Montant | G7: Activités | H7: Montant | I7: Dates | J7: Montant | K7: Activités | L7: Montant
A8: Report juin | B8: 79.55
B13: =SUM(B9:B12) -> 0 | D13: =SUM(D8:D12) -> 0 | F13: =SUM(F8:F12) -> 0 | H13: =SUM(H8:H12) -> 0 | J13: =SUM(J8:J12) -> 0 | L13: =SUM(L8:L12) -> 0
A14: Récap 30/09 | D14: =+B13-D13 -> 0 | E14: Récap 31/10 | H14: =+F13-H13 -> 0 | I14: Récap 30/11 | L14: =+J13-L13 -> 0
A16: DÉCEMBRE | E16: Situation fin décembre | I16: JANVIER
A17: RECETTES | C17: DEPENSES | F17: Recettes | G17: Dépenses | H17: Total | I17: RECETTES | K17: DEPENSES
A18: Dates | B18: Montant | C18: Activités | D18: Montant | E18: =A14 -> Récap 30/09 | F18: =B13 -> 0 | G18: =D13 -> 0 | H18: =D14 -> 0 | I18: Dates | J18: Montant | K18: Activités | L18: Montant
E19: =E14 -> Récap 31/10 | F19: =F13 -> 0 | G19: =H13 -> 0 | H19: =H14 -> 0
E20: =I14 -> Récap 30/11 | F20: =J13 -> 0 | G20: =L13 -> 0 | H20: =L14 -> 0
E21: =A25 -> Récap 31/12 | F21: =B24 -> 0 | G21: =D24 -> 0 | H21: =D25 -> 0
E22: Report Sept | H22: =B8 -> 79.55
E23: Situation 31/12 | F23: =SUM(F18:F22) -> 0 | G23: =SUM(G18:G22) -> 0 | H23: =SUM(H18:H22) -> 79.55
B24: =SUM(B19:B23) -> 0 | D24: =SUM(D19:D23) -> 0 | J24: =SUM(J19:J23) -> 0 | L24: =SUM(L19:L23) -> 0
A25: Récap 31/12 | D25: =+B24-D24 -> 0 | I25: Récap 31/01 | L25: =+J24-L24 -> 0
A27: FÉVRIER | E27: MARS | I27: AVRIL
A28: RECETTES | C28: DEPENSES | E28: RECETTES | G28: DEPENSES | I28: RECETTES | K28: DEPENSES
A29: Dates | B29: Montant | C29: Activités | D29: Montant | E29: Dates | F29: Montant | G29: Activités | H29: Montant | I29: Dates | J29: Montant | K29: Activités | L29: Montant
B35: =SUM(B30:B34) -> 0 | D35: =SUM(D30:D34) -> 0 | F35: =SUM(F30:F34) -> 0 | H35: =SUM(H30:H34) -> 0 | J35: =SUM(J30:J34) -> 0 | L35: =SUM(L30:L34) -> 0
A36: Récap 28/02 | D36: =+B35-D35 -> 0 | E36: Récap 31/03 | H36: =+F35-H35 -> 0 | I36: Récap 30/04 | L36: =+J35-L35 -> 0
A39: MAI | E39: JUIN | I39: Situation fin juin
A40: RECETTES | C40: DEPENSES | E40: RECETTES | G40: DEPENSES | J40: Recettes | K40: Dépenses | L40: Total
A41: Dates | B41: Montant | C41: Activités | D41: Montant | E41: Dates | F41: Montant | G41: Activités | H41: Montant | I41: =E23 -> Situation 31/12 | L41: =H23 -> 79.55
I42: =I25 -> Récap 31/01 | J42: =J24 -> 0 | K42: =L24 -> 0 | L42: =L25 -> 0
I43: =A36 -> Récap 28/02 | J43: =B35 -> 0 | K43: =D35 -> 0 | L43: =D36 -> 0
I44: =E36 -> Récap 31/03 | J44: =F35 -> 0 | K44: =H35 -> 0 | L44: =H36 -> 0
I45: =I36 -> Récap 30/04 | J45: =J35 -> 0 | K45: =L35 -> 0 | L45: =L36 -> 0
I46: =A48 -> Récap 31/05 | J46: =B47 -> 0 | K46: =D47 -> 0 | L46: =D48 -> 0
B47: =SUM(B42:B46) -> 0 | D47: =SUM(D42:D46) -> 0 | F47: =SUM(F42:F46) -> 0 | H47: =SUM(H42:H46) -> 0 | I47: =E48 -> Récap 30/06 | J47: =F47 -> 0 | K47: =H47 -> 0 | L47: =H48 -> 0
A48: Récap 31/05 | D48: =+B47-D47 -> 0 | E48: Récap 30/06 | H48: =+F47-H47 -> 0 | I48: Situation 30/06 | J48: =SUM(J42:J47) -> 0 | K48: =SUM(K42:K47) -> 0 | L48: =SUM(L41:L47) -> 79.55
L50: =F23+J48-G23-K48+B8 -> 79.55
J52: =B13+F13+J13+B24+J24+B35+F35+J35+B47+F47 -> 0 | K52: =D13+H13+L13+D24+L24+D35+H35+L35+D47+H47 -> 0 | L52: =B8+J52-K52 -> 79.55

Sheet DELFABBRO
J1: Année scolaire : | L1: =' Liste élèves'!B1 -> 2018-2019
A3: NOM : | B3: =' Liste élèves'!A49 -> DELFABBRO | D3: PRENOM: | E3: =' Liste élèves'!B49 -> Savanna | H3: CLASSE : | I3: =' Liste élèves'!C49 -> Classe 2
A5: SEPTEMBRE | E5: OCTOBRE | I5: NOVEMBRE
A6: RECETTES | C6: DEPENSES | E6: RECETTES | G6: DEPENSES | I6: RECETTES | K6: DEPENSES
A7: Dates | B7: Montant | C7: Activités | D7: Montant | E7: Dates | F7: Montant | G7: Activités | H7: Montant | I7: Dates | J7: Montant | K7: Activités | L7: Montant
A8: Report juin | B8: 56
B13: =SUM(B9:B12) -> 0 | D13: =SUM(D8:D12) -> 0 | F13: =SUM(F8:F12) -> 0 | H13: =SUM(H8:H12) -> 0 | J13: =SUM(J8:J12) -> 0 | L13: =SUM(L8:L12) -> 0
A14: Récap 30/09 | D14: =+B13-D13 -> 0 | E14: Récap 31/10 | H14: =+F13-H13 -> 0 | I14: Récap 30/11 | L14: =+J13-L13 -> 0
A16: DÉCEMBRE | E16: Situation fin décembre | I16: JANVIER
A17: RECETTES | C17: DEPENSES | F17: Recettes | G17: Dépenses | H17: Total | I17: RECETTES | K17: DEPENSES
A18: Dates | B18: Montant | C18: Activités | D18: Montant | E18: =A14 -> Récap 30/09 | F18: =B13 -> 0 | G18: =D13 -> 0 | H18: =D14 -> 0 | I18: Dates | J18: Montant | K18: Activités | L18: Montant
E19: =E14 -> Récap 31/10 | F19: =F13 -> 0 | G19: =H13 -> 0 | H19: =H14 -> 0
E20: =I14 -> Récap 30/11 | F20: =J13 -> 0 | G20: =L13 -> 0 | H20: =L14 -> 0
E21: =A25 -> Récap 31/12 | F21: =B24 -> 0 | G21: =D24 -> 0 | H21: =D25 -> 0
E22: Report Sept | H22: =B8 -> 56
E23: Situation 31/12 | F23: =SUM(F18:F22) -> 0 | G23: =SUM(G18:G22) -> 0 | H23: =SUM(H18:H22) -> 56
B24: =SUM(B19:B23) -> 0 | D24: =SUM(D19:D23) -> 0 | J24: =SUM(J19:J23) -> 0 | L24: =SUM(L19:L23) -> 0
A25: Récap 31/12 | D25: =+B24-D24 -> 0 | I25: Récap 31/01 | L25: =+J24-L24 -> 0
A27: FÉVRIER | E27: MARS | I27: AVRIL
A28: RECETTES | C28: DEPENSES | E28: RECETTES | G28: DEPENSES | I28: RECETTES | K28: DEPENSES
A29: Dates | B29: Montant | C29: Activités | D29: Montant | E29: Dates | F29: Montant | G29: Activités | H29: Montant | I29: Dates | J29: Montant | K29: Activités | L29: Montant
B35: =SUM(B30:B34) -> 0 | D35: =SUM(D30:D34) -> 0 | F35: =SUM(F30:F34) -> 0 | H35: =SUM(H30:H34) -> 0 | J35: =SUM(J30:J34) -> 0 | L35: =SUM(L30:L34) -> 0
A36: Récap 28/02 | D36: =+B35-D35 -> 0 | E36: Récap 31/03 | H36: =+F35-H35 -> 0 | I36: Récap 30/04 | L36: =+J35-L35 -> 0
A39: MAI | E39: JUIN | I39: Situation fin juin
A40: RECETTES | C40: DEPENSES | E40: RECETTES | G40: DEPENSES | J40: Recettes | K40: Dépenses | L40: Total
A41: Dates | B41: Montant | C41: Activités | D41: Montant | E41: Dates | F41: Montant | G41: Activités | H41: Montant | I41: =E23 -> Situation 31/12 | L41: =H23 -> 56
I42: =I25 -> Récap 31/01 | J42: =J24 -> 0 | K42: =L24 -> 0 | L42: =L25 -> 0
I43: =A36 -> Récap 28/02 | J43: =B35 -> 0 | K43: =D35 -> 0 | L43: =D36 -> 0
I44: =E36 -> Récap 31/03 | J44: =F35 -> 0 | K44: =H35 -> 0 | L44: =H36 -> 0
I45: =I36 -> Récap 30/04 | J45: =J35 -> 0 | K45: =L35 -> 0 | L45: =L36 -> 0
I46: =A48 -> Récap 31/05 | J46: =B47 -> 0 | K46: =D47 -> 0 | L46: =D48 -> 0
B47: =SUM(B42:B46) -> 0 | D47: =SUM(D42:D46) -> 0 | F47: =SUM(F42:F46) -> 0 | H47: =SUM(H42:H46) -> 0 | I47: =E48 -> Récap 30/06 | J47: =F47 -> 0 | K47: =H47 -> 0 | L47: =H48 -> 0
A48: Récap 31/05 | D48: =+B47-D47 -> 0 | E48: Récap 30/06 | H48: =+F47-H47 -> 0 | I48: Situation 30/06 | J48: =SUM(J42:J47) -> 0 | K48: =SUM(K42:K47) -> 0 | L48: =SUM(L41:L47) -> 56
L50: =F23+J48-G23-K48+B8 -> 56
J52: =B13+F13+J13+B24+J24+B35+F35+J35+B47+F47 -> 0 | K52: =D13+H13+L13+D24+L24+D35+H35+L35+D47+H47 -> 0 | L52: =B8+J52-K52 -> 56

Sheet DELIGNE
J1: Année scolaire : | L1: =' Liste élèves'!B1 -> 2018-2019
A3: NOM : | B3: =' Liste élèves'!A51 -> DELIGNE | D3: PRENOM: | E3: =' Liste élèves'!B51 -> Laurie | H3: CLASSE : | I3: =' Liste élèves'!C51 -> Classe 5
A5: SEPTEMBRE | E5: OCTOBRE | I5: NOVEMBRE
A6: RECETTES | C6: DEPENSES | E6: RECETTES | G6: DEPENSES | I6: RECETTES | K6: DEPENSES
A7: Dates | B7: Montant | C7: Activités | D7: Montant | E7: Dates | F7: Montant | G7: Activités | H7: Montant | I7: Dates | J7: Montant | K7: Activités | L7: Montant
A8: Report juin | B8: 39.52
B13: =SUM(B9:B12) -> 0 | D13: =SUM(D8:D12) -> 0 | F13: =SUM(F8:F12) -> 0 | H13: =SUM(H8:H12) -> 0 | J13: =SUM(J8:J12) -> 0 | L13: =SUM(L8:L12) -> 0
A14: Récap 30/09 | D14: =+B13-D13 -> 0 | E14: Récap 31/10 | H14: =+F13-H13 -> 0 | I14: Récap 30/11 | L14: =+J13-L13 -> 0
A16: DÉCEMBRE | E16: Situation fin décembre | I16: JANVIER
A17: RECETTES | C17: DEPENSES | F17: Recettes | G17: Dépenses | H17: Total | I17: RECETTES | K17: DEPENSES
A18: Dates | B18: Montant | C18: Activités | D18: Montant | E18: =A14 -> Récap 30/09 | F18: =B13 -> 0 | G18: =D13 -> 0 | H18: =D14 -> 0 | I18: Dates | J18: Montant | K18: Activités | L18: Montant
E19: =E14 -> Récap 31/10 | F19: =F13 -> 0 | G19: =H13 -> 0 | H19: =H14 -> 0
E20: =I14 -> Récap 30/11 | F20: =J13 -> 0 | G20: =L13 -> 0 | H20: =L14 -> 0
E21: =A25 -> Récap 31/12 | F21: =B24 -> 0 | G21: =D24 -> 0 | H21: =D25 -> 0
E22: Report Sept | H22: =B8 -> 39.52
E23: Situation 31/12 | F23: =SUM(F18:F22) -> 0 | G23: =SUM(G18:G22) -> 0 | H23: =SUM(H18:H22) -> 39.52
B24: =SUM(B19:B23) -> 0 | D24: =SUM(D19:D23) -> 0 | J24: =SUM(J19:J23) -> 0 | L24: =SUM(L19:L23) -> 0
A25: Récap 31/12 | D25: =+B24-D24 -> 0 | I25: Récap 31/01 | L25: =+J24-L24 -> 0
A27: FÉVRIER | E27: MARS | I27: AVRIL
A28: RECETTES | C28: DEPENSES | E28: RECETTES | G28: DEPENSES | I28: RECETTES | K28: DEPENSES
A29: Dates | B29: Montant | C29: Activités | D29: Montant | E29: Dates | F29: Montant | G29: Activités | H29: Montant | I29: Dates | J29: Montant | K29: Activités | L29: Montant
B35: =SUM(B30:B34) -> 0 | D35: =SUM(D30:D34) -> 0 | F35: =SUM(F30:F34) -> 0 | H35: =SUM(H30:H34) -> 0 | J35: =SUM(J30:J34) -> 0 | L35: =SUM(L30:L34) -> 0
A36: Récap 28/02 | D36: =+B35-D35 -> 0 | E36: Récap 31/03 | H36: =+F35-H35 -> 0 | I36: Récap 30/04 | L36: =+J35-L35 -> 0
A39: MAI | E39: JUIN | I39: Situation fin juin
A40: RECETTES | C40: DEPENSES | E40: RECETTES | G40: DEPENSES | J40: Recettes | K40: Dépenses | L40: Total
A41: Dates | B41: Montant | C41: Activités | D41: Montant | E41: Dates | F41: Montant | G41: Activités | H41: Montant | I41: =E23 -> Situation 31/12 | L41: =H23 -> 39.52
I42: =I25 -> Récap 31/01 | J42: =J24 -> 0 | K42: =L24 -> 0 | L42: =L25 -> 0
I43: =A36 -> Récap 28/02 | J43: =B35 -> 0 | K43: =D35 -> 0 | L43: =D36 -> 0
I44: =E36 -> Récap 31/03 | J44: =F35 -> 0 | K44: =H35 -> 0 | L44: =H36 -> 0
I45: =I36 -> Récap 30/04 | J45: =J35 -> 0 | K45: =L35 -> 0 | L45: =L36 -> 0
I46: =A48 -> Récap 31/05 | J46: =B47 -> 0 | K46: =D47 -> 0 | L46: =D48 -> 0
B47: =SUM(B42:B46) -> 0 | D47: =SUM(D42:D46) -> 0 | F47: =SUM(F42:F46) -> 0 | H47: =SUM(H42:H46) -> 0 | I47: =E48 -> Récap 30/06 | J47: =F47 -> 0 | K47: =H47 -> 0 | L47: =H48 -> 0
A48: Récap 31/05 | D48: =+B47-D47 -> 0 | E48: Récap 30/06 | H48: =+F47-H47 -> 0 | I48: Situation 30/06 | J48: =SUM(J42:J47) -> 0 | K48: =SUM(K42:K47) -> 0 | L48: =SUM(L41:L47) -> 39.52
L50: =F23+J48-G23-K48+B8 -> 39.52
J52: =B13+F13+J13+B24+J24+B35+F35+J35+B47+F47 -> 0 | K52: =D13+H13+L13+D24+L24+D35+H35+L35+D47+H47 -> 0 | L52: =B8+J52-K52 -> 39.52

Sheet DELMARCHE
J1: Année scolaire : | L1: =' Liste élèves'!B1 -> 2018-2019
A3: NOM : | B3: =' Liste élèves'!A52 -> DELMARCHE | D3: PRENOM: | E3: =' Liste élèves'!B52 -> Etan | H3: CLASSE : | I3: =' Liste élèves'!C52 -> Classe 3
A5: SEPTEMBRE | E5: OCTOBRE | I5: NOVEMBRE
A6: RECETTES | C6: DEPENSES | E6: RECETTES | G6: DEPENSES | I6: RECETTES | K6: DEPENSES
A7: Dates | B7: Montant | C7: Activités | D7: Montant | E7: Dates | F7: Montant | G7: Activités | H7: Montant | I7: Dates | J7: Montant | K7: Activités | L7: Montant
A8: Report juin | B8: 52.03
B13: =SUM(B9:B12) -> 0 | D13: =SUM(D8:D12) -> 0 | F13: =SUM(F8:F12) -> 0 | H13: =SUM(H8:H12) -> 0 | J13: =SUM(J8:J12) -> 0 | L13: =SUM(L8:L12) -> 0
A14: Récap 30/09 | D14: =+B13-D13 -> 0 | E14: Récap 31/10 | H14: =+F13-H13 -> 0 | I14: Récap 30/11 | L14: =+J13-L13 -> 0
A16: DÉCEMBRE | E16: Situation fin décembre | I16: JANVIER
A17: RECETTES | C17: DEPENSES | F17: Recettes | G17: Dépenses | H17: Total | I17: RECETTES | K17: DEPENSES
A18: Dates | B18: Montant | C18: Activités | D18: Montant | E18: =A14 -> Récap 30/09 | F18: =B13 -> 0 | G18: =D13 -> 0 | H18: =D14 -> 0 | I18: Dates | J18: Montant | K18: Activités | L18: Montant
E19: =E14 -> Récap 31/10 | F19: =F13 -> 0 | G19: =H13 -> 0 | H19: =H14 -> 0
E20: =I14 -> Récap 30/11 | F20: =J13 -> 0 | G20: =L13 -> 0 | H20: =L14 -> 0
E21: =A25 -> Récap 31/12 | F21: =B24 -> 0 | G21: =D24 -> 0 | H21: =D25 -> 0
E22: Report Sept | H22: =B8 -> 52.03
E23: Situation 31/12 | F23: =SUM(F18:F22) -> 0 | G23: =SUM(G18:G22) -> 0 | H23: =SUM(H18:H22) -> 52.03
B24: =SUM(B19:B23) -> 0 | D24: =SUM(D19:D23) -> 0 | J24: =SUM(J19:J23) -> 0 | L24: =SUM(L19:L23) -> 0
A25: Récap 31/12 | D25: =+B24-D24 -> 0 | I25: Récap 31/01 | L25: =+J24-L24 -> 0
A27: FÉVRIER | E27: MARS | I27: AVRIL
A28: RECETTES | C28: DEPENSES | E28: RECETTES | G28: DEPENSES | I28: RECETTES | K28: DEPENSES
A29: Dates | B29: Montant | C29: Activités | D29: Montant | E29: Dates | F29: Montant | G29: Activités | H29: Montant | I29: Dates | J29: Montant | K29: Activités | L29: Montant
B35: =SUM(B30:B34) -> 0 | D35: =SUM(D30:D34) -> 0 | F35: =SUM(F30:F34) -> 0 | H35: =SUM(H30:H34) -> 0 | J35: =SUM(J30:J34) -> 0 | L35: =SUM(L30:L34) -> 0
A36: Récap 28/02 | D36: =+B35-D35 -> 0 | E36: Récap 31/03 | H36: =+F35-H35 -> 0 | I36: Récap 30/04 | L36: =+J35-L35 -> 0
A39: MAI | E39: JUIN | I39: Situation fin juin
A40: RECETTES | C40: DEPENSES | E40: RECETTES | G40: DEPENSES | J40: Recettes | K40: Dépenses | L40: Total
A41: Dates | B41: Montant | C41: Activités | D41: Montant | E41: Dates | F41: Montant | G41: Activités | H41: Montant | I41: =E23 -> Situation 31/12 | L41: =H23 -> 52.03
I42: =I25 -> Récap 31/01 | J42: =J24 -> 0 | K42: =L24 -> 0 | L42: =L25 -> 0
I43: =A36 -> Récap 28/02 | J43: =B35 -> 0 | K43: =D35 -> 0 | L43: =D36 -> 0
I44: =E36 -> Récap 31/03 | J44: =F35 -> 0 | K44: =H35 -> 0 | L44: =H36 -> 0
I45: =I36 -> Récap 30/04 | J45: =J35 -> 0 | K45: =L35 -> 0 | L45: =L36 -> 0
I46: =A48 -> Récap 31/05 | J46: =B47 -> 0 | K46: =D47 -> 0 | L46: =D48 -> 0
B47: =SUM(B42:B46) -> 0 | D47: =SUM(D42:D46) -> 0 | F47: =SUM(F42:F46) -> 0 | H47: =SUM(H42:H46) -> 0 | I47: =E48 -> Récap 30/06 | J47: =F47 -> 0 | K47: =H47 -> 0 | L47: =H48 -> 0
A48: Récap 31/05 | D48: =+B47-D47 -> 0 | E48: Récap 30/06 | H48: =+F47-H47 -> 0 | I48: Situation 30/06 | J48: =SUM(J42:J47) -> 0 | K48: =SUM(K42:K47) -> 0 | L48: =SUM(L41:L47) -> 52.03
L50: =F23+J48-G23-K48+B8 -> 52.03
J52: =B13+F13+J13+B24+J24+B35+F35+J35+B47+F47 -> 0 | K52: =D13+H13+L13+D24+L24+D35+H35+L35+D47+H47 -> 0 | L52: =B8+J52-K52 -> 52.03

Sheet DENIES
J1: Année scolaire : | L1: =' Liste élèves'!B1 -> 2018-2019
A3: NOM : | B3: =' Liste élèves'!A53 -> DENIES | D3: PRENOM: | E3: =' Liste élèves'!B53 -> Jason | H3: CLASSE : | I3: =' Liste élèves'!C53 -> Classe 8
A5: SEPTEMBRE | E5: OCTOBRE | I5: NOVEMBRE
A6: RECETTES | C6: DEPENSES | E6: RECETTES | G6: DEPENSES | I6: RECETTES | K6: DEPENSES
A7: Dates | B7: Montant | C7: Activités | D7: Montant | E7: Dates | F7: Montant | G7: Activités | H7: Montant | I7: Dates | J7: Montant | K7: Activités | L7: Montant
A8: Report juin | B8: 30.77
B13: =SUM(B9:B12) -> 0 | D13: =SUM(D8:D12) -> 0 | F13: =SUM(F8:F12) -> 0 | H13: =SUM(H8:H12) -> 0 | J13: =SUM(J8:J12) -> 0 | L13: =SUM(L8:L12) -> 0
A14: Récap 30/09 | D14: =+B13-D13 -> 0 | E14: Récap 31/10 | H14: =+F13-H13 -> 0 | I14: Récap 30/11 | L14: =+J13-L13 -> 0
A16: DÉCEMBRE | E16: Situation fin décembre | I16: JANVIER
A17: RECETTES | C17: DEPENSES | F17: Recettes | G17: Dépenses | H17: Total | I17: RECETTES | K17: DEPENSES
A18: Dates | B18: Montant | C18: Activités | D18: Montant | E18: =A14 -> Récap 30/09 | F18: =B13 -> 0 | G18: =D13 -> 0 | H18: =D14 -> 0 | I18: Dates | J18: Montant | K18: Activités | L18: Montant
E19: =E14 -> Récap 31/10 | F19: =F13 -> 0 | G19: =H13 -> 0 | H19: =H14 -> 0
E20: =I14 -> Récap 30/11 | F20: =J13 -> 0 | G20: =L13 -> 0 | H20: =L14 -> 0
E21: =A25 -> Récap 31/12 | F21: =B24 -> 0 | G21: =D24 -> 0 | H21: =D25 -> 0
E22: Report Sept | H22: =B8 -> 30.77
E23: Situation 31/12 | F23: =SUM(F18:F22) -> 0 | G23: =SUM(G18:G22) -> 0 | H23: =SUM(H18:H22) -> 30.77
B24: =SUM(B19:B23) -> 0 | D24: =SUM(D19:D23) -> 0 | J24: =SUM(J19:J23) -> 0 | L24: =SUM(L19:L23) -> 0
A25: Récap 31/12 | D25: =+B24-D24 -> 0 | I25: Récap 31/01 | L25: =+J24-L24 -> 0
A27: FÉVRIER | E27: MARS | I27: AVRIL
A28: RECETTES | C28: DEPENSES | E28: RECETTES | G28: DEPENSES | I28: RECETTES | K28: DEPENSES
A29: Dates | B29: Montant | C29: Activités | D29: Montant | E29: Dates | F29: Montant | G29: Activités | H29: Montant | I29: Dates | J29: Montant | K29: Activités | L29: Montant
B35: =SUM(B30:B34) -> 0 | D35: =SUM(D30:D34) -> 0 | F35: =SUM(F30:F34) -> 0 | H35: =SUM(H30:H34) -> 0 | J35: =SUM(J30:J34) -> 0 | L35: =SUM(L30:L34) -> 0
A36: Récap 28/02 | D36: =+B35-D35 -> 0 | E36: Récap 31/03 | H36: =+F35-H35 -> 0 | I36: Récap 30/04 | L36: =+J35-L35 -> 0
A39: MAI | E39: JUIN | I39: Situation fin juin
A40: RECETTES | C40: DEPENSES | E40: RECETTES | G40: DEPENSES | J40: Recettes | K40: Dépenses | L40: Total
A41: Dates | B41: Montant | C41: Activités | D41: Montant | E41: Dates | F41: Montant | G41: Activités | H41: Montant | I41: =E23 -> Situation 31/12 | L41: =H23 -> 30.77
I42: =I25 -> Récap 31/01 | J42: =J24 -> 0 | K42: =L24 -> 0 | L42: =L25 -> 0
I43: =A36 -> Récap 28/02 | J43: =B35 -> 0 | K43: =D35 -> 0 | L43: =D36 -> 0
I44: =E36 -> Récap 31/03 | J44: =F35 -> 0 | K44: =H35 -> 0 | L44: =H36 -> 0
I45: =I36 -> Récap 30/04 | J45: =J35 -> 0 | K45: =L35 -> 0 | L45: =L36 -> 0
I46: =A48 -> Récap 31/05 | J46: =B47 -> 0 | K46: =D47 -> 0 | L46: =D48 -> 0
B47: =SUM(B42:B46) -> 0 | D47: =SUM(D42:D46) -> 0 | F47: =SUM(F42:F46) -> 0 | H47: =SUM(H42:H46) -> 0 | I47: =E48 -> Récap 30/06 | J47: =F47 -> 0 | K47: =H47 -> 0 | L47: =H48 -> 0
A48: Récap 31/05 | D48: =+B47-D47 -> 0 | E48: Récap 30/06 | H48: =+F47-H47 -> 0 | I48: Situation 30/06 | J48: =SUM(J42:J47) -> 0 | K48: =SUM(K42:K47) -> 0 | L48: =SUM(L41:L47) -> 30.77
L50: =F23+J48-G23-K48+B8 -> 30.77
J52: =B13+F13+J13+B24+J24+B35+F35+J35+B47+F47 -> 0 | K52: =D13+H13+L13+D24+L24+D35+H35+L35+D47+H47 -> 0 | L52: =B8+J52-K52 -> 30.77

Sheet DENIS
J1: Année scolaire : | L1: =' Liste élèves'!B1 -> 2018-2019
A3: NOM : | B3: =' Liste élèves'!A54 -> DENIS | D3: PRENOM: | E3: =' Liste élèves'!B54 -> Bryan | H3: CLASSE : | I3: =' Liste élèves'!C54 -> Classe 12
A5: SEPTEMBRE | E5: OCTOBRE | I5: NOVEMBRE
A6: RECETTES | C6: DEPENSES | E6: RECETTES | G6: DEPENSES | I6: RECETTES | K6: DEPENSES
A7: Dates | B7: Montant | C7: Activités | D7: Montant | E7: Dates | F7: Montant | G7: Activités | H7: Montant | I7: Dates | J7: Montant | K7: Activités | L7: Montant
A8: Report juin
B13: =SUM(B9:B12) -> 0 | D13: =SUM(D8:D12) -> 0 | F13: =SUM(F8:F12) -> 0 | H13: =SUM(H8:H12) -> 0 | J13: =SUM(J8:J12) -> 0 | L13: =SUM(L8:L12) -> 0
A14: Récap 30/09 | D14: =+B13-D13 -> 0 | E14: Récap 31/10 | H14: =+F13-H13 -> 0 | I14: Récap 30/11 | L14: =+J13-L13 -> 0
A16: DÉCEMBRE | E16: Situation fin décembre | I16: JANVIER
A17: RECETTES | C17: DEPENSES | F17: Recettes | G17: Dépenses | H17: Total | I17: RECETTES | K17: DEPENSES
A18: Dates | B18: Montant | C18: Activités | D18: Montant | E18: =A14 -> Récap 30/09 | F18: =B13 -> 0 | G18: =D13 -> 0 | H18: =D14 -> 0 | I18: Dates | J18: Montant | K18: Activités | L18: Montant
E19: =E14 -> Récap 31/10 | F19: =F13 -> 0 | G19: =H13 -> 0 | H19: =H14 -> 0
E20: =I14 -> Récap 30/11 | F20: =J13 -> 0 | G20: =L13 -> 0 | H20: =L14 -> 0
E21: =A25 -> Récap 31/12 | F21: =B24 -> 0 | G21: =D24 -> 0 | H21: =D25 -> 0
E22: Report Sept | H22: =B8 -> 0
E23: Situation 31/12 | F23: =SUM(F18:F22) -> 0 | G23: =SUM(G18:G22) -> 0 | H23: =SUM(H18:H22) -> 0
B24: =SUM(B19:B23) -> 0 | D24: =SUM(D19:D23) -> 0 | J24: =SUM(J19:J23) -> 0 | L24: =SUM(L19:L23) -> 0
A25: Récap 31/12 | D25: =+B24-D24 -> 0 | I25: Récap 31/01 | L25: =+J24-L24 -> 0
A27: FÉVRIER | E27: MARS | I27: AVRIL
A28: RECETTES | C28: DEPENSES | E28: RECETTES | G28: DEPENSES | I28: RECETTES | K28: DEPENSES
A29: Dates | B29: Montant | C29: Activités | D29: Montant | E29: Dates | F29: Montant | G29: Activités | H29: Montant | I29: Dates | J29: Montant | K29: Activités | L29: Montant
B35: =SUM(B30:B34) -> 0 | D35: =SUM(D30:D34) -> 0 | F35: =SUM(F30:F34) -> 0 | H35: =SUM(H30:H34) -> 0 | J35: =SUM(J30:J34) -> 0 | L35: =SUM(L30:L34) -> 0
A36: Récap 28/02 | D36: =+B35-D35 -> 0 | E36: Récap 31/03 | H36: =+F35-H35 -> 0 | I36: Récap 30/04 | L36: =+J35-L35 -> 0
A39: MAI | E39: JUIN | I39: Situation fin juin
A40: RECETTES | C40: DEPENSES | E40: RECETTES | G40: DEPENSES | J40: Recettes | K40: Dépenses | L40: Total
A41: Dates | B41: Montant | C41: Activités | D41: Montant | E41: Dates | F41: Montant | G41: Activités | H41: Montant | I41: =E23 -> Situation 31/12 | L41: =H23 -> 0
I42: =I25 -> Récap 31/01 | J42: =J24 -> 0 | K42: =L24 -> 0 | L42: =L25 -> 0
I43: =A36 -> Récap 28/02 | J43: =B35 -> 0 | K43: =D35 -> 0 | L43: =D36 -> 0
I44: =E36 -> Récap 31/03 | J44: =F35 -> 0 | K44: =H35 -> 0 | L44: =H36 -> 0
I45: =I36 -> Récap 30/04 | J45: =J35 -> 0 | K45: =L35 -> 0 | L45: =L36 -> 0
I46: =A48 -> Récap 31/05 | J46: =B47 -> 0 | K46: =D47 -> 0 | L46: =D48 -> 0
B47: =SUM(B42:B46) -> 0 | D47: =SUM(D42:D46) -> 0 | F47: =SUM(F42:F46) -> 0 | H47: =SUM(H42:H46) -> 0 | I47: =E48 -> Récap 30/06 | J47: =F47 -> 0 | K47: =H47 -> 0 | L47: =H48 -> 0
A48: Récap 31/05 | D48: =+B47-D47 -> 0 | E48: Récap 30/06 | H48: =+F47-H47 -> 0 | I48: Situation 30/06 | J48: =SUM(J42:J47) -> 0 | K48: =SUM(K42:K47) -> 0 | L48: =SUM(L41:L47) -> 0
L50: =F23+J48-G23-K48+B8 -> 0
J52: =B13+F13+J13+B24+J24+B35+F35+J35+B47+F47 -> 0 | K52: =D13+H13+L13+D24+L24+D35+H35+L35+D47+H47 -> 0 | L52: =B8+J52-K52 -> 0

Sheet DENISTYA
J1: Année scolaire : | L1: =' Liste élèves'!B1 -> 2018-2019
A3: NOM : | B3: =' Liste élèves'!A56 -> DENISTYA | D3: PRENOM: | E3: =' Liste élèves'!B56 -> Arthur | H3: CLASSE : | I3: =' Liste élèves'!C56 -> Classe MC
A5: SEPTEMBRE | E5: OCTOBRE | I5: NOVEMBRE
A6: RECETTES | C6: DEPENSES | E6: RECETTES | G6: DEPENSES | I6: RECETTES | K6: DEPENSES
A7: Dates | B7: Montant | C7: Activités | D7: Montant | E7: Dates | F7: Montant | G7: Activités | H7: Montant | I7: Dates | J7: Montant | K7: Activités | L7: Montant
A8: Report juin | B8: 43.1
B13: =SUM(B9:B12) -> 0 | D13: =SUM(D8:D12) -> 0 | F13: =SUM(F8:F12) -> 0 | H13: =SUM(H8:H12) -> 0 | J13: =SUM(J8:J12) -> 0 | L13: =SUM(L8:L12) -> 0
A14: Récap 30/09 | D14: =+B13-D13 -> 0 | E14: Récap 31/10 | H14: =+F13-H13 -> 0 | I14: Récap 30/11 | L14: =+J13-L13 -> 0
A16: DÉCEMBRE | E16: Situation fin décembre | I16: JANVIER
A17: RECETTES | C17: DEPENSES | F17: Recettes | G17: Dépenses | H17: Total | I17: RECETTES | K17: DEPENSES
A18: Dates | B18: Montant | C18: Activités | D18: Montant | E18: =A14 -> Récap 30/09 | F18: =B13 -> 0 | G18: =D13 -> 0 | H18: =D14 -> 0 | I18: Dates | J18: Montant | K18: Activités | L18: Montant
E19: =E14 -> Récap 31/10 | F19: =F13 -> 0 | G19: =H13 -> 0 | H19: =H14 -> 0
E20: =I14 -> Récap 30/11 | F20: =J13 -> 0 | G20: =L13 -> 0 | H20: =L14 -> 0
E21: =A25 -> Récap 31/12 | F21: =B24 -> 0 | G21: =D24 -> 0 | H21: =D25 -> 0
E22: Report Sept | H22: =B8 -> 43.1
E23: Situation 31/12 | F23: =SUM(F18:F22) -> 0 | G23: =SUM(G18:G22) -> 0 | H23: =SUM(H18:H22) -> 43.1
B24: =SUM(B19:B23) -> 0 | D24: =SUM(D19:D23) -> 0 | J24: =SUM(J19:J23) -> 0 | L24: =SUM(L19:L23) -> 0
A25: Récap 31/12 | D25: =+B24-D24 -> 0 | I25: Récap 31/01 | L25: =+J24-L24 -> 0
A27: FÉVRIER | E27: MARS | I27: AVRIL
A28: RECETTES | C28: DEPENSES | E28: RECETTES | G28: DEPENSES | I28: RECETTES | K28: DEPENSES
A29: Dates | B29: Montant | C29: Activités | D29: Montant | E29: Dates | F29: Montant | G29: Activités | H29: Montant | I29: Dates | J29: Montant | K29: Activités | L29: Montant
B35: =SUM(B30:B34) -> 0 | D35: =SUM(D30:D34) -> 0 | F35: =SUM(F30:F34) -> 0 | H35: =SUM(H30:H34) -> 0 | J35: =SUM(J30:J34) -> 0 | L35: =SUM(L30:L34) -> 0
A36: Récap 28/02 | D36: =+B35-D35 -> 0 | E36: Récap 31/03 | H36: =+F35-H35 -> 0 | I36: Récap 30/04 | L36: =+J35-L35 -> 0
A39: MAI | E39: JUIN | I39: Situation fin juin
A40: RECETTES | C40: DEPENSES | E40: RECETTES | G40: DEPENSES | J40: Recettes | K40: Dépenses | L40: Total
A41: Dates | B41: Montant | C41: Activités | D41: Montant | E41: Dates | F41: Montant | G41: Activités | H41: Montant | I41: =E23 -> Situation 31/12 | L41: =H23 -> 43.1
I42: =I25 -> Récap 31/01 | J42: =J24 -> 0 | K42: =L24 -> 0 | L42: =L25 -> 0
I43: =A36 -> Récap 28/02 | J43: =B35 -> 0 | K43: =D35 -> 0 | L43: =D36 -> 0
I44: =E36 -> Récap 31/03 | J44: =F35 -> 0 | K44: =H35 -> 0 | L44: =H36 -> 0
I45: =I36 -> Récap 30/04 | J45: =J35 -> 0 | K45: =L35 -> 0 | L45: =L36 -> 0
I46: =A48 -> Récap 31/05 | J46: =B47 -> 0 | K46: =D47 -> 0 | L46: =D48 -> 0
B47: =SUM(B42:B46) -> 0 | D47: =SUM(D42:D46) -> 0 | F47: =SUM(F42:F46) -> 0 | H47: =SUM(H42:H46) -> 0 | I47: =E48 -> Récap 30/06 | J47: =F47 -> 0 | K47: =H47 -> 0 | L47: =H48 -> 0
A48: Récap 31/05 | D48: =+B47-D47 -> 0 | E48: Récap 30/06 | H48: =+F47-H47 -> 0 | I48: Situation 30/06 | J48: =SUM(J42:J47) -> 0 | K48: =SUM(K42:K47) -> 0 | L48: =SUM(L41:L47) -> 43.1
L50: =F23+J48-G23-K48+B8 -> 43.1
J52: =B13+F13+J13+B24+J24+B35+F35+J35+B47+F47 -> 0 | K52: =D13+H13+L13+D24+L24+D35+H35+L35+D47+H47 -> 0 | L52: =B8+J52-K52 -> 43.1

Sheet DENISTYQ
J1: Année scolaire : | L1: =' Liste élèves'!B1 -> 2018-2019
A3: NOM : | B3: =' Liste élèves'!A55 -> DENISTYQ | D3: PRENOM: | E3: =' Liste élèves'!B55 -> Quentin | H3: CLASSE : | I3: =' Liste élèves'!C55 -> Classe 10
A5: SEPTEMBRE | E5: OCTOBRE | I5: NOVEMBRE
A6: RECETTES | C6: DEPENSES | E6: RECETTES | G6: DEPENSES | I6: RECETTES | K6: DEPENSES
A7: Dates | B7: Montant | C7: Activités | D7: Montant | E7: Dates | F7: Montant | G7: Activités | H7: Montant | I7: Dates | J7: Montant | K7: Activités | L7: Montant
A8: Report juin | B8: 27.9
B13: =SUM(B9:B12) -> 0 | D13: =SUM(D8:D12) -> 0 | F13: =SUM(F8:F12) -> 0 | H13: =SUM(H8:H12) -> 0 | J13: =SUM(J8:J12) -> 0 | L13: =SUM(L8:L12) -> 0
A14: Récap 30/09 | D14: =+B13-D13 -> 0 | E14: Récap 31/10 | H14: =+F13-H13 -> 0 | I14: Récap 30/11 | L14: =+J13-L13 -> 0
A16: DÉCEMBRE | E16: Situation fin décembre | I16: JANVIER
A17: RECETTES | C17: DEPENSES | F17: Recettes | G17: Dépenses | H17: Total | I17: RECETTES | K17: DEPENSES
A18: Dates | B18: Montant | C18: Activités | D18: Montant | E18: =A14 -> Récap 30/09 | F18: =B13 -> 0 | G18: =D13 -> 0 | H18: =D14 -> 0 | I18: Dates | J18: Montant | K18: Activités | L18: Montant
E19: =E14 -> Récap 31/10 | F19: =F13 -> 0 | G19: =H13 -> 0 | H19: =H14 -> 0
E20: =I14 -> Récap 30/11 | F20: =J13 -> 0 | G20: =L13 -> 0 | H20: =L14 -> 0
E21: =A25 -> Récap 31/12 | F21: =B24 -> 0 | G21: =D24 -> 0 | H21: =D25 -> 0
E22: Report Sept | H22: =B8 -> 27.9
E23: Situation 31/12 | F23: =SUM(F18:F22) -> 0 | G23: =SUM(G18:G22) -> 0 | H23: =SUM(H18:H22) -> 27.9
B24: =SUM(B19:B23) -> 0 | D24: =SUM(D19:D23) -> 0 | J24: =SUM(J19:J23) -> 0 | L24: =SUM(L19:L23) -> 0
A25: Récap 31/12 | D25: =+B24-D24 -> 0 | I25: Récap 31/01 | L25: =+J24-L24 -> 0
A27: FÉVRIER | E27: MARS | I27: AVRIL
A28: RECETTES | C28: DEPENSES | E28: RECETTES | G28: DEPENSES | I28: RECETTES | K28: DEPENSES
A29: Dates | B29: Montant | C29: Activités | D29: Montant | E29: Dates | F29: Montant | G29: Activités | H29: Montant | I29: Dates | J29: Montant | K29: Activités | L29: Montant
B35: =SUM(B30:B34) -> 0 | D35: =SUM(D30:D34) -> 0 | F35: =SUM(F30:F34) -> 0 | H35: =SUM(H30:H34) -> 0 | J35: =SUM(J30:J34) -> 0 | L35: =SUM(L30:L34) -> 0
A36: Récap 28/02 | D36: =+B35-D35 -> 0 | E36: Récap 31/03 | H36: =+F35-H35 -> 0 | I36: Récap 30/04 | L36: =+J35-L35 -> 0
A39: MAI | E39: JUIN | I39: Situation fin juin
A40: RECETTES | C40: DEPENSES | E40: RECETTES | G40: DEPENSES | J40: Recettes | K40: Dépenses | L40: Total
A41: Dates | B41: Montant | C41: Activités | D41: Montant | E41: Dates | F41: Montant | G41: Activités | H41: Montant | I41: =E23 -> Situation 31/12 | L41: =H23 -> 27.9
I42: =I25 -> Récap 31/01 | J42: =J24 -> 0 | K42: =L24 -> 0 | L42: =L25 -> 0
I43: =A36 -> Récap 28/02 | J43: =B35 -> 0 | K43: =D35 -> 0 | L43: =D36 -> 0
I44: =E36 -> Récap 31/03 | J44: =F35 -> 0 | K44: =H35 -> 0 | L44: =H36 -> 0
I45: =I36 -> Récap 30/04 | J45: =J35 -> 0 | K45: =L35 -> 0 | L45: =L36 -> 0
I46: =A48 -> Récap 31/05 | J46: =B47 -> 0 | K46: =D47 -> 0 | L46: =D48 -> 0
B47: =SUM(B42:B46) -> 0 | D47: =SUM(D42:D46) -> 0 | F47: =SUM(F42:F46) -> 0 | H47: =SUM(H42:H46) -> 0 | I47: =E48 -> Récap 30/06 | J47: =F47 -> 0 | K47: =H47 -> 0 | L47: =H48 -> 0
A48: Récap 31/05 | D48: =+B47-D47 -> 0 | E48: Récap 30/06 | H48: =+F47-H47 -> 0 | I48: Situation 30/06 | J48: =SUM(J42:J47) -> 0 | K48: =SUM(K42:K47) -> 0 | L48: =SUM(L41:L47) -> 27.9
L50: =F23+J48-G23-K48+B8 -> 27.9
J52: =B13+F13+J13+B24+J24+B35+F35+J35+B47+F47 -> 0 | K52: =D13+H13+L13+D24+L24+D35+H35+L35+D47+H47 -> 0 | L52: =B8+J52-K52 -> 27.9

Sheet DESANTOSMIGUEL
J1: Année scolaire : | L1: =' Liste élèves'!B1 -> 2018-2019
A3: NOM : | B3: =' Liste élèves'!A40 -> DESANTOSMIGUEL | D3: PRENOM: | E3: =' Liste élèves'!B40 -> Julian | H3: CLASSE : | I3: =' Liste élèves'!C40 -> Classe 3
A5: SEPTEMBRE | E5: OCTOBRE | I5: NOVEMBRE
A6: RECETTES | C6: DEPENSES | E6: RECETTES | G6: DEPENSES | I6: RECETTES | K6: DEPENSES
A7: Dates | B7: Montant | C7: Activités | D7: Montant | E7: Dates | F7: Montant | G7: Activités | H7: Montant | I7: Dates | J7: Montant | K7: Activités | L7: Montant
A8: Report juin | B8: 38
B13: =SUM(B9:B12) -> 0 | D13: =SUM(D8:D12) -> 0 | F13: =SUM(F8:F12) -> 0 | H13: =SUM(H8:H12) -> 0 | J13: =SUM(J8:J12) -> 0 | L13: =SUM(L8:L12) -> 0
A14: Récap 30/09 | D14: =+B13-D13 -> 0 | E14: Récap 31/10 | H14: =+F13-H13 -> 0 | I14: Récap 30/11 | L14: =+J13-L13 -> 0
A16: DÉCEMBRE | E16: Situation fin décembre | I16: JANVIER
A17: RECETTES | C17: DEPENSES | F17: Recettes | G17: Dépenses | H17: Total | I17: RECETTES | K17: DEPENSES
A18: Dates | B18: Montant | C18: Activités | D18: Montant | E18: =A14 -> Récap 30/09 | F18: =B13 -> 0 | G18: =D13 -> 0 | H18: =D14 -> 0 | I18: Dates | J18: Montant | K18: Activités | L18: Montant
E19: =E14 -> Récap 31/10 | F19: =F13 -> 0 | G19: =H13 -> 0 | H19: =H14 -> 0
E20: =I14 -> Récap 30/11 | F20: =J13 -> 0 | G20: =L13 -> 0 | H20: =L14 -> 0
E21: =A25 -> Récap 31/12 | F21: =B24 -> 0 | G21: =D24 -> 0 | H21: =D25 -> 0
E22: Report Sept | H22: =B8 -> 38
E23: Situation 31/12 | F23: =SUM(F18:F22) -> 0 | G23: =SUM(G18:G22) -> 0 | H23: =SUM(H18:H22) -> 38
B24: =SUM(B19:B23) -> 0 | D24: =SUM(D19:D23) -> 0 | J24: =SUM(J19:J23) -> 0 | L24: =SUM(L19:L23) -> 0
A25: Récap 31/12 | D25: =+B24-D24 -> 0 | I25: Récap 31/01 | L25: =+J24-L24 -> 0
A27: FÉVRIER | E27: MARS | I27: AVRIL
A28: RECETTES | C28: DEPENSES | E28: RECETTES | G28: DEPENSES | I28: RECETTES | K28: DEPENSES
A29: Dates | B29: Montant | C29: Activités | D29: Montant | E29: Dates | F29: Montant | G29: Activités | H29: Montant | I29: Dates | J29: Montant | K29: Activités | L29: Montant
B35: =SUM(B30:B34) -> 0 | D35: =SUM(D30:D34) -> 0 | F35: =SUM(F30:F34) -> 0 | H35: =SUM(H30:H34) -> 0 | J35: =SUM(J30:J34) -> 0 | L35: =SUM(L30:L34) -> 0
A36: Récap 28/02 | D36: =+B35-D35 -> 0 | E36: Récap 31/03 | H36: =+F35-H35 -> 0 | I36: Récap 30/04 | L36: =+J35-L35 -> 0
A39: MAI | E39: JUIN | I39: Situation fin juin
A40: RECETTES | C40: DEPENSES | E40: RECETTES | G40: DEPENSES | J40: Recettes | K40: Dépenses | L40: Total
A41: Dates | B41: Montant | C41: Activités | D41: Montant | E41: Dates | F41: Montant | G41: Activités | H41: Montant | I41: =E23 -> Situation 31/12 | L41: =H23 -> 38
I42: =I25 -> Récap 31/01 | J42: =J24 -> 0 | K42: =L24 -> 0 | L42: =L25 -> 0
I43: =A36 -> Récap 28/02 | J43: =B35 -> 0 | K43: =D35 -> 0 | L43: =D36 -> 0
I44: =E36 -> Récap 31/03 | J44: =F35 -> 0 | K44: =H35 -> 0 | L44: =H36 -> 0
I45: =I36 -> Récap 30/04 | J45: =J35 -> 0 | K45: =L35 -> 0 | L45: =L36 -> 0
I46: =A48 -> Récap 31/05 | J46: =B47 -> 0 | K46: =D47 -> 0 | L46: =D48 -> 0
B47: =SUM(B42:B46) -> 0 | D47: =SUM(D42:D46) -> 0 | F47: =SUM(F42:F46) -> 0 | H47: =SUM(H42:H46) -> 0 | I47: =E48 -> Récap 30/06 | J47: =F47 -> 0 | K47: =H47 -> 0 | L47: =H48 -> 0
A48: Récap 31/05 | D48: =+B47-D47 -> 0 | E48: Récap 30/06 | H48: =+F47-H47 -> 0 | I48: Situation 30/06 | J48: =SUM(J42:J47) -> 0 | K48: =SUM(K42:K47) -> 0 | L48: =SUM(L41:L47) -> 38
L50: =F23+J48-G23-K48+B8 -> 38
J52: =B13+F13+J13+B24+J24+B35+F35+J35+B47+F47 -> 0 | K52: =D13+H13+L13+D24+L24+D35+H35+L35+D47+H47 -> 0 | L52: =B8+J52-K52 -> 38

Sheet DETROGH
J1: Année scolaire : | L1: =' Liste élèves'!B1 -> 2018-2019
A3: NOM : | B3: =' Liste élèves'!A57 -> DETROGH | D3: PRENOM: | E3: =' Liste élèves'!B57 -> Miky | H3: CLASSE : | I3: =' Liste élèves'!C57 -> Classe JB
A5: SEPTEMBRE | E5: OCTOBRE | I5: NOVEMBRE
A6: RECETTES | C6: DEPENSES | E6: RECETTES | G6: DEPENSES | I6: RECETTES | K6: DEPENSES
A7: Dates | B7: Montant | C7: Activités | D7: Montant | E7: Dates | F7: Montant | G7: Activités | H7: Montant | I7: Dates | J7: Montant | K7: Activités | L7: Montant
A8: Report juin | B8: 42
B13: =SUM(B9:B12) -> 0 | D13: =SUM(D8:D12) -> 0 | F13: =SUM(F8:F12) -> 0 | H13: =SUM(H8:H12) -> 0 | J13: =SUM(J8:J12) -> 0 | L13: =SUM(L8:L12) -> 0
A14: Récap 30/09 | D14: =+B13-D13 -> 0 | E14: Récap 31/10 | H14: =+F13-H13 -> 0 | I14: Récap 30/11 | L14: =+J13-L13 -> 0
A16: DÉCEMBRE | E16: Situation fin décembre | I16: JANVIER
A17: RECETTES | C17: DEPENSES | F17: Recettes | G17: Dépenses | H17: Total | I17: RECETTES | K17: DEPENSES
A18: Dates | B18: Montant | C18: Activités | D18: Montant | E18: =A14 -> Récap 30/09 | F18: =B13 -> 0 | G18: =D13 -> 0 | H18: =D14 -> 0 | I18: Dates | J18: Montant | K18: Activités | L18: Montant
E19: =E14 -> Récap 31/10 | F19: =F13 -> 0 | G19: =H13 -> 0 | H19: =H14 -> 0
E20: =I14 -> Récap 30/11 | F20: =J13 -> 0 | G20: =L13 -> 0 | H20: =L14 -> 0
E21: =A25 -> Récap 31/12 | F21: =B24 -> 0 | G21: =D24 -> 0 | H21: =D25 -> 0
E22: Report Sept | H22: =B8 -> 42
E23: Situation 31/12 | F23: =SUM(F18:F22) -> 0 | G23: =SUM(G18:G22) -> 0 | H23: =SUM(H18:H22) -> 42
B24: =SUM(B19:B23) -> 0 | D24: =SUM(D19:D23) -> 0 | J24: =SUM(J19:J23) -> 0 | L24: =SUM(L19:L23) -> 0
A25: Récap 31/12 | D25: =+B24-D24 -> 0 | I25: Récap 31/01 | L25: =+J24-L24 -> 0
A27: FÉVRIER | E27: MARS | I27: AVRIL
A28: RECETTES | C28: DEPENSES | E28: RECETTES | G28: DEPENSES | I28: RECETTES | K28: DEPENSES
A29: Dates | B29: Montant | C29: Activités | D29: Montant | E29: Dates | F29: Montant | G29: Activités | H29: Montant | I29: Dates | J29: Montant | K29: Activités | L29: Montant
B35: =SUM(B30:B34) -> 0 | D35: =SUM(D30:D34) -> 0 | F35: =SUM(F30:F34) -> 0 | H35: =SUM(H30:H34) -> 0 | J35: =SUM(J30:J34) -> 0 | L35: =SUM(L30:L34) -> 0
A36: Récap 28/02 | D36: =+B35-D35 -> 0 | E36: Récap 31/03 | H36: =+F35-H35 -> 0 | I36: Récap 30/04 | L36: =+J35-L35 -> 0
A39: MAI | E39: JUIN | I39: Situation fin juin
A40: RECETTES | C40: DEPENSES | E40: RECETTES | G40: DEPENSES | J40: Recettes | K40: Dépenses | L40: Total
A41: Dates | B41: Montant | C41: Activités | D41: Montant | E41: Dates | F41: Montant | G41: Activités | H41: Montant | I41: =E23 -> Situation 31/12 | L41: =H23 -> 42
I42: =I25 -> Récap 31/01 | J42: =J24 -> 0 | K42: =L24 -> 0 | L42: =L25 -> 0
I43: =A36 -> Récap 28/02 | J43: =B35 -> 0 | K43: =D35 -> 0 | L43: =D36 -> 0
I44: =E36 -> Récap 31/03 | J44: =F35 -> 0 | K44: =H35 -> 0 | L44: =H36 -> 0
I45: =I36 -> Récap 30/04 | J45: =J35 -> 0 | K45: =L35 -> 0 | L45: =L36 -> 0
I46: =A48 -> Récap 31/05 | J46: =B47 -> 0 | K46: =D47 -> 0 | L46: =D48 -> 0
B47: =SUM(B42:B46) -> 0 | D47: =SUM(D42:D46) -> 0 | F47: =SUM(F42:F46) -> 0 | H47: =SUM(H42:H46) -> 0 | I47: =E48 -> Récap 30/06 | J47: =F47 -> 0 | K47: =H47 -> 0 | L47: =H48 -> 0
A48: Récap 31/05 | D48: =+B47-D47 -> 0 | E48: Récap 30/06 | H48: =+F47-H47 -> 0 | I48: Situation 30/06 | J48: =SUM(J42:J47) -> 0 | K48: =SUM(K42:K47) -> 0 | L48: =SUM(L41:L47) -> 42
L50: =F23+J48-G23-K48+B8 -> 42
J52: =B13+F13+J13+B24+J24+B35+F35+J35+B47+F47 -> 0 | K52: =D13+H13+L13+D24+L24+D35+H35+L35+D47+H47 -> 0 | L52: =B8+J52-K52 -> 42

Sheet DEVLEESCHAUWER
J1: Année scolaire : | L1: =' Liste élèves'!B1 -> 2018-2019
A3: NOM : | B3: =' Liste élèves'!A41 -> DEVLEESCHAUWER | D3: PRENOM: | E3: =' Liste élèves'!B41 -> Manon | H3: CLASSE : | I3: =' Liste élèves'!C41 -> Classe PC
A5: SEPTEMBRE | E5: OCTOBRE | I5: NOVEMBRE
A6: RECETTES | C6: DEPENSES | E6: RECETTES | G6: DEPENSES | I6: RECETTES | K6: DEPENSES
A7: Dates | B7: Montant | C7: Activités | D7: Montant | E7: Dates | F7: Montant | G7: Activités | H7: Montant | I7: Dates | J7: Montant | K7: Activités | L7: Montant
A8: Report juin | B8: 55.5
B13: =SUM(B9:B12) -> 0 | D13: =SUM(D8:D12) -> 0 | F13: =SUM(F8:F12) -> 0 | H13: =SUM(H8:H12) -> 0 | J13: =SUM(J8:J12) -> 0 | L13: =SUM(L8:L12) -> 0
A14: Récap 30/09 | D14: =+B13-D13 -> 0 | E14: Récap 31/10 | H14: =+F13-H13 -> 0 | I14: Récap 30/11 | L14: =+J13-L13 -> 0
A16: DÉCEMBRE | E16: Situation fin décembre | I16: JANVIER
A17: RECETTES | C17: DEPENSES | F17: Recettes | G17: Dépenses | H17: Total | I17: RECETTES | K17: DEPENSES
A18: Dates | B18: Montant | C18: Activités | D18: Montant | E18: =A14 -> Récap 30/09 | F18: =B13 -> 0 | G18: =D13 -> 0 | H18: =D14 -> 0 | I18: Dates | J18: Montant | K18: Activités | L18: Montant
E19: =E14 -> Récap 31/10 | F19: =F13 -> 0 | G19: =H13 -> 0 | H19: =H14 -> 0
E20: =I14 -> Récap 30/11 | F20: =J13 -> 0 | G20: =L13 -> 0 | H20: =L14 -> 0
E21: =A25 -> Récap 31/12 | F21: =B24 -> 0 | G21: =D24 -> 0 | H21: =D25 -> 0
E22: Report Sept | H22: =B8 -> 55.5
E23: Situation 31/12 | F23: =SUM(F18:F22) -> 0 | G23: =SUM(G18:G22) -> 0 | H23: =SUM(H18:H22) -> 55.5
B24: =SUM(B19:B23) -> 0 | D24: =SUM(D19:D23) -> 0 | J24: =SUM(J19:J23) -> 0 | L24: =SUM(L19:L23) -> 0
A25: Récap 31/12 | D25: =+B24-D24 -> 0 | I25: Récap 31/01 | L25: =+J24-L24 -> 0
A27: FÉVRIER | E27: MARS | I27: AVRIL
A28: RECETTES | C28: DEPENSES | E28: RECETTES | G28: DEPENSES | I28: RECETTES | K28: DEPENSES
A29: Dates | B29: Montant | C29: Activités | D29: Montant | E29: Dates | F29: Montant | G29: Activités | H29: Montant | I29: Dates | J29: Montant | K29: Activités | L29: Montant
B35: =SUM(B30:B34) -> 0 | D35: =SUM(D30:D34) -> 0 | F35: =SUM(F30:F34) -> 0 | H35: =SUM(H30:H34) -> 0 | J35: =SUM(J30:J34) -> 0 | L35: =SUM(L30:L34) -> 0
A36: Récap 28/02 | D36: =+B35-D35 -> 0 | E36: Récap 31/03 | H36: =+F35-H35 -> 0 | I36: Récap 30/04 | L36: =+J35-L35 -> 0
A39: MAI | E39: JUIN | I39: Situation fin juin
A40: RECETTES | C40: DEPENSES | E40: RECETTES | G40: DEPENSES | J40: Recettes | K40: Dépenses | L40: Total
A41: Dates | B41: Montant | C41: Activités | D41: Montant | E41: Dates | F41: Montant | G41: Activités | H41: Montant | I41: =E23 -> Situation 31/12 | L41: =H23 -> 55.5
I42: =I25 -> Récap 31/01 | J42: =J24 -> 0 | K42: =L24 -> 0 | L42: =L25 -> 0
I43: =A36 -> Récap 28/02 | J43: =B35 -> 0 | K43: =D35 -> 0 | L43: =D36 -> 0
I44: =E36 -> Récap 31/03 | J44: =F35 -> 0 | K44: =H35 -> 0 | L44: =H36 -> 0
I45: =I36 -> Récap 30/04 | J45: =J35 -> 0 | K45: =L35 -> 0 | L45: =L36 -> 0
I46: =A48 -> Récap 31/05 | J46: =B47 -> 0 | K46: =D47 -> 0 | L46: =D48 -> 0
B47: =SUM(B42:B46) -> 0 | D47: =SUM(D42:D46) -> 0 | F47: =SUM(F42:F46) -> 0 | H47: =SUM(H42:H46) -> 0 | I47: =E48 -> Récap 30/06 | J47: =F47 -> 0 | K47: =H47 -> 0 | L47: =H48 -> 0
A48: Récap 31/05 | D48: =+B47-D47 -> 0 | E48: Récap 30/06 | H48: =+F47-H47 -> 0 | I48: Situation 30/06 | J48: =SUM(J42:J47) -> 0 | K48: =SUM(K42:K47) -> 0 | L48: =SUM(L41:L47) -> 55.5
L50: =F23+J48-G23-K48+B8 -> 55.5
J52: =B13+F13+J13+B24+J24+B35+F35+J35+B47+F47 -> 0 | K52: =D13+H13+L13+D24+L24+D35+H35+L35+D47+H47 -> 0 | L52: =B8+J52-K52 -> 55.5

Sheet DEWEVER
J1: Année scolaire : | L1: =' Liste élèves'!B1 -> 2018-2019
A3: NOM : | B3: =' Liste élèves'!A42 -> DEWEVER | D3: PRENOM: | E3: =' Liste élèves'!B42 -> Bryan | H3: CLASSE : | I3: =' Liste élèves'!C42 -> Classe PA
A5: SEPTEMBRE | E5: OCTOBRE | I5: NOVEMBRE
A6: RECETTES | C6: DEPENSES | E6: RECETTES | G6: DEPENSES | I6: RECETTES | K6: DEPENSES
A7: Dates | B7: Montant | C7: Activités | D7: Montant | E7: Dates | F7: Montant | G7: Activités | H7: Montant | I7: Dates | J7: Montant | K7: Activités | L7: Montant
A8: Report juin
B13: =SUM(B9:B12) -> 0 | D13: =SUM(D8:D12) -> 0 | F13: =SUM(F8:F12) -> 0 | H13: =SUM(H8:H12) -> 0 | J13: =SUM(J8:J12) -> 0 | L13: =SUM(L8:L12) -> 0
A14: Récap 30/09 | D14: =+B13-D13 -> 0 | E14: Récap 31/10 | H14: =+F13-H13 -> 0 | I14: Récap 30/11 | L14: =+J13-L13 -> 0
A16: DÉCEMBRE | E16: Situation fin décembre | I16: JANVIER
A17: RECETTES | C17: DEPENSES | F17: Recettes | G17: Dépenses | H17: Total | I17: RECETTES | K17: DEPENSES
A18: Dates | B18: Montant | C18: Activités | D18: Montant | E18: =A14 -> Récap 30/09 | F18: =B13 -> 0 | G18: =D13 -> 0 | H18: =D14 -> 0 | I18: Dates | J18: Montant | K18: Activités | L18: Montant
E19: =E14 -> Récap 31/10 | F19: =F13 -> 0 | G19: =H13 -> 0 | H19: =H14 -> 0
E20: =I14 -> Récap 30/11 | F20: =J13 -> 0 | G20: =L13 -> 0 | H20: =L14 -> 0
E21: =A25 -> Récap 31/12 | F21: =B24 -> 0 | G21: =D24 -> 0 | H21: =D25 -> 0
E22: Report Sept | H22: =B8 -> 0
E23: Situation 31/12 | F23: =SUM(F18:F22) -> 0 | G23: =SUM(G18:G22) -> 0 | H23: =SUM(H18:H22) -> 0
B24: =SUM(B19:B23) -> 0 | D24: =SUM(D19:D23) -> 0 | J24: =SUM(J19:J23) -> 0 | L24: =SUM(L19:L23) -> 0
A25: Récap 31/12 | D25: =+B24-D24 -> 0 | I25: Récap 31/01 | L25: =+J24-L24 -> 0
A27: FÉVRIER | E27: MARS | I27: AVRIL
A28: RECETTES | C28: DEPENSES | E28: RECETTES | G28: DEPENSES | I28: RECETTES | K28: DEPENSES
A29: Dates | B29: Montant | C29: Activités | D29: Montant | E29: Dates | F29: Montant | G29: Activités | H29: Montant | I29: Dates | J29: Montant | K29: Activités | L29: Montant
B35: =SUM(B30:B34) -> 0 | D35: =SUM(D30:D34) -> 0 | F35: =SUM(F30:F34) -> 0 | H35: =SUM(H30:H34) -> 0 | J35: =SUM(J30:J34) -> 0 | L35: =SUM(L30:L34) -> 0
A36: Récap 28/02 | D36: =+B35-D35 -> 0 | E36: Récap 31/03 | H36: =+F35-H35 -> 0 | I36: Récap 30/04 | L36: =+J35-L35 -> 0
A39: MAI | E39: JUIN | I39: Situation fin juin
A40: RECETTES | C40: DEPENSES | E40: RECETTES | G40: DEPENSES | J40: Recettes | K40: Dépenses | L40: Total
A41: Dates | B41: Montant | C41: Activités | D41: Montant | E41: Dates | F41: Montant | G41: Activités | H41: Montant | I41: =E23 -> Situation 31/12 | L41: =H23 -> 0
I42: =I25 -> Récap 31/01 | J42: =J24 -> 0 | K42: =L24 -> 0 | L42: =L25 -> 0
I43: =A36 -> Récap 28/02 | J43: =B35 -> 0 | K43: =D35 -> 0 | L43: =D36 -> 0
I44: =E36 -> Récap 31/03 | J44: =F35 -> 0 | K44: =H35 -> 0 | L44: =H36 -> 0
I45: =I36 -> Récap 30/04 | J45: =J35 -> 0 | K45: =L35 -> 0 | L45: =L36 -> 0
I46: =A48 -> Récap 31/05 | J46: =B47 -> 0 | K46: =D47 -> 0 | L46: =D48 -> 0
B47: =SUM(B42:B46) -> 0 | D47: =SUM(D42:D46) -> 0 | F47: =SUM(F42:F46) -> 0 | H47: =SUM(H42:H46) -> 0 | I47: =E48 -> Récap 30/06 | J47: =F47 -> 0 | K47: =H47 -> 0 | L47: =H48 -> 0
A48: Récap 31/05 | D48: =+B47-D47 -> 0 | E48: Récap 30/06 | H48: =+F47-H47 -> 0 | I48: Situation 30/06 | J48: =SUM(J42:J47) -> 0 | K48: =SUM(K42:K47) -> 0 | L48: =SUM(L41:L47) -> 0
L50: =F23+J48-G23-K48+B8 -> 0
J52: =B13+F13+J13+B24+J24+B35+F35+J35+B47+F47 -> 0 | K52: =D13+H13+L13+D24+L24+D35+H35+L35+D47+H47 -> 0 | L52: =B8+J52-K52 -> 0

Sheet DIKER
J1: Année scolaire : | L1: =' Liste élèves'!B1 -> 2018-2019
A3: NOM : | B3: =' Liste élèves'!A59 -> DIKER | D3: PRENOM: | E3: =' Liste élèves'!B59 -> Adem | H3: CLASSE : | I3: =' Liste élèves'!C59 -> Classe JB
A5: SEPTEMBRE | E5: OCTOBRE | I5: NOVEMBRE
A6: RECETTES | C6: DEPENSES | E6: RECETTES | G6: DEPENSES | I6: RECETTES | K6: DEPENSES
A7: Dates | B7: Montant | C7: Activités | D7: Montant | E7: Dates | F7: Montant | G7: Activités | H7: Montant | I7: Dates | J7: Montant | K7: Activités | L7: Montant
A8: Report juin | B8: 40.5
B13: =SUM(B9:B12) -> 0 | D13: =SUM(D8:D12) -> 0 | F13: =SUM(F8:F12) -> 0 | H13: =SUM(H8:H12) -> 0 | J13: =SUM(J8:J12) -> 0 | L13: =SUM(L8:L12) -> 0
A14: Récap 30/09 | D14: =+B13-D13 -> 0 | E14: Récap 31/10 | H14: =+F13-H13 -> 0 | I14: Récap 30/11 | L14: =+J13-L13 -> 0
A16: DÉCEMBRE | E16: Situation fin décembre | I16: JANVIER
A17: RECETTES | C17: DEPENSES | F17: Recettes | G17: Dépenses | H17: Total | I17: RECETTES | K17: DEPENSES
A18: Dates | B18: Montant | C18: Activités | D18: Montant | E18: =A14 -> Récap 30/09 | F18: =B13 -> 0 | G18: =D13 -> 0 | H18: =D14 -> 0 | I18: Dates | J18: Montant | K18: Activités | L18: Montant
E19: =E14 -> Récap 31/10 | F19: =F13 -> 0 | G19: =H13 -> 0 | H19: =H14 -> 0
E20: =I14 -> Récap 30/11 | F20: =J13 -> 0 | G20: =L13 -> 0 | H20: =L14 -> 0
E21: =A25 -> Récap 31/12 | F21: =B24 -> 0 | G21: =D24 -> 0 | H21: =D25 -> 0
E22: Report Sept | H22: =B8 -> 40.5
E23: Situation 31/12 | F23: =SUM(F18:F22) -> 0 | G23: =SUM(G18:G22) -> 0 | H23: =SUM(H18:H22) -> 40.5
B24: =SUM(B19:B23) -> 0 | D24: =SUM(D19:D23) -> 0 | J24: =SUM(J19:J23) -> 0 | L24: =SUM(L19:L23) -> 0
A25: Récap 31/12 | D25: =+B24-D24 -> 0 | I25: Récap 31/01 | L25: =+J24-L24 -> 0
A27: FÉVRIER | E27: MARS | I27: AVRIL
A28: RECETTES | C28: DEPENSES | E28: RECETTES | G28: DEPENSES | I28: RECETTES | K28: DEPENSES
A29: Dates | B29: Montant | C29: Activités | D29: Montant | E29: Dates | F29: Montant | G29: Activités | H29: Montant | I29: Dates | J29: Montant | K29: Activités | L29: Montant
B35: =SUM(B30:B34) -> 0 | D35: =SUM(D30:D34) -> 0 | F35: =SUM(F30:F34) -> 0 | H35: =SUM(H30:H34) -> 0 | J35: =SUM(J30:J34) -> 0 | L35: =SUM(L30:L34) -> 0
A36: Récap 28/02 | D36: =+B35-D35 -> 0 | E36: Récap 31/03 | H36: =+F35-H35 -> 0 | I36: Récap 30/04 | L36: =+J35-L35 -> 0
A39: MAI | E39: JUIN | I39: Situation fin juin
A40: RECETTES | C40: DEPENSES | E40: RECETTES | G40: DEPENSES | J40: Recettes | K40: Dépenses | L40: Total
A41: Dates | B41: Montant | C41: Activités | D41: Montant | E41: Dates | F41: Montant | G41: Activités | H41: Montant | I41: =E23 -> Situation 31/12 | L41: =H23 -> 40.5
I42: =I25 -> Récap 31/01 | J42: =J24 -> 0 | K42: =L24 -> 0 | L42: =L25 -> 0
I43: =A36 -> Récap 28/02 | J43: =B35 -> 0 | K43: =D35 -> 0 | L43: =D36 -> 0
I44: =E36 -> Récap 31/03 | J44: =F35 -> 0 | K44: =H35 -> 0 | L44: =H36 -> 0
I45: =I36 -> Récap 30/04 | J45: =J35 -> 0 | K45: =L35 -> 0 | L45: =L36 -> 0
I46: =A48 -> Récap 31/05 | J46: =B47 -> 0 | K46: =D47 -> 0 | L46: =D48 -> 0
B47: =SUM(B42:B46) -> 0 | D47: =SUM(D42:D46) -> 0 | F47: =SUM(F42:F46) -> 0 | H47: =SUM(H42:H46) -> 0 | I47: =E48 -> Récap 30/06 | J47: =F47 -> 0 | K47: =H47 -> 0 | L47: =H48 -> 0
A48: Récap 31/05 | D48: =+B47-D47 -> 0 | E48: Récap 30/06 | H48: =+F47-H47 -> 0 | I48: Situation 30/06 | J48: =SUM(J42:J47) -> 0 | K48: =SUM(K42:K47) -> 0 | L48: =SUM(L41:L47) -> 40.5
L50: =F23+J48-G23-K48+B8 -> 40.5
J52: =B13+F13+J13+B24+J24+B35+F35+J35+B47+F47 -> 0 | K52: =D13+H13+L13+D24+L24+D35+H35+L35+D47+H47 -> 0 | L52: =B8+J52-K52 -> 40.5

Sheet DISANTO
J1: Année scolaire : | L1: =' Liste élèves'!B1 -> 2018-2019
A3: NOM : | B3: =' Liste élèves'!A58 -> DISANTO | D3: PRENOM: | E3: =' Liste élèves'!B58 -> Anthony | H3: CLASSE : | I3: =' Liste élèves'!C58 -> Classe AA
A5: SEPTEMBRE | E5: OCTOBRE | I5: NOVEMBRE
A6: RECETTES | C6: DEPENSES | E6: RECETTES | G6: DEPENSES | I6: RECETTES | K6: DEPENSES
A7: Dates | B7: Montant | C7: Activités | D7: Montant | E7: Dates | F7: Montant | G7: Activités | H7: Montant | I7: Dates | J7: Montant | K7: Activités | L7: Montant
A8: Report juin | B8: 52.5
B13: =SUM(B9:B12) -> 0 | D13: =SUM(D8:D12) -> 0 | F13: =SUM(F8:F12) -> 0 | H13: =SUM(H8:H12) -> 0 | J13: =SUM(J8:J12) -> 0 | L13: =SUM(L8:L12) -> 0
A14: Récap 30/09 | D14: =+B13-D13 -> 0 | E14: Récap 31/10 | H14: =+F13-H13 -> 0 | I14: Récap 30/11 | L14: =+J13-L13 -> 0
A16: DÉCEMBRE | E16: Situation fin décembre | I16: JANVIER
A17: RECETTES | C17: DEPENSES | F17: Recettes | G17: Dépenses | H17: Total | I17: RECETTES | K17: DEPENSES
A18: Dates | B18: Montant | C18: Activités | D18: Montant | E18: =A14 -> Récap 30/09 | F18: =B13 -> 0 | G18: =D13 -> 0 | H18: =D14 -> 0 | I18: Dates | J18: Montant | K18: Activités | L18: Montant
E19: =E14 -> Récap 31/10 | F19: =F13 -> 0 | G19: =H13 -> 0 | H19: =H14 -> 0
E20: =I14 -> Récap 30/11 | F20: =J13 -> 0 | G20: =L13 -> 0 | H20: =L14 -> 0
E21: =A25 -> Récap 31/12 | F21: =B24 -> 0 | G21: =D24 -> 0 | H21: =D25 -> 0
E22: Report Sept | H22: =B8 -> 52.5
E23: Situation 31/12 | F23: =SUM(F18:F22) -> 0 | G23: =SUM(G18:G22) -> 0 | H23: =SUM(H18:H22) -> 52.5
B24: =SUM(B19:B23) -> 0 | D24: =SUM(D19:D23) -> 0 | J24: =SUM(J19:J23) -> 0 | L24: =SUM(L19:L23) -> 0
A25: Récap 31/12 | D25: =+B24-D24 -> 0 | I25: Récap 31/01 | L25: =+J24-L24 -> 0
A27: FÉVRIER | E27: MARS | I27: AVRIL
A28: RECETTES | C28: DEPENSES | E28: RECETTES | G28: DEPENSES | I28: RECETTES | K28: DEPENSES
A29: Dates | B29: Montant | C29: Activités | D29: Montant | E29: Dates | F29: Montant | G29: Activités | H29: Montant | I29: Dates | J29: Montant | K29: Activités | L29: Montant
B35: =SUM(B30:B34) -> 0 | D35: =SUM(D30:D34) -> 0 | F35: =SUM(F30:F34) -> 0 | H35: =SUM(H30:H34) -> 0 | J35: =SUM(J30:J34) -> 0 | L35: =SUM(L30:L34) -> 0
A36: Récap 28/02 | D36: =+B35-D35 -> 0 | E36: Récap 31/03 | H36: =+F35-H35 -> 0 | I36: Récap 30/04 | L36: =+J35-L35 -> 0
A39: MAI | E39: JUIN | I39: Situation fin juin
A40: RECETTES | C40: DEPENSES | E40: RECETTES | G40: DEPENSES | J40: Recettes | K40: Dépenses | L40: Total
A41: Dates | B41: Montant | C41: Activités | D41: Montant | E41: Dates | F41: Montant | G41: Activités | H41: Montant | I41: =E23 -> Situation 31/12 | L41: =H23 -> 52.5
I42: =I25 -> Récap 31/01 | J42: =J24 -> 0 | K42: =L24 -> 0 | L42: =L25 -> 0
I43: =A36 -> Récap 28/02 | J43: =B35 -> 0 | K43: =D35 -> 0 | L43: =D36 -> 0
I44: =E36 -> Récap 31/03 | J44: =F35 -> 0 | K44: =H35 -> 0 | L44: =H36 -> 0
I45: =I36 -> Récap 30/04 | J45: =J35 -> 0 | K45: =L35 -> 0 | L45: =L36 -> 0
I46: =A48 -> Récap 31/05 | J46: =B47 -> 0 | K46: =D47 -> 0 | L46: =D48 -> 0
B47: =SUM(B42:B46) -> 0 | D47: =SUM(D42:D46) -> 0 | F47: =SUM(F42:F46) -> 0 | H47: =SUM(H42:H46) -> 0 | I47: =E48 -> Récap 30/06 | J47: =F47 -> 0 | K47: =H47 -> 0 | L47: =H48 -> 0
A48: Récap 31/05 | D48: =+B47-D47 -> 0 | E48: Récap 30/06 | H48: =+F47-H47 -> 0 | I48: Situation 30/06 | J48: =SUM(J42:J47) -> 0 | K48: =SUM(K42:K47) -> 0 | L48: =SUM(L41:L47) -> 52.5
L50: =F23+J48-G23-K48+B8 -> 52.5
J52: =B13+F13+J13+B24+J24+B35+F35+J35+B47+F47 -> 0 | K52: =D13+H13+L13+D24+L24+D35+H35+L35+D47+H47 -> 0 | L52: =B8+J52-K52 -> 52.5

Sheet DONCA
J1: Année scolaire : | L1: =' Liste élèves'!B1 -> 2018-2019
A3: NOM : | B3: =' Liste élèves'!A60 -> DONCA | D3: PRENOM: | E3: =' Liste élèves'!B60 -> Ionita Alex | H3: CLASSE : | I3: =' Liste élèves'!C60 -> Classe 6
A5: SEPTEMBRE | E5: OCTOBRE | I5: NOVEMBRE
A6: RECETTES | C6: DEPENSES | E6: RECETTES | G6: DEPENSES | I6: RECETTES | K6: DEPENSES
A7: Dates | B7: Montant | C7: Activités | D7: Montant | E7: Dates | F7: Montant | G7: Activités | H7: Montant | I7: Dates | J7: Montant | K7: Activités | L7: Montant
A8: Report juin | B8: 41.93
B13: =SUM(B9:B12) -> 0 | D13: =SUM(D8:D12) -> 0 | F13: =SUM(F8:F12) -> 0 | H13: =SUM(H8:H12) -> 0 | J13: =SUM(J8:J12) -> 0 | L13: =SUM(L8:L12) -> 0
A14: Récap 30/09 | D14: =+B13-D13 -> 0 | E14: Récap 31/10 | H14: =+F13-H13 -> 0 | I14: Récap 30/11 | L14: =+J13-L13 -> 0
A16: DÉCEMBRE | E16: Situation fin décembre | I16: JANVIER
A17: RECETTES | C17: DEPENSES | F17: Recettes | G17: Dépenses | H17: Total | I17: RECETTES | K17: DEPENSES
A18: Dates | B18: Montant | C18: Activités | D18: Montant | E18: =A14 -> Récap 30/09 | F18: =B13 -> 0 | G18: =D13 -> 0 | H18: =D14 -> 0 | I18: Dates | J18: Montant | K18: Activités | L18: Montant
E19: =E14 -> Récap 31/10 | F19: =F13 -> 0 | G19: =H13 -> 0 | H19: =H14 -> 0
E20: =I14 -> Récap 30/11 | F20: =J13 -> 0 | G20: =L13 -> 0 | H20: =L14 -> 0
E21: =A25 -> Récap 31/12 | F21: =B24 -> 0 | G21: =D24 -> 0 | H21: =D25 -> 0
E22: Report Sept | H22: =B8 -> 41.93
E23: Situation 31/12 | F23: =SUM(F18:F22) -> 0 | G23: =SUM(G18:G22) -> 0 | H23: =SUM(H18:H22) -> 41.93
B24: =SUM(B19:B23) -> 0 | D24: =SUM(D19:D23) -> 0 | J24: =SUM(J19:J23) -> 0 | L24: =SUM(L19:L23) -> 0
A25: Récap 31/12 | D25: =+B24-D24 -> 0 | I25: Récap 31/01 | L25: =+J24-L24 -> 0
A27: FÉVRIER | E27: MARS | I27: AVRIL
A28: RECETTES | C28: DEPENSES | E28: RECETTES | G28: DEPENSES | I28: RECETTES | K28: DEPENSES
A29: Dates | B29: Montant | C29: Activités | D29: Montant | E29: Dates | F29: Montant | G29: Activités | H29: Montant | I29: Dates | J29: Montant | K29: Activités | L29: Montant
B35: =SUM(B30:B34) -> 0 | D35: =SUM(D30:D34) -> 0 | F35: =SUM(F30:F34) -> 0 | H35: =SUM(H30:H34) -> 0 | J35: =SUM(J30:J34) -> 0 | L35: =SUM(L30:L34) -> 0
A36: Récap 28/02 | D36: =+B35-D35 -> 0 | E36: Récap 31/03 | H36: =+F35-H35 -> 0 | I36: Récap 30/04 | L36: =+J35-L35 -> 0
A39: MAI | E39: JUIN | I39: Situation fin juin
A40: RECETTES | C40: DEPENSES | E40: RECETTES | G40: DEPENSES | J40: Recettes | K40: Dépenses | L40: Total
A41: Dates | B41: Montant | C41: Activités | D41: Montant | E41: Dates | F41: Montant | G41: Activités | H41: Montant | I41: =E23 -> Situation 31/12 | L41: =H23 -> 41.93
I42: =I25 -> Récap 31/01 | J42: =J24 -> 0 | K42: =L24 -> 0 | L42: =L25 -> 0
I43: =A36 -> Récap 28/02 | J43: =B35 -> 0 | K43: =D35 -> 0 | L43: =D36 -> 0
I44: =E36 -> Récap 31/03 | J44: =F35 -> 0 | K44: =H35 -> 0 | L44: =H36 -> 0
I45: =I36 -> Récap 30/04 | J45: =J35 -> 0 | K45: =L35 -> 0 | L45: =L36 -> 0
I46: =A48 -> Récap 31/05 | J46: =B47 -> 0 | K46: =D47 -> 0 | L46: =D48 -> 0
B47: =SUM(B42:B46) -> 0 | D47: =SUM(D42:D46) -> 0 | F47: =SUM(F42:F46) -> 0 | H47: =SUM(H42:H46) -> 0 | I47: =E48 -> Récap 30/06 | J47: =F47 -> 0 | K47: =H47 -> 0 | L47: =H48 -> 0
A48: Récap 31/05 | D48: =+B47-D47 -> 0 | E48: Récap 30/06 | H48: =+F47-H47 -> 0 | I48: Situation 30/06 | J48: =SUM(J42:J47) -> 0 | K48: =SUM(K42:K47) -> 0 | L48: =SUM(L41:L47) -> 41.93
L50: =F23+J48-G23-K48+B8 -> 41.93
J52: =B13+F13+J13+B24+J24+B35+F35+J35+B47+F47 -> 0 | K52: =D13+H13+L13+D24+L24+D35+H35+L35+D47+H47 -> 0 | L52: =B8+J52-K52 -> 41.93

Sheet DRIESSENS
J1: Année scolaire : | L1: =' Liste élèves'!B1 -> 2018-2019
A3: NOM : | B3: =' Liste élèves'!A61 -> DRIESSENS | D3: PRENOM: | E3: =' Liste élèves'!B61 -> Pierre | H3: CLASSE : | I3: =' Liste élèves'!C61 -> Classe 3
A5: SEPTEMBRE | E5: OCTOBRE | I5: NOVEMBRE
A6: RECETTES | C6: DEPENSES | E6: RECETTES | G6: DEPENSES | I6: RECETTES | K6: DEPENSES
A7: Dates | B7: Montant | C7: Activités | D7: Montant | E7: Dates | F7: Montant | G7: Activités | H7: Montant | I7: Dates | J7: Montant | K7: Activités | L7: Montant
A8: Report juin | B8: 60
B13: =SUM(B9:B12) -> 0 | D13: =SUM(D8:D12) -> 0 | F13: =SUM(F8:F12) -> 0 | H13: =SUM(H8:H12) -> 0 | J13: =SUM(J8:J12) -> 0 | L13: =SUM(L8:L12) -> 0
A14: Récap 30/09 | D14: =+B13-D13 -> 0 | E14: Récap 31/10 | H14: =+F13-H13 -> 0 | I14: Récap 30/11 | L14: =+J13-L13 -> 0
A16: DÉCEMBRE | E16: Situation fin décembre | I16: JANVIER
A17: RECETTES | C17: DEPENSES | F17: Recettes | G17: Dépenses | H17: Total | I17: RECETTES | K17: DEPENSES
A18: Dates | B18: Montant | C18: Activités | D18: Montant | E18: =A14 -> Récap 30/09 | F18: =B13 -> 0 | G18: =D13 -> 0 | H18: =D14 -> 0 | I18: Dates | J18: Montant | K18: Activités | L18: Montant
E19: =E14 -> Récap 31/10 | F19: =F13 -> 0 | G19: =H13 -> 0 | H19: =H14 -> 0
E20: =I14 -> Récap 30/11 | F20: =J13 -> 0 | G20: =L13 -> 0 | H20: =L14 -> 0
E21: =A25 -> Récap 31/12 | F21: =B24 -> 0 | G21: =D24 -> 0 | H21: =D25 -> 0
E22: Report Sept | H22: =B8 -> 60
E23: Situation 31/12 | F23: =SUM(F18:F22) -> 0 | G23: =SUM(G18:G22) -> 0 | H23: =SUM(H18:H22) -> 60
B24: =SUM(B19:B23) -> 0 | D24: =SUM(D19:D23) -> 0 | J24: =SUM(J19:J23) -> 0 | L24: =SUM(L19:L23) -> 0
A25: Récap 31/12 | D25: =+B24-D24 -> 0 | I25: Récap 31/01 | L25: =+J24-L24 -> 0
A27: FÉVRIER | E27: MARS | I27: AVRIL
A28: RECETTES | C28: DEPENSES | E28: RECETTES | G28: DEPENSES | I28: RECETTES | K28: DEPENSES
A29: Dates | B29: Montant | C29: Activités | D29: Montant | E29: Dates | F29: Montant | G29: Activités | H29: Montant | I29: Dates | J29: Montant | K29: Activités | L29: Montant
B35: =SUM(B30:B34) -> 0 | D35: =SUM(D30:D34) -> 0 | F35: =SUM(F30:F34) -> 0 | H35: =SUM(H30:H34) -> 0 | J35: =SUM(J30:J34) -> 0 | L35: =SUM(L30:L34) -> 0
A36: Récap 28/02 | D36: =+B35-D35 -> 0 | E36: Récap 31/03 | H36: =+F35-H35 -> 0 | I36: Récap 30/04 | L36: =+J35-L35 -> 0
A39: MAI | E39: JUIN | I39: Situation fin juin
A40: RECETTES | C40: DEPENSES | E40: RECETTES | G40: DEPENSES | J40: Recettes | K40: Dépenses | L40: Total
A41: Dates | B41: Montant | C41: Activités | D41: Montant | E41: Dates | F41: Montant | G41: Activités | H41: Montant | I41: =E23 -> Situation 31/12 | L41: =H23 -> 60
I42: =I25 -> Récap 31/01 | J42: =J24 -> 0 | K42: =L24 -> 0 | L42: =L25 -> 0
I43: =A36 -> Récap 28/02 | J43: =B35 -> 0 | K43: =D35 -> 0 | L43: =D36 -> 0
I44: =E36 -> Récap 31/03 | J44: =F35 -> 0 | K44: =H35 -> 0 | L44: =H36 -> 0
I45: =I36 -> Récap 30/04 | J45: =J35 -> 0 | K45: =L35 -> 0 | L45: =L36 -> 0
I46: =A48 -> Récap 31/05 | J46: =B47 -> 0 | K46: =D47 -> 0 | L46: =D48 -> 0
B47: =SUM(B42:B46) -> 0 | D47: =SUM(D42:D46) -> 0 | F47: =SUM(F42:F46) -> 0 | H47: =SUM(H42:H46) -> 0 | I47: =E48 -> Récap 30/06 | J47: =F47 -> 0 | K47: =H47 -> 0 | L47: =H48 -> 0
A48: Récap 31/05 | D48: =+B47-D47 -> 0 | E48: Récap 30/06 | H48: =+F47-H47 -> 0 | I48: Situation 30/06 | J48: =SUM(J42:J47) -> 0 | K48: =SUM(K42:K47) -> 0 | L48: =SUM(L41:L47) -> 60
L50: =F23+J48-G23-K48+B8 -> 60
J52: =B13+F13+J13+B24+J24+B35+F35+J35+B47+F47 -> 0 | K52: =D13+H13+L13+D24+L24+D35+H35+L35+D47+H47 -> 0 | L52: =B8+J52-K52 -> 60

Sheet DURANT
J1: Année scolaire : | L1: =' Liste élèves'!B1 -> 2018-2019
A3: NOM : | B3: =' Liste élèves'!A62 -> DURANT | D3: PRENOM: | E3: =' Liste élèves'!B62 -> Morgane | H3: CLASSE : | I3: =' Liste élèves'!C62 -> Classe 11
A5: SEPTEMBRE | E5: OCTOBRE | I5: NOVEMBRE
A6: RECETTES | C6: DEPENSES | E6: RECETTES | G6: DEPENSES | I6: RECETTES | K6: DEPENSES
A7: Dates | B7: Montant | C7: Activités | D7: Montant | E7: Dates | F7: Montant | G7: Activités | H7: Montant | I7: Dates | J7: Montant | K7: Activités | L7: Montant
A8: Report juin | B8: 56
B13: =SUM(B9:B12) -> 0 | D13: =SUM(D8:D12) -> 0 | F13: =SUM(F8:F12) -> 0 | H13: =SUM(H8:H12) -> 0 | J13: =SUM(J8:J12) -> 0 | L13: =SUM(L8:L12) -> 0
A14: Récap 30/09 | D14: =+B13-D13 -> 0 | E14: Récap 31/10 | H14: =+F13-H13 -> 0 | I14: Récap 30/11 | L14: =+J13-L13 -> 0
A16: DÉCEMBRE | E16: Situation fin décembre | I16: JANVIER
A17: RECETTES | C17: DEPENSES | F17: Recettes | G17: Dépenses | H17: Total | I17: RECETTES | K17: DEPENSES
A18: Dates | B18: Montant | C18: Activités | D18: Montant | E18: =A14 -> Récap 30/09 | F18: =B13 -> 0 | G18: =D13 -> 0 | H18: =D14 -> 0 | I18: Dates | J18: Montant | K18: Activités | L18: Montant
E19: =E14 -> Récap 31/10 | F19: =F13 -> 0 | G19: =H13 -> 0 | H19: =H14 -> 0
E20: =I14 -> Récap 30/11 | F20: =J13 -> 0 | G20: =L13 -> 0 | H20: =L14 -> 0
E21: =A25 -> Récap 31/12 | F21: =B24 -> 0 | G21: =D24 -> 0 | H21: =D25 -> 0
E22: Report Sept | H22: =B8 -> 56
E23: Situation 31/12 | F23: =SUM(F18:F22) -> 0 | G23: =SUM(G18:G22) -> 0 | H23: =SUM(H18:H22) -> 56
B24: =SUM(B19:B23) -> 0 | D24: =SUM(D19:D23) -> 0 | J24: =SUM(J19:J23) -> 0 | L24: =SUM(L19:L23) -> 0
A25: Récap 31/12 | D25: =+B24-D24 -> 0 | I25: Récap 31/01 | L25: =+J24-L24 -> 0
A27: FÉVRIER | E27: MARS | I27: AVRIL
A28: RECETTES | C28: DEPENSES | E28: RECETTES | G28: DEPENSES | I28: RECETTES | K28: DEPENSES
A29: Dates | B29: Montant | C29: Activités | D29: Montant | E29: Dates | F29: Montant | G29: Activités | H29: Montant | I29: Dates | J29: Montant | K29: Activités | L29: Montant
B35: =SUM(B30:B34) -> 0 | D35: =SUM(D30:D34) -> 0 | F35: =SUM(F30:F34) -> 0 | H35: =SUM(H30:H34) -> 0 | J35: =SUM(J30:J34) -> 0 | L35: =SUM(L30:L34) -> 0
A36: Récap 28/02 | D36: =+B35-D35 -> 0 | E36: Récap 31/03 | H36: =+F35-H35 -> 0 | I36: Récap 30/04 | L36: =+J35-L35 -> 0
A39: MAI | E39: JUIN | I39: Situation fin juin
A40: RECETTES | C40: DEPENSES | E40: RECETTES | G40: DEPENSES | J40: Recettes | K40: Dépenses | L40: Total
A41: Dates | B41: Montant | C41: Activités | D41: Montant | E41: Dates | F41: Montant | G41: Activités | H41: Montant | I41: =E23 -> Situation 31/12 | L41: =H23 -> 56
I42: =I25 -> Récap 31/01 | J42: =J24 -> 0 | K42: =L24 -> 0 | L42: =L25 -> 0
I43: =A36 -> Récap 28/02 | J43: =B35 -> 0 | K43: =D35 -> 0 | L43: =D36 -> 0
I44: =E36 -> Récap 31/03 | J44: =F35 -> 0 | K44: =H35 -> 0 | L44: =H36 -> 0
I45: =I36 -> Récap 30/04 | J45: =J35 -> 0 | K45: =L35 -> 0 | L45: =L36 -> 0
I46: =A48 -> Récap 31/05 | J46: =B47 -> 0 | K46: =D47 -> 0 | L46: =D48 -> 0
B47: =SUM(B42:B46) -> 0 | D47: =SUM(D42:D46) -> 0 | F47: =SUM(F42:F46) -> 0 | H47: =SUM(H42:H46) -> 0 | I47: =E48 -> Récap 30/06 | J47: =F47 -> 0 | K47: =H47 -> 0 | L47: =H48 -> 0
A48: Récap 31/05 | D48: =+B47-D47 -> 0 | E48: Récap 30/06 | H48: =+F47-H47 -> 0 | I48: Situation 30/06 | J48: =SUM(J42:J47) -> 0 | K48: =SUM(K42:K47) -> 0 | L48: =SUM(L41:L47) -> 56
L50: =F23+J48-G23-K48+B8 -> 56
J52: =B13+F13+J13+B24+J24+B35+F35+J35+B47+F47 -> 0 | K52: =D13+H13+L13+D24+L24+D35+H35+L35+D47+H47 -> 0 | L52: =B8+J52-K52 -> 56

Sheet DUVALA
J1: Année scolaire : | L1: =' Liste élèves'!B1 -> 2018-2019
A3: NOM : | B3: =' Liste élèves'!A63 -> DUVALA | D3: PRENOM: | E3: =' Liste élèves'!B63 -> Anna | H3: CLASSE : | I3: =' Liste élèves'!C63 -> Classe MA
A5: SEPTEMBRE | E5: OCTOBRE | I5: NOVEMBRE
A6: RECETTES | C6: DEPENSES | E6: RECETTES | G6: DEPENSES | I6: RECETTES | K6: DEPENSES
A7: Dates | B7: Montant | C7: Activités | D7: Montant | E7: Dates | F7: Montant | G7: Activités | H7: Montant | I7: Dates | J7: Montant | K7: Activités | L7: Montant
A8: Report juin | B8: 40.24
B13: =SUM(B9:B12) -> 0 | D13: =SUM(D8:D12) -> 0 | F13: =SUM(F8:F12) -> 0 | H13: =SUM(H8:H12) -> 0 | J13: =SUM(J8:J12) -> 0 | L13: =SUM(L8:L12) -> 0
A14: Récap 30/09 | D14: =+B13-D13 -> 0 | E14: Récap 31/10 | H14: =+F13-H13 -> 0 | I14: Récap 30/11 | L14: =+J13-L13 -> 0
A16: DÉCEMBRE | E16: Situation fin décembre | I16: JANVIER
A17: RECETTES | C17: DEPENSES | F17: Recettes | G17: Dépenses | H17: Total | I17: RECETTES | K17: DEPENSES
A18: Dates | B18: Montant | C18: Activités | D18: Montant | E18: =A14 -> Récap 30/09 | F18: =B13 -> 0 | G18: =D13 -> 0 | H18: =D14 -> 0 | I18: Dates | J18: Montant | K18: Activités | L18: Montant
E19: =E14 -> Récap 31/10 | F19: =F13 -> 0 | G19: =H13 -> 0 | H19: =H14 -> 0
E20: =I14 -> Récap 30/11 | F20: =J13 -> 0 | G20: =L13 -> 0 | H20: =L14 -> 0
E21: =A25 -> Récap 31/12 | F21: =B24 -> 0 | G21: =D24 -> 0 | H21: =D25 -> 0
E22: Report Sept | H22: =B8 -> 40.24
E23: Situation 31/12 | F23: =SUM(F18:F22) -> 0 | G23: =SUM(G18:G22) -> 0 | H23: =SUM(H18:H22) -> 40.24
B24: =SUM(B19:B23) -> 0 | D24: =SUM(D19:D23) -> 0 | J24: =SUM(J19:J23) -> 0 | L24: =SUM(L19:L23) -> 0
A25: Récap 31/12 | D25: =+B24-D24 -> 0 | I25: Récap 31/01 | L25: =+J24-L24 -> 0
A27: FÉVRIER | E27: MARS | I27: AVRIL
A28: RECETTES | C28: DEPENSES | E28: RECETTES | G28: DEPENSES | I28: RECETTES | K28: DEPENSES
A29: Dates | B29: Montant | C29: Activités | D29: Montant | E29: Dates | F29: Montant | G29: Activités | H29: Montant | I29: Dates | J29: Montant | K29: Activités | L29: Montant
B35: =SUM(B30:B34) -> 0 | D35: =SUM(D30:D34) -> 0 | F35: =SUM(F30:F34) -> 0 | H35: =SUM(H30:H34) -> 0 | J35: =SUM(J30:J34) -> 0 | L35: =SUM(L30:L34) -> 0
A36: Récap 28/02 | D36: =+B35-D35 -> 0 | E36: Récap 31/03 | H36: =+F35-H35 -> 0 | I36: Récap 30/04 | L36: =+J35-L35 -> 0
A39: MAI | E39: JUIN | I39: Situation fin juin
A40: RECETTES | C40: DEPENSES | E40: RECETTES | G40: DEPENSES | J40: Recettes | K40: Dépenses | L40: Total
A41: Dates | B41: Montant | C41: Activités | D41: Montant | E41: Dates | F41: Montant | G41: Activités | H41: Montant | I41: =E23 -> Situation 31/12 | L41: =H23 -> 40.24
I42: =I25 -> Récap 31/01 | J42: =J24 -> 0 | K42: =L24 -> 0 | L42: =L25 -> 0
I43: =A36 -> Récap 28/02 | J43: =B35 -> 0 | K43: =D35 -> 0 | L43: =D36 -> 0
I44: =E36 -> Récap 31/03 | J44: =F35 -> 0 | K44: =H35 -> 0 | L44: =H36 -> 0
I45: =I36 -> Récap 30/04 | J45: =J35 -> 0 | K45: =L35 -> 0 | L45: =L36 -> 0
I46: =A48 -> Récap 31/05 | J46: =B47 -> 0 | K46: =D47 -> 0 | L46: =D48 -> 0
B47: =SUM(B42:B46) -> 0 | D47: =SUM(D42:D46) -> 0 | F47: =SUM(F42:F46) -> 0 | H47: =SUM(H42:H46) -> 0 | I47: =E48 -> Récap 30/06 | J47: =F47 -> 0 | K47: =H47 -> 0 | L47: =H48 -> 0
A48: Récap 31/05 | D48: =+B47-D47 -> 0 | E48: Récap 30/06 | H48: =+F47-H47 -> 0 | I48: Situation 30/06 | J48: =SUM(J42:J47) -> 0 | K48: =SUM(K42:K47) -> 0 | L48: =SUM(L41:L47) -> 40.24
L50: =F23+J48-G23-K48+B8 -> 40.24
J52: =B13+F13+J13+B24+J24+B35+F35+J35+B47+F47 -> 0 | K52: =D13+H13+L13+D24+L24+D35+H35+L35+D47+H47 -> 0 | L52: =B8+J52-K52 -> 40.24

Sheet DUVALG
J1: Année scolaire : | L1: =' Liste élèves'!B1 -> 2018-2019
A3: NOM : | B3: =' Liste élèves'!A64 -> DUVALG | D3: PRENOM: | E3: =' Liste élèves'!B64 -> Gabriel | H3: CLASSE : | I3: =' Liste élèves'!C64 -> Classe FB
A5: SEPTEMBRE | E5: OCTOBRE | I5: NOVEMBRE
A6: RECETTES | C6: DEPENSES | E6: RECETTES | G6: DEPENSES | I6: RECETTES | K6: DEPENSES
A7: Dates | B7: Montant | C7: Activités | D7: Montant | E7: Dates | F7: Montant | G7: Activités | H7: Montant | I7: Dates | J7: Montant | K7: Activités | L7: Montant
A8: Report juin | B8: 45.5
B13: =SUM(B9:B12) -> 0 | D13: =SUM(D8:D12) -> 0 | F13: =SUM(F8:F12) -> 0 | H13: =SUM(H8:H12) -> 0 | J13: =SUM(J8:J12) -> 0 | L13: =SUM(L8:L12) -> 0
A14: Récap 30/09 | D14: =+B13-D13 -> 0 | E14: Récap 31/10 | H14: =+F13-H13 -> 0 | I14: Récap 30/11 | L14: =+J13-L13 -> 0
A16: DÉCEMBRE | E16: Situation fin décembre | I16: JANVIER
A17: RECETTES | C17: DEPENSES | F17: Recettes | G17: Dépenses | H17: Total | I17: RECETTES | K17: DEPENSES
A18: Dates | B18: Montant | C18: Activités | D18: Montant | E18: =A14 -> Récap 30/09 | F18: =B13 -> 0 | G18: =D13 -> 0 | H18: =D14 -> 0 | I18: Dates | J18: Montant | K18: Activités | L18: Montant
E19: =E14 -> Récap 31/10 | F19: =F13 -> 0 | G19: =H13 -> 0 | H19: =H14 -> 0
E20: =I14 -> Récap 30/11 | F20: =J13 -> 0 | G20: =L13 -> 0 | H20: =L14 -> 0
E21: =A25 -> Récap 31/12 | F21: =B24 -> 0 | G21: =D24 -> 0 | H21: =D25 -> 0
E22: Report Sept | H22: =B8 -> 45.5
E23: Situation 31/12 | F23: =SUM(F18:F22) -> 0 | G23: =SUM(G18:G22) -> 0 | H23: =SUM(H18:H22) -> 45.5
B24: =SUM(B19:B23) -> 0 | D24: =SUM(D19:D23) -> 0 | J24: =SUM(J19:J23) -> 0 | L24: =SUM(L19:L23) -> 0
A25: Récap 31/12 | D25: =+B24-D24 -> 0 | I25: Récap 31/01 | L25: =+J24-L24 -> 0
A27: FÉVRIER | E27: MARS | I27: AVRIL
A28: RECETTES | C28: DEPENSES | E28: RECETTES | G28: DEPENSES | I28: RECETTES | K28: DEPENSES
A29: Dates | B29: Montant | C29: Activités | D29: Montant | E29: Dates | F29: Montant | G29: Activités | H29: Montant | I29: Dates | J29: Montant | K29: Activités | L29: Montant
B35: =SUM(B30:B34) -> 0 | D35: =SUM(D30:D34) -> 0 | F35: =SUM(F30:F34) -> 0 | H35: =SUM(H30:H34) -> 0 | J35: =SUM(J30:J34) -> 0 | L35: =SUM(L30:L34) -> 0
A36: Récap 28/02 | D36: =+B35-D35 -> 0 | E36: Récap 31/03 | H36: =+F35-H35 -> 0 | I36: Récap 30/04 | L36: =+J35-L35 -> 0
A39: MAI | E39: JUIN | I39: Situation fin juin
A40: RECETTES | C40: DEPENSES | E40: RECETTES | G40: DEPENSES | J40: Recettes | K40: Dépenses | L40: Total
A41: Dates | B41: Montant | C41: Activités | D41: Montant | E41: Dates | F41: Montant | G41: Activités | H41: Montant | I41: =E23 -> Situation 31/12 | L41: =H23 -> 45.5
I42: =I25 -> Récap 31/01 | J42: =J24 -> 0 | K42: =L24 -> 0 | L42: =L25 -> 0
I43: =A36 -> Récap 28/02 | J43: =B35 -> 0 | K43: =D35 -> 0 | L43: =D36 -> 0
I44: =E36 -> Récap 31/03 | J44: =F35 -> 0 | K44: =H35 -> 0 | L44: =H36 -> 0
I45: =I36 -> Récap 30/04 | J45: =J35 -> 0 | K45: =L35 -> 0 | L45: =L36 -> 0
I46: =A48 -> Récap 31/05 | J46: =B47 -> 0 | K46: =D47 -> 0 | L46: =D48 -> 0
B47: =SUM(B42:B46) -> 0 | D47: =SUM(D42:D46) -> 0 | F47: =SUM(F42:F46) -> 0 | H47: =SUM(H42:H46) -> 0 | I47: =E48 -> Récap 30/06 | J47: =F47 -> 0 | K47: =H47 -> 0 | L47: =H48 -> 0
A48: Récap 31/05 | D48: =+B47-D47 -> 0 | E48: Récap 30/06 | H48: =+F47-H47 -> 0 | I48: Situation 30/06 | J48: =SUM(J42:J47) -> 0 | K48: =SUM(K42:K47) -> 0 | L48: =SUM(L41:L47) -> 45.5
L50: =F23+J48-G23-K48+B8 -> 45.5
J52: =B13+F13+J13+B24+J24+B35+F35+J35+B47+F47 -> 0 | K52: =D13+H13+L13+D24+L24+D35+H35+L35+D47+H47 -> 0 | L52: =B8+J52-K52 -> 45.5

Sheet ELYAMANI
J1: Année scolaire : | L1: =' Liste élèves'!B1 -> 2018-2019
A3: NOM : | B3: =' Liste élèves'!A65 -> ELYAMANI | D3: PRENOM: | E3: =' Liste élèves'!B65 -> Billal | H3: CLASSE : | I3: =' Liste élèves'!C65 -> Classe PC
A5: SEPTEMBRE | E5: OCTOBRE | I5: NOVEMBRE
A6: RECETTES | C6: DEPENSES | E6: RECETTES | G6: DEPENSES | I6: RECETTES | K6: DEPENSES
A7: Dates | B7: Montant | C7: Activités | D7: Montant | E7: Dates | F7: Montant | G7: Activités | H7: Montant | I7: Dates | J7: Montant | K7: Activités | L7: Montant
A8: Report juin | B8: 74
B13: =SUM(B9:B12) -> 0 | D13: =SUM(D8:D12) -> 0 | F13: =SUM(F8:F12) -> 0 | H13: =SUM(H8:H12) -> 0 | J13: =SUM(J8:J12) -> 0 | L13: =SUM(L8:L12) -> 0
A14: Récap 30/09 | D14: =+B13-D13 -> 0 | E14: Récap 31/10 | H14: =+F13-H13 -> 0 | I14: Récap 30/11 | L14: =+J13-L13 -> 0
A16: DÉCEMBRE | E16: Situation fin décembre | I16: JANVIER
A17: RECETTES | C17: DEPENSES | F17: Recettes | G17: Dépenses | H17: Total | I17: RECETTES | K17: DEPENSES
A18: Dates | B18: Montant | C18: Activités | D18: Montant | E18: =A14 -> Récap 30/09 | F18: =B13 -> 0 | G18: =D13 -> 0 | H18: =D14 -> 0 | I18: Dates | J18: Montant | K18: Activités | L18: Montant
E19: =E14 -> Récap 31/10 | F19: =F13 -> 0 | G19: =H13 -> 0 | H19: =H14 -> 0
E20: =I14 -> Récap 30/11 | F20: =J13 -> 0 | G20: =L13 -> 0 | H20: =L14 -> 0
E21: =A25 -> Récap 31/12 | F21: =B24 -> 0 | G21: =D24 -> 0 | H21: =D25 -> 0
E22: Report Sept | H22: =B8 -> 74
E23: Situation 31/12 | F23: =SUM(F18:F22) -> 0 | G23: =SUM(G18:G22) -> 0 | H23: =SUM(H18:H22) -> 74
B24: =SUM(B19:B23) -> 0 | D24: =SUM(D19:D23) -> 0 | J24: =SUM(J19:J23) -> 0 | L24: =SUM(L19:L23) -> 0
A25: Récap 31/12 | D25: =+B24-D24 -> 0 | I25: Récap 31/01 | L25: =+J24-L24 -> 0
A27: FÉVRIER | E27: MARS | I27: AVRIL
A28: RECETTES | C28: DEPENSES | E28: RECETTES | G28: DEPENSES | I28: RECETTES | K28: DEPENSES
A29: Dates | B29: Montant | C29: Activités | D29: Montant | E29: Dates | F29: Montant | G29: Activités | H29: Montant | I29: Dates | J29: Montant | K29: Activités | L29: Montant
B35: =SUM(B30:B34) -> 0 | D35: =SUM(D30:D34) -> 0 | F35: =SUM(F30:F34) -> 0 | H35: =SUM(H30:H34) -> 0 | J35: =SUM(J30:J34) -> 0 | L35: =SUM(L30:L34) -> 0
A36: Récap 28/02 | D36: =+B35-D35 -> 0 | E36: Récap 31/03 | H36: =+F35-H35 -> 0 | I36: Récap 30/04 | L36: =+J35-L35 -> 0
A39: MAI | E39: JUIN | I39: Situation fin juin
A40: RECETTES | C40: DEPENSES | E40: RECETTES | G40: DEPENSES | J40: Recettes | K40: Dépenses | L40: Total
A41: Dates | B41: Montant | C41: Activités | D41: Montant | E41: Dates | F41: Montant | G41: Activités | H41: Montant | I41: =E23 -> Situation 31/12 | L41: =H23 -> 74
I42: =I25 -> Récap 31/01 | J42: =J24 -> 0 | K42: =L24 -> 0 | L42: =L25 -> 0
I43: =A36 -> Récap 28/02 | J43: =B35 -> 0 | K43: =D35 -> 0 | L43: =D36 -> 0
I44: =E36 -> Récap 31/03 | J44: =F35 -> 0 | K44: =H35 -> 0 | L44: =H36 -> 0
I45: =I36 -> Récap 30/04 | J45: =J35 -> 0 | K45: =L35 -> 0 | L45: =L36 -> 0
I46: =A48 -> Récap 31/05 | J46: =B47 -> 0 | K46: =D47 -> 0 | L46: =D48 -> 0
B47: =SUM(B42:B46) -> 0 | D47: =SUM(D42:D46) -> 0 | F47: =SUM(F42:F46) -> 0 | H47: =SUM(H42:H46) -> 0 | I47: =E48 -> Récap 30/06 | J47: =F47 -> 0 | K47: =H47 -> 0 | L47: =H48 -> 0
A48: Récap 31/05 | D48: =+B47-D47 -> 0 | E48: Récap 30/06 | H48: =+F47-H47 -> 0 | I48: Situation 30/06 | J48: =SUM(J42:J47) -> 0 | K48: =SUM(K42:K47) -> 0 | L48: =SUM(L41:L47) -> 74
L50: =F23+J48-G23-K48+B8 -> 74
J52: =B13+F13+J13+B24+J24+B35+F35+J35+B47+F47 -> 0 | K52: =D13+H13+L13+D24+L24+D35+H35+L35+D47+H47 -> 0 | L52: =B8+J52-K52 -> 74

Sheet ERYIGITI
J1: Année scolaire : | L1: =' Liste élèves'!B1 -> 2018-2019
A3: NOM : | B3: =' Liste élèves'!A66 -> ERYIGITI | D3: PRENOM: | E3: =' Liste élèves'!B66 -> Ilhan | H3: CLASSE : | I3: =' Liste élèves'!C66 -> Classe 2
A5: SEPTEMBRE | E5: OCTOBRE | I5: NOVEMBRE
A6: RECETTES | C6: DEPENSES | E6: RECETTES | G6: DEPENSES | I6: RECETTES | K6: DEPENSES
A7: Dates | B7: Montant | C7: Activités | D7: Montant | E7: Dates | F7: Montant | G7: Activités | H7: Montant | I7: Dates | J7: Montant | K7: Activités | L7: Montant
A8: Report juin | B8: 55.5
B13: =SUM(B9:B12) -> 0 | D13: =SUM(D8:D12) -> 0 | F13: =SUM(F8:F12) -> 0 | H13: =SUM(H8:H12) -> 0 | J13: =SUM(J8:J12) -> 0 | L13: =SUM(L8:L12) -> 0
A14: Récap 30/09 | D14: =+B13-D13 -> 0 | E14: Récap 31/10 | H14: =+F13-H13 -> 0 | I14: Récap 30/11 | L14: =+J13-L13 -> 0
A16: DÉCEMBRE | E16: Situation fin décembre | I16: JANVIER
A17: RECETTES | C17: DEPENSES | F17: Recettes | G17: Dépenses | H17: Total | I17: RECETTES | K17: DEPENSES
A18: Dates | B18: Montant | C18: Activités | D18: Montant | E18: =A14 -> Récap 30/09 | F18: =B13 -> 0 | G18: =D13 -> 0 | H18: =D14 -> 0 | I18: Dates | J18: Montant | K18: Activités | L18: Montant
E19: =E14 -> Récap 31/10 | F19: =F13 -> 0 | G19: =H13 -> 0 | H19: =H14 -> 0
E20: =I14 -> Récap 30/11 | F20: =J13 -> 0 | G20: =L13 -> 0 | H20: =L14 -> 0
E21: =A25 -> Récap 31/12 | F21: =B24 -> 0 | G21: =D24 -> 0 | H21: =D25 -> 0
E22: Report Sept | H22: =B8 -> 55.5
E23: Situation 31/12 | F23: =SUM(F18:F22) -> 0 | G23: =SUM(G18:G22) -> 0 | H23: =SUM(H18:H22) -> 55.5
B24: =SUM(B19:B23) -> 0 | D24: =SUM(D19:D23) -> 0 | J24: =SUM(J19:J23) -> 0 | L24: =SUM(L19:L23) -> 0
A25: Récap 31/12 | D25: =+B24-D24 -> 0 | I25: Récap 31/01 | L25: =+J24-L24 -> 0
A27: FÉVRIER | E27: MARS | I27: AVRIL
A28: RECETTES | C28: DEPENSES | E28: RECETTES | G28: DEPENSES | I28: RECETTES | K28: DEPENSES
A29: Dates | B29: Montant | C29: Activités | D29: Montant | E29: Dates | F29: Montant | G29: Activités | H29: Montant | I29: Dates | J29: Montant | K29: Activités | L29: Montant
B35: =SUM(B30:B34) -> 0 | D35: =SUM(D30:D34) -> 0 | F35: =SUM(F30:F34) -> 0 | H35: =SUM(H30:H34) -> 0 | J35: =SUM(J30:J34) -> 0 | L35: =SUM(L30:L34) -> 0
A36: Récap 28/02 | D36: =+B35-D35 -> 0 | E36: Récap 31/03 | H36: =+F35-H35 -> 0 | I36: Récap 30/04 | L36: =+J35-L35 -> 0
A39: MAI | E39: JUIN | I39: Situation fin juin
A40: RECETTES | C40: DEPENSES | E40: RECETTES | G40: DEPENSES | J40: Recettes | K40: Dépenses | L40: Total
A41: Dates | B41: Montant | C41: Activités | D41: Montant | E41: Dates | F41: Montant | G41: Activités | H41: Montant | I41: =E23 -> Situation 31/12 | L41: =H23 -> 55.5
I42: =I25 -> Récap 31/01 | J42: =J24 -> 0 | K42: =L24 -> 0 | L42: =L25 -> 0
I43: =A36 -> Récap 28/02 | J43: =B35 -> 0 | K43: =D35 -> 0 | L43: =D36 -> 0
I44: =E36 -> Récap 31/03 | J44: =F35 -> 0 | K44: =H35 -> 0 | L44: =H36 -> 0
I45: =I36 -> Récap 30/04 | J45: =J35 -> 0 | K45: =L35 -> 0 | L45: =L36 -> 0
I46: =A48 -> Récap 31/05 | J46: =B47 -> 0 | K46: =D47 -> 0 | L46: =D48 -> 0
B47: =SUM(B42:B46) -> 0 | D47: =SUM(D42:D46) -> 0 | F47: =SUM(F42:F46) -> 0 | H47: =SUM(H42:H46) -> 0 | I47: =E48 -> Récap 30/06 | J47: =F47 -> 0 | K47: =H47 -> 0 | L47: =H48 -> 0
A48: Récap 31/05 | D48: =+B47-D47 -> 0 | E48: Récap 30/06 | H48: =+F47-H47 -> 0 | I48: Situation 30/06 | J48: =SUM(J42:J47) -> 0 | K48: =SUM(K42:K47) -> 0 | L48: =SUM(L41:L47) -> 55.5
L50: =F23+J48-G23-K48+B8 -> 55.5
J52: =B13+F13+J13+B24+J24+B35+F35+J35+B47+F47 -> 0 | K52: =D13+H13+L13+D24+L24+D35+H35+L35+D47+H47 -> 0 | L52: =B8+J52-K52 -> 55.5

Sheet ERYIGITS
J1: Année scolaire : | L1: =' Liste élèves'!B1 -> 2018-2019
A3: NOM : | B3: =' Liste élèves'!A67 -> ERYIGITS | D3: PRENOM: | E3: =' Liste élèves'!B67 -> Sinan | H3: CLASSE : | I3: =' Liste élèves'!C67 -> Classe 11
A5: SEPTEMBRE | E5: OCTOBRE | I5: NOVEMBRE
A6: RECETTES | C6: DEPENSES | E6: RECETTES | G6: DEPENSES | I6: RECETTES | K6: DEPENSES
A7: Dates | B7: Montant | C7: Activités | D7: Montant | E7: Dates | F7: Montant | G7: Activités | H7: Montant | I7: Dates | J7: Montant | K7: Activités | L7: Montant
A8: Report juin | B8: -6
B13: =SUM(B9:B12) -> 0 | D13: =SUM(D8:D12) -> 0 | F13: =SUM(F8:F12) -> 0 | H13: =SUM(H8:H12) -> 0 | J13: =SUM(J8:J12) -> 0 | L13: =SUM(L8:L12) -> 0
A14: Récap 30/09 | D14: =+B13-D13 -> 0 | E14: Récap 31/10 | H14: =+F13-H13 -> 0 | I14: Récap 30/11 | L14: =+J13-L13 -> 0
A16: DÉCEMBRE | E16: Situation fin décembre | I16: JANVIER
A17: RECETTES | C17: DEPENSES | F17: Recettes | G17: Dépenses | H17: Total | I17: RECETTES | K17: DEPENSES
A18: Dates | B18: Montant | C18: Activités | D18: Montant | E18: =A14 -> Récap 30/09 | F18: =B13 -> 0 | G18: =D13 -> 0 | H18: =D14 -> 0 | I18: Dates | J18: Montant | K18: Activités | L18: Montant
E19: =E14 -> Récap 31/10 | F19: =F13 -> 0 | G19: =H13 -> 0 | H19: =H14 -> 0
E20: =I14 -> Récap 30/11 | F20: =J13 -> 0 | G20: =L13 -> 0 | H20: =L14 -> 0
E21: =A25 -> Récap 31/12 | F21: =B24 -> 0 | G21: =D24 -> 0 | H21: =D25 -> 0
E22: Report Sept | H22: =B8 -> -6
E23: Situation 31/12 | F23: =SUM(F18:F22) -> 0 | G23: =SUM(G18:G22) -> 0 | H23: =SUM(H18:H22) -> -6
B24: =SUM(B19:B23) -> 0 | D24: =SUM(D19:D23) -> 0 | J24: =SUM(J19:J23) -> 0 | L24: =SUM(L19:L23) -> 0
A25: Récap 31/12 | D25: =+B24-D24 -> 0 | I25: Récap 31/01 | L25: =+J24-L24 -> 0
A27: FÉVRIER | E27: MARS | I27: AVRIL
A28: RECETTES | C28: DEPENSES | E28: RECETTES | G28: DEPENSES | I28: RECETTES | K28: DEPENSES
A29: Dates | B29: Montant | C29: Activités | D29: Montant | E29: Dates | F29: Montant | G29: Activités | H29: Montant | I29: Dates | J29: Montant | K29: Activités | L29: Montant
B35: =SUM(B30:B34) -> 0 | D35: =SUM(D30:D34) -> 0 | F35: =SUM(F30:F34) -> 0 | H35: =SUM(H30:H34) -> 0 | J35: =SUM(J30:J34) -> 0 | L35: =SUM(L30:L34) -> 0
A36: Récap 28/02 | D36: =+B35-D35 -> 0 | E36: Récap 31/03 | H36: =+F35-H35 -> 0 | I36: Récap 30/04 | L36: =+J35-L35 -> 0
A39: MAI | E39: JUIN | I39: Situation fin juin
A40: RECETTES | C40: DEPENSES | E40: RECETTES | G40: DEPENSES | J40: Recettes | K40: Dépenses | L40: Total
A41: Dates | B41: Montant | C41: Activités | D41: Montant | E41: Dates | F41: Montant | G41: Activités | H41: Montant | I41: =E23 -> Situation 31/12 | L41: =H23 -> -6
I42: =I25 -> Récap 31/01 | J42: =J24 -> 0 | K42: =L24 -> 0 | L42: =L25 -> 0
I43: =A36 -> Récap 28/02 | J43: =B35 -> 0 | K43: =D35 -> 0 | L43: =D36 -> 0
I44: =E36 -> Récap 31/03 | J44: =F35 -> 0 | K44: =H35 -> 0 | L44: =H36 -> 0
I45: =I36 -> Récap 30/04 | J45: =J35 -> 0 | K45: =L35 -> 0 | L45: =L36 -> 0
I46: =A48 -> Récap 31/05 | J46: =B47 -> 0 | K46: =D47 -> 0 | L46: =D48 -> 0
B47: =SUM(B42:B46) -> 0 | D47: =SUM(D42:D46) -> 0 | F47: =SUM(F42:F46) -> 0 | H47: =SUM(H42:H46) -> 0 | I47: =E48 -> Récap 30/06 | J47: =F47 -> 0 | K47: =H47 -> 0 | L47: =H48 -> 0
A48: Récap 31/05 | D48: =+B47-D47 -> 0 | E48: Récap 30/06 | H48: =+F47-H47 -> 0 | I48: Situation 30/06 | J48: =SUM(J42:J47) -> 0 | K48: =SUM(K42:K47) -> 0 | L48: =SUM(L41:L47) -> -6
L50: =F23+J48-G23-K48+B8 -> -6
J52: =B13+F13+J13+B24+J24+B35+F35+J35+B47+F47 -> 0 | K52: =D13+H13+L13+D24+L24+D35+H35+L35+D47+H47 -> 0 | L52: =B8+J52-K52 -> -6

Sheet FAIETAJ
J1: Année scolaire : | L1: =' Liste élèves'!B1 -> 2018-2019
A3: NOM : | B3: =' Liste élèves'!A68 -> FAIETAJ | D3: PRENOM: | E3: =' Liste élèves'!B68 -> Jodie | H3: CLASSE : | I3: =' Liste élèves'!C68 -> Classe JB
A5: SEPTEMBRE | E5: OCTOBRE | I5: NOVEMBRE
A6: RECETTES | C6: DEPENSES | E6: RECETTES | G6: DEPENSES | I6: RECETTES | K6: DEPENSES
A7: Dates | B7: Montant | C7: Activités | D7: Montant | E7: Dates | F7: Montant | G7: Activités | H7: Montant | I7: Dates | J7: Montant | K7: Activités | L7: Montant
A8: Report juin | B8: 29.13
B13: =SUM(B9:B12) -> 0 | D13: =SUM(D8:D12) -> 0 | F13: =SUM(F8:F12) -> 0 | H13: =SUM(H8:H12) -> 0 | J13: =SUM(J8:J12) -> 0 | L13: =SUM(L8:L12) -> 0
A14: Récap 30/09 | D14: =+B13-D13 -> 0 | E14: Récap 31/10 | H14: =+F13-H13 -> 0 | I14: Récap 30/11 | L14: =+J13-L13 -> 0
A16: DÉCEMBRE | E16: Situation fin décembre | I16: JANVIER
A17: RECETTES | C17: DEPENSES | F17: Recettes | G17: Dépenses | H17: Total | I17: RECETTES | K17: DEPENSES
A18: Dates | B18: Montant | C18: Activités | D18: Montant | E18: =A14 -> Récap 30/09 | F18: =B13 -> 0 | G18: =D13 -> 0 | H18: =D14 -> 0 | I18: Dates | J18: Montant | K18: Activités | L18: Montant
E19: =E14 -> Récap 31/10 | F19: =F13 -> 0 | G19: =H13 -> 0 | H19: =H14 -> 0
E20: =I14 -> Récap 30/11 | F20: =J13 -> 0 | G20: =L13 -> 0 | H20: =L14 -> 0
E21: =A25 -> Récap 31/12 | F21: =B24 -> 0 | G21: =D24 -> 0 | H21: =D25 -> 0
E22: Report Sept | H22: =B8 -> 29.13
E23: Situation 31/12 | F23: =SUM(F18:F22) -> 0 | G23: =SUM(G18:G22) -> 0 | H23: =SUM(H18:H22) -> 29.13
B24: =SUM(B19:B23) -> 0 | D24: =SUM(D19:D23) -> 0 | J24: =SUM(J19:J23) -> 0 | L24: =SUM(L19:L23) -> 0
A25: Récap 31/12 | D25: =+B24-D24 -> 0 | I25: Récap 31/01 | L25: =+J24-L24 -> 0
A27: FÉVRIER | E27: MARS | I27: AVRIL
A28: RECETTES | C28: DEPENSES | E28: RECETTES | G28: DEPENSES | I28: RECETTES | K28: DEPENSES
A29: Dates | B29: Montant | C29: Activités | D29: Montant | E29: Dates | F29: Montant | G29: Activités | H29: Montant | I29: Dates | J29: Montant | K29: Activités | L29: Montant
B35: =SUM(B30:B34) -> 0 | D35: =SUM(D30:D34) -> 0 | F35: =SUM(F30:F34) -> 0 | H35: =SUM(H30:H34) -> 0 | J35: =SUM(J30:J34) -> 0 | L35: =SUM(L30:L34) -> 0
A36: Récap 28/02 | D36: =+B35-D35 -> 0 | E36: Récap 31/03 | H36: =+F35-H35 -> 0 | I36: Récap 30/04 | L36: =+J35-L35 -> 0
A39: MAI | E39: JUIN | I39: Situation fin juin
A40: RECETTES | C40: DEPENSES | E40: RECETTES | G40: DEPENSES | J40: Recettes | K40: Dépenses | L40: Total
A41: Dates | B41: Montant | C41: Activités | D41: Montant | E41: Dates | F41: Montant | G41: Activités | H41: Montant | I41: =E23 -> Situation 31/12 | L41: =H23 -> 29.13
I42: =I25 -> Récap 31/01 | J42: =J24 -> 0 | K42: =L24 -> 0 | L42: =L25 -> 0
I43: =A36 -> Récap 28/02 | J43: =B35 -> 0 | K43: =D35 -> 0 | L43: =D36 -> 0
I44: =E36 -> Récap 31/03 | J44: =F35 -> 0 | K44: =H35 -> 0 | L44: =H36 -> 0
I45: =I36 -> Récap 30/04 | J45: =J35 -> 0 | K45: =L35 -> 0 | L45: =L36 -> 0
I46: =A48 -> Récap 31/05 | J46: =B47 -> 0 | K46: =D47 -> 0 | L46: =D48 -> 0
B47: =SUM(B42:B46) -> 0 | D47: =SUM(D42:D46) -> 0 | F47: =SUM(F42:F46) -> 0 | H47: =SUM(H42:H46) -> 0 | I47: =E48 -> Récap 30/06 | J47: =F47 -> 0 | K47: =H47 -> 0 | L47: =H48 -> 0
A48: Récap 31/05 | D48: =+B47-D47 -> 0 | E48: Récap 30/06 | H48: =+F47-H47 -> 0 | I48: Situation 30/06 | J48: =SUM(J42:J47) -> 0 | K48: =SUM(K42:K47) -> 0 | L48: =SUM(L41:L47) -> 29.13
L50: =F23+J48-G23-K48+B8 -> 29.13
J52: =B13+F13+J13+B24+J24+B35+F35+J35+B47+F47 -> 0 | K52: =D13+H13+L13+D24+L24+D35+H35+L35+D47+H47 -> 0 | L52: =B8+J52-K52 -> 29.13

Sheet FAKIR
J1: Année scolaire : | L1: =' Liste élèves'!B1 -> 2018-2019
A3: NOM : | B3: =' Liste élèves'!A69 -> FAKIR | D3: PRENOM: | E3: =' Liste élèves'!B69 -> Yassin | H3: CLASSE : | I3: =' Liste élèves'!C69 -> Classe 1
A5: SEPTEMBRE | E5: OCTOBRE | I5: NOVEMBRE
A6: RECETTES | C6: DEPENSES | E6: RECETTES | G6: DEPENSES | I6: RECETTES | K6: DEPENSES
A7: Dates | B7: Montant | C7: Activités | D7: Montant | E7: Dates | F7: Montant | G7: Activités | H7: Montant | I7: Dates | J7: Montant | K7: Activités | L7: Montant
A8: Report juin | B8: 0.52
B13: =SUM(B9:B12) -> 0 | D13: =SUM(D8:D12) -> 0 | F13: =SUM(F8:F12) -> 0 | H13: =SUM(H8:H12) -> 0 | J13: =SUM(J8:J12) -> 0 | L13: =SUM(L8:L12) -> 0
A14: Récap 30/09 | D14: =+B13-D13 -> 0 | E14: Récap 31/10 | H14: =+F13-H13 -> 0 | I14: Récap 30/11 | L14: =+J13-L13 -> 0
A16: DÉCEMBRE | E16: Situation fin décembre | I16: JANVIER
A17: RECETTES | C17: DEPENSES | F17: Recettes | G17: Dépenses | H17: Total | I17: RECETTES | K17: DEPENSES
A18: Dates | B18: Montant | C18: Activités | D18: Montant | E18: =A14 -> Récap 30/09 | F18: =B13 -> 0 | G18: =D13 -> 0 | H18: =D14 -> 0 | I18: Dates | J18: Montant | K18: Activités | L18: Montant
E19: =E14 -> Récap 31/10 | F19: =F13 -> 0 | G19: =H13 -> 0 | H19: =H14 -> 0
E20: =I14 -> Récap 30/11 | F20: =J13 -> 0 | G20: =L13 -> 0 | H20: =L14 -> 0
E21: =A25 -> Récap 31/12 | F21: =B24 -> 0 | G21: =D24 -> 0 | H21: =D25 -> 0
E22: Report Sept | H22: =B8 -> 0.52
E23: Situation 31/12 | F23: =SUM(F18:F22) -> 0 | G23: =SUM(G18:G22) -> 0 | H23: =SUM(H18:H22) -> 0.52
B24: =SUM(B19:B23) -> 0 | D24: =SUM(D19:D23) -> 0 | J24: =SUM(J19:J23) -> 0 | L24: =SUM(L19:L23) -> 0
A25: Récap 31/12 | D25: =+B24-D24 -> 0 | I25: Récap 31/01 | L25: =+J24-L24 -> 0
A27: FÉVRIER | E27: MARS | I27: AVRIL
A28: RECETTES | C28: DEPENSES | E28: RECETTES | G28: DEPENSES | I28: RECETTES | K28: DEPENSES
A29: Dates | B29: Montant | C29: Activités | D29: Montant | E29: Dates | F29: Montant | G29: Activités | H29: Montant | I29: Dates | J29: Montant | K29: Activités | L29: Montant
B35: =SUM(B30:B34) -> 0 | D35: =SUM(D30:D34) -> 0 | F35: =SUM(F30:F34) -> 0 | H35: =SUM(H30:H34) -> 0 | J35: =SUM(J30:J34) -> 0 | L35: =SUM(L30:L34) -> 0
A36: Récap 28/02 | D36: =+B35-D35 -> 0 | E36: Récap 31/03 | H36: =+F35-H35 -> 0 | I36: Récap 30/04 | L36: =+J35-L35 -> 0
A39: MAI | E39: JUIN | I39: Situation fin juin
A40: RECETTES | C40: DEPENSES | E40: RECETTES | G40: DEPENSES | J40: Recettes | K40: Dépenses | L40: Total
A41: Dates | B41: Montant | C41: Activités | D41: Montant | E41: Dates | F41: Montant | G41: Activités | H41: Montant | I41: =E23 -> Situation 31/12 | L41: =H23 -> 0.52
I42: =I25 -> Récap 31/01 | J42: =J24 -> 0 | K42: =L24 -> 0 | L42: =L25 -> 0
I43: =A36 -> Récap 28/02 | J43: =B35 -> 0 | K43: =D35 -> 0 | L43: =D36 -> 0
I44: =E36 -> Récap 31/03 | J44: =F35 -> 0 | K44: =H35 -> 0 | L44: =H36 -> 0
I45: =I36 -> Récap 30/04 | J45: =J35 -> 0 | K45: =L35 -> 0 | L45: =L36 -> 0
I46: =A48 -> Récap 31/05 | J46: =B47 -> 0 | K46: =D47 -> 0 | L46: =D48 -> 0
B47: =SUM(B42:B46) -> 0 | D47: =SUM(D42:D46) -> 0 | F47: =SUM(F42:F46) -> 0 | H47: =SUM(H42:H46) -> 0 | I47: =E48 -> Récap 30/06 | J47: =F47 -> 0 | K47: =H47 -> 0 | L47: =H48 -> 0
A48: Récap 31/05 | D48: =+B47-D47 -> 0 | E48: Récap 30/06 | H48: =+F47-H47 -> 0 | I48: Situation 30/06 | J48: =SUM(J42:J47) -> 0 | K48: =SUM(K42:K47) -> 0 | L48: =SUM(L41:L47) -> 0.52
L50: =F23+J48-G23-K48+B8 -> 0.52
J52: =B13+F13+J13+B24+J24+B35+F35+J35+B47+F47 -> 0 | K52: =D13+H13+L13+D24+L24+D35+H35+L35+D47+H47 -> 0 | L52: =B8+J52-K52 -> 0.52

Sheet FALANGA
J1: Année scolaire : | L1: =' Liste élèves'!B1 -> 2018-2019
A3: NOM : | B3: =' Liste élèves'!A70 -> FALANGA | D3: PRENOM: | E3: =' Liste élèves'!B70 -> Tony | H3: CLASSE : | I3: =' Liste élèves'!C70 -> Classe 9
A5: SEPTEMBRE | E5: OCTOBRE | I5: NOVEMBRE
A6: RECETTES | C6: DEPENSES | E6: RECETTES | G6: DEPENSES | I6: RECETTES | K6: DEPENSES
A7: Dates | B7: Montant | C7: Activités | D7: Montant | E7: Dates | F7: Montant | G7: Activités | H7: Montant | I7: Dates | J7: Montant | K7: Activités | L7: Montant
A8: Report juin | B8: 56
B13: =SUM(B9:B12) -> 0 | D13: =SUM(D8:D12) -> 0 | F13: =SUM(F8:F12) -> 0 | H13: =SUM(H8:H12) -> 0 | J13: =SUM(J8:J12) -> 0 | L13: =SUM(L8:L12) -> 0
A14: Récap 30/09 | D14: =+B13-D13 -> 0 | E14: Récap 31/10 | H14: =+F13-H13 -> 0 | I14: Récap 30/11 | L14: =+J13-L13 -> 0
A16: DÉCEMBRE | E16: Situation fin décembre | I16: JANVIER
A17: RECETTES | C17: DEPENSES | F17: Recettes | G17: Dépenses | H17: Total | I17: RECETTES | K17: DEPENSES
A18: Dates | B18: Montant | C18: Activités | D18: Montant | E18: =A14 -> Récap 30/09 | F18: =B13 -> 0 | G18: =D13 -> 0 | H18: =D14 -> 0 | I18: Dates | J18: Montant | K18: Activités | L18: Montant
E19: =E14 -> Récap 31/10 | F19: =F13 -> 0 | G19: =H13 -> 0 | H19: =H14 -> 0
E20: =I14 -> Récap 30/11 | F20: =J13 -> 0 | G20: =L13 -> 0 | H20: =L14 -> 0
E21: =A25 -> Récap 31/12 | F21: =B24 -> 0 | G21: =D24 -> 0 | H21: =D25 -> 0
E22: Report Sept | H22: =B8 -> 56
E23: Situation 31/12 | F23: =SUM(F18:F22) -> 0 | G23: =SUM(G18:G22) -> 0 | H23: =SUM(H18:H22) -> 56
B24: =SUM(B19:B23) -> 0 | D24: =SUM(D19:D23) -> 0 | J24: =SUM(J19:J23) -> 0 | L24: =SUM(L19:L23) -> 0
A25: Récap 31/12 | D25: =+B24-D24 -> 0 | I25: Récap 31/01 | L25: =+J24-L24 -> 0
A27: FÉVRIER | E27: MARS | I27: AVRIL
A28: RECETTES | C28: DEPENSES | E28: RECETTES | G28: DEPENSES | I28: RECETTES | K28: DEPENSES
A29: Dates | B29: Montant | C29: Activités | D29: Montant | E29: Dates | F29: Montant | G29: Activités | H29: Montant | I29: Dates | J29: Montant | K29: Activités | L29: Montant
B35: =SUM(B30:B34) -> 0 | D35: =SUM(D30:D34) -> 0 | F35: =SUM(F30:F34) -> 0 | H35: =SUM(H30:H34) -> 0 | J35: =SUM(J30:J34) -> 0 | L35: =SUM(L30:L34) -> 0
A36: Récap 28/02 | D36: =+B35-D35 -> 0 | E36: Récap 31/03 | H36: =+F35-H35 -> 0 | I36: Récap 30/04 | L36: =+J35-L35 -> 0
A39: MAI | E39: JUIN | I39: Situation fin juin
A40: RECETTES | C40: DEPENSES | E40: RECETTES | G40: DEPENSES | J40: Recettes | K40: Dépenses | L40: Total
A41: Dates | B41: Montant | C41: Activités | D41: Montant | E41: Dates | F41: Montant | G41: Activités | H41: Montant | I41: =E23 -> Situation 31/12 | L41: =H23 -> 56
I42: =I25 -> Récap 31/01 | J42: =J24 -> 0 | K42: =L24 -> 0 | L42: =L25 -> 0
I43: =A36 -> Récap 28/02 | J43: =B35 -> 0 | K43: =D35 -> 0 | L43: =D36 -> 0
I44: =E36 -> Récap 31/03 | J44: =F35 -> 0 | K44: =H35 -> 0 | L44: =H36 -> 0
I45: =I36 -> Récap 30/04 | J45: =J35 -> 0 | K45: =L35 -> 0 | L45: =L36 -> 0
I46: =A48 -> Récap 31/05 | J46: =B47 -> 0 | K46: =D47 -> 0 | L46: =D48 -> 0
B47: =SUM(B42:B46) -> 0 | D47: =SUM(D42:D46) -> 0 | F47: =SUM(F42:F46) -> 0 | H47: =SUM(H42:H46) -> 0 | I47: =E48 -> Récap 30/06 | J47: =F47 -> 0 | K47: =H47 -> 0 | L47: =H48 -> 0
A48: Récap 31/05 | D48: =+B47-D47 -> 0 | E48: Récap 30/06 | H48: =+F47-H47 -> 0 | I48: Situation 30/06 | J48: =SUM(J42:J47) -> 0 | K48: =SUM(K42:K47) -> 0 | L48: =SUM(L41:L47) -> 56
L50: =F23+J48-G23-K48+B8 -> 56
J52: =B13+F13+J13+B24+J24+B35+F35+J35+B47+F47 -> 0 | K52: =D13+H13+L13+D24+L24+D35+H35+L35+D47+H47 -> 0 | L52: =B8+J52-K52 -> 56

Sheet FARCI
J1: Année scolaire : | L1: =' Liste élèves'!B1 -> 2018-2019
A3: NOM : | B3: =' Liste élèves'!A71 -> FARCI | D3: PRENOM: | E3: =' Liste élèves'!B71 -> Jimmy | H3: CLASSE : | I3: =' Liste élèves'!C71 -> Classe FB
A5: SEPTEMBRE | E5: OCTOBRE | I5: NOVEMBRE
A6: RECETTES | C6: DEPENSES | E6: RECETTES | G6: DEPENSES | I6: RECETTES | K6: DEPENSES
A7: Dates | B7: Montant | C7: Activités | D7: Montant | E7: Dates | F7: Montant | G7: Activités | H7: Montant | I7: Dates | J7: Montant | K7: Activités | L7: Montant
A8: Report juin | B8: 51.5
B13: =SUM(B9:B12) -> 0 | D13: =SUM(D8:D12) -> 0 | F13: =SUM(F8:F12) -> 0 | H13: =SUM(H8:H12) -> 0 | J13: =SUM(J8:J12) -> 0 | L13: =SUM(L8:L12) -> 0
A14: Récap 30/09 | D14: =+B13-D13 -> 0 | E14: Récap 31/10 | H14: =+F13-H13 -> 0 | I14: Récap 30/11 | L14: =+J13-L13 -> 0
A16: DÉCEMBRE | E16: Situation fin décembre | I16: JANVIER
A17: RECETTES | C17: DEPENSES | F17: Recettes | G17: Dépenses | H17: Total | I17: RECETTES | K17: DEPENSES
A18: Dates | B18: Montant | C18: Activités | D18: Montant | E18: =A14 -> Récap 30/09 | F18: =B13 -> 0 | G18: =D13 -> 0 | H18: =D14 -> 0 | I18: Dates | J18: Montant | K18: Activités | L18: Montant
E19: =E14 -> Récap 31/10 | F19: =F13 -> 0 | G19: =H13 -> 0 | H19: =H14 -> 0
E20: =I14 -> Récap 30/11 | F20: =J13 -> 0 | G20: =L13 -> 0 | H20: =L14 -> 0
E21: =A25 -> Récap 31/12 | F21: =B24 -> 0 | G21: =D24 -> 0 | H21: =D25 -> 0
E22: Report Sept | H22: =B8 -> 51.5
E23: Situation 31/12 | F23: =SUM(F18:F22) -> 0 | G23: =SUM(G18:G22) -> 0 | H23: =SUM(H18:H22) -> 51.5
B24: =SUM(B19:B23) -> 0 | D24: =SUM(D19:D23) -> 0 | J24: =SUM(J19:J23) -> 0 | L24: =SUM(L19:L23) -> 0
A25: Récap 31/12 | D25: =+B24-D24 -> 0 | I25: Récap 31/01 | L25: =+J24-L24 -> 0
A27: FÉVRIER | E27: MARS | I27: AVRIL
A28: RECETTES | C28: DEPENSES | E28: RECETTES | G28: DEPENSES | I28: RECETTES | K28: DEPENSES
A29: Dates | B29: Montant | C29: Activités | D29: Montant | E29: Dates | F29: Montant | G29: Activités | H29: Montant | I29: Dates | J29: Montant | K29: Activités | L29: Montant
B35: =SUM(B30:B34) -> 0 | D35: =SUM(D30:D34) -> 0 | F35: =SUM(F30:F34) -> 0 | H35: =SUM(H30:H34) -> 0 | J35: =SUM(J30:J34) -> 0 | L35: =SUM(L30:L34) -> 0
A36: Récap 28/02 | D36: =+B35-D35 -> 0 | E36: Récap 31/03 | H36: =+F35-H35 -> 0 | I36: Récap 30/04 | L36: =+J35-L35 -> 0
A39: MAI | E39: JUIN | I39: Situation fin juin
A40: RECETTES | C40: DEPENSES | E40: RECETTES | G40: DEPENSES | J40: Recettes | K40: Dépenses | L40: Total
A41: Dates | B41: Montant | C41: Activités | D41: Montant | E41: Dates | F41: Montant | G41: Activités | H41: Montant | I41: =E23 -> Situation 31/12 | L41: =H23 -> 51.5
I42: =I25 -> Récap 31/01 | J42: =J24 -> 0 | K42: =L24 -> 0 | L42: =L25 -> 0
I43: =A36 -> Récap 28/02 | J43: =B35 -> 0 | K43: =D35 -> 0 | L43: =D36 -> 0
I44: =E36 -> Récap 31/03 | J44: =F35 -> 0 | K44: =H35 -> 0 | L44: =H36 -> 0
I45: =I36 -> Récap 30/04 | J45: =J35 -> 0 | K45: =L35 -> 0 | L45: =L36 -> 0
I46: =A48 -> Récap 31/05 | J46: =B47 -> 0 | K46: =D47 -> 0 | L46: =D48 -> 0
B47: =SUM(B42:B46) -> 0 | D47: =SUM(D42:D46) -> 0 | F47: =SUM(F42:F46) -> 0 | H47: =SUM(H42:H46) -> 0 | I47: =E48 -> Récap 30/06 | J47: =F47 -> 0 | K47: =H47 -> 0 | L47: =H48 -> 0
A48: Récap 31/05 | D48: =+B47-D47 -> 0 | E48: Récap 30/06 | H48: =+F47-H47 -> 0 | I48: Situation 30/06 | J48: =SUM(J42:J47) -> 0 | K48: =SUM(K42:K47) -> 0 | L48: =SUM(L41:L47) -> 51.5
L50: =F23+J48-G23-K48+B8 -> 51.5
J52: =B13+F13+J13+B24+J24+B35+F35+J35+B47+F47 -> 0 | K52: =D13+H13+L13+D24+L24+D35+H35+L35+D47+H47 -> 0 | L52: =B8+J52-K52 -> 51.5

Sheet FAROOQ
J1: Année scolaire : | L1: =' Liste élèves'!B1 -> 2018-2019
A3: NOM : | B3: =' Liste élèves'!A72 -> FAROOQ | D3: PRENOM: | E3: =' Liste élèves'!B72 -> Ramish | H3: CLASSE : | I3: =' Liste élèves'!C72 -> Classe 7
A5: SEPTEMBRE | E5: OCTOBRE | I5: NOVEMBRE
A6: RECETTES | C6: DEPENSES | E6: RECETTES | G6: DEPENSES | I6: RECETTES | K6: DEPENSES
A7: Dates | B7: Montant | C7: Activités | D7: Montant | E7: Dates | F7: Montant | G7: Activités | H7: Montant | I7: Dates | J7: Montant | K7: Activités | L7: Montant
A8: Report juin | B8: 62.1
B13: =SUM(B9:B12) -> 0 | D13: =SUM(D8:D12) -> 0 | F13: =SUM(F8:F12) -> 0 | H13: =SUM(H8:H12) -> 0 | J13: =SUM(J8:J12) -> 0 | L13: =SUM(L8:L12) -> 0
A14: Récap 30/09 | D14: =+B13-D13 -> 0 | E14: Récap 31/10 | H14: =+F13-H13 -> 0 | I14: Récap 30/11 | L14: =+J13-L13 -> 0
A16: DÉCEMBRE | E16: Situation fin décembre | I16: JANVIER
A17: RECETTES | C17: DEPENSES | F17: Recettes | G17: Dépenses | H17: Total | I17: RECETTES | K17: DEPENSES
A18: Dates | B18: Montant | C18: Activités | D18: Montant | E18: =A14 -> Récap 30/09 | F18: =B13 -> 0 | G18: =D13 -> 0 | H18: =D14 -> 0 | I18: Dates | J18: Montant | K18: Activités | L18: Montant
E19: =E14 -> Récap 31/10 | F19: =F13 -> 0 | G19: =H13 -> 0 | H19: =H14 -> 0
E20: =I14 -> Récap 30/11 | F20: =J13 -> 0 | G20: =L13 -> 0 | H20: =L14 -> 0
E21: =A25 -> Récap 31/12 | F21: =B24 -> 0 | G21: =D24 -> 0 | H21: =D25 -> 0
E22: Report Sept | H22: =B8 -> 62.1
E23: Situation 31/12 | F23: =SUM(F18:F22) -> 0 | G23: =SUM(G18:G22) -> 0 | H23: =SUM(H18:H22) -> 62.1
B24: =SUM(B19:B23) -> 0 | D24: =SUM(D19:D23) -> 0 | J24: =SUM(J19:J23) -> 0 | L24: =SUM(L19:L23) -> 0
A25: Récap 31/12 | D25: =+B24-D24 -> 0 | I25: Récap 31/01 | L25: =+J24-L24 -> 0
A27: FÉVRIER | E27: MARS | I27: AVRIL
A28: RECETTES | C28: DEPENSES | E28: RECETTES | G28: DEPENSES | I28: RECETTES | K28: DEPENSES
A29: Dates | B29: Montant | C29: Activités | D29: Montant | E29: Dates | F29: Montant | G29: Activités | H29: Montant | I29: Dates | J29: Montant | K29: Activités | L29: Montant
B35: =SUM(B30:B34) -> 0 | D35: =SUM(D30:D34) -> 0 | F35: =SUM(F30:F34) -> 0 | H35: =SUM(H30:H34) -> 0 | J35: =SUM(J30:J34) -> 0 | L35: =SUM(L30:L34) -> 0
A36: Récap 28/02 | D36: =+B35-D35 -> 0 | E36: Récap 31/03 | H36: =+F35-H35 -> 0 | I36: Récap 30/04 | L36: =+J35-L35 -> 0
A39: MAI | E39: JUIN | I39: Situation fin juin
A40: RECETTES | C40: DEPENSES | E40: RECETTES | G40: DEPENSES | J40: Recettes | K40: Dépenses | L40: Total
A41: Dates | B41: Montant | C41: Activités | D41: Montant | E41: Dates | F41: Montant | G41: Activités | H41: Montant | I41: =E23 -> Situation 31/12 | L41: =H23 -> 62.1
I42: =I25 -> Récap 31/01 | J42: =J24 -> 0 | K42: =L24 -> 0 | L42: =L25 -> 0
I43: =A36 -> Récap 28/02 | J43: =B35 -> 0 | K43: =D35 -> 0 | L43: =D36 -> 0
I44: =E36 -> Récap 31/03 | J44: =F35 -> 0 | K44: =H35 -> 0 | L44: =H36 -> 0
I45: =I36 -> Récap 30/04 | J45: =J35 -> 0 | K45: =L35 -> 0 | L45: =L36 -> 0
I46: =A48 -> Récap 31/05 | J46: =B47 -> 0 | K46: =D47 -> 0 | L46: =D48 -> 0
B47: =SUM(B42:B46) -> 0 | D47: =SUM(D42:D46) -> 0 | F47: =SUM(F42:F46) -> 0 | H47: =SUM(H42:H46) -> 0 | I47: =E48 -> Récap 30/06 | J47: =F47 -> 0 | K47: =H47 -> 0 | L47: =H48 -> 0
A48: Récap 31/05 | D48: =+B47-D47 -> 0 | E48: Récap 30/06 | H48: =+F47-H47 -> 0 | I48: Situation 30/06 | J48: =SUM(J42:J47) -> 0 | K48: =SUM(K42:K47) -> 0 | L48: =SUM(L41:L47) -> 62.1
L50: =F23+J48-G23-K48+B8 -> 62.1
J52: =B13+F13+J13+B24+J24+B35+F35+J35+B47+F47 -> 0 | K52: =D13+H13+L13+D24+L24+D35+H35+L35+D47+H47 -> 0 | L52: =B8+J52-K52 -> 62.1

Sheet FERRI
J1: Année scolaire : | L1: =' Liste élèves'!B1 -> 2018-2019
A3: NOM : | B3: =' Liste élèves'!A73 -> FERRI | D3: PRENOM: | E3: =' Liste élèves'!B73 -> Vitoria | H3: CLASSE : | I3: =' Liste élèves'!C73 -> Classe 5
A5: SEPTEMBRE | E5: OCTOBRE | I5: NOVEMBRE
A6: RECETTES | C6: DEPENSES | E6: RECETTES | G6: DEPENSES | I6: RECETTES | K6: DEPENSES
A7: Dates | B7: Montant | C7: Activités | D7: Montant | E7: Dates | F7: Montant | G7: Activités | H7: Montant | I7: Dates | J7: Montant | K7: Activités | L7: Montant
A8: Report juin | B8: 23.4
B13: =SUM(B9:B12) -> 0 | D13: =SUM(D8:D12) -> 0 | F13: =SUM(F8:F12) -> 0 | H13: =SUM(H8:H12) -> 0 | J13: =SUM(J8:J12) -> 0 | L13: =SUM(L8:L12) -> 0
A14: Récap 30/09 | D14: =+B13-D13 -> 0 | E14: Récap 31/10 | H14: =+F13-H13 -> 0 | I14: Récap 30/11 | L14: =+J13-L13 -> 0
A16: DÉCEMBRE | E16: Situation fin décembre | I16: JANVIER
A17: RECETTES | C17: DEPENSES | F17: Recettes | G17: Dépenses | H17: Total | I17: RECETTES | K17: DEPENSES
A18: Dates | B18: Montant | C18: Activités | D18: Montant | E18: =A14 -> Récap 30/09 | F18: =B13 -> 0 | G18: =D13 -> 0 | H18: =D14 -> 0 | I18: Dates | J18: Montant | K18: Activités | L18: Montant
E19: =E14 -> Récap 31/10 | F19: =F13 -> 0 | G19: =H13 -> 0 | H19: =H14 -> 0
E20: =I14 -> Récap 30/11 | F20: =J13 -> 0 | G20: =L13 -> 0 | H20: =L14 -> 0
E21: =A25 -> Récap 31/12 | F21: =B24 -> 0 | G21: =D24 -> 0 | H21: =D25 -> 0
E22: Report Sept | H22: =B8 -> 23.4
E23: Situation 31/12 | F23: =SUM(F18:F22) -> 0 | G23: =SUM(G18:G22) -> 0 | H23: =SUM(H18:H22) -> 23.4
B24: =SUM(B19:B23) -> 0 | D24: =SUM(D19:D23) -> 0 | J24: =SUM(J19:J23) -> 0 | L24: =SUM(L19:L23) -> 0
A25: Récap 31/12 | D25: =+B24-D24 -> 0 | I25: Récap 31/01 | L25: =+J24-L24 -> 0
A27: FÉVRIER | E27: MARS | I27: AVRIL
A28: RECETTES | C28: DEPENSES | E28: RECETTES | G28: DEPENSES | I28: RECETTES | K28: DEPENSES
A29: Dates | B29: Montant | C29: Activités | D29: Montant | E29: Dates | F29: Montant | G29: Activités | H29: Montant | I29: Dates | J29: Montant | K29: Activités | L29: Montant
B35: =SUM(B30:B34) -> 0 | D35: =SUM(D30:D34) -> 0 | F35: =SUM(F30:F34) -> 0 | H35: =SUM(H30:H34) -> 0 | J35: =SUM(J30:J34) -> 0 | L35: =SUM(L30:L34) -> 0
A36: Récap 28/02 | D36: =+B35-D35 -> 0 | E36: Récap 31/03 | H36: =+F35-H35 -> 0 | I36: Récap 30/04 | L36: =+J35-L35 -> 0
A39: MAI | E39: JUIN | I39: Situation fin juin
A40: RECETTES | C40: DEPENSES | E40: RECETTES | G40: DEPENSES | J40: Recettes | K40: Dépenses | L40: Total
A41: Dates | B41: Montant | C41: Activités | D41: Montant | E41: Dates | F41: Montant | G41: Activités | H41: Montant | I41: =E23 -> Situation 31/12 | L41: =H23 -> 23.4
I42: =I25 -> Récap 31/01 | J42: =J24 -> 0 | K42: =L24 -> 0 | L42: =L25 -> 0
I43: =A36 -> Récap 28/02 | J43: =B35 -> 0 | K43: =D35 -> 0 | L43: =D36 -> 0
I44: =E36 -> Récap 31/03 | J44: =F35 -> 0 | K44: =H35 -> 0 | L44: =H36 -> 0
I45: =I36 -> Récap 30/04 | J45: =J35 -> 0 | K45: =L35 -> 0 | L45: =L36 -> 0
I46: =A48 -> Récap 31/05 | J46: =B47 -> 0 | K46: =D47 -> 0 | L46: =D48 -> 0
B47: =SUM(B42:B46) -> 0 | D47: =SUM(D42:D46) -> 0 | F47: =SUM(F42:F46) -> 0 | H47: =SUM(H42:H46) -> 0 | I47: =E48 -> Récap 30/06 | J47: =F47 -> 0 | K47: =H47 -> 0 | L47: =H48 -> 0
A48: Récap 31/05 | D48: =+B47-D47 -> 0 | E48: Récap 30/06 | H48: =+F47-H47 -> 0 | I48: Situation 30/06 | J48: =SUM(J42:J47) -> 0 | K48: =SUM(K42:K47) -> 0 | L48: =SUM(L41:L47) -> 23.4
L50: =F23+J48-G23-K48+B8 -> 23.4
J52: =B13+F13+J13+B24+J24+B35+F35+J35+B47+F47 -> 0 | K52: =D13+H13+L13+D24+L24+D35+H35+L35+D47+H47 -> 0 | L52: =B8+J52-K52 -> 23.4

Sheet FUMIERE
J1: Année scolaire : | L1: =' Liste élèves'!B1 -> 2018-2019
A3: NOM : | B3: =' Liste élèves'!A74 -> FUMIERE | D3: PRENOM: | E3: =' Liste élèves'!B74 -> Aurélie | H3: CLASSE : | I3: =' Liste élèves'!C74 -> Classe 2
A5: SEPTEMBRE | E5: OCTOBRE | I5: NOVEMBRE
A6: RECETTES | C6: DEPENSES | E6: RECETTES | G6: DEPENSES | I6: RECETTES | K6: DEPENSES
A7: Dates | B7: Montant | C7: Activités | D7: Montant | E7: Dates | F7: Montant | G7: Activités | H7: Montant | I7: Dates | J7: Montant | K7: Activités | L7: Montant
A8: Report juin | B8: 47.5
B13: =SUM(B9:B12) -> 0 | D13: =SUM(D8:D12) -> 0 | F13: =SUM(F8:F12) -> 0 | H13: =SUM(H8:H12) -> 0 | J13: =SUM(J8:J12) -> 0 | L13: =SUM(L8:L12) -> 0
A14: Récap 30/09 | D14: =+B13-D13 -> 0 | E14: Récap 31/10 | H14: =+F13-H13 -> 0 | I14: Récap 30/11 | L14: =+J13-L13 -> 0
A16: DÉCEMBRE | E16: Situation fin décembre | I16: JANVIER
A17: RECETTES | C17: DEPENSES | F17: Recettes | G17: Dépenses | H17: Total | I17: RECETTES | K17: DEPENSES
A18: Dates | B18: Montant | C18: Activités | D18: Montant | E18: =A14 -> Récap 30/09 | F18: =B13 -> 0 | G18: =D13 -> 0 | H18: =D14 -> 0 | I18: Dates | J18: Montant | K18: Activités | L18: Montant
E19: =E14 -> Récap 31/10 | F19: =F13 -> 0 | G19: =H13 -> 0 | H19: =H14 -> 0
E20: =I14 -> Récap 30/11 | F20: =J13 -> 0 | G20: =L13 -> 0 | H20: =L14 -> 0
E21: =A25 -> Récap 31/12 | F21: =B24 -> 0 | G21: =D24 -> 0 | H21: =D25 -> 0
E22: Report Sept | H22: =B8 -> 47.5
E23: Situation 31/12 | F23: =SUM(F18:F22) -> 0 | G23: =SUM(G18:G22) -> 0 | H23: =SUM(H18:H22) -> 47.5
B24: =SUM(B19:B23) -> 0 | D24: =SUM(D19:D23) -> 0 | J24: =SUM(J19:J23) -> 0 | L24: =SUM(L19:L23) -> 0
A25: Récap 31/12 | D25: =+B24-D24 -> 0 | I25: Récap 31/01 | L25: =+J24-L24 -> 0
A27: FÉVRIER | E27: MARS | I27: AVRIL
A28: RECETTES | C28: DEPENSES | E28: RECETTES | G28: DEPENSES | I28: RECETTES | K28: DEPENSES
A29: Dates | B29: Montant | C29: Activités | D29: Montant | E29: Dates | F29: Montant | G29: Activités | H29: Montant | I29: Dates | J29: Montant | K29: Activités | L29: Montant
B35: =SUM(B30:B34) -> 0 | D35: =SUM(D30:D34) -> 0 | F35: =SUM(F30:F34) -> 0 | H35: =SUM(H30:H34) -> 0 | J35: =SUM(J30:J34) -> 0 | L35: =SUM(L30:L34) -> 0
A36: Récap 28/02 | D36: =+B35-D35 -> 0 | E36: Récap 31/03 | H36: =+F35-H35 -> 0 | I36: Récap 30/04 | L36: =+J35-L35 -> 0
A39: MAI | E39: JUIN | I39: Situation fin juin
A40: RECETTES | C40: DEPENSES | E40: RECETTES | G40: DEPENSES | J40: Recettes | K40: Dépenses | L40: Total
A41: Dates | B41: Montant | C41: Activités | D41: Montant | E41: Dates | F41: Montant | G41: Activités | H41: Montant | I41: =E23 -> Situation 31/12 | L41: =H23 -> 47.5
I42: =I25 -> Récap 31/01 | J42: =J24 -> 0 | K42: =L24 -> 0 | L42: =L25 -> 0
I43: =A36 -> Récap 28/02 | J43: =B35 -> 0 | K43: =D35 -> 0 | L43: =D36 -> 0
